Workbook

Sheet Premissas
A1: PREMISSAS
A3: Concessão
C5: Início Concessão | F5: Projeto Básico / Executivo | I5: Licenciamento | J5: LP | K5: LI + LO | M5: Resolução de Conflitos
C6: Ano | D6: 2023 | F6: Incluir | G6: Sim | I6: Incluir | J6: Sim | K6: Sim | M6: Incluir | N6: Sim
C7: Mês | D7: 1 | F7: Ano início | G7: =YEAR(J10) -> 2024 | I7: Ano início | J7: =D6 -> 2023 | K7: =YEAR(J10) -> 2024 | M7: Custo Anual | N7: 570000
F8: Mês início | G8: =MONTH(J10) -> 7 | I8: Mês início | J8: =D7 -> 1 | K8: =MONTH(J10) -> 7 | M8: Período | N8: Durante Obras
C9: Término Concessão | F9: Duração (meses) | G9: 12 | I9: Duração (meses) | J9: 18 | K9: 12
C10: Duração | D10: 360 | E10: =D10/12 -> 30 | F10: Témino | G10: =EDATE(DATE(G7,G8,1),G9) -> 2025-07-01 | I10: Témino | J10: =EDATE(DATE(J7,J8,1),J9) -> 2024-07-01 | K10: =EDATE(DATE(K7,K8,1),K9) -> 2025-07-01
C11: Ano | D11: =YEAR(EDATE(DATE(D6,D7,1),D10)) -> 2053
C12: Mês | D12: =MONTH(EDATE(DATE(D6,D7,1),D10)) -> 1
A14: Alças de Implantação e Aporte
C16: Recurso Público | D16: =SUM(D17:D21) -> 3072030000 | E16: % | F16: Contingência | G16: =NPV(Retorno!D22,DRE!H13:PK13)*G17-NPV(Retorno!D22,FC!G30:PJ30)*G18 -> 211935173.3 | I16: Valor Contratual | J16: =SUM(J17:J19) -> 2675867307
C17: Aporte - Obras / Desap. | D17: =Retorno!D20-D18-D19 -> 2210675613 | E17: =D17/$D$16 -> 0.7196139404 | F17: % VPL Receita | G17: 0.2 | I17: VPL Aporte | J17: =NPV(Retorno!$D$22,DRE!H26:PK26) -> 1654078634
C18: Aporte - Amb. | D18: =DRE!F35 -> 123146386.1 | E18: =D18/$D$16 -> 0.04008632277 | F18: % VPL Ambiental | G18: 0.2 | I18: VPL Contraprestação | J18: =NPV(Retorno!$D$22,DRE!H20:PK20) -> 55577503.86
C19: Contraprestação | D19: =DRE!F20 -> 103738000.7 | E19: 0.03376855066 | I19: VPL Receita Tarifária | J19: =NPV(Retorno!$D$22,DRE!H13:PK13) -> 966211168.8
C20: Contingência | D20: =G16 -> 211935173.3 | E20: 0.0689886405 | I20: Garantia Proposta | J20: =1%*J16 -> 26758673.07
C21: Desapropriação | D21: =3072030000-SUM(D17:D20) -> 422534826.7 | E21: 0.1375425457
C23: Alça Norte | F23: Liberação Aporte - Alça Norte
C24: Incluir | D24: Sim | E24: =IF(D24="Sim",1,0) -> 1 | F24: % do Aporte | G24: % Ajustado
C25: Ano início | D25: =YEAR(K10) -> 2025 | F25: =(SUM(F29+G29)/D17) -> 0.6396042457 | G25: =IF(F33>=100%,0,IF(F25+F33<=100%,F25,100%-G33)) -> 0.5568565591
C26: Mês início | D26: =MONTH(K10) -> 7 | E26: =((Premissas!$D$25-Premissas!$D$6)*12)+Premissas!$D$26-Premissas!$D$7 -> 30 | F26: Honorários Desap. | G26: Obra
C27: Duração (meses) | D27: 36 | E27: =((Premissas!$D$25-Premissas!$D$6)*12)+Premissas!$D$26-Premissas!$D$7+Premissas!$D$27 -> 66 | F27: =F29/(F29+G29) -> 0.01808696447 | G27: =G29/(F29+G29) -> 0.9819130355
C28: Operação | D28: =EDATE(DATE(D25,D26,1),D27) -> 2028-07-01 | E28: =F29/$D$17 -> 0.01156849926 | F28: Custos Honorários | G28: Custo Obra
C29: Extensão | D29: 43.92 | E29: =F29/$D$16 -> 0.00832485334 | F29: =IF(D24="Sim",CAPEX!D59,0) -> 25574199.21 | G29: =IF(D24="Sim",CAPEX!D28*(1-CAPEX!$H$2),0) -> 1388383309
C31: Alça Oeste | F31: Liberação Aporte - Alça Oeste
C32: Incluir | D32: Sim | E32: =IF(D32="Sim",1,0) -> 1 | F32: % do Aporte | G32: % Ajustado
C33: Ano início | D33: =YEAR(K10) -> 2025 | F33: =(SUM(F37+G37)/D17) -> 0.4431434409 | G33: =IF(F33>100%,100%,F33) -> 0.4431434409 | H33: =SUM(G33+G25) -> 1
C34: Mês início | D34: =MONTH(K10) -> 7 | E34: =((Premissas!$D$33-Premissas!$D$6)*12)+Premissas!$D$34-Premissas!$D$7 -> 30 | F34: Honorários Desap. | G34: Obra
C35: Duração (meses) | D35: 36 | E35: =((Premissas!$D$33-Premissas!$D$6)*12)+Premissas!$D$34-Premissas!$D$7+Premissas!$D$35 -> 66 | F35: =F37/(F37+G37) -> 0.04137385227 | G35: =G37/(F37+G37) -> 0.9586261477
C36: Operação | D36: =EDATE(DATE(D33,D34,1),D35) -> 2028-07-01 | E36: =F37/$D$17 -> 0.01833455126 | F36: Custos Honorários | G36: Custo Obra
C37: Extensão | D37: 25.85 | E37: =F37/$D$16 -> 0.01319379868 | F37: =IF(D32="Sim",CAPEX!D55,0) -> 40531745.35 | G37: =IF(D32="Sim",CAPEX!D24*(1-CAPEX!$H$2),0) -> 939114652.6
C39: Alça Sudoeste | F39: Liberação Aporte - Alça Sudoeste
C40: Incluir | D40: Não | E40: =IF(D40="Sim",1,0) -> 0 | F40: % do Aporte | G40: % Ajustado
C41: Ano início | D41: =D33+3 -> 2028 | F41: 0 | G41: 0
C42: Mês início | D42: =D34 -> 7 | E42: =((Premissas!$D$41-Premissas!$D$6)*12)+Premissas!$D$42-Premissas!$D$7 -> 66 | F42: Honorários Desap. | G42: Obra
C43: Duração (meses) | D43: 30 | E43: =((Premissas!$D$41-Premissas!$D$6)*12)+Premissas!$D$42-Premissas!$D$7+Premissas!$D$43 -> 96 | F43: 0 | G43: 0
C44: Operação | D44: =EDATE(DATE(D41,D42,1),D43) -> 2031-01-01 | E44: =F45/($D$17+$D$18) -> 0 | F44: Custos Honorários | G44: Custo Obra
C45: Extensão | D45: =12.18+1.1 -> 13.28 | E45: =F45/$D$16 -> 0 | F45: =IF(D40="Sim",CAPEX!D47*(1-CAPEX!$H$2),0) -> 0 | G45: =IF(D40="Sim",CAPEX!D16*(1-CAPEX!$H$2),0) -> 0
C47: Alça Sul | F47: Liberação Aporte - Alça Sul
C48: Incluir | D48: Não | E48: =IF(D48="Sim",1,0) -> 0 | F48: % do Aporte | G48: % Ajustado
C49: Ano início | D49: =D41 -> 2028 | F49: 0 | G49: 0
C50: Mês início | D50: =D42 -> 7 | E50: =((Premissas!$D$49-Premissas!$D$6)*12)+Premissas!$D$50-Premissas!$D$7 -> 66 | F50: Honorários Desap. | G50: Obra
C51: Duração (meses) | D51: 36 | E51: =((Premissas!$D$49-Premissas!$D$6)*12)+Premissas!$D$50-Premissas!$D$7+Premissas!$D$51 -> 102 | F51: 0 | G51: 0
C52: Operação | D52: =EDATE(DATE(D49,D50,1),D51) -> 2031-07-01 | E52: =F53/$D$17 -> 0 | F52: Custos Honorários | G52: Custo Obra
C53: Extensão | D53: 17.6 | E53: =F53/$D$16 -> 0 | F53: =IF(D48="Sim",CAPEX!D51*(1-CAPEX!$H$2),0) -> 0 | G53: =IF(D48="Sim",CAPEX!D20*(1-CAPEX!$H$2),0) -> 0
A55: Praças de Pedágio
C57: Pedagiamento | F57: Alça | G57: Extensão | H57: Tarifa Cheia | I57: Tarifa Tag | J57: Tarifa Freq | K57: Tarifa Longa Dist.
C58: TKM | D58: 0.35 | F58: Norte | G58: =D29 -> 43.92 | H58: =G58*$D$58*IF(D24="Sim",1,0) -> 15.372 | I58: =H58*(1-$D$59) -> 14.14224 | J58: =H58*(1-$D$60) -> 13.8348 | K58: =H58*(1-$D$61) -> 12.2976
C59: Desc. Tag | D59: 0.08 | F59: Oeste | G59: =D37 -> 25.85 | H59: =G59*$D$58*IF(D32="Sim",1,0) -> 9.0475 | I59: =H59*(1-$D$59) -> 8.3237 | J59: =H59*(1-$D$60) -> 8.14275 | K59: =H59*(1-$D$61) -> 7.238
C60: Desc. Usr. Freq. | D60: 0.1 | F60: Sudoeste | G60: =D45 -> 13.28 | H60: =G60*$D$58*IF(D40="Sim",1,0) -> 0 | I60: =H60*(1-$D$59) -> 0 | J60: =H60*(1-$D$60) -> 0 | K60: =H60*(1-$D$61) -> 0
C61: Desc. Longa Dist. | D61: 0.2 | F61: Sul | G61: =D53 -> 17.6 | H61: =G61*$D$58*IF(D48="Sim",1,0) -> 0 | I61: =H61*(1-$D$59) -> 0 | J61: =H61*(1-$D$60) -> 0 | K61: =H61*(1-$D$61) -> 0
F62: Total | G62: =SUM(G58:G61) -> 100.65 | H62: =SUM(H58:H61) -> 24.4195 | I62: =H62*(1-$D$59) -> 22.46594 | J62: =H62*(1-$D$60) -> 21.97755 | K62: =H62*(1-$D$61) -> 19.5356
C64: Nome | D64: Incluir | E64: Alça | F64: Operação
C65: Norte - P01 | D65: =$D$24 -> Sim | E65: Alça Norte | F65: =$D$28 -> 2028-07-01
C66: Norte - P02 | D66: =$D$24 -> Sim | E66: Alça Norte | F66: =$D$28 -> 2028-07-01
C67: Norte - P03 | D67: =$D$24 -> Sim | E67: Alça Norte | F67: =$D$28 -> 2028-07-01
C68: Norte - P04 | D68: =$D$24 -> Sim | E68: Alça Norte | F68: =$D$28 -> 2028-07-01
C69: Oeste - P05 | D69: =$D$32 -> Sim | E69: Alça Oeste | F69: =$D$36 -> 2028-07-01
C70: Oeste - P06 | D70: =$D$32 -> Sim | E70: Alça Oeste | F70: =$D$36 -> 2028-07-01
C71: Oeste - P07 | D71: =$D$32 -> Sim | E71: Alça Oeste | F71: =$D$36 -> 2028-07-01
C72: Oeste - P08 | D72: =$D$32 -> Sim | E72: Alça Oeste | F72: =$D$36 -> 2028-07-01
C73: Sudoeste - P09 | D73: =$D$40 -> Não | E73: Alça Sudoeste | F73: =$D$44 -> 2031-01-01
C74: Sudoeste - P10 | D74: =$D$40 -> Não | E74: Alça Sudoeste | F74: =$D$44 -> 2031-01-01
C75: Sul - P11 | D75: =$D$48 -> Não | E75: Alça Sul | F75: =$D$52 -> 2031-07-01
C76: Praça 12 | D76: =IFERROR(INDEX($C$31:$D$54,MATCH(E76,$C$31:$C$54,0)+1,2),"Não") -> Não | E76: - | F76: =IFERROR(VLOOKUP(E76,$C$31:$D$54,2,FALSE),"-") -> -
C77: Praça 13 | D77: =IFERROR(INDEX($C$31:$D$54,MATCH(E77,$C$31:$C$54,0)+1,2),"Não") -> Não | E77: - | F77: -
C78: Praça 14 | D78: =IFERROR(INDEX($C$31:$D$54,MATCH(E78,$C$31:$C$54,0)+1,2),"Não") -> Não | E78: - | F78: -
C79: Praça 15 | D79: =IFERROR(INDEX($C$31:$D$54,MATCH(E79,$C$31:$C$54,0)+1,2),"Não") -> Não | E79: - | F79: -
C80: Praça 16 | D80: =IFERROR(INDEX($C$31:$D$54,MATCH(E80,$C$31:$C$54,0)+1,2),"Não") -> Não | E80: - | F80: -
C81: Praça 17 | D81: =IFERROR(INDEX($C$31:$D$54,MATCH(E81,$C$31:$C$54,0)+1,2),"Não") -> Não | E81: - | F81: -
C82: Praça 18 | D82: =IFERROR(INDEX($C$31:$D$54,MATCH(E82,$C$31:$C$54,0)+1,2),"Não") -> Não | E82: - | F82: -
C83: Praça 19 | D83: =IFERROR(INDEX($C$31:$D$54,MATCH(E83,$C$31:$C$54,0)+1,2),"Não") -> Não | E83: - | F83: -
C84: Praça 20 | D84: =IFERROR(INDEX($C$31:$D$54,MATCH(E84,$C$31:$C$54,0)+1,2),"Não") -> Não | E84: - | F84: -
A86: Alavancagem
C88: Financiamento | E88: #1 | F88: #2 | H88: Fluxo de dividendos | M88: Capital Social Mínimo
C89: Tipo de Amortização | E89: SAC | F89: SAC | M89: Duração do 1o ciclo | N89: =HLOOKUP(-N91,Retorno!F7:AN11,5,FALSE)*12 -> 48
C90: Alavancagem | E90: 0 | F90: 0.7 | H90: Início pagamento dividendos | K90: =Retorno!D11*12 -> 180 | M90: Aporte Mínimo | N90: 0.1
C91: Início do Financiamento | E91: 36 | F91: 96 | H91: Porcentagem de lucro direcionado | K91: 0.25 | M91: Exposição Máxima | N91: =-MIN(Retorno!F7:AN7) -> 478342964
C92: Término do Financiamento | E92: 60 | F92: =F91+12*5 -> 156 | H92: Início redução do Capital | K92: =N89+1 -> 49 | M92: Valor Capital Mínimo | N92: =N91*N90 -> 47834296.4
C93: Periodicidade do Desembolso | E93: 3 | F93: 3
C94: Indexador | E94: IPCA | F94: IPCA
C95: Spread | E95: 0.084 | F95: 0.084
C96: Carência Juros | E96: =E92+24 -> 84 | F96: =F91+6 -> 102
C97: Carência Amortizações | E97: =E92+24 -> 84 | F97: =F92+1 -> 157
C98: Prazo | E98: 320 | F98: =(30*12-F91+1) -> 265
C99: Conta Reserva | E99: 0 | F99: 0
C100: Taxa de Estruturação | E100: 0.01 | F100: 0.01
A102: Tributos
C104: Impostos sobre a receita | H104: Impostos sobre o lucro
D105: R. Tarifária | E105: R. Acessórias / CP | F105: Aporte | H105: CSLL | J105: 0.09
C106: PIS | D106: 0.0065 | E106: 0.0065 | F106: 0.0065 | H106: IR até R$240 mil | J106: 0.15
C107: COFINS | D107: 0.03 | E107: 0.03 | F107: 0.03 | H107: IR acima de R$240 mil | J107: 0.25
C108: ISS | D108: 0.05 | E108: 0.05 | F108: 0 | H108: Uso de prejuízo acumulado | J108: 0.3

Sheet Retorno
A1: RETORNO
E4: ANO | F4: 0 | G4: =F4+1 -> 1 | H4: =G4+1 -> 2 | I4: 3 | J4: 4 | K4: 5 | L4: 6 | M4: 7 | N4: 8 | O4: 9 | P4: 10 | Q4: 11 | R4: 12 | S4: 13 | T4: 14 | U4: 15 | V4: 16 | W4: 17 | X4: 18 | Y4: 19 | Z4: 20 | AA4: 21 | AB4: 22 | AC4: 23 | AD4: 24 | AE4: 25 | AF4: 26 | AG4: 27 | AH4: 28 | AI4: 29 | AJ4: 30 | AK4: 31 | AL4: 32 | AM4: 33 | AN4: 34
A5: Fluxo de Caixa do Projeto Anual (desalavancado) | F5: =SUMIF(FC!$G$3:$PJ$3,Retorno!F4,FC!$G$35:$PJ$35) -> -13387919.1 | G5: =SUMIF(FC!$G$3:$PJ$3,Retorno!G4,FC!$G$35:$PJ$35) -> -28697919.89 | H5: =SUMIF(FC!$G$3:$PJ$3,Retorno!H4,FC!$G$35:$PJ$35) -> -190311539.2 | I5: =SUMIF(FC!$G$3:$PJ$3,Retorno!I4,FC!$G$35:$PJ$35) -> -124748142.3 | J5: =SUMIF(FC!$G$3:$PJ$3,Retorno!J4,FC!$G$35:$PJ$35) -> -121197443.5 | K5: =SUMIF(FC!$G$3:$PJ$3,Retorno!K4,FC!$G$35:$PJ$35) -> 89103035.25 | L5: =SUMIF(FC!$G$3:$PJ$3,Retorno!L4,FC!$G$35:$PJ$35) -> 68220155.52 | M5: =SUMIF(FC!$G$3:$PJ$3,Retorno!M4,FC!$G$35:$PJ$35) -> 68581292.7 | N5: =SUMIF(FC!$G$3:$PJ$3,Retorno!N4,FC!$G$35:$PJ$35) -> 60985073.43 | O5: =SUMIF(FC!$G$3:$PJ$3,Retorno!O4,FC!$G$35:$PJ$35) -> 41036363.53 | P5: =SUMIF(FC!$G$3:$PJ$3,Retorno!P4,FC!$G$35:$PJ$35) -> -35467450.41 | Q5: =SUMIF(FC!$G$3:$PJ$3,Retorno!Q4,FC!$G$35:$PJ$35) -> 48353009.44 | R5: =SUMIF(FC!$G$3:$PJ$3,Retorno!R4,FC!$G$35:$PJ$35) -> 41022391.39 | S5: =SUMIF(FC!$G$3:$PJ$3,Retorno!S4,FC!$G$35:$PJ$35) -> 51457688.13 | T5: =SUMIF(FC!$G$3:$PJ$3,Retorno!T4,FC!$G$35:$PJ$35) -> 42975203.09 | U5: =SUMIF(FC!$G$3:$PJ$3,Retorno!U4,FC!$G$35:$PJ$35) -> 57014708.79 | V5: =SUMIF(FC!$G$3:$PJ$3,Retorno!V4,FC!$G$35:$PJ$35) -> 63360315.17 | W5: =SUMIF(FC!$G$3:$PJ$3,Retorno!W4,FC!$G$35:$PJ$35) -> 49028413.57 | X5: =SUMIF(FC!$G$3:$PJ$3,Retorno!X4,FC!$G$35:$PJ$35) -> 54058198.09 | Y5: =SUMIF(FC!$G$3:$PJ$3,Retorno!Y4,FC!$G$35:$PJ$35) -> 53372767.71 | Z5: =SUMIF(FC!$G$3:$PJ$3,Retorno!Z4,FC!$G$35:$PJ$35) -> 73838811.44 | AA5: =SUMIF(FC!$G$3:$PJ$3,Retorno!AA4,FC!$G$35:$PJ$35) -> 80794512.56 | AB5: =SUMIF(FC!$G$3:$PJ$3,Retorno!AB4,FC!$G$35:$PJ$35) -> 20801850.07 | AC5: =SUMIF(FC!$G$3:$PJ$3,Retorno!AC4,FC!$G$35:$PJ$35) -> 71507426.58 | AD5: =SUMIF(FC!$G$3:$PJ$3,Retorno!AD4,FC!$G$35:$PJ$35) -> 93059274.96 | AE5: =SUMIF(FC!$G$3:$PJ$3,Retorno!AE4,FC!$G$35:$PJ$35) -> 72019403.35 | AF5: =SUMIF(FC!$G$3:$PJ$3,Retorno!AF4,FC!$G$35:$PJ$35) -> 78994644.6 | AG5: =SUMIF(FC!$G$3:$PJ$3,Retorno!AG4,FC!$G$35:$PJ$35) -> 80500000.26 | AH5: =SUMIF(FC!$G$3:$PJ$3,Retorno!AH4,FC!$G$35:$PJ$35) -> 113484027.7 | AI5: =SUMIF(FC!$G$3:$PJ$3,Retorno!AI4,FC!$G$35:$PJ$35) -> 93498863.07 | AJ5: =SUMIF(FC!$G$3:$PJ$3,Retorno!AJ4,FC!$G$35:$PJ$35) -> 4535801.538 | AK5: =SUMIF(FC!$G$3:$PJ$3,Retorno!AK4,FC!$G$35:$PJ$35) -> 0 | AL5: =SUMIF(FC!$G$3:$PJ$3,Retorno!AL4,FC!$G$35:$PJ$35) -> 0 | AM5: =SUMIF(FC!$G$3:$PJ$3,Retorno!AM4,FC!$G$35:$PJ$35) -> 0 | AN5: =SUMIF(FC!$G$3:$PJ$3,Retorno!AN4,FC!$G$35:$PJ$35) -> 0
A6: Fluxo de Caixa do Projeto Anual (alavancado) | F6: =SUMIF(FC!$G$3:$PJ$3,Retorno!F4,FC!$G$43:$PJ$43) -> -13387919.1 | G6: =SUMIF(FC!$G$3:$PJ$3,Retorno!G4,FC!$G$43:$PJ$43) -> -28697919.89 | H6: =SUMIF(FC!$G$3:$PJ$3,Retorno!H4,FC!$G$43:$PJ$43) -> -190311539.2 | I6: =SUMIF(FC!$G$3:$PJ$3,Retorno!I4,FC!$G$43:$PJ$43) -> -124748142.3 | J6: =SUMIF(FC!$G$3:$PJ$3,Retorno!J4,FC!$G$43:$PJ$43) -> -121197443.5 | K6: =SUMIF(FC!$G$3:$PJ$3,Retorno!K4,FC!$G$43:$PJ$43) -> 89103035.25 | L6: =SUMIF(FC!$G$3:$PJ$3,Retorno!L4,FC!$G$43:$PJ$43) -> 68220155.52 | M6: =SUMIF(FC!$G$3:$PJ$3,Retorno!M4,FC!$G$43:$PJ$43) -> 68851127.01 | N6: =SUMIF(FC!$G$3:$PJ$3,Retorno!N4,FC!$G$43:$PJ$43) -> 62004893.88 | O6: =SUMIF(FC!$G$3:$PJ$3,Retorno!O4,FC!$G$43:$PJ$43) -> 51850893.22 | P6: =SUMIF(FC!$G$3:$PJ$3,Retorno!P4,FC!$G$43:$PJ$43) -> 8312865.352 | Q6: =SUMIF(FC!$G$3:$PJ$3,Retorno!Q4,FC!$G$43:$PJ$43) -> 43476509.75 | R6: =SUMIF(FC!$G$3:$PJ$3,Retorno!R4,FC!$G$43:$PJ$43) -> 41168341.97 | S6: =SUMIF(FC!$G$3:$PJ$3,Retorno!S4,FC!$G$43:$PJ$43) -> 40979883.01 | T6: =SUMIF(FC!$G$3:$PJ$3,Retorno!T4,FC!$G$43:$PJ$43) -> 32920310.94 | U6: =SUMIF(FC!$G$3:$PJ$3,Retorno!U4,FC!$G$43:$PJ$43) -> 47681945.16 | V6: =SUMIF(FC!$G$3:$PJ$3,Retorno!V4,FC!$G$43:$PJ$43) -> 54714835.33 | W6: =SUMIF(FC!$G$3:$PJ$3,Retorno!W4,FC!$G$43:$PJ$43) -> 41036831.13 | X6: =SUMIF(FC!$G$3:$PJ$3,Retorno!X4,FC!$G$43:$PJ$43) -> 46688528.3 | Y6: =SUMIF(FC!$G$3:$PJ$3,Retorno!Y4,FC!$G$43:$PJ$43) -> 46594372.9 | Z6: =SUMIF(FC!$G$3:$PJ$3,Retorno!Z4,FC!$G$43:$PJ$43) -> 67622348.46 | AA6: =SUMIF(FC!$G$3:$PJ$3,Retorno!AA4,FC!$G$43:$PJ$43) -> 75111882.18 | AB6: =SUMIF(FC!$G$3:$PJ$3,Retorno!AB4,FC!$G$43:$PJ$43) -> 15626148.31 | AC6: =SUMIF(FC!$G$3:$PJ$3,Retorno!AC4,FC!$G$43:$PJ$43) -> 66812897.76 | AD6: =SUMIF(FC!$G$3:$PJ$3,Retorno!AD4,FC!$G$43:$PJ$43) -> 88821266.61 | AE6: =SUMIF(FC!$G$3:$PJ$3,Retorno!AE4,FC!$G$43:$PJ$43) -> 68214322.75 | AF6: =SUMIF(FC!$G$3:$PJ$3,Retorno!AF4,FC!$G$43:$PJ$43) -> 75599916.96 | AG6: =SUMIF(FC!$G$3:$PJ$3,Retorno!AG4,FC!$G$43:$PJ$43) -> 77494028.45 | AH6: =SUMIF(FC!$G$3:$PJ$3,Retorno!AH4,FC!$G$43:$PJ$43) -> 110846153.5 | AI6: =SUMIF(FC!$G$3:$PJ$3,Retorno!AI4,FC!$G$43:$PJ$43) -> 93295030.13 | AJ6: =SUMIF(FC!$G$3:$PJ$3,Retorno!AJ4,FC!$G$43:$PJ$43) -> 4535801.538 | AK6: =SUMIF(FC!$G$3:$PJ$3,Retorno!AK4,FC!$G$43:$PJ$43) -> 0 | AL6: =SUMIF(FC!$G$3:$PJ$3,Retorno!AL4,FC!$G$43:$PJ$43) -> 0 | AM6: =SUMIF(FC!$G$3:$PJ$3,Retorno!AM4,FC!$G$43:$PJ$43) -> 0 | AN6: =SUMIF(FC!$G$3:$PJ$3,Retorno!AN4,FC!$G$43:$PJ$43) -> 0
A7: Fluxo de Caixa Acumulado | F7: =E7+F5 -> -13387919.1 | G7: =F7+G5 -> -42085838.99 | H7: =G7+H5 -> -232397378.2 | I7: =H7+I5 -> -357145520.5 | J7: -478342964 | K7: -389239928.8 | L7: -321019773.2 | M7: -252438480.5 | N7: -191453407.1 | O7: -150417043.6 | P7: -185884494 | Q7: -137531484.6 | R7: -96509093.17 | S7: -45051405.04 | T7: -2076201.949 | U7: 54938506.84 | V7: 118298822 | W7: 167327235.6 | X7: 221385433.7 | Y7: 274758201.4 | Z7: 348597012.8 | AA7: 429391525.4 | AB7: 450193375.4 | AC7: 521700802 | AD7: 614760077 | AE7: 686779480.3 | AF7: 765774124.9 | AG7: 846274125.2 | AH7: 959758152.8 | AI7: 1053257016 | AJ7: 1057792817 | AK7: 1057792817 | AL7: 1057792817 | AM7: 1057792817 | AN7: 1057792817
A8: Fluxo de Caixa Acumulado - Alavancado | F8: =E8+F6 -> -13387919.1 | G8: =F8+G6 -> -42085838.99 | H8: -232397378.2 | I8: -357145520.5 | J8: -478342964 | K8: -389239928.8 | L8: -321019773.2 | M8: -252168646.2 | N8: -190163752.4 | O8: -138312859.1 | P8: -129999993.8 | Q8: -86523484.03 | R8: -45355142.06 | S8: -4375259.057 | T8: 28545051.88 | U8: 76226997.04 | V8: 130941832.4 | W8: 171978663.5 | X8: 218667191.8 | Y8: 265261564.7 | Z8: 332883913.2 | AA8: 407995795.3 | AB8: 423621943.7 | AC8: 490434841.4 | AD8: 579256108 | AE8: 647470430.8 | AF8: 723070347.7 | AG8: 800564376.2 | AH8: 911410529.7 | AI8: 1004705560 | AJ8: 1009241361 | AK8: 1009241361 | AL8: 1009241361 | AM8: 1009241361 | AN8: 1009241361
F9: =IF(AND(SUM($E9:E9)=0,$F7:F7>0),F4,0) -> 0 | G9: =IF(AND(SUM($E9:F9)=0,$F7:G7>0),G4,0) -> 0 | H9: =IF(AND(SUM($E9:G9)=0,$F7:H7>0),H4,0) -> 0 | I9: =IF(AND(SUM($E9:H9)=0,$F7:I7>0),I4,0) -> 0 | J9: =IF(AND(SUM($E9:I9)=0,$F7:J7>0),J4,0) -> 0 | K9: =IF(AND(SUM($E9:J9)=0,$F7:K7>0),K4,0) -> 0 | L9: =IF(AND(SUM($E9:K9)=0,$F7:L7>0),L4,0) -> 0 | M9: =IF(AND(SUM($E9:L9)=0,$F7:M7>0),M4,0) -> 0 | N9: =IF(AND(SUM($E9:M9)=0,$F7:N7>0),N4,0) -> 0 | O9: =IF(AND(SUM($E9:N9)=0,$F7:O7>0),O4,0) -> 0 | P9: =IF(AND(SUM($E9:O9)=0,$F7:P7>0),P4,0) -> 0 | Q9: =IF(AND(SUM($E9:P9)=0,$F7:Q7>0),Q4,0) -> 0 | R9: =IF(AND(SUM($E9:Q9)=0,$F7:R7>0),R4,0) -> 0 | S9: =IF(AND(SUM($E9:R9)=0,$F7:S7>0),S4,0) -> 0 | T9: =IF(AND(SUM($E9:S9)=0,$F7:T7>0),T4,0) -> 0 | U9: =IF(AND(SUM($E9:T9)=0,$F7:U7>0),U4,0) -> 15 | V9: =IF(AND(SUM($E9:U9)=0,$F7:V7>0),V4,0) -> 0 | W9: =IF(AND(SUM($E9:V9)=0,$F7:W7>0),W4,0) -> 0 | X9: =IF(AND(SUM($E9:W9)=0,$F7:X7>0),X4,0) -> 0 | Y9: =IF(AND(SUM($E9:X9)=0,$F7:Y7>0),Y4,0) -> 0 | Z9: =IF(AND(SUM($E9:Y9)=0,$F7:Z7>0),Z4,0) -> 0 | AA9: =IF(AND(SUM($E9:Z9)=0,$F7:AA7>0),AA4,0) -> 0 | AB9: =IF(AND(SUM($E9:AA9)=0,$F7:AB7>0),AB4,0) -> 0 | AC9: =IF(AND(SUM($E9:AB9)=0,$F7:AC7>0),AC4,0) -> 0 | AD9: =IF(AND(SUM($E9:AC9)=0,$F7:AD7>0),AD4,0) -> 0 | AE9: =IF(AND(SUM($E9:AD9)=0,$F7:AE7>0),AE4,0) -> 0 | AF9: =IF(AND(SUM($E9:AE9)=0,$F7:AF7>0),AF4,0) -> 0 | AG9: =IF(AND(SUM($E9:AF9)=0,$F7:AG7>0),AG4,0) -> 0 | AH9: =IF(AND(SUM($E9:AG9)=0,$F7:AH7>0),AH4,0) -> 0 | AI9: =IF(AND(SUM($E9:AH9)=0,$F7:AI7>0),AI4,0) -> 0 | AJ9: =IF(AND(SUM($E9:AI9)=0,$F7:AJ7>0),AJ4,0) -> 0 | AK9: =IF(AND(SUM($E9:AJ9)=0,$F7:AK7>0),AK4,0) -> 0 | AL9: =IF(AND(SUM($E9:AK9)=0,$F7:AL7>0),AL4,0) -> 0 | AM9: =IF(AND(SUM($E9:AL9)=0,$F7:AM7>0),AM4,0) -> 0 | AN9: =IF(AND(SUM($E9:AM9)=0,$F7:AN7>0),AN4,0) -> 0
F10: =IF(AND(SUM($E10:E10)=0,$F8:F8>0),F4,0) -> 0 | G10: =IF(AND(SUM($E10:F10)=0,$F8:G8>0),G4,0) -> 0 | H10: =IF(AND(SUM($E10:G10)=0,$F8:H8>0),H4,0) -> 0 | I10: =IF(AND(SUM($E10:H10)=0,$F8:I8>0),I4,0) -> 0 | J10: =IF(AND(SUM($E10:I10)=0,$F8:J8>0),J4,0) -> 0 | K10: =IF(AND(SUM($E10:J10)=0,$F8:K8>0),K4,0) -> 0 | L10: =IF(AND(SUM($E10:K10)=0,$F8:L8>0),L4,0) -> 0 | M10: =IF(AND(SUM($E10:L10)=0,$F8:M8>0),M4,0) -> 0 | N10: =IF(AND(SUM($E10:M10)=0,$F8:N8>0),N4,0) -> 0 | O10: =IF(AND(SUM($E10:N10)=0,$F8:O8>0),O4,0) -> 0 | P10: =IF(AND(SUM($E10:O10)=0,$F8:P8>0),P4,0) -> 0 | Q10: =IF(AND(SUM($E10:P10)=0,$F8:Q8>0),Q4,0) -> 0 | R10: =IF(AND(SUM($E10:Q10)=0,$F8:R8>0),R4,0) -> 0 | S10: =IF(AND(SUM($E10:R10)=0,$F8:S8>0),S4,0) -> 0 | T10: =IF(AND(SUM($E10:S10)=0,$F8:T8>0),T4,0) -> 14 | U10: =IF(AND(SUM($E10:T10)=0,$F8:U8>0),U4,0) -> 0 | V10: =IF(AND(SUM($E10:U10)=0,$F8:V8>0),V4,0) -> 0 | W10: =IF(AND(SUM($E10:V10)=0,$F8:W8>0),W4,0) -> 0 | X10: =IF(AND(SUM($E10:W10)=0,$F8:X8>0),X4,0) -> 0 | Y10: =IF(AND(SUM($E10:X10)=0,$F8:Y8>0),Y4,0) -> 0 | Z10: =IF(AND(SUM($E10:Y10)=0,$F8:Z8>0),Z4,0) -> 0 | AA10: =IF(AND(SUM($E10:Z10)=0,$F8:AA8>0),AA4,0) -> 0 | AB10: =IF(AND(SUM($E10:AA10)=0,$F8:AB8>0),AB4,0) -> 0 | AC10: =IF(AND(SUM($E10:AB10)=0,$F8:AC8>0),AC4,0) -> 0 | AD10: =IF(AND(SUM($E10:AC10)=0,$F8:AD8>0),AD4,0) -> 0 | AE10: =IF(AND(SUM($E10:AD10)=0,$F8:AE8>0),AE4,0) -> 0 | AF10: =IF(AND(SUM($E10:AE10)=0,$F8:AF8>0),AF4,0) -> 0 | AG10: =IF(AND(SUM($E10:AF10)=0,$F8:AG8>0),AG4,0) -> 0 | AH10: =IF(AND(SUM($E10:AG10)=0,$F8:AH8>0),AH4,0) -> 0 | AI10: =IF(AND(SUM($E10:AH10)=0,$F8:AI8>0),AI4,0) -> 0 | AJ10: =IF(AND(SUM($E10:AI10)=0,$F8:AJ8>0),AJ4,0) -> 0 | AK10: =IF(AND(SUM($E10:AJ10)=0,$F8:AK8>0),AK4,0) -> 0 | AL10: =IF(AND(SUM($E10:AK10)=0,$F8:AL8>0),AL4,0) -> 0 | AM10: =IF(AND(SUM($E10:AL10)=0,$F8:AM8>0),AM4,0) -> 0 | AN10: =IF(AND(SUM($E10:AM10)=0,$F8:AN8>0),AN4,0) -> 0
A11: Payback | D11: =SUM(F9:AN9) -> 15 | F11: =F4 -> 0 | G11: =G4 -> 1 | H11: 2 | I11: 3 | J11: 4 | K11: 5 | L11: 6 | M11: 7 | N11: 8 | O11: 9 | P11: 10 | Q11: 11 | R11: 12 | S11: 13 | T11: 14 | U11: 15 | V11: 16 | W11: 17 | X11: 18 | Y11: 19 | Z11: 20 | AA11: 21 | AB11: 22 | AC11: 23 | AD11: 24 | AE11: 25 | AF11: 26 | AG11: 27 | AH11: 28 | AI11: 29 | AJ11: 30 | AK11: 31 | AL11: 32 | AM11: 33 | AN11: 34
A12: Payback Alavancado | D12: =SUM(F10:AN10) -> 14
A13: FC do Projeto
E14: ANO | F14: 0 | G14: 0 | H14: 0 | I14: 0 | J14: 0 | K14: 0 | L14: 0 | M14: 0 | N14: 0 | O14: 0 | P14: 0 | Q14: 0 | R14: 1 | S14: 1 | T14: 1 | U14: 1 | V14: 1 | W14: 1 | X14: 1 | Y14: 1 | Z14: 1 | AA14: 1 | AB14: 1 | AC14: 1 | AD14: 2 | AE14: 2 | AF14: 2 | AG14: 2 | AH14: 2 | AI14: 2 | AJ14: 2 | AK14: 2 | AL14: 2 | AM14: 2 | AN14: 2 | AO14: 2 | AP14: 3 | AQ14: 3 | AR14: 3 | AS14: 3 | AT14: 3 | AU14: 3 | AV14: 3 | AW14: 3 | AX14: 3 | AY14: 3 | AZ14: 3 | BA14: 3 | BB14: 4 | BC14: 4 | BD14: 4 | BE14: 4 | BF14: 4 | BG14: 4 | BH14: 4 | BI14: 4 | BJ14: 4 | BK14: 4 | BL14: 4 | BM14: 4 | BN14: 5 | BO14: 5 | BP14: 5 | BQ14: 5 | BR14: 5 | BS14: 5 | BT14: 5 | BU14: 5 | BV14: 5 | BW14: 5 | BX14: 5 | BY14: 5 | BZ14: 6 | CA14: 6 | CB14: 6 | CC14: 6 | CD14: 6 | CE14: 6 | CF14: 6 | CG14: 6 | CH14: 6 | CI14: 6 | CJ14: 6 | CK14: 6 | CL14: 7 | CM14: 7 | CN14: 7 | CO14: 7 | CP14: 7 | CQ14: 7 | CR14: 7 | CS14: 7 | CT14: 7 | CU14: 7 | CV14: 7 | CW14: 7 | CX14: 8 | CY14: 8 | CZ14: 8 | DA14: 8 | DB14: 8 | DC14: 8 | DD14: 8 | DE14: 8 | DF14: 8 | DG14: 8 | DH14: 8 | DI14: 8 | DJ14: 9 | DK14: 9 | DL14: 9 | DM14: 9 | DN14: 9 | DO14: 9 | DP14: 9 | DQ14: 9 | DR14: 9 | DS14: 9 | DT14: 9 | DU14: 9 | DV14: 10 | DW14: 10 | DX14: 10 | DY14: 10 | DZ14: 10 | EA14: 10 | EB14: 10 | EC14: 10 | ED14: 10 | EE14: 10 | EF14: 10 | EG14: 10 | EH14: 11 | EI14: 11 | EJ14: 11 | EK14: 11 | EL14: 11 | EM14: 11 | EN14: 11 | EO14: 11 | EP14: 11 | EQ14: 11 | ER14: 11 | ES14: 11 | ET14: 12 | EU14: 12 | EV14: 12 | EW14: 12 | EX14: 12 | EY14: 12 | EZ14: 12 | FA14: 12 | FB14: 12 | FC14: 12 | FD14: 12 | FE14: 12 | FF14: 13 | FG14: 13 | FH14: 13 | FI14: 13 | FJ14: 13 | FK14: 13 | FL14: 13 | FM14: 13 | FN14: 13 | FO14: 13 | FP14: 13 | FQ14: 13 | FR14: 14 | FS14: 14 | FT14: 14 | FU14: 14 | FV14: 14 | FW14: 14 | FX14: 14 | FY14: 14 | FZ14: 14 | GA14: 14 | GB14: 14 | GC14: 14 | GD14: 15 | GE14: 15 | GF14: 15 | GG14: 15 | GH14: 15 | GI14: 15 | GJ14: 15 | GK14: 15 | GL14: 15 | GM14: 15 | GN14: 15 | GO14: 15 | GP14: 16 | GQ14: 16 | GR14: 16 | GS14: 16 | GT14: 16 | GU14: 16 | GV14: 16 | GW14: 16 | GX14: 16 | GY14: 16 | GZ14: 16 | HA14: 16 | HB14: 17 | HC14: 17 | HD14: 17 | HE14: 17 | HF14: 17 | HG14: 17 | HH14: 17 | HI14: 17 | HJ14: 17 | HK14: 17 | HL14: 17 | HM14: 17 | HN14: 18 | HO14: 18 | HP14: 18 | HQ14: 18 | HR14: 18 | HS14: 18 | HT14: 18 | HU14: 18 | HV14: 18 | HW14: 18 | HX14: 18 | HY14: 18 | HZ14: 19 | IA14: 19 | IB14: 19 | IC14: 19 | ID14: 19 | IE14: 19 | IF14: 19 | IG14: 19 | IH14: 19 | II14: 19 | IJ14: 19 | IK14: 19 | IL14: 20 | IM14: 20 | IN14: 20 | IO14: 20 | IP14: 20 | IQ14: 20 | IR14: 20 | IS14: 20 | IT14: 20 | IU14: 20 | IV14: 20 | IW14: 20 | IX14: 21 | IY14: 21 | IZ14: 21 | JA14: 21 | JB14: 21 | JC14: 21 | JD14: 21 | JE14: 21 | JF14: 21 | JG14: 21 | JH14: 21 | JI14: 21 | JJ14: 22 | JK14: 22 | JL14: 22 | JM14: 22 | JN14: 22 | JO14: 22 | JP14: 22 | JQ14: 22 | JR14: 22 | JS14: 22 | JT14: 22 | JU14: 22 | JV14: 23 | JW14: 23 | JX14: 23 | JY14: 23 | JZ14: 23 | KA14: 23 | KB14: 23 | KC14: 23 | KD14: 23 | KE14: 23 | KF14: 23 | KG14: 23 | KH14: 24 | KI14: 24 | KJ14: 24 | KK14: 24 | KL14: 24 | KM14: 24 | KN14: 24 | KO14: 24 | KP14: 24 | KQ14: 24 | KR14: 24 | KS14: 24 | KT14: 25 | KU14: 25 | KV14: 25 | KW14: 25 | KX14: 25 | KY14: 25 | KZ14: 25 | LA14: 25 | LB14: 25 | LC14: 25 | LD14: 25 | LE14: 25 | LF14: 26 | LG14: 26 | LH14: 26 | LI14: 26 | LJ14: 26 | LK14: 26 | LL14: 26 | LM14: 26 | LN14: 26 | LO14: 26 | LP14: 26 | LQ14: 26 | LR14: 27 | LS14: 27 | LT14: 27 | LU14: 27 | LV14: 27 | LW14: 27 | LX14: 27 | LY14: 27 | LZ14: 27 | MA14: 27 | MB14: 27 | MC14: 27 | MD14: 28 | ME14: 28 | MF14: 28 | MG14: 28 | MH14: 28 | MI14: 28 | MJ14: 28 | MK14: 28 | ML14: 28 | MM14: 28 | MN14: 28 | MO14: 28 | MP14: 29 | MQ14: 29 | MR14: 29 | MS14: 29 | MT14: 29 | MU14: 29 | MV14: 29 | MW14: 29 | MX14: 29 | MY14: 29 | MZ14: 29 | NA14: 29 | NB14: 30 | NC14: 30 | ND14: 30 | NE14: 30 | NF14: 30 | NG14: 30 | NH14: 30 | NI14: 30 | NJ14: 30 | NK14: 30 | NL14: 30 | NM14: 30 | NN14: 31 | NO14: 31 | NP14: 31 | NQ14: 31 | NR14: 31 | NS14: 31 | NT14: 31 | NU14: 31 | NV14: 31 | NW14: 31 | NX14: 31 | NY14: 31 | NZ14: 32 | OA14: 32 | OB14: 32 | OC14: 32 | OD14: 32 | OE14: 32 | OF14: 32 | OG14: 32 | OH14: 32 | OI14: 32 | OJ14: 32 | OK14: 32 | OL14: 33 | OM14: 33 | ON14: 33 | OO14: 33 | OP14: 33 | OQ14: 33 | OR14: 33 | OS14: 33 | OT14: 33 | OU14: 33 | OV14: 33 | OW14: 33 | OX14: 34 | OY14: 34 | OZ14: 34 | PA14: 34 | PB14: 34 | PC14: 34 | PD14: 34 | PE14: 34 | PF14: 34 | PG14: 34 | PH14: 34 | PI14: 34
E15: TOTAL / MÊS | F15: 1 | G15: 2 | H15: 3 | I15: 4 | J15: 5 | K15: 6 | L15: 7 | M15: 8 | N15: 9 | O15: 10 | P15: 11 | Q15: 12 | R15: 13 | S15: 14 | T15: 15 | U15: 16 | V15: 17 | W15: 18 | X15: 19 | Y15: 20 | Z15: 21 | AA15: 22 | AB15: 23 | AC15: 24 | AD15: 25 | AE15: 26 | AF15: 27 | AG15: 28 | AH15: 29 | AI15: 30 | AJ15: 31 | AK15: 32 | AL15: 33 | AM15: 34 | AN15: 35 | AO15: 36 | AP15: 37 | AQ15: 38 | AR15: 39 | AS15: 40 | AT15: 41 | AU15: 42 | AV15: 43 | AW15: 44 | AX15: 45 | AY15: 46 | AZ15: 47 | BA15: 48 | BB15: 49 | BC15: 50 | BD15: 51 | BE15: 52 | BF15: 53 | BG15: 54 | BH15: 55 | BI15: 56 | BJ15: 57 | BK15: 58 | BL15: 59 | BM15: 60 | BN15: 61 | BO15: 62 | BP15: 63 | BQ15: 64 | BR15: 65 | BS15: 66 | BT15: 67 | BU15: 68 | BV15: 69 | BW15: 70 | BX15: 71 | BY15: 72 | BZ15: 73 | CA15: 74 | CB15: 75 | CC15: 76 | CD15: 77 | CE15: 78 | CF15: 79 | CG15: 80 | CH15: 81 | CI15: 82 | CJ15: 83 | CK15: 84 | CL15: 85 | CM15: 86 | CN15: 87 | CO15: 88 | CP15: 89 | CQ15: 90 | CR15: 91 | CS15: 92 | CT15: 93 | CU15: 94 | CV15: 95 | CW15: 96 | CX15: 97 | CY15: 98 | CZ15: 99 | DA15: 100 | DB15: 101 | DC15: 102 | DD15: 103 | DE15: 104 | DF15: 105 | DG15: 106 | DH15: 107 | DI15: 108 | DJ15: 109 | DK15: 110 | DL15: 111 | DM15: 112 | DN15: 113 | DO15: 114 | DP15: 115 | DQ15: 116 | DR15: 117 | DS15: 118 | DT15: 119 | DU15: 120 | DV15: 121 | DW15: 122 | DX15: 123 | DY15: 124 | DZ15: 125 | EA15: 126 | EB15: 127 | EC15: 128 | ED15: 129 | EE15: 130 | EF15: 131 | EG15: 132 | EH15: 133 | EI15: 134 | EJ15: 135 | EK15: 136 | EL15: 137 | EM15: 138 | EN15: 139 | EO15: 140 | EP15: 141 | EQ15: 142 | ER15: 143 | ES15: 144 | ET15: 145 | EU15: 146 | EV15: 147 | EW15: 148 | EX15: 149 | EY15: 150 | EZ15: 151 | FA15: 152 | FB15: 153 | FC15: 154 | FD15: 155 | FE15: 156 | FF15: 157 | FG15: 158 | FH15: 159 | FI15: 160 | FJ15: 161 | FK15: 162 | FL15: 163 | FM15: 164 | FN15: 165 | FO15: 166 | FP15: 167 | FQ15: 168 | FR15: 169 | FS15: 170 | FT15: 171 | FU15: 172 | FV15: 173 | FW15: 174 | FX15: 175 | FY15: 176 | FZ15: 177 | GA15: 178 | GB15: 179 | GC15: 180 | GD15: 181 | GE15: 182 | GF15: 183 | GG15: 184 | GH15: 185 | GI15: 186 | GJ15: 187 | GK15: 188 | GL15: 189 | GM15: 190 | GN15: 191 | GO15: 192 | GP15: 193 | GQ15: 194 | GR15: 195 | GS15: 196 | GT15: 197 | GU15: 198 | GV15: 199 | GW15: 200 | GX15: 201 | GY15: 202 | GZ15: 203 | HA15: 204 | HB15: 205 | HC15: 206 | HD15: 207 | HE15: 208 | HF15: 209 | HG15: 210 | HH15: 211 | HI15: 212 | HJ15: 213 | HK15: 214 | HL15: 215 | HM15: 216 | HN15: 217 | HO15: 218 | HP15: 219 | HQ15: 220 | HR15: 221 | HS15: 222 | HT15: 223 | HU15: 224 | HV15: 225 | HW15: 226 | HX15: 227 | HY15: 228 | HZ15: 229 | IA15: 230 | IB15: 231 | IC15: 232 | ID15: 233 | IE15: 234 | IF15: 235 | IG15: 236 | IH15: 237 | II15: 238 | IJ15: 239 | IK15: 240 | IL15: 241 | IM15: 242 | IN15: 243 | IO15: 244 | IP15: 245 | IQ15: 246 | IR15: 247 | IS15: 248 | IT15: 249 | IU15: 250 | IV15: 251 | IW15: 252 | IX15: 253 | IY15: 254 | IZ15: 255 | JA15: 256 | JB15: 257 | JC15: 258 | JD15: 259 | JE15: 260 | JF15: 261 | JG15: 262 | JH15: 263 | JI15: 264 | JJ15: 265 | JK15: 266 | JL15: 267 | JM15: 268 | JN15: 269 | JO15: 270 | JP15: 271 | JQ15: 272 | JR15: 273 | JS15: 274 | JT15: 275 | JU15: 276 | JV15: 277 | JW15: 278 | JX15: 279 | JY15: 280 | JZ15: 281 | KA15: 282 | KB15: 283 | KC15: 284 | KD15: 285 | KE15: 286 | KF15: 287 | KG15: 288 | KH15: 289 | KI15: 290 | KJ15: 291 | KK15: 292 | KL15: 293 | KM15: 294 | KN15: 295 | KO15: 296 | KP15: 297 | KQ15: 298 | KR15: 299 | KS15: 300 | KT15: 301 | KU15: 302 | KV15: 303 | KW15: 304 | KX15: 305 | KY15: 306 | KZ15: 307 | LA15: 308 | LB15: 309 | LC15: 310 | LD15: 311 | LE15: 312 | LF15: 313 | LG15: 314 | LH15: 315 | LI15: 316 | LJ15: 317 | LK15: 318 | LL15: 319 | LM15: 320 | LN15: 321 | LO15: 322 | LP15: 323 | LQ15: 324 | LR15: 325 | LS15: 326 | LT15: 327 | LU15: 328 | LV15: 329 | LW15: 330 | LX15: 331 | LY15: 332 | LZ15: 333 | MA15: 334 | MB15: 335 | MC15: 336 | MD15: 337 | ME15: 338 | MF15: 339 | MG15: 340 | MH15: 341 | MI15: 342 | MJ15: 343 | MK15: 344 | ML15: 345 | MM15: 346 | MN15: 347 | MO15: 348 | MP15: 349 | MQ15: 350 | MR15: 351 | MS15: 352 | MT15: 353 | MU15: 354 | MV15: 355 | MW15: 356 | MX15: 357 | MY15: 358 | MZ15: 359 | NA15: 360 | NB15: 361 | NC15: 362 | ND15: 363 | NE15: 364 | NF15: 365 | NG15: 366 | NH15: 367 | NI15: 368 | NJ15: 369 | NK15: 370 | NL15: 371 | NM15: 372 | NN15: 373 | NO15: 374 | NP15: 375 | NQ15: 376 | NR15: 377 | NS15: 378 | NT15: 379 | NU15: 380 | NV15: 381 | NW15: 382 | NX15: 383 | NY15: 384 | NZ15: 385 | OA15: 386 | OB15: 387 | OC15: 388 | OD15: 389 | OE15: 390 | OF15: 391 | OG15: 392 | OH15: 393 | OI15: 394 | OJ15: 395 | OK15: 396 | OL15: 397 | OM15: 398 | ON15: 399 | OO15: 400 | OP15: 401 | OQ15: 402 | OR15: 403 | OS15: 404 | OT15: 405 | OU15: 406 | OV15: 407 | OW15: 408 | OX15: 409 | OY15: 410 | OZ15: 411 | PA15: 412 | PB15: 413 | PC15: 414 | PD15: 415 | PE15: 416 | PF15: 417 | PG15: 418 | PH15: 419 | PI15: 420
A16: Fluxo de Caixa do Projeto Mensal | F16: =FC!G35 -> -803328.7496 | G16: =FC!H35 -> -1166241.923 | H16: =FC!I35 -> -1141241.923 | I16: =FC!J35 -> -1141900.723 | J16: =FC!K35 -> -1141900.723 | K16: =FC!L35 -> -1141900.723 | L16: =FC!M35 -> -1141900.723 | M16: =FC!N35 -> -1141900.723 | N16: =FC!O35 -> -1141900.723 | O16: =FC!P35 -> -1141900.723 | P16: =FC!Q35 -> -1141900.723 | Q16: =FC!R35 -> -1141900.723 | R16: =FC!S35 -> -963694.8631 | S16: =FC!T35 -> -963694.8631 | T16: =FC!U35 -> -963694.8631 | U16: =FC!V35 -> -963694.8631 | V16: =FC!W35 -> -963694.8631 | W16: =FC!X35 -> -5000048.244 | X16: =FC!Y35 -> -4070353.957 | Y16: =FC!Z35 -> -4070353.957 | Z16: =FC!AA35 -> -1293135.947 | AA16: =FC!AB35 -> -4074257.159 | AB16: =FC!AC35 -> -4074257.159 | AC16: =FC!AD35 -> -1297039.15 | AD16: =FC!AE35 -> -4074257.159 | AE16: =FC!AF35 -> -4074273.329 | AF16: =FC!AG35 -> -1297055.32 | AG16: =FC!AH35 -> -4074273.329 | AH16: =FC!AI35 -> -4074273.329 | AI16: =FC!AJ35 -> -64671701.25 | AJ16: =FC!AK35 -> -68397948.49 | AK16: =FC!AL35 -> -9043175.807 | AL16: =FC!AM35 -> -6265957.798 | AM16: =FC!AN35 -> -9038613.805 | AN16: =FC!AO35 -> -9038613.805 | AO16: =FC!AP35 -> -6261395.795 | AP16: =FC!AQ35 -> -9669534.221 | AQ16: =FC!AR35 -> -11800169.47 | AR16: =FC!AS35 -> -9022968.092 | AS16: =FC!AT35 -> -11800202.73 | AT16: =FC!AU35 -> -11800219.36 | AU16: =FC!AV35 -> -6268603.63 | AV16: =FC!AW35 -> -10731032.56 | AW16: =FC!AX35 -> -10731049.19 | AX16: =FC!AY35 -> -10731065.82 | AY16: =FC!AZ35 -> -10731082.45 | AZ16: =FC!BA35 -> -10731099.08 | BA16: =FC!BB35 -> -10731115.72 | BB16: =FC!BC35 -> -10169489.76 | BC16: =FC!BD35 -> -10093367.18 | BD16: =FC!BE35 -> -10093383.81 | BE16: =FC!BF35 -> -10093400.44 | BF16: =FC!BG35 -> -10093417.08 | BG16: =FC!BH35 -> -10093433.71 | BH16: =FC!BI35 -> -10093450.34 | BI16: =FC!BJ35 -> -10093466.97 | BJ16: =FC!BK35 -> -10093483.6 | BK16: =FC!BL35 -> -10093500.23 | BL16: =FC!BM35 -> -10093516.86 | BM16: =FC!BN35 -> -10093533.5 | BN16: =FC!BO35 -> -10306494.82 | BO16: =FC!BP35 -> -10343495.45 | BP16: =FC!BQ35 -> -10343512.08 | BQ16: =FC!BR35 -> -10343528.71 | BR16: =FC!BS35 -> -10343545.34 | BS16: =FC!BT35 -> 54300507.97 | BT16: =FC!BU35 -> 56060701.83 | BU16: =FC!BV35 -> 6094813.208 | BV16: =FC!BW35 -> 8043445.964 | BW16: =FC!BX35 -> -781541.0553 | BX16: =FC!BY35 -> 8369709.899 | BY16: =FC!BZ35 -> 8695973.834 | BZ16: =FC!CA35 -> -811398.3517 | CA16: =FC!CB35 -> 8946065.13 | CB16: =FC!CC35 -> 8946065.13 | CC16: =FC!CD35 -> -911992.8167 | CD16: =FC!CE35 -> 8946065.13 | CE16: =FC!CF35 -> 8619801.195 | CF16: =FC!CG35 -> -610050.1507 | CG16: =FC!CH35 -> 9208147.512 | CH16: =FC!CI35 -> 8203992.895 | CI16: =FC!CJ35 -> -398116.9744 | CJ16: =FC!CK35 -> 8873429.306 | CK16: =FC!CL35 -> 9208147.512 | CL16: =FC!CM35 -> -941544.6403 | CM16: =FC!CN35 -> 9060923.448 | CN16: =FC!CO35 -> 9060923.448 | CO16: =FC!CP35 -> -1057567.036 | CP16: =FC!CQ35 -> 9060923.448 | CQ16: =FC!CR35 -> 8726205.243 | CR16: =FC!CS35 -> -746539.2764 | CS16: =FC!CT35 -> 9329848.331 | CT16: =FC!CU35 -> 8299668.725 | CU16: =FC!CV35 -> -527852.4523 | CV16: =FC!CW35 -> 8986455.129 | CW16: =FC!CX35 -> 9329848.331 | CX16: =FC!CY35 -> -915525.9593 | CY16: =FC!CZ35 -> 9410361.509 | CZ16: =FC!DA35 -> 9410361.509 | DA16: =FC!DB35 -> -1015781.353 | DB16: =FC!DC35 -> 9410361.509 | DC16: =FC!DD35 -> 9066968.307 | DD16: =FC!DE35 -> -696827.5109 | DE16: =FC!DF35 -> 9683316.829 | DF16: =FC!DG35 -> 6025272.018 | DG16: =FC!DH35 -> -3205451.107 | DH16: =FC!DI35 -> 6729861.475 | DI16: =FC!DJ35 -> 7082156.203 | DJ16: =FC!DK35 -> -3819670.503 | DK16: =FC!DL35 -> 6997035.136 | DL16: =FC!DM35 -> 6997035.136 | DM16: =FC!DN35 -> -3897126.14 | DN16: =FC!DO35 -> 6997035.136 | DO16: =FC!DP35 -> 6644740.407 | DP16: =FC!DQ35 -> -3544394.887 | DQ16: =FC!DR35 -> 7280189.592 | DR16: =FC!DS35 -> 6557332.106 | DS16: =FC!DT35 -> -3374762.895 | DT16: =FC!DU35 -> 6918760.849 | DU16: =FC!DV35 -> 7280189.592 | DV16: =FC!DW35 -> -10325153.69 | DW16: =FC!DX35 -> 679874.6053 | DX16: =FC!DY35 -> 679899.1022 | DY16: =FC!DZ35 -> -10394110.83 | DZ16: =FC!EA35 -> 679948.096 | EA16: =FC!EB35 -> 335493.0024 | EB16: =FC!EC35 -> -9956089.922 | EC16: =FC!ED35 -> 987521.9229 | ED16: =FC!EE35 -> -124857.6657 | EE16: =FC!EF35 -> -9634388.986 | EF16: =FC!EG35 -> 616794.0517 | EG16: =FC!EH35 -> 987619.9104 | EH16: =FC!EI35 -> -3292299.103 | EI16: =FC!EJ35 -> 7676463.903 | EJ16: =FC!EK35 -> 7676463.903 | EK16: =FC!EL35 -> -3356131.608 | EL16: =FC!EM35 -> 7676463.903 | EM16: =FC!EN35 -> 7305662.541 | EN16: =FC!EO35 -> -2988119.72 | EO16: =FC!EP35 -> 7974606.426 | EP16: =FC!EQ35 -> 6833349.838 | EQ16: =FC!ER35 -> -2722244.639 | ER16: =FC!ES35 -> 7594187.564 | ES16: =FC!ET35 -> 7974606.426 | ET16: =FC!EU35 -> -4078124.501 | EU16: =FC!EV35 -> 7152186.4 | EV16: =FC!EW35 -> 7152186.4 | EW16: =FC!EX35 -> -4151353.841 | EX16: =FC!EY35 -> 7152186.4 | EY16: =FC!EZ35 -> 6771767.537 | EZ16: =FC!FA35 -> -3764810.194 | FA16: =FC!FB35 -> 7458120.029 | FB16: =FC!FC35 -> 6287256.961 | FC16: =FC!FD35 -> -3482976.164 | FD16: =FC!FE35 -> 7067832.339 | FE16: =FC!FF35 -> 7458120.029 | FF16: =FC!FG35 -> -3353540.626 | FG16: =FC!FH35 -> 8063271.628 | FH16: =FC!FI35 -> 8063271.628 | FI16: =FC!FJ35 -> -3442495.377 | FJ16: =FC!FK35 -> 8063271.628 | FK16: =FC!FL35 -> 7672983.939 | FL16: =FC!FM35 -> -3052129.664 | FM16: =FC!FN35 -> 8377201.423 | FN16: =FC!FO35 -> 7576372.509 | FO16: =FC!FP35 -> -2864507.345 | FP16: =FC!FQ35 -> 7976786.966 | FQ16: =FC!FR35 -> 8377201.423 | FR16: =FC!FS35 -> -4171347.813 | FS16: =FC!FT35 -> 7448374.484 | FT16: =FC!FU35 -> 7448378.824 | FU16: =FC!FV35 -> -4269375.408 | FV16: =FC!FW35 -> 7448387.503 | FW16: =FC!FX35 -> 7047977.386 | FX16: =FC!FY35 -> -3858467.89 | FY16: =FC!FZ35 -> 7770536.975 | FZ16: =FC!GA35 -> 6538123.449 | GA16: =FC!GB35 -> -3557682.794 | GB16: =FC!GC35 -> 7359744.039 | GC16: =FC!GD35 -> 7770554.335 | GD16: =FC!GE35 -> -3122711.014 | GE16: =FC!GF35 -> 8681419.863 | GF16: =FC!GG35 -> 8681419.863 | GG16: =FC!GH35 -> -3219523.5 | GH16: =FC!GI35 -> 8681419.863 | GI16: =FC!GJ35 -> 8270613.908 | GJ16: =FC!GK35 -> -2808815.7 | GK16: =FC!GL35 -> 9011979.045 | GL16: =FC!GM35 -> 7747571.581 | GM16: =FC!GN35 -> -2511154.054 | GN16: =FC!GO35 -> 8590509.89 | GO16: =FC!GP35 -> 9011979.045 | GP16: =FC!GQ35 -> -2783181.367 | GQ16: =FC!GR35 -> 9302152.503 | GR16: =FC!GS35 -> 9302152.503 | GS16: =FC!GT35 -> -2872893.07 | GT16: =FC!GU35 -> 9302152.503 | GU16: =FC!GV35 -> 8880683.348 | GV16: =FC!GW35 -> -2454478.088 | GW16: =FC!GX35 -> 9641356.212 | GX16: =FC!GY35 -> 8344122.582 | GY16: =FC!GZ35 -> -2152053.171 | GZ16: =FC!HA35 -> 9208945.002 | HA16: =FC!HB35 -> 9641356.212 | HB16: =FC!HC35 -> -4158414.253 | HC16: =FC!HD35 -> 8152827.078 | HD16: =FC!HE35 -> 8152827.078 | HE16: =FC!HF35 -> -4263379.405 | HF16: =FC!HG35 -> 8152827.078 | HG16: =FC!HH35 -> 7720415.868 | HH16: =FC!HI35 -> -3813483.19 | HI16: =FC!HJ35 -> 8500902.993 | HJ16: =FC!HK35 -> 7613624.063 | HK16: =FC!HL35 -> -3587900.264 | HL16: =FC!HM35 -> 8057263.528 | HM16: =FC!HN35 -> 8500902.993 | HN16: =FC!HO35 -> -3863042.117 | HO16: =FC!HP35 -> 8667168.762 | HP16: =FC!HQ35 -> 8667173.498 | HQ16: =FC!HR35 -> -3946439.868 | HR16: =FC!HS35 -> 8667182.971 | HS16: =FC!HT35 -> 8223548.242 | HT16: =FC!HU35 -> -3486326.284 | HU16: =FC!HV35 -> 9024379.017 | HV16: =FC!HW35 -> 7658899.373 | HW16: =FC!HX35 -> -3147975.234 | HX16: =FC!HY35 -> 8569231.766 | HY16: =FC!HZ35 -> 9024397.963 | HZ16: =FC!IA35 -> -4015336.511 | IA16: =FC!IB35 -> 8660582.496 | IB16: =FC!IC35 -> 8660586.929 | IC16: =FC!ID35 -> -4116662.667 | ID16: =FC!IE35 -> 8660595.796 | IE16: =FC!IF35 -> 8205438.77 | IF16: =FC!IG35 -> -3638331.537 | IG16: =FC!IH35 -> 9027136.767 | IH16: =FC!II35 -> 7626186.4 | II16: =FC!IJ35 -> -3284748.368 | IJ16: =FC!IK35 -> 8560165.134 | IK16: =FC!IL35 -> 9027154.501 | IL16: =FC!IM35 -> -2450030.066 | IM16: =FC!IN35 -> 10438714.67 | IN16: =FC!IO35 -> 10438714.67 | IO16: =FC!IP35 -> -2538240.676 | IP16: =FC!IQ35 -> 10438714.67 | IQ16: =FC!IR35 -> 9971729.741 | IR16: =FC!IS35 -> -2071191.514 | IS16: =FC!IT35 -> 10814834.45 | IT16: =FC!IU35 -> 9377480.966 | IU16: =FC!IV35 -> -1732466.565 | IV16: =FC!IW35 -> 10335716.62 | IW16: =FC!IX35 -> 10814834.45 | IX16: =FC!IY35 -> -2075285.528 | IY16: =FC!IZ35 -> 11082556.82 | IZ16: =FC!JA35 -> 11082556.82 | JA16: =FC!JB35 -> -2185393.698 | JB16: =FC!JC35 -> 11082556.82 | JC16: =FC!JD35 -> 10603438.99 | JD16: =FC!JE35 -> -1710659.827 | JE16: =FC!JF35 -> 11468521.51 | JF16: =FC!JG35 -> 10485384.91 | JG16: =FC!JH35 -> -1484638.967 | JH16: =FC!JI35 -> 10976953.21 | JI16: =FC!JJ35 -> 11468521.51 | JJ16: =FC!JK35 -> -7270171.361 | JK16: =FC!JL35 -> 6170578.71 | JL16: =FC!JM35 -> 6170595.405 | JM16: =FC!JN35 -> -7353929.039 | JN16: =FC!JO35 -> 6170628.795 | JO16: =FC!JP35 -> 5679077.187 | JP16: =FC!JQ35 -> -6745537.818 | JQ16: =FC!JR35 -> 6566748.013 | JR16: =FC!JS35 -> 5053730.527 | JS16: =FC!JT35 -> -6269138.508 | JT16: =FC!JU35 -> 6062453.371 | JU16: =FC!JV35 -> 6566814.793 | JV16: =FC!JW35 -> -2926664.843 | JW16: =FC!JX35 -> 10352835.81 | JX16: =FC!JY35 -> 10352840.24 | JY16: =FC!JZ35 -> -2969017.786 | JZ16: =FC!KA35 -> 10352849.11 | KA16: =FC!KB35 -> 9848508.816 | KB16: =FC!KC35 -> -2434324.801 | KC16: =FC!KD35 -> 10759302.38 | KD16: =FC!KE35 -> 9206939.731 | KE16: =FC!KF35 -> -2037022.175 | KF16: =FC!KG35 -> 10241859.99 | KG16: =FC!KH35 -> 10759320.11 | KH16: =FC!KI35 -> -1235066.491 | KI16: =FC!KJ35 -> 12229964.77 | KJ16: =FC!KK35 -> 12229964.77 | KK16: =FC!KL35 -> -1320400.75 | KL16: =FC!KM35 -> 12229964.77 | KM16: =FC!KN35 -> 11712509.08 | KN16: =FC!KO35 -> -810179.647 | KO16: =FC!KP35 -> 12647049.05 | KP16: =FC!KQ35 -> 11054318.97 | KQ16: =FC!KR35 -> -442037.6391 | KR16: =FC!KS35 -> 12116139.02 | KS16: =FC!KT35 -> 12647049.05 | KT16: =FC!KU35 -> -3218597.655 | KU16: =FC!KV35 -> 10518083.41 | KV16: =FC!KW35 -> 10518090.6 | KW16: =FC!KX35 -> -3330730.383 | KX16: =FC!KY35 -> 10518104.99 | KY16: =FC!KZ35 -> 9987202.162 | KZ16: =FC!LA35 -> -2727460.583 | LA16: =FC!LB35 -> 10946135.9 | LB16: =FC!LC35 -> 9856709.538 | LC16: =FC!LD35 -> -2395740.019 | LD16: =FC!LE35 -> 10401440.71 | LE16: =FC!LF35 -> 10946164.68 | LF16: =FC!LG35 -> -2653225.517 | LG16: =FC!LH35 -> 11131479.83 | LH16: =FC!LI35 -> 11131487.1 | LI16: =FC!LJ35 -> -2705980.09 | LJ16: =FC!LK35 -> 11131501.64 | LK16: =FC!LL35 -> 10586792.13 | LL16: =FC!LM35 -> -2079107.163 | LM16: =FC!LN35 -> 11570745.99 | LN16: =FC!LO35 -> 9894097.522 | LO16: =FC!LP35 -> -1595804.473 | LP16: =FC!LQ35 -> 11011882.55 | LQ16: =FC!LR35 -> 11570775.07 | LR16: =FC!LS35 -> -2517737.627 | LS16: =FC!LT35 -> 11220947.9 | LT16: =FC!LU35 -> 11220956.1 | LU16: =FC!LV35 -> -2547272.386 | LV16: =FC!LW35 -> 11220972.49 | LW16: =FC!LX35 -> 10662095.44 | LX16: =FC!LY35 -> -1853650.318 | LY16: =FC!LZ35 -> 11671728.69 | LZ16: =FC!MA35 -> 9951461.955 | MA16: =FC!MB35 -> -1299591.754 | MB16: =FC!MC35 -> 11098328.3 | MC16: =FC!MD35 -> 11671761.47 | MD16: =FC!ME35 -> 381423.9973 | ME16: =FC!MF35 -> 13939932.69 | MF16: =FC!MG35 -> 13939932.69 | MG16: =FC!MH35 -> 375157.2452 | MH16: =FC!MI35 -> 13939932.69 | MI16: =FC!MJ35 -> 13366507.71 | MJ16: =FC!MK35 -> 938551.4865 | MK16: =FC!ML35 -> 14402477.06 | ML16: =FC!MM35 -> 12637439.77 | MM16: =FC!MN35 -> 1346063.994 | MN16: =FC!MO35 -> 13814131.29 | MO16: =FC!MP35 -> 14402477.06 | MP16: =FC!MQ35 -> -1502157.689 | MQ16: =FC!MR35 -> 12111374.53 | MR16: =FC!MS35 -> 12111382.13 | MS16: =FC!MT35 -> -1554301.751 | MT16: =FC!MU35 -> 12111397.32 | MU16: =FC!MV35 -> 11523059.16 | MV16: =FC!MW35 -> -454855.0412 | MW16: =FC!MX35 -> 12586089 | MX16: =FC!MY35 -> 11378781.27 | MY16: =FC!MZ35 -> 619520.6193 | MZ16: =FC!NA35 -> 11982454.13 | NA16: =FC!NB35 -> 12586119.39 | NB16: =FC!NC35 -> 4535801.538 | NC16: =FC!ND35 -> 0 | ND16: =FC!NE35 -> 0 | NE16: =FC!NF35 -> 0 | NF16: =FC!NG35 -> 0 | NG16: =FC!NH35 -> 0 | NH16: =FC!NI35 -> 0 | NI16: =FC!NJ35 -> 0 | NJ16: =FC!NK35 -> 0 | NK16: =FC!NL35 -> 0 | NL16: =FC!NM35 -> 0 | NM16: =FC!NN35 -> 0 | NN16: =FC!NO35 -> 0 | NO16: =FC!NP35 -> 0 | NP16: =FC!NQ35 -> 0 | NQ16: =FC!NR35 -> 0 | NR16: =FC!NS35 -> 0 | NS16: =FC!NT35 -> 0 | NT16: =FC!NU35 -> 0 | NU16: =FC!NV35 -> 0 | NV16: =FC!NW35 -> 0 | NW16: =FC!NX35 -> 0 | NX16: =FC!NY35 -> 0 | NY16: =FC!NZ35 -> 0 | NZ16: =FC!OA35 -> 0 | OA16: =FC!OB35 -> 0 | OB16: =FC!OC35 -> 0 | OC16: =FC!OD35 -> 0 | OD16: =FC!OE35 -> 0 | OE16: =FC!OF35 -> 0 | OF16: =FC!OG35 -> 0 | OG16: =FC!OH35 -> 0 | OH16: =FC!OI35 -> 0 | OI16: =FC!OJ35 -> 0 | OJ16: =FC!OK35 -> 0 | OK16: =FC!OL35 -> 0 | OL16: =FC!OM35 -> 0 | OM16: =FC!ON35 -> 0 | ON16: =FC!OO35 -> 0 | OO16: =FC!OP35 -> 0 | OP16: =FC!OQ35 -> 0 | OQ16: =FC!OR35 -> 0 | OR16: =FC!OS35 -> 0 | OS16: =FC!OT35 -> 0 | OT16: =FC!OU35 -> 0 | OU16: =FC!OV35 -> 0 | OV16: =FC!OW35 -> 0 | OW16: =FC!OX35 -> 0 | OX16: =FC!OY35 -> 0 | OY16: =FC!OZ35 -> 0 | OZ16: =FC!PA35 -> 0 | PA16: =FC!PB35 -> 0 | PB16: =FC!PC35 -> 0 | PC16: =FC!PD35 -> 0 | PD16: =FC!PE35 -> 0 | PE16: =FC!PF35 -> 0 | PF16: =FC!PG35 -> 0 | PG16: =FC!PH35 -> 0 | PH16: =FC!PI35 -> 0 | PI16: =FC!PJ35 -> 0
A17: Fluxo de Caixa do Projeto Mensal - Alavancado | F17: =FC!G43 -> -803328.7496 | G17: =FC!H43 -> -1166241.923 | H17: =FC!I43 -> -1141241.923 | I17: =FC!J43 -> -1141900.723 | J17: =FC!K43 -> -1141900.723 | K17: =FC!L43 -> -1141900.723 | L17: =FC!M43 -> -1141900.723 | M17: =FC!N43 -> -1141900.723 | N17: =FC!O43 -> -1141900.723 | O17: =FC!P43 -> -1141900.723 | P17: =FC!Q43 -> -1141900.723 | Q17: =FC!R43 -> -1141900.723 | R17: =FC!S43 -> -963694.8631 | S17: =FC!T43 -> -963694.8631 | T17: =FC!U43 -> -963694.8631 | U17: =FC!V43 -> -963694.8631 | V17: =FC!W43 -> -963694.8631 | W17: =FC!X43 -> -5000048.244 | X17: =FC!Y43 -> -4070353.957 | Y17: =FC!Z43 -> -4070353.957 | Z17: =FC!AA43 -> -1293135.947 | AA17: =FC!AB43 -> -4074257.159 | AB17: =FC!AC43 -> -4074257.159 | AC17: =FC!AD43 -> -1297039.15 | AD17: =FC!AE43 -> -4074257.159 | AE17: =FC!AF43 -> -4074273.329 | AF17: =FC!AG43 -> -1297055.32 | AG17: =FC!AH43 -> -4074273.329 | AH17: =FC!AI43 -> -4074273.329 | AI17: =FC!AJ43 -> -64671701.25 | AJ17: =FC!AK43 -> -68397948.49 | AK17: =FC!AL43 -> -9043175.807 | AL17: =FC!AM43 -> -6265957.798 | AM17: =FC!AN43 -> -9038613.805 | AN17: =FC!AO43 -> -9038613.805 | AO17: =FC!AP43 -> -6261395.795 | AP17: =FC!AQ43 -> -9669534.221 | AQ17: =FC!AR43 -> -11800169.47 | AR17: =FC!AS43 -> -9022968.092 | AS17: =FC!AT43 -> -11800202.73 | AT17: =FC!AU43 -> -11800219.36 | AU17: =FC!AV43 -> -6268603.63 | AV17: =FC!AW43 -> -10731032.56 | AW17: =FC!AX43 -> -10731049.19 | AX17: =FC!AY43 -> -10731065.82 | AY17: =FC!AZ43 -> -10731082.45 | AZ17: =FC!BA43 -> -10731099.08 | BA17: =FC!BB43 -> -10731115.72 | BB17: =FC!BC43 -> -10169489.76 | BC17: =FC!BD43 -> -10093367.18 | BD17: =FC!BE43 -> -10093383.81 | BE17: =FC!BF43 -> -10093400.44 | BF17: =FC!BG43 -> -10093417.08 | BG17: =FC!BH43 -> -10093433.71 | BH17: =FC!BI43 -> -10093450.34 | BI17: =FC!BJ43 -> -10093466.97 | BJ17: =FC!BK43 -> -10093483.6 | BK17: =FC!BL43 -> -10093500.23 | BL17: =FC!BM43 -> -10093516.86 | BM17: =FC!BN43 -> -10093533.5 | BN17: =FC!BO43 -> -10306494.82 | BO17: =FC!BP43 -> -10343495.45 | BP17: =FC!BQ43 -> -10343512.08 | BQ17: =FC!BR43 -> -10343528.71 | BR17: =FC!BS43 -> -10343545.34 | BS17: =FC!BT43 -> 54300507.97 | BT17: =FC!BU43 -> 56060701.83 | BU17: =FC!BV43 -> 6094813.208 | BV17: =FC!BW43 -> 8043445.964 | BW17: =FC!BX43 -> -781541.0553 | BX17: =FC!BY43 -> 8369709.899 | BY17: =FC!BZ43 -> 8695973.834 | BZ17: =FC!CA43 -> -811398.3517 | CA17: =FC!CB43 -> 8946065.13 | CB17: =FC!CC43 -> 8946065.13 | CC17: =FC!CD43 -> -911992.8167 | CD17: =FC!CE43 -> 8946065.13 | CE17: =FC!CF43 -> 8619801.195 | CF17: =FC!CG43 -> -610050.1507 | CG17: =FC!CH43 -> 9208147.512 | CH17: =FC!CI43 -> 8203992.895 | CI17: =FC!CJ43 -> -398116.9744 | CJ17: =FC!CK43 -> 8873429.306 | CK17: =FC!CL43 -> 9208147.512 | CL17: =FC!CM43 -> -941544.6403 | CM17: =FC!CN43 -> 9060923.448 | CN17: =FC!CO43 -> 9060923.448 | CO17: =FC!CP43 -> -1057567.036 | CP17: =FC!CQ43 -> 9060923.448 | CQ17: =FC!CR43 -> 8726205.243 | CR17: =FC!CS43 -> -746539.2764 | CS17: =FC!CT43 -> 9329848.331 | CT17: =FC!CU43 -> 8299668.725 | CU17: =FC!CV43 -> -527852.4523 | CV17: =FC!CW43 -> 8986455.129 | CW17: =FC!CX43 -> 9599682.64 | CX17: =FC!CY43 -> -915525.9593 | CY17: =FC!CZ43 -> 9410361.509 | CZ17: =FC!DA43 -> 9640044.521 | DA17: =FC!DB43 -> -1015781.353 | DB17: =FC!DC43 -> 9410361.509 | DC17: =FC!DD43 -> 9296651.32 | DD17: =FC!DE43 -> -703816.382 | DE17: =FC!DF43 -> 9676346.081 | DF17: =FC!DG43 -> 6246931.18 | DG17: =FC!DH43 -> -3214522.552 | DH17: =FC!DI43 -> 6720813.554 | DI17: =FC!DJ43 -> 7453030.451 | DJ17: =FC!DK43 -> -3832222.42 | DK17: =FC!DL43 -> 6984515.769 | DL17: =FC!DM43 -> 7439796.259 | DM17: =FC!DN43 -> -3913835.802 | DN17: =FC!DO43 -> 6980368.806 | DO17: =FC!DP43 -> 7083365.322 | DP17: =FC!DQ43 -> -3565230.032 | DQ17: =FC!DR43 -> 7259408.478 | DR17: =FC!DS43 -> 6991852.907 | DS17: =FC!DT43 -> -3399691.51 | DT17: =FC!DU43 -> 6893896.88 | DU17: =FC!DV43 -> 16928668.56 | DV17: =FC!DW43 -> -10440303.73 | DW17: =FC!DX43 -> 565023.184 | DX17: =FC!DY43 -> 14829718.41 | DY17: =FC!DZ43 -> -10641694.56 | DZ17: =FC!EA43 -> 433006.4195 | EA17: =FC!EB43 -> 14318045.19 | EB17: =FC!EC43 -> -10334747.71 | EC17: =FC!ED43 -> 609846.0951 | ED17: =FC!EE43 -> 13727299.39 | EE17: =FC!EF43 -> -10143103.75 | EF17: =FC!EG43 -> 109398.5193 | EG17: =FC!EH43 -> 5280377.882 | EH17: =FC!EI43 -> -3841920.535 | EI17: =FC!EJ43 -> 7128267.781 | EJ17: =FC!EK43 -> 7231852.108 | EK17: =FC!EL43 -> -3902443.091 | EL17: =FC!EM43 -> 7131569.146 | EM17: =FC!EN43 -> 6864343.551 | EN17: =FC!EO43 -> -3531146.937 | EO17: =FC!EP43 -> 7432987.418 | EP17: =FC!EQ43 -> 6395298.101 | EQ17: =FC!ER43 -> -3262013.075 | ER17: =FC!ES43 -> 7055818.885 | ES17: =FC!ET43 -> 8773896.402 | ET17: =FC!EU43 -> -4626194.412 | EU17: =FC!EV43 -> 6605537.775 | EV17: =FC!EW43 -> 8557868.592 | EW17: =FC!EX43 -> -4713405.868 | EX17: =FC!EY43 -> 6591591.918 | EY17: =FC!EZ43 -> 8163540.037 | EZ17: =FC!FA43 -> -4340735.842 | FA17: =FC!FB43 -> 6883687.904 | FB17: =FC!FC43 -> 7665227.702 | FC17: =FC!FD43 -> -4072667.779 | FD17: =FC!FE43 -> 6479669.946 | FE17: =FC!FF43 -> 7974221.997 | FF17: =FC!FG43 -> -3948963.618 | FG17: =FC!FH43 -> 7137778.585 | FH17: =FC!FI43 -> 7143263.725 | FI17: =FC!FJ43 -> -4357040.365 | FJ17: =FC!FK43 -> 7154167.409 | FK17: =FC!FL43 -> 6769298.42 | FL17: =FC!FM43 -> -3950418.474 | FM17: =FC!FN43 -> 7484287.41 | FN17: =FC!FO43 -> 6688811.458 | FO17: =FC!FP43 -> -3746737.193 | FP17: =FC!FQ43 -> 7099866.639 | FQ17: =FC!FR43 -> 7505569.013 | FR17: =FC!FS43 -> -5037713.835 | FS17: =FC!FT43 -> 6587253.398 | FT17: =FC!FU43 -> 6592481.296 | FU17: =FC!FV43 -> -5120070.678 | FV17: =FC!FW43 -> 6602873.266 | FW17: =FC!FX43 -> 6207623.03 | FX17: =FC!FY43 -> -4693683.44 | FY17: =FC!FZ43 -> 6940439.23 | FZ17: =FC!GA43 -> 5713122.582 | GA17: =FC!GB43 -> -4377607.636 | GB17: =FC!GC43 -> 6544874.444 | GC17: =FC!GD43 -> 6960719.281 | GD17: =FC!GE43 -> -3927532.158 | GE17: =FC!GF43 -> 7881592.07 | GF17: =FC!GG43 -> 7886564.935 | GG17: =FC!GH43 -> -4009425.976 | GH17: =FC!GI43 -> 7896449.499 | GI17: =FC!GJ43 -> 7490555.387 | GJ17: =FC!GK43 -> -3583982.573 | GK17: =FC!GL43 -> 8241683.694 | GL17: =FC!GM43 -> 6982127.699 | GM17: =FC!GN43 -> -3271766.449 | GN17: =FC!GO43 -> 7834709.072 | GO17: =FC!GP43 -> 8260969.962 | GP17: =FC!GQ43 -> -3529418.484 | GQ17: =FC!GR43 -> 8560667.653 | GR17: =FC!GS43 -> 8565400.29 | GS17: =FC!GT43 -> -3604932.204 | GT17: =FC!GU43 -> 8574806.957 | GU17: =FC!GV43 -> 8158011.97 | GV17: =FC!GW43 -> -3172494.649 | GW17: =FC!GX43 -> 8927975.186 | GX17: =FC!GY43 -> 7635357.876 | GY17: =FC!GZ43 -> -2856220.702 | GZ17: =FC!HA43 -> 8509355.571 | HA17: =FC!HB43 -> 8946325.87 | HB17: =FC!HC43 -> -4848904.447 | HC17: =FC!HD43 -> 7466858.16 | HD17: =FC!HE43 -> 7471360.629 | HE17: =FC!HF43 -> -4940362.124 | HF17: =FC!HG43 -> 7480309.417 | HG17: =FC!HH43 -> 7052344.66 | HH17: =FC!HI43 -> -4477126.483 | HI17: =FC!HJ43 -> 7841669.141 | HJ17: =FC!HK43 -> 6958781.244 | HK17: =FC!HL43 -> -4238370.389 | HL17: =FC!HM43 -> 7411147.822 | HM17: =FC!HN43 -> 7859123.496 | HN17: =FC!HO43 -> -4500503.551 | HO17: =FC!HP43 -> 8034007.312 | HP17: =FC!HQ43 -> 8038294.018 | HQ17: =FC!HR43 -> -4571055.33 | HR17: =FC!HS43 -> 8046813.642 | HS17: =FC!HT43 -> 7607407.223 | HT17: =FC!HU43 -> -4098256.751 | HU17: =FC!HV43 -> 8416641.407 | HV17: =FC!HW43 -> 7055336.99 | HW17: =FC!HX43 -> -3747379.959 | HX17: =FC!HY43 -> 7973967.195 | HY17: =FC!HZ43 -> 8433256.104 | HZ17: =FC!IA43 -> -4602373.038 | IA17: =FC!IB43 -> 8077633.985 | IB17: =FC!IC43 -> 8081709.179 | IC17: =FC!ID43 -> -4691486.849 | ID17: =FC!IE43 -> 8089808.051 | IE17: =FC!IF43 -> 7638670.392 | IF17: =FC!IG43 -> -4201097.555 | IG17: =FC!IH43 -> 8468356.162 | IH17: =FC!II43 -> 7071374.323 | II17: =FC!IJ43 -> -3835608.744 | IJ17: =FC!IK43 -> 8013239.696 | IK17: =FC!IL43 -> 8484147.296 | IL17: =FC!IM43 -> -2989135.68 | IM17: =FC!IN43 -> 9903494.066 | IN17: =FC!IO43 -> 9907362.547 | IO17: =FC!IP43 -> -3065740.787 | IP17: =FC!IQ43 -> 9915050.176 | IQ17: =FC!IR43 -> 9451884.508 | IR17: =FC!IS43 -> -2587233.769 | IS17: =FC!IT43 -> 10302578.95 | IT17: =FC!IU43 -> 8868996.043 | IU17: =FC!IV43 -> -2237197.019 | IV17: =FC!IW43 -> 9834724.587 | IW17: =FC!IX43 -> 10317564.84 | IX17: =FC!IY43 -> -2568848.66 | IY17: =FC!IZ43 -> 10592684.29 | IZ17: =FC!JA43 -> 10596359.07 | JA17: =FC!JB43 -> -2667932.425 | JB17: =FC!JC43 -> 10603661.4 | JC17: =FC!JD43 -> 10128171.23 | JD17: =FC!JE43 -> -2182315.522 | JE17: =FC!JF43 -> 11000462.34 | JF17: =FC!JG43 -> 10020906.78 | JG17: =FC!JH43 -> -1945551.472 | JH17: =FC!JI43 -> 10519590.95 | JI17: =FC!JJ43 -> 11014694.19 | JJ17: =FC!JK43 -> -7720479.002 | JK17: =FC!JL43 -> 5723775.544 | JL17: =FC!JM43 -> 5727281.566 | JM17: =FC!JN43 -> -7793768.644 | JN17: =FC!JO43 -> 5734248.387 | JO17: =FC!JP43 -> 5246140.992 | JP17: =FC!JQ43 -> -7175044.728 | JQ17: =FC!JR43 -> 6140655.513 | JR17: =FC!JS43 -> 4631037.616 | JS17: =FC!JT43 -> -6688446.595 | JT17: =FC!JU43 -> 5646515.394 | JU17: =FC!JV43 -> 6154232.267 | JV17: =FC!JW43 -> -3335906.525 | JW17: =FC!JX43 -> 9946920.419 | JX17: =FC!JY43 -> 9950236.645 | JY17: =FC!JZ43 -> -3368324.038 | JZ17: =FC!KA43 -> 9956825.809 | KA17: =FC!KB43 -> 9455754.125 | KB17: =FC!KC43 -> -2823825.172 | KC17: =FC!KD43 -> 10373042.09 | KD17: =FC!KE43 -> 8823905.341 | KE17: =FC!KF43 -> -2416844.801 | KF17: =FC!KG43 -> 9865235.041 | KG17: =FC!KH43 -> 10385878.82 | KH17: =FC!KI43 -> -1605338.112 | KI17: =FC!KJ43 -> 11862848.89 | KJ17: =FC!KK43 -> 11865990.76 | KK17: =FC!KL43 -> -1681246.72 | KL17: =FC!KM43 -> 11872233.07 | KM17: =FC!KN43 -> 11357877.91 | KN17: =FC!KO43 -> -1161723.95 | KO17: =FC!KP43 -> 12298577.99 | KP17: =FC!KQ43 -> 10708907.57 | KQ17: =FC!KR43 -> -784402.9024 | KR17: =FC!KS43 -> 11776806.42 | KS17: =FC!KT43 -> 12310735.68 | KT17: =FC!KU43 -> -3551905.164 | KU17: =FC!KV43 -> 10187768.43 | KV17: =FC!KW43 -> 10190754.87 | KW17: =FC!KX43 -> -3655100.092 | KX17: =FC!KY43 -> 10196688.12 | KY17: =FC!KZ43 -> 9668724.995 | KZ17: =FC!LA43 -> -3043011.131 | LA17: =FC!LB43 -> 10633498.93 | LB17: =FC!LC43 -> 9546973.165 | LC17: =FC!LD43 -> -2702588.742 | LD17: =FC!LE43 -> 10097466.74 | LE17: =FC!LF43 -> 10645052.62 | LF17: =FC!LG43 -> -2951488.46 | LG17: =FC!LH43 -> 10836053.25 | LH17: =FC!LI43 -> 10838884.17 | LI17: =FC!LJ43 -> -2995772.023 | LJ17: =FC!LK43 -> 10844508.09 | LK17: =FC!LL43 -> 10302584.4 | LL17: =FC!LM43 -> -2360541.59 | LM17: =FC!LN43 -> 11292072.4 | LN17: =FC!LO43 -> 9618172.326 | LO17: =FC!LP43 -> -1868993.648 | LP17: =FC!LQ43 -> 10741417.07 | LQ17: =FC!LR43 -> 11303020.98 | LR17: =FC!LS43 -> -2782792.563 | LS17: =FC!LT43 -> 10958579.92 | LT17: =FC!LU43 -> 10961262.92 | LU17: =FC!LV43 -> -2804302.872 | LV17: =FC!LW43 -> 10966592.63 | LW17: =FC!LX43 -> 10410354.19 | LX17: =FC!LY43 -> -2102764.927 | LY17: =FC!LZ43 -> 11425228.79 | LZ17: =FC!MA43 -> 9707564.872 | MA17: =FC!MB43 -> -1540897.859 | MB17: =FC!MC43 -> 10859601.37 | MC17: =FC!MD43 -> 11435601.97 | MD17: =FC!ME43 -> 147820.2143 | ME17: =FC!MF43 -> 13708872.95 | MF17: =FC!MG43 -> 13711405.38 | MG17: =FC!MH43 -> 149150.7794 | MH17: =FC!MI43 -> 13716435.53 | MI17: =FC!MJ43 -> 13145508.36 | MJ17: =FC!MK43 -> 720038.4991 | MK17: =FC!ML43 -> 14186439.02 | ML17: =FC!MM43 -> 12423865.31 | MM17: =FC!MN43 -> 1134941.8 | MN17: =FC!MO43 -> 13605450.08 | MO17: =FC!MP43 -> 14196225.57 | MP17: =FC!MQ43 -> -1705990.632 | MQ17: =FC!MR43 -> 12111374.53 | MR17: =FC!MS43 -> 12111382.13 | MS17: =FC!MT43 -> -1554301.751 | MT17: =FC!MU43 -> 12111397.32 | MU17: =FC!MV43 -> 11523059.16 | MV17: =FC!MW43 -> -454855.0412 | MW17: =FC!MX43 -> 12586089 | MX17: =FC!MY43 -> 11378781.27 | MY17: =FC!MZ43 -> 619520.6193 | MZ17: =FC!NA43 -> 11982454.13 | NA17: =FC!NB43 -> 12586119.39 | NB17: =FC!NC43 -> 4535801.538 | NC17: =FC!ND43 -> 0 | ND17: =FC!NE43 -> 0 | NE17: =FC!NF43 -> 0 | NF17: =FC!NG43 -> 0 | NG17: =FC!NH43 -> 0 | NH17: =FC!NI43 -> 0 | NI17: =FC!NJ43 -> 0 | NJ17: =FC!NK43 -> 0 | NK17: =FC!NL43 -> 0 | NL17: =FC!NM43 -> 0 | NM17: =FC!NN43 -> 0 | NN17: =FC!NO43 -> 0 | NO17: =FC!NP43 -> 0 | NP17: =FC!NQ43 -> 0 | NQ17: =FC!NR43 -> 0 | NR17: =FC!NS43 -> 0 | NS17: =FC!NT43 -> 0 | NT17: =FC!NU43 -> 0 | NU17: =FC!NV43 -> 0 | NV17: =FC!NW43 -> 0 | NW17: =FC!NX43 -> 0 | NX17: =FC!NY43 -> 0 | NY17: =FC!NZ43 -> 0 | NZ17: =FC!OA43 -> 0 | OA17: =FC!OB43 -> 0 | OB17: =FC!OC43 -> 0 | OC17: =FC!OD43 -> 0 | OD17: =FC!OE43 -> 0 | OE17: =FC!OF43 -> 0 | OF17: =FC!OG43 -> 0 | OG17: =FC!OH43 -> 0 | OH17: =FC!OI43 -> 0 | OI17: =FC!OJ43 -> 0 | OJ17: =FC!OK43 -> 0 | OK17: =FC!OL43 -> 0 | OL17: =FC!OM43 -> 0 | OM17: =FC!ON43 -> 0 | ON17: =FC!OO43 -> 0 | OO17: =FC!OP43 -> 0 | OP17: =FC!OQ43 -> 0 | OQ17: =FC!OR43 -> 0 | OR17: =FC!OS43 -> 0 | OS17: =FC!OT43 -> 0 | OT17: =FC!OU43 -> 0 | OU17: =FC!OV43 -> 0 | OV17: =FC!OW43 -> 0 | OW17: =FC!OX43 -> 0 | OX17: =FC!OY43 -> 0 | OY17: =FC!OZ43 -> 0 | OZ17: =FC!PA43 -> 0 | PA17: =FC!PB43 -> 0 | PB17: =FC!PC43 -> 0 | PC17: =FC!PD43 -> 0 | PD17: =FC!PE43 -> 0 | PE17: =FC!PF43 -> 0 | PF17: =FC!PG43 -> 0 | PG17: =FC!PH43 -> 0 | PH17: =FC!PI43 -> 0 | PI17: =FC!PJ43 -> 0
A18: Fluxo de Caixa Acumulado | F18: =E18+F16 -> -803328.7496 | G18: =F18+G16 -> -1969570.673 | H18: =G18+H16 -> -3110812.596 | I18: =H18+I16 -> -4252713.318 | J18: =I18+J16 -> -5394614.041 | K18: -6536514.764 | L18: -7678415.486 | M18: -8820316.209 | N18: -9962216.932 | O18: -11104117.65 | P18: -12246018.38 | Q18: -13387919.1 | R18: -14351613.96 | S18: -15315308.83 | T18: -16279003.69 | U18: -17242698.55 | V18: -18206393.42 | W18: -23206441.66 | X18: -27276795.62 | Y18: -31347149.57 | Z18: =Y18+Z16 -> -32640285.52 | AA18: -36714542.68 | AB18: -40788799.84 | AC18: -42085838.99 | AD18: -46160096.15 | AE18: -50234369.48 | AF18: -51531424.8 | AG18: -55605698.13 | AH18: -59679971.45 | AI18: -124351672.7 | AJ18: -192749621.2 | AK18: -201792797 | AL18: -208058754.8 | AM18: -217097368.6 | AN18: -226135982.4 | AO18: -232397378.2 | AP18: -242066912.4 | AQ18: -253867081.9 | AR18: -262890050 | AS18: -274690252.7 | AT18: -286490472.1 | AU18: -292759075.7 | AV18: -303490108.3 | AW18: -314221157.5 | AX18: -324952223.3 | AY18: -335683305.7 | AZ18: -346414404.8 | BA18: -357145520.5 | BB18: -367315010.3 | BC18: -377408377.5 | BD18: -387501761.3 | BE18: -397595161.7 | BF18: -407688578.8 | BG18: -417782012.5 | BH18: -427875462.9 | BI18: -437968929.8 | BJ18: -448062413.4 | BK18: -458155913.7 | BL18: -468249430.5 | BM18: -478342964 | BN18: -488649458.8 | BO18: -498992954.3 | BP18: -509336466.4 | BQ18: -519679995.1 | BR18: -530023540.4 | BS18: -475723032.4 | BT18: -419662330.6 | BU18: -413567517.4 | BV18: -405524071.4 | BW18: -406305612.5 | BX18: -397935902.6 | BY18: -389239928.8 | BZ18: -390051327.1 | CA18: -381105262 | CB18: -372159196.9 | CC18: -373071189.7 | CD18: -364125124.5 | CE18: -355505323.3 | CF18: -356115373.5 | CG18: -346907226 | CH18: -338703233.1 | CI18: -339101350.1 | CJ18: -330227920.8 | CK18: -321019773.2 | CL18: =CK18+CL16 -> -321961317.9 | CM18: -312900394.4 | CN18: -303839471 | CO18: -304897038 | CP18: -295836114.6 | CQ18: -287109909.3 | CR18: -287856448.6 | CS18: -278526600.3 | CT18: -270226931.6 | CU18: -270754784 | CV18: -261768328.9 | CW18: -252438480.5 | CX18: -253354006.5 | CY18: -243943645 | CZ18: -234533283.5 | DA18: -235549064.8 | DB18: -226138703.3 | DC18: -217071735 | DD18: -217768562.5 | DE18: -208085245.7 | DF18: -202059973.7 | DG18: -205265424.8 | DH18: -198535563.3 | DI18: -191453407.1 | DJ18: -195273077.6 | DK18: -188276042.5 | DL18: -181279007.4 | DM18: -185176133.5 | DN18: -178179098.4 | DO18: -171534358 | DP18: -175078752.8 | DQ18: -167798563.2 | DR18: -161241231.1 | DS18: -164615994 | DT18: -157697233.2 | DU18: -150417043.6 | DV18: -160742197.3 | DW18: -160062322.7 | DX18: -159382423.6 | DY18: -169776534.4 | DZ18: -169096586.3 | EA18: -168761093.3 | EB18: -178717183.2 | EC18: -177729661.3 | ED18: -177854519 | EE18: -187488908 | EF18: -186872113.9 | EG18: -185884494 | EH18: -189176793.1 | EI18: -181500329.2 | EJ18: -173823865.3 | EK18: -177179996.9 | EL18: -169503533 | EM18: -162197870.5 | EN18: -165185990.2 | EO18: -157211383.8 | EP18: -150378033.9 | EQ18: -153100278.6 | ER18: -145506091 | ES18: -137531484.6 | ET18: -141609609.1 | EU18: -134457422.7 | EV18: -127305236.3 | EW18: -131456590.1 | EX18: =EW18+EX16 -> -124304403.7 | EY18: -117532636.2 | EZ18: -121297446.4 | FA18: -113839326.3 | FB18: -107552069.4 | FC18: -111035045.5 | FD18: -103967213.2 | FE18: -96509093.17 | FF18: -99862633.8 | FG18: -91799362.17 | FH18: -83736090.54 | FI18: -87178585.92 | FJ18: -79115314.29 | FK18: -71442330.35 | FL18: -74494460.01 | FM18: -66117258.59 | FN18: -58540886.08 | FO18: -61405393.43 | FP18: -53428606.46 | FQ18: -45051405.04 | FR18: -49222752.85 | FS18: -41774378.37 | FT18: -34325999.55 | FU18: -38595374.95 | FV18: -31146987.45 | FW18: -24099010.06 | FX18: -27957477.95 | FY18: -20186940.98 | FZ18: -13648817.53 | GA18: -17206500.32 | GB18: -9846756.284 | GC18: -2076201.949 | GD18: -5198912.963 | GE18: 3482506.9 | GF18: 12163926.76 | GG18: 8944403.263 | GH18: 17625823.13 | GI18: 25896437.03 | GJ18: 23087621.33 | GK18: 32099600.38 | GL18: 39847171.96 | GM18: 37336017.9 | GN18: 45926527.79 | GO18: 54938506.84 | GP18: 52155325.47 | GQ18: 61457477.98 | GR18: 70759630.48 | GS18: 67886737.41 | GT18: 77188889.91 | GU18: 86069573.26 | GV18: 83615095.17 | GW18: 93256451.38 | GX18: 101600574 | GY18: 99448520.79 | GZ18: 108657465.8 | HA18: 118298822 | HB18: 114140407.8 | HC18: 122293234.8 | HD18: 130446061.9 | HE18: 126182682.5 | HF18: 134335509.6 | HG18: 142055925.5 | HH18: 138242442.3 | HI18: 146743345.3 | HJ18: =HI18+HJ16 -> 154356969.3 | HK18: 150769069.1 | HL18: 158826332.6 | HM18: 167327235.6 | HN18: 163464193.5 | HO18: 172131362.2 | HP18: 180798535.7 | HQ18: 176852095.8 | HR18: 185519278.8 | HS18: 193742827.1 | HT18: 190256500.8 | HU18: 199280879.8 | HV18: 206939779.2 | HW18: 203791803.9 | HX18: 212361035.7 | HY18: 221385433.7 | HZ18: 217370097.2 | IA18: 226030679.6 | IB18: 234691266.6 | IC18: 230574603.9 | ID18: 239235199.7 | IE18: 247440638.5 | IF18: 243802306.9 | IG18: 252829443.7 | IH18: 260455630.1 | II18: 257170881.7 | IJ18: 265731046.9 | IK18: 274758201.4 | IL18: 272308171.3 | IM18: 282746886 | IN18: 293185600.7 | IO18: 290647360 | IP18: 301086074.7 | IQ18: 311057804.4 | IR18: 308986612.9 | IS18: 319801447.3 | IT18: 329178928.3 | IU18: 327446461.7 | IV18: 337782178.4 | IW18: 348597012.8 | IX18: 346521727.3 | IY18: 357604284.1 | IZ18: 368686840.9 | JA18: 366501447.2 | JB18: 377584004 | JC18: 388187443 | JD18: 386476783.2 | JE18: 397945304.7 | JF18: 408430689.6 | JG18: 406946050.6 | JH18: 417923003.9 | JI18: 429391525.4 | JJ18: 422121354 | JK18: 428291932.7 | JL18: 434462528.1 | JM18: 427108599.1 | JN18: 433279227.9 | JO18: 438958305.1 | JP18: 432212767.3 | JQ18: 438779515.3 | JR18: 443833245.8 | JS18: 437564107.3 | JT18: 443626560.7 | JU18: 450193375.4 | JV18: =JU18+JV16 -> 447266710.6 | JW18: 457619546.4 | JX18: 467972386.7 | JY18: 465003368.9 | JZ18: 475356218 | KA18: 485204726.8 | KB18: 482770402 | KC18: 493529704.4 | KD18: 502736644.1 | KE18: 500699621.9 | KF18: 510941481.9 | KG18: 521700802 | KH18: 520465735.5 | KI18: 532695700.3 | KJ18: 544925665.1 | KK18: 543605264.3 | KL18: 555835229.1 | KM18: 567547738.2 | KN18: 566737558.5 | KO18: 579384607.6 | KP18: 590438926.5 | KQ18: 589996888.9 | KR18: 602113027.9 | KS18: 614760077 | KT18: 611541479.3 | KU18: 622059562.7 | KV18: 632577653.3 | KW18: 629246923 | KX18: 639765027.9 | KY18: 649752230.1 | KZ18: 647024769.5 | LA18: 657970905.4 | LB18: 667827615 | LC18: 665431874.9 | LD18: 675833315.7 | LE18: 686779480.3 | LF18: 684126254.8 | LG18: 695257734.6 | LH18: 706389221.7 | LI18: 703683241.7 | LJ18: 714814743.3 | LK18: 725401535.4 | LL18: 723322428.3 | LM18: 734893174.3 | LN18: 744787271.8 | LO18: 743191467.3 | LP18: 754203349.9 | LQ18: 765774124.9 | LR18: 763256387.3 | LS18: 774477335.2 | LT18: 785698291.3 | LU18: 783151018.9 | LV18: 794371991.4 | LW18: 805034086.8 | LX18: 803180436.5 | LY18: 814852165.2 | LZ18: 824803627.2 | MA18: 823504035.4 | MB18: 834602363.7 | MC18: 846274125.2 | MD18: 846655549.2 | ME18: 860595481.9 | MF18: 874535414.6 | MG18: 874910571.8 | MH18: =MG18+MH16 -> 888850504.5 | MI18: 902217012.2 | MJ18: 903155563.7 | MK18: 917558040.7 | ML18: 930195480.5 | MM18: 931541544.5 | MN18: 945355675.8 | MO18: 959758152.8 | MP18: 958255995.2 | MQ18: 970367369.7 | MR18: 982478751.8 | MS18: 980924450.1 | MT18: 993035847.4 | MU18: 1004558907 | MV18: 1004104052 | MW18: 1016690141 | MX18: 1028068922 | MY18: 1028688442 | MZ18: 1040670897 | NA18: 1053257016 | NB18: 1057792817 | NC18: 1057792817 | ND18: 1057792817 | NE18: 1057792817 | NF18: 1057792817 | NG18: 1057792817 | NH18: 1057792817 | NI18: 1057792817 | NJ18: 1057792817 | NK18: 1057792817 | NL18: 1057792817 | NM18: 1057792817 | NN18: 1057792817 | NO18: 1057792817 | NP18: 1057792817 | NQ18: 1057792817 | NR18: 1057792817 | NS18: 1057792817 | NT18: 1057792817 | NU18: 1057792817 | NV18: 1057792817 | NW18: 1057792817 | NX18: 1057792817 | NY18: 1057792817 | NZ18: 1057792817 | OA18: 1057792817 | OB18: 1057792817 | OC18: 1057792817 | OD18: 1057792817 | OE18: 1057792817 | OF18: 1057792817 | OG18: 1057792817 | OH18: 1057792817 | OI18: 1057792817 | OJ18: 1057792817 | OK18: 1057792817 | OL18: 1057792817 | OM18: 1057792817 | ON18: 1057792817 | OO18: 1057792817 | OP18: 1057792817 | OQ18: 1057792817 | OR18: 1057792817 | OS18: 1057792817 | OT18: =OS18+OT16 -> 1057792817 | OU18: 1057792817 | OV18: 1057792817 | OW18: 1057792817 | OX18: 1057792817 | OY18: 1057792817 | OZ18: 1057792817 | PA18: 1057792817 | PB18: 1057792817 | PC18: 1057792817 | PD18: 1057792817 | PE18: 1057792817 | PF18: 1057792817 | PG18: 1057792817 | PH18: 1057792817 | PI18: 1057792817
D19: =D20+Premissas!G16 -> 2649495173
A20: Recurso Público S/ Cont. | D20: =2437560000 -> 2437560000
A22: TIR | C22: Mensal | D22: =IFERROR(IRR(F16:PI16,0.5%),0) -> 0.007360169845
C23: Anual | D23: =IFERROR((1+IRR(F16:PI16,0.8%))^12-1,0) -> 0.09198658413 | E23: =D24 -> 0.092
D24: 0.092
A25: Retorno do Projeto
B26: Taxa de desconto
C27: Mensal | D27: 0.00736
C28: Anual | D28: =((1+D27))^12-1 -> 0.09198437477
B29: VPL | D29: =NPV(D27,G16:PI16)+F16 -> 7895.626135
A31: TIR - Alavancado | C31: Mensal | D31: =IFERROR(IRR(F17:PI17,0.5%),0) -> 0.00738388058
C32: Anual | D32: =IFERROR((1+IRR(F17:PI17,0.8%))^12-1,0) -> 0.0922950556

Sheet DRE
A1: Demonstrativo de Resultado do Exercício - DRE | H1: =DATE(H4,H5,1) -> 2023-01-01 | I1: =DATE(I4,I5,1) -> 2023-02-01 | J1: 2023-03-01 | K1: 2023-04-01 | L1: 2023-05-01 | M1: 2023-06-01 | N1: 2023-07-01 | O1: 2023-08-01 | P1: 2023-09-01 | Q1: 2023-10-01 | R1: 2023-11-01 | S1: 2023-12-01 | T1: 2024-01-01 | U1: 2024-02-01 | V1: 2024-03-01 | W1: 2024-04-01 | X1: 2024-05-01 | Y1: 2024-06-01 | Z1: 2024-07-01 | AA1: 2024-08-01 | AB1: 2024-09-01 | AC1: 2024-10-01 | AD1: 2024-11-01 | AE1: 2024-12-01 | AF1: 2025-01-01 | AG1: 2025-02-01 | AH1: 2025-03-01 | AI1: 2025-04-01 | AJ1: 2025-05-01 | AK1: 2025-06-01 | AL1: 2025-07-01 | AM1: 2025-08-01 | AN1: 2025-09-01 | AO1: 2025-10-01 | AP1: 2025-11-01 | AQ1: 2025-12-01 | AR1: 2026-01-01 | AS1: 2026-02-01 | AT1: 2026-03-01 | AU1: 2026-04-01 | AV1: 2026-05-01 | AW1: 2026-06-01 | AX1: 2026-07-01 | AY1: 2026-08-01 | AZ1: 2026-09-01 | BA1: 2026-10-01 | BB1: 2026-11-01 | BC1: 2026-12-01 | BD1: 2027-01-01 | BE1: 2027-02-01 | BF1: 2027-03-01 | BG1: 2027-04-01 | BH1: 2027-05-01 | BI1: 2027-06-01 | BJ1: 2027-07-01 | BK1: 2027-08-01 | BL1: 2027-09-01 | BM1: 2027-10-01 | BN1: 2027-11-01 | BO1: 2027-12-01 | BP1: 2028-01-01 | BQ1: 2028-02-01 | BR1: 2028-03-01 | BS1: 2028-04-01 | BT1: 2028-05-01 | BU1: =DATE(BU4,BU5,1) -> 2028-06-01 | BV1: 2028-07-01 | BW1: 2028-08-01 | BX1: 2028-09-01 | BY1: 2028-10-01 | BZ1: 2028-11-01 | CA1: 2028-12-01 | CB1: 2029-01-01 | CC1: 2029-02-01 | CD1: 2029-03-01 | CE1: 2029-04-01 | CF1: 2029-05-01 | CG1: 2029-06-01 | CH1: 2029-07-01 | CI1: 2029-08-01 | CJ1: 2029-09-01 | CK1: 2029-10-01 | CL1: 2029-11-01 | CM1: 2029-12-01 | CN1: 2030-01-01 | CO1: 2030-02-01 | CP1: 2030-03-01 | CQ1: 2030-04-01 | CR1: 2030-05-01 | CS1: 2030-06-01 | CT1: 2030-07-01 | CU1: 2030-08-01 | CV1: 2030-09-01 | CW1: 2030-10-01 | CX1: 2030-11-01 | CY1: 2030-12-01 | CZ1: 2031-01-01 | DA1: 2031-02-01 | DB1: 2031-03-01 | DC1: 2031-04-01 | DD1: 2031-05-01 | DE1: 2031-06-01 | DF1: 2031-07-01 | DG1: 2031-08-01 | DH1: 2031-09-01 | DI1: 2031-10-01 | DJ1: 2031-11-01 | DK1: 2031-12-01 | DL1: 2032-01-01 | DM1: 2032-02-01 | DN1: 2032-03-01 | DO1: 2032-04-01 | DP1: 2032-05-01 | DQ1: 2032-06-01 | DR1: 2032-07-01 | DS1: 2032-08-01 | DT1: 2032-09-01 | DU1: 2032-10-01 | DV1: 2032-11-01 | DW1: 2032-12-01 | DX1: 2033-01-01 | DY1: 2033-02-01 | DZ1: 2033-03-01 | EA1: 2033-04-01 | EB1: 2033-05-01 | EC1: 2033-06-01 | ED1: 2033-07-01 | EE1: 2033-08-01 | EF1: 2033-09-01 | EG1: =DATE(EG4,EG5,1) -> 2033-10-01 | EH1: 2033-11-01 | EI1: 2033-12-01 | EJ1: 2034-01-01 | EK1: 2034-02-01 | EL1: 2034-03-01 | EM1: 2034-04-01 | EN1: 2034-05-01 | EO1: 2034-06-01 | EP1: 2034-07-01 | EQ1: 2034-08-01 | ER1: 2034-09-01 | ES1: 2034-10-01 | ET1: 2034-11-01 | EU1: 2034-12-01 | EV1: 2035-01-01 | EW1: 2035-02-01 | EX1: 2035-03-01 | EY1: 2035-04-01 | EZ1: 2035-05-01 | FA1: 2035-06-01 | FB1: 2035-07-01 | FC1: 2035-08-01 | FD1: 2035-09-01 | FE1: 2035-10-01 | FF1: 2035-11-01 | FG1: 2035-12-01 | FH1: 2036-01-01 | FI1: 2036-02-01 | FJ1: 2036-03-01 | FK1: 2036-04-01 | FL1: 2036-05-01 | FM1: 2036-06-01 | FN1: 2036-07-01 | FO1: 2036-08-01 | FP1: 2036-09-01 | FQ1: 2036-10-01 | FR1: 2036-11-01 | FS1: 2036-12-01 | FT1: 2037-01-01 | FU1: 2037-02-01 | FV1: 2037-03-01 | FW1: 2037-04-01 | FX1: 2037-05-01 | FY1: 2037-06-01 | FZ1: 2037-07-01 | GA1: 2037-08-01 | GB1: 2037-09-01 | GC1: 2037-10-01 | GD1: 2037-11-01 | GE1: 2037-12-01 | GF1: 2038-01-01 | GG1: 2038-02-01 | GH1: 2038-03-01 | GI1: 2038-04-01 | GJ1: 2038-05-01 | GK1: 2038-06-01 | GL1: 2038-07-01 | GM1: 2038-08-01 | GN1: 2038-09-01 | GO1: 2038-10-01 | GP1: 2038-11-01 | GQ1: 2038-12-01 | GR1: 2039-01-01 | GS1: =DATE(GS4,GS5,1) -> 2039-02-01 | GT1: 2039-03-01 | GU1: 2039-04-01 | GV1: 2039-05-01 | GW1: 2039-06-01 | GX1: 2039-07-01 | GY1: 2039-08-01 | GZ1: 2039-09-01 | HA1: 2039-10-01 | HB1: 2039-11-01 | HC1: 2039-12-01 | HD1: 2040-01-01 | HE1: 2040-02-01 | HF1: 2040-03-01 | HG1: 2040-04-01 | HH1: 2040-05-01 | HI1: 2040-06-01 | HJ1: 2040-07-01 | HK1: 2040-08-01 | HL1: 2040-09-01 | HM1: 2040-10-01 | HN1: 2040-11-01 | HO1: 2040-12-01 | HP1: 2041-01-01 | HQ1: 2041-02-01 | HR1: 2041-03-01 | HS1: 2041-04-01 | HT1: 2041-05-01 | HU1: 2041-06-01 | HV1: 2041-07-01 | HW1: 2041-08-01 | HX1: 2041-09-01 | HY1: 2041-10-01 | HZ1: 2041-11-01 | IA1: 2041-12-01 | IB1: 2042-01-01 | IC1: 2042-02-01 | ID1: 2042-03-01 | IE1: 2042-04-01 | IF1: 2042-05-01 | IG1: 2042-06-01 | IH1: 2042-07-01 | II1: 2042-08-01 | IJ1: 2042-09-01 | IK1: 2042-10-01 | IL1: 2042-11-01 | IM1: 2042-12-01 | IN1: 2043-01-01 | IO1: 2043-02-01 | IP1: 2043-03-01 | IQ1: 2043-04-01 | IR1: 2043-05-01 | IS1: 2043-06-01 | IT1: 2043-07-01 | IU1: 2043-08-01 | IV1: 2043-09-01 | IW1: 2043-10-01 | IX1: 2043-11-01 | IY1: 2043-12-01 | IZ1: 2044-01-01 | JA1: 2044-02-01 | JB1: 2044-03-01 | JC1: 2044-04-01 | JD1: 2044-05-01 | JE1: =DATE(JE4,JE5,1) -> 2044-06-01 | JF1: 2044-07-01 | JG1: 2044-08-01 | JH1: 2044-09-01 | JI1: 2044-10-01 | JJ1: 2044-11-01 | JK1: 2044-12-01 | JL1: 2045-01-01 | JM1: 2045-02-01 | JN1: 2045-03-01 | JO1: 2045-04-01 | JP1: 2045-05-01 | JQ1: 2045-06-01 | JR1: 2045-07-01 | JS1: 2045-08-01 | JT1: 2045-09-01 | JU1: 2045-10-01 | JV1: 2045-11-01 | JW1: 2045-12-01 | JX1: 2046-01-01 | JY1: 2046-02-01 | JZ1: 2046-03-01 | KA1: 2046-04-01 | KB1: 2046-05-01 | KC1: 2046-06-01 | KD1: 2046-07-01 | KE1: 2046-08-01 | KF1: 2046-09-01 | KG1: 2046-10-01 | KH1: 2046-11-01 | KI1: 2046-12-01 | KJ1: 2047-01-01 | KK1: 2047-02-01 | KL1: 2047-03-01 | KM1: 2047-04-01 | KN1: 2047-05-01 | KO1: 2047-06-01 | KP1: 2047-07-01 | KQ1: 2047-08-01 | KR1: 2047-09-01 | KS1: 2047-10-01 | KT1: 2047-11-01 | KU1: 2047-12-01 | KV1: 2048-01-01 | KW1: 2048-02-01 | KX1: 2048-03-01 | KY1: 2048-04-01 | KZ1: 2048-05-01 | LA1: 2048-06-01 | LB1: 2048-07-01 | LC1: 2048-08-01 | LD1: 2048-09-01 | LE1: 2048-10-01 | LF1: 2048-11-01 | LG1: 2048-12-01 | LH1: 2049-01-01 | LI1: 2049-02-01 | LJ1: 2049-03-01 | LK1: 2049-04-01 | LL1: 2049-05-01 | LM1: 2049-06-01 | LN1: 2049-07-01 | LO1: 2049-08-01 | LP1: 2049-09-01 | LQ1: =DATE(LQ4,LQ5,1) -> 2049-10-01 | LR1: 2049-11-01 | LS1: 2049-12-01 | LT1: 2050-01-01 | LU1: 2050-02-01 | LV1: 2050-03-01 | LW1: 2050-04-01 | LX1: 2050-05-01 | LY1: 2050-06-01 | LZ1: 2050-07-01 | MA1: 2050-08-01 | MB1: 2050-09-01 | MC1: 2050-10-01 | MD1: 2050-11-01 | ME1: 2050-12-01 | MF1: 2051-01-01 | MG1: 2051-02-01 | MH1: 2051-03-01 | MI1: 2051-04-01 | MJ1: 2051-05-01 | MK1: 2051-06-01 | ML1: 2051-07-01 | MM1: 2051-08-01 | MN1: 2051-09-01 | MO1: 2051-10-01 | MP1: 2051-11-01 | MQ1: 2051-12-01 | MR1: 2052-01-01 | MS1: 2052-02-01 | MT1: 2052-03-01 | MU1: 2052-04-01 | MV1: 2052-05-01 | MW1: 2052-06-01 | MX1: 2052-07-01 | MY1: 2052-08-01 | MZ1: 2052-09-01 | NA1: 2052-10-01 | NB1: 2052-11-01 | NC1: 2052-12-01 | ND1: 2053-01-01 | NE1: 2053-02-01 | NF1: 2053-03-01 | NG1: 2053-04-01 | NH1: 2053-05-01 | NI1: 2053-06-01 | NJ1: 2053-07-01 | NK1: 2053-08-01 | NL1: 2053-09-01 | NM1: 2053-10-01 | NN1: 2053-11-01 | NO1: 2053-12-01 | NP1: 2054-01-01 | NQ1: 2054-02-01 | NR1: 2054-03-01 | NS1: 2054-04-01 | NT1: 2054-05-01 | NU1: 2054-06-01 | NV1: 2054-07-01 | NW1: 2054-08-01 | NX1: 2054-09-01 | NY1: 2054-10-01 | NZ1: 2054-11-01 | OA1: 2054-12-01 | OB1: 2055-01-01 | OC1: =DATE(OC4,OC5,1) -> 2055-02-01 | OD1: 2055-03-01 | OE1: 2055-04-01 | OF1: 2055-05-01 | OG1: 2055-06-01 | OH1: 2055-07-01 | OI1: 2055-08-01 | OJ1: 2055-09-01 | OK1: 2055-10-01 | OL1: 2055-11-01 | OM1: 2055-12-01 | ON1: 2056-01-01 | OO1: 2056-02-01 | OP1: 2056-03-01 | OQ1: 2056-04-01 | OR1: 2056-05-01 | OS1: 2056-06-01 | OT1: 2056-07-01 | OU1: 2056-08-01 | OV1: 2056-09-01 | OW1: 2056-10-01 | OX1: 2056-11-01 | OY1: 2056-12-01 | OZ1: 2057-01-01 | PA1: 2057-02-01 | PB1: 2057-03-01 | PC1: 2057-04-01 | PD1: 2057-05-01 | PE1: 2057-06-01 | PF1: 2057-07-01 | PG1: 2057-08-01 | PH1: 2057-09-01 | PI1: 2057-10-01 | PJ1: 2057-11-01 | PK1: 2057-12-01
F2: 0 | H2: =IF(AND(H4=Premissas!$D$6+Premissas!$E$10,H5=Premissas!$D$7),0,IF(F2=1,1,IF(AND(H4=Premissas!$D$6,H5=Premissas!$D$7),1,F2))) -> 1 | I2: =IF(AND(I4=Premissas!$D$6+Premissas!$E$10,I5=Premissas!$D$7),0,IF(H2=1,1,IF(AND(I4=Premissas!$D$6,I5=Premissas!$D$7),1,H2))) -> 1 | J2: =IF(AND(J4=Premissas!$D$6+Premissas!$E$10,J5=Premissas!$D$7),0,IF(I2=1,1,IF(AND(J4=Premissas!$D$6,J5=Premissas!$D$7),1,I2))) -> 1 | K2: =IF(AND(K4=Premissas!$D$6+Premissas!$E$10,K5=Premissas!$D$7),0,IF(J2=1,1,IF(AND(K4=Premissas!$D$6,K5=Premissas!$D$7),1,J2))) -> 1 | L2: =IF(AND(L4=Premissas!$D$6+Premissas!$E$10,L5=Premissas!$D$7),0,IF(K2=1,1,IF(AND(L4=Premissas!$D$6,L5=Premissas!$D$7),1,K2))) -> 1 | M2: =IF(AND(M4=Premissas!$D$6+Premissas!$E$10,M5=Premissas!$D$7),0,IF(L2=1,1,IF(AND(M4=Premissas!$D$6,M5=Premissas!$D$7),1,L2))) -> 1 | N2: =IF(AND(N4=Premissas!$D$6+Premissas!$E$10,N5=Premissas!$D$7),0,IF(M2=1,1,IF(AND(N4=Premissas!$D$6,N5=Premissas!$D$7),1,M2))) -> 1 | O2: =IF(AND(O4=Premissas!$D$6+Premissas!$E$10,O5=Premissas!$D$7),0,IF(N2=1,1,IF(AND(O4=Premissas!$D$6,O5=Premissas!$D$7),1,N2))) -> 1 | P2: =IF(AND(P4=Premissas!$D$6+Premissas!$E$10,P5=Premissas!$D$7),0,IF(O2=1,1,IF(AND(P4=Premissas!$D$6,P5=Premissas!$D$7),1,O2))) -> 1 | Q2: =IF(AND(Q4=Premissas!$D$6+Premissas!$E$10,Q5=Premissas!$D$7),0,IF(P2=1,1,IF(AND(Q4=Premissas!$D$6,Q5=Premissas!$D$7),1,P2))) -> 1 | R2: =IF(AND(R4=Premissas!$D$6+Premissas!$E$10,R5=Premissas!$D$7),0,IF(Q2=1,1,IF(AND(R4=Premissas!$D$6,R5=Premissas!$D$7),1,Q2))) -> 1 | S2: =IF(AND(S4=Premissas!$D$6+Premissas!$E$10,S5=Premissas!$D$7),0,IF(R2=1,1,IF(AND(S4=Premissas!$D$6,S5=Premissas!$D$7),1,R2))) -> 1 | T2: =IF(AND(T4=Premissas!$D$6+Premissas!$E$10,T5=Premissas!$D$7),0,IF(S2=1,1,IF(AND(T4=Premissas!$D$6,T5=Premissas!$D$7),1,S2))) -> 1 | U2: =IF(AND(U4=Premissas!$D$6+Premissas!$E$10,U5=Premissas!$D$7),0,IF(T2=1,1,IF(AND(U4=Premissas!$D$6,U5=Premissas!$D$7),1,T2))) -> 1 | V2: =IF(AND(V4=Premissas!$D$6+Premissas!$E$10,V5=Premissas!$D$7),0,IF(U2=1,1,IF(AND(V4=Premissas!$D$6,V5=Premissas!$D$7),1,U2))) -> 1 | W2: =IF(AND(W4=Premissas!$D$6+Premissas!$E$10,W5=Premissas!$D$7),0,IF(V2=1,1,IF(AND(W4=Premissas!$D$6,W5=Premissas!$D$7),1,V2))) -> 1 | X2: =IF(AND(X4=Premissas!$D$6+Premissas!$E$10,X5=Premissas!$D$7),0,IF(W2=1,1,IF(AND(X4=Premissas!$D$6,X5=Premissas!$D$7),1,W2))) -> 1 | Y2: =IF(AND(Y4=Premissas!$D$6+Premissas!$E$10,Y5=Premissas!$D$7),0,IF(X2=1,1,IF(AND(Y4=Premissas!$D$6,Y5=Premissas!$D$7),1,X2))) -> 1 | Z2: =IF(AND(Z4=Premissas!$D$6+Premissas!$E$10,Z5=Premissas!$D$7),0,IF(Y2=1,1,IF(AND(Z4=Premissas!$D$6,Z5=Premissas!$D$7),1,Y2))) -> 1 | AA2: =IF(AND(AA4=Premissas!$D$6+Premissas!$E$10,AA5=Premissas!$D$7),0,IF(Z2=1,1,IF(AND(AA4=Premissas!$D$6,AA5=Premissas!$D$7),1,Z2))) -> 1 | AB2: =IF(AND(AB4=Premissas!$D$6+Premissas!$E$10,AB5=Premissas!$D$7),0,IF(AA2=1,1,IF(AND(AB4=Premissas!$D$6,AB5=Premissas!$D$7),1,AA2))) -> 1 | AC2: =IF(AND(AC4=Premissas!$D$6+Premissas!$E$10,AC5=Premissas!$D$7),0,IF(AB2=1,1,IF(AND(AC4=Premissas!$D$6,AC5=Premissas!$D$7),1,AB2))) -> 1 | AD2: =IF(AND(AD4=Premissas!$D$6+Premissas!$E$10,AD5=Premissas!$D$7),0,IF(AC2=1,1,IF(AND(AD4=Premissas!$D$6,AD5=Premissas!$D$7),1,AC2))) -> 1 | AE2: =IF(AND(AE4=Premissas!$D$6+Premissas!$E$10,AE5=Premissas!$D$7),0,IF(AD2=1,1,IF(AND(AE4=Premissas!$D$6,AE5=Premissas!$D$7),1,AD2))) -> 1 | AF2: =IF(AND(AF4=Premissas!$D$6+Premissas!$E$10,AF5=Premissas!$D$7),0,IF(AE2=1,1,IF(AND(AF4=Premissas!$D$6,AF5=Premissas!$D$7),1,AE2))) -> 1 | AG2: =IF(AND(AG4=Premissas!$D$6+Premissas!$E$10,AG5=Premissas!$D$7),0,IF(AF2=1,1,IF(AND(AG4=Premissas!$D$6,AG5=Premissas!$D$7),1,AF2))) -> 1 | AH2: =IF(AND(AH4=Premissas!$D$6+Premissas!$E$10,AH5=Premissas!$D$7),0,IF(AG2=1,1,IF(AND(AH4=Premissas!$D$6,AH5=Premissas!$D$7),1,AG2))) -> 1 | AI2: =IF(AND(AI4=Premissas!$D$6+Premissas!$E$10,AI5=Premissas!$D$7),0,IF(AH2=1,1,IF(AND(AI4=Premissas!$D$6,AI5=Premissas!$D$7),1,AH2))) -> 1 | AJ2: =IF(AND(AJ4=Premissas!$D$6+Premissas!$E$10,AJ5=Premissas!$D$7),0,IF(AI2=1,1,IF(AND(AJ4=Premissas!$D$6,AJ5=Premissas!$D$7),1,AI2))) -> 1 | AK2: =IF(AND(AK4=Premissas!$D$6+Premissas!$E$10,AK5=Premissas!$D$7),0,IF(AJ2=1,1,IF(AND(AK4=Premissas!$D$6,AK5=Premissas!$D$7),1,AJ2))) -> 1 | AL2: =IF(AND(AL4=Premissas!$D$6+Premissas!$E$10,AL5=Premissas!$D$7),0,IF(AK2=1,1,IF(AND(AL4=Premissas!$D$6,AL5=Premissas!$D$7),1,AK2))) -> 1 | AM2: =IF(AND(AM4=Premissas!$D$6+Premissas!$E$10,AM5=Premissas!$D$7),0,IF(AL2=1,1,IF(AND(AM4=Premissas!$D$6,AM5=Premissas!$D$7),1,AL2))) -> 1 | AN2: =IF(AND(AN4=Premissas!$D$6+Premissas!$E$10,AN5=Premissas!$D$7),0,IF(AM2=1,1,IF(AND(AN4=Premissas!$D$6,AN5=Premissas!$D$7),1,AM2))) -> 1 | AO2: =IF(AND(AO4=Premissas!$D$6+Premissas!$E$10,AO5=Premissas!$D$7),0,IF(AN2=1,1,IF(AND(AO4=Premissas!$D$6,AO5=Premissas!$D$7),1,AN2))) -> 1 | AP2: =IF(AND(AP4=Premissas!$D$6+Premissas!$E$10,AP5=Premissas!$D$7),0,IF(AO2=1,1,IF(AND(AP4=Premissas!$D$6,AP5=Premissas!$D$7),1,AO2))) -> 1 | AQ2: =IF(AND(AQ4=Premissas!$D$6+Premissas!$E$10,AQ5=Premissas!$D$7),0,IF(AP2=1,1,IF(AND(AQ4=Premissas!$D$6,AQ5=Premissas!$D$7),1,AP2))) -> 1 | AR2: =IF(AND(AR4=Premissas!$D$6+Premissas!$E$10,AR5=Premissas!$D$7),0,IF(AQ2=1,1,IF(AND(AR4=Premissas!$D$6,AR5=Premissas!$D$7),1,AQ2))) -> 1 | AS2: =IF(AND(AS4=Premissas!$D$6+Premissas!$E$10,AS5=Premissas!$D$7),0,IF(AR2=1,1,IF(AND(AS4=Premissas!$D$6,AS5=Premissas!$D$7),1,AR2))) -> 1 | AT2: =IF(AND(AT4=Premissas!$D$6+Premissas!$E$10,AT5=Premissas!$D$7),0,IF(AS2=1,1,IF(AND(AT4=Premissas!$D$6,AT5=Premissas!$D$7),1,AS2))) -> 1 | AU2: =IF(AND(AU4=Premissas!$D$6+Premissas!$E$10,AU5=Premissas!$D$7),0,IF(AT2=1,1,IF(AND(AU4=Premissas!$D$6,AU5=Premissas!$D$7),1,AT2))) -> 1 | AV2: =IF(AND(AV4=Premissas!$D$6+Premissas!$E$10,AV5=Premissas!$D$7),0,IF(AU2=1,1,IF(AND(AV4=Premissas!$D$6,AV5=Premissas!$D$7),1,AU2))) -> 1 | AW2: =IF(AND(AW4=Premissas!$D$6+Premissas!$E$10,AW5=Premissas!$D$7),0,IF(AV2=1,1,IF(AND(AW4=Premissas!$D$6,AW5=Premissas!$D$7),1,AV2))) -> 1 | AX2: =IF(AND(AX4=Premissas!$D$6+Premissas!$E$10,AX5=Premissas!$D$7),0,IF(AW2=1,1,IF(AND(AX4=Premissas!$D$6,AX5=Premissas!$D$7),1,AW2))) -> 1 | AY2: =IF(AND(AY4=Premissas!$D$6+Premissas!$E$10,AY5=Premissas!$D$7),0,IF(AX2=1,1,IF(AND(AY4=Premissas!$D$6,AY5=Premissas!$D$7),1,AX2))) -> 1 | AZ2: =IF(AND(AZ4=Premissas!$D$6+Premissas!$E$10,AZ5=Premissas!$D$7),0,IF(AY2=1,1,IF(AND(AZ4=Premissas!$D$6,AZ5=Premissas!$D$7),1,AY2))) -> 1 | BA2: =IF(AND(BA4=Premissas!$D$6+Premissas!$E$10,BA5=Premissas!$D$7),0,IF(AZ2=1,1,IF(AND(BA4=Premissas!$D$6,BA5=Premissas!$D$7),1,AZ2))) -> 1 | BB2: =IF(AND(BB4=Premissas!$D$6+Premissas!$E$10,BB5=Premissas!$D$7),0,IF(BA2=1,1,IF(AND(BB4=Premissas!$D$6,BB5=Premissas!$D$7),1,BA2))) -> 1 | BC2: =IF(AND(BC4=Premissas!$D$6+Premissas!$E$10,BC5=Premissas!$D$7),0,IF(BB2=1,1,IF(AND(BC4=Premissas!$D$6,BC5=Premissas!$D$7),1,BB2))) -> 1 | BD2: =IF(AND(BD4=Premissas!$D$6+Premissas!$E$10,BD5=Premissas!$D$7),0,IF(BC2=1,1,IF(AND(BD4=Premissas!$D$6,BD5=Premissas!$D$7),1,BC2))) -> 1 | BE2: =IF(AND(BE4=Premissas!$D$6+Premissas!$E$10,BE5=Premissas!$D$7),0,IF(BD2=1,1,IF(AND(BE4=Premissas!$D$6,BE5=Premissas!$D$7),1,BD2))) -> 1 | BF2: =IF(AND(BF4=Premissas!$D$6+Premissas!$E$10,BF5=Premissas!$D$7),0,IF(BE2=1,1,IF(AND(BF4=Premissas!$D$6,BF5=Premissas!$D$7),1,BE2))) -> 1 | BG2: =IF(AND(BG4=Premissas!$D$6+Premissas!$E$10,BG5=Premissas!$D$7),0,IF(BF2=1,1,IF(AND(BG4=Premissas!$D$6,BG5=Premissas!$D$7),1,BF2))) -> 1 | BH2: =IF(AND(BH4=Premissas!$D$6+Premissas!$E$10,BH5=Premissas!$D$7),0,IF(BG2=1,1,IF(AND(BH4=Premissas!$D$6,BH5=Premissas!$D$7),1,BG2))) -> 1 | BI2: =IF(AND(BI4=Premissas!$D$6+Premissas!$E$10,BI5=Premissas!$D$7),0,IF(BH2=1,1,IF(AND(BI4=Premissas!$D$6,BI5=Premissas!$D$7),1,BH2))) -> 1 | BJ2: =IF(AND(BJ4=Premissas!$D$6+Premissas!$E$10,BJ5=Premissas!$D$7),0,IF(BI2=1,1,IF(AND(BJ4=Premissas!$D$6,BJ5=Premissas!$D$7),1,BI2))) -> 1 | BK2: =IF(AND(BK4=Premissas!$D$6+Premissas!$E$10,BK5=Premissas!$D$7),0,IF(BJ2=1,1,IF(AND(BK4=Premissas!$D$6,BK5=Premissas!$D$7),1,BJ2))) -> 1 | BL2: =IF(AND(BL4=Premissas!$D$6+Premissas!$E$10,BL5=Premissas!$D$7),0,IF(BK2=1,1,IF(AND(BL4=Premissas!$D$6,BL5=Premissas!$D$7),1,BK2))) -> 1 | BM2: =IF(AND(BM4=Premissas!$D$6+Premissas!$E$10,BM5=Premissas!$D$7),0,IF(BL2=1,1,IF(AND(BM4=Premissas!$D$6,BM5=Premissas!$D$7),1,BL2))) -> 1 | BN2: =IF(AND(BN4=Premissas!$D$6+Premissas!$E$10,BN5=Premissas!$D$7),0,IF(BM2=1,1,IF(AND(BN4=Premissas!$D$6,BN5=Premissas!$D$7),1,BM2))) -> 1 | BO2: =IF(AND(BO4=Premissas!$D$6+Premissas!$E$10,BO5=Premissas!$D$7),0,IF(BN2=1,1,IF(AND(BO4=Premissas!$D$6,BO5=Premissas!$D$7),1,BN2))) -> 1 | BP2: =IF(AND(BP4=Premissas!$D$6+Premissas!$E$10,BP5=Premissas!$D$7),0,IF(BO2=1,1,IF(AND(BP4=Premissas!$D$6,BP5=Premissas!$D$7),1,BO2))) -> 1 | BQ2: =IF(AND(BQ4=Premissas!$D$6+Premissas!$E$10,BQ5=Premissas!$D$7),0,IF(BP2=1,1,IF(AND(BQ4=Premissas!$D$6,BQ5=Premissas!$D$7),1,BP2))) -> 1 | BR2: =IF(AND(BR4=Premissas!$D$6+Premissas!$E$10,BR5=Premissas!$D$7),0,IF(BQ2=1,1,IF(AND(BR4=Premissas!$D$6,BR5=Premissas!$D$7),1,BQ2))) -> 1 | BS2: =IF(AND(BS4=Premissas!$D$6+Premissas!$E$10,BS5=Premissas!$D$7),0,IF(BR2=1,1,IF(AND(BS4=Premissas!$D$6,BS5=Premissas!$D$7),1,BR2))) -> 1 | BT2: =IF(AND(BT4=Premissas!$D$6+Premissas!$E$10,BT5=Premissas!$D$7),0,IF(BS2=1,1,IF(AND(BT4=Premissas!$D$6,BT5=Premissas!$D$7),1,BS2))) -> 1 | BU2: =IF(AND(BU4=Premissas!$D$6+Premissas!$E$10,BU5=Premissas!$D$7),0,IF(BT2=1,1,IF(AND(BU4=Premissas!$D$6,BU5=Premissas!$D$7),1,BT2))) -> 1 | BV2: =IF(AND(BV4=Premissas!$D$6+Premissas!$E$10,BV5=Premissas!$D$7),0,IF(BU2=1,1,IF(AND(BV4=Premissas!$D$6,BV5=Premissas!$D$7),1,BU2))) -> 1 | BW2: =IF(AND(BW4=Premissas!$D$6+Premissas!$E$10,BW5=Premissas!$D$7),0,IF(BV2=1,1,IF(AND(BW4=Premissas!$D$6,BW5=Premissas!$D$7),1,BV2))) -> 1 | BX2: =IF(AND(BX4=Premissas!$D$6+Premissas!$E$10,BX5=Premissas!$D$7),0,IF(BW2=1,1,IF(AND(BX4=Premissas!$D$6,BX5=Premissas!$D$7),1,BW2))) -> 1 | BY2: =IF(AND(BY4=Premissas!$D$6+Premissas!$E$10,BY5=Premissas!$D$7),0,IF(BX2=1,1,IF(AND(BY4=Premissas!$D$6,BY5=Premissas!$D$7),1,BX2))) -> 1 | BZ2: =IF(AND(BZ4=Premissas!$D$6+Premissas!$E$10,BZ5=Premissas!$D$7),0,IF(BY2=1,1,IF(AND(BZ4=Premissas!$D$6,BZ5=Premissas!$D$7),1,BY2))) -> 1 | CA2: =IF(AND(CA4=Premissas!$D$6+Premissas!$E$10,CA5=Premissas!$D$7),0,IF(BZ2=1,1,IF(AND(CA4=Premissas!$D$6,CA5=Premissas!$D$7),1,BZ2))) -> 1 | CB2: =IF(AND(CB4=Premissas!$D$6+Premissas!$E$10,CB5=Premissas!$D$7),0,IF(CA2=1,1,IF(AND(CB4=Premissas!$D$6,CB5=Premissas!$D$7),1,CA2))) -> 1 | CC2: =IF(AND(CC4=Premissas!$D$6+Premissas!$E$10,CC5=Premissas!$D$7),0,IF(CB2=1,1,IF(AND(CC4=Premissas!$D$6,CC5=Premissas!$D$7),1,CB2))) -> 1 | CD2: =IF(AND(CD4=Premissas!$D$6+Premissas!$E$10,CD5=Premissas!$D$7),0,IF(CC2=1,1,IF(AND(CD4=Premissas!$D$6,CD5=Premissas!$D$7),1,CC2))) -> 1 | CE2: =IF(AND(CE4=Premissas!$D$6+Premissas!$E$10,CE5=Premissas!$D$7),0,IF(CD2=1,1,IF(AND(CE4=Premissas!$D$6,CE5=Premissas!$D$7),1,CD2))) -> 1 | CF2: =IF(AND(CF4=Premissas!$D$6+Premissas!$E$10,CF5=Premissas!$D$7),0,IF(CE2=1,1,IF(AND(CF4=Premissas!$D$6,CF5=Premissas!$D$7),1,CE2))) -> 1 | CG2: =IF(AND(CG4=Premissas!$D$6+Premissas!$E$10,CG5=Premissas!$D$7),0,IF(CF2=1,1,IF(AND(CG4=Premissas!$D$6,CG5=Premissas!$D$7),1,CF2))) -> 1 | CH2: =IF(AND(CH4=Premissas!$D$6+Premissas!$E$10,CH5=Premissas!$D$7),0,IF(CG2=1,1,IF(AND(CH4=Premissas!$D$6,CH5=Premissas!$D$7),1,CG2))) -> 1 | CI2: =IF(AND(CI4=Premissas!$D$6+Premissas!$E$10,CI5=Premissas!$D$7),0,IF(CH2=1,1,IF(AND(CI4=Premissas!$D$6,CI5=Premissas!$D$7),1,CH2))) -> 1 | CJ2: =IF(AND(CJ4=Premissas!$D$6+Premissas!$E$10,CJ5=Premissas!$D$7),0,IF(CI2=1,1,IF(AND(CJ4=Premissas!$D$6,CJ5=Premissas!$D$7),1,CI2))) -> 1 | CK2: =IF(AND(CK4=Premissas!$D$6+Premissas!$E$10,CK5=Premissas!$D$7),0,IF(CJ2=1,1,IF(AND(CK4=Premissas!$D$6,CK5=Premissas!$D$7),1,CJ2))) -> 1 | CL2: =IF(AND(CL4=Premissas!$D$6+Premissas!$E$10,CL5=Premissas!$D$7),0,IF(CK2=1,1,IF(AND(CL4=Premissas!$D$6,CL5=Premissas!$D$7),1,CK2))) -> 1 | CM2: =IF(AND(CM4=Premissas!$D$6+Premissas!$E$10,CM5=Premissas!$D$7),0,IF(CL2=1,1,IF(AND(CM4=Premissas!$D$6,CM5=Premissas!$D$7),1,CL2))) -> 1 | CN2: =IF(AND(CN4=Premissas!$D$6+Premissas!$E$10,CN5=Premissas!$D$7),0,IF(CM2=1,1,IF(AND(CN4=Premissas!$D$6,CN5=Premissas!$D$7),1,CM2))) -> 1 | CO2: =IF(AND(CO4=Premissas!$D$6+Premissas!$E$10,CO5=Premissas!$D$7),0,IF(CN2=1,1,IF(AND(CO4=Premissas!$D$6,CO5=Premissas!$D$7),1,CN2))) -> 1 | CP2: =IF(AND(CP4=Premissas!$D$6+Premissas!$E$10,CP5=Premissas!$D$7),0,IF(CO2=1,1,IF(AND(CP4=Premissas!$D$6,CP5=Premissas!$D$7),1,CO2))) -> 1 | CQ2: =IF(AND(CQ4=Premissas!$D$6+Premissas!$E$10,CQ5=Premissas!$D$7),0,IF(CP2=1,1,IF(AND(CQ4=Premissas!$D$6,CQ5=Premissas!$D$7),1,CP2))) -> 1 | CR2: =IF(AND(CR4=Premissas!$D$6+Premissas!$E$10,CR5=Premissas!$D$7),0,IF(CQ2=1,1,IF(AND(CR4=Premissas!$D$6,CR5=Premissas!$D$7),1,CQ2))) -> 1 | CS2: =IF(AND(CS4=Premissas!$D$6+Premissas!$E$10,CS5=Premissas!$D$7),0,IF(CR2=1,1,IF(AND(CS4=Premissas!$D$6,CS5=Premissas!$D$7),1,CR2))) -> 1 | CT2: =IF(AND(CT4=Premissas!$D$6+Premissas!$E$10,CT5=Premissas!$D$7),0,IF(CS2=1,1,IF(AND(CT4=Premissas!$D$6,CT5=Premissas!$D$7),1,CS2))) -> 1 | CU2: =IF(AND(CU4=Premissas!$D$6+Premissas!$E$10,CU5=Premissas!$D$7),0,IF(CT2=1,1,IF(AND(CU4=Premissas!$D$6,CU5=Premissas!$D$7),1,CT2))) -> 1 | CV2: =IF(AND(CV4=Premissas!$D$6+Premissas!$E$10,CV5=Premissas!$D$7),0,IF(CU2=1,1,IF(AND(CV4=Premissas!$D$6,CV5=Premissas!$D$7),1,CU2))) -> 1 | CW2: =IF(AND(CW4=Premissas!$D$6+Premissas!$E$10,CW5=Premissas!$D$7),0,IF(CV2=1,1,IF(AND(CW4=Premissas!$D$6,CW5=Premissas!$D$7),1,CV2))) -> 1 | CX2: =IF(AND(CX4=Premissas!$D$6+Premissas!$E$10,CX5=Premissas!$D$7),0,IF(CW2=1,1,IF(AND(CX4=Premissas!$D$6,CX5=Premissas!$D$7),1,CW2))) -> 1 | CY2: =IF(AND(CY4=Premissas!$D$6+Premissas!$E$10,CY5=Premissas!$D$7),0,IF(CX2=1,1,IF(AND(CY4=Premissas!$D$6,CY5=Premissas!$D$7),1,CX2))) -> 1 | CZ2: =IF(AND(CZ4=Premissas!$D$6+Premissas!$E$10,CZ5=Premissas!$D$7),0,IF(CY2=1,1,IF(AND(CZ4=Premissas!$D$6,CZ5=Premissas!$D$7),1,CY2))) -> 1 | DA2: =IF(AND(DA4=Premissas!$D$6+Premissas!$E$10,DA5=Premissas!$D$7),0,IF(CZ2=1,1,IF(AND(DA4=Premissas!$D$6,DA5=Premissas!$D$7),1,CZ2))) -> 1 | DB2: =IF(AND(DB4=Premissas!$D$6+Premissas!$E$10,DB5=Premissas!$D$7),0,IF(DA2=1,1,IF(AND(DB4=Premissas!$D$6,DB5=Premissas!$D$7),1,DA2))) -> 1 | DC2: =IF(AND(DC4=Premissas!$D$6+Premissas!$E$10,DC5=Premissas!$D$7),0,IF(DB2=1,1,IF(AND(DC4=Premissas!$D$6,DC5=Premissas!$D$7),1,DB2))) -> 1 | DD2: =IF(AND(DD4=Premissas!$D$6+Premissas!$E$10,DD5=Premissas!$D$7),0,IF(DC2=1,1,IF(AND(DD4=Premissas!$D$6,DD5=Premissas!$D$7),1,DC2))) -> 1 | DE2: =IF(AND(DE4=Premissas!$D$6+Premissas!$E$10,DE5=Premissas!$D$7),0,IF(DD2=1,1,IF(AND(DE4=Premissas!$D$6,DE5=Premissas!$D$7),1,DD2))) -> 1 | DF2: =IF(AND(DF4=Premissas!$D$6+Premissas!$E$10,DF5=Premissas!$D$7),0,IF(DE2=1,1,IF(AND(DF4=Premissas!$D$6,DF5=Premissas!$D$7),1,DE2))) -> 1 | DG2: =IF(AND(DG4=Premissas!$D$6+Premissas!$E$10,DG5=Premissas!$D$7),0,IF(DF2=1,1,IF(AND(DG4=Premissas!$D$6,DG5=Premissas!$D$7),1,DF2))) -> 1 | DH2: =IF(AND(DH4=Premissas!$D$6+Premissas!$E$10,DH5=Premissas!$D$7),0,IF(DG2=1,1,IF(AND(DH4=Premissas!$D$6,DH5=Premissas!$D$7),1,DG2))) -> 1 | DI2: =IF(AND(DI4=Premissas!$D$6+Premissas!$E$10,DI5=Premissas!$D$7),0,IF(DH2=1,1,IF(AND(DI4=Premissas!$D$6,DI5=Premissas!$D$7),1,DH2))) -> 1 | DJ2: =IF(AND(DJ4=Premissas!$D$6+Premissas!$E$10,DJ5=Premissas!$D$7),0,IF(DI2=1,1,IF(AND(DJ4=Premissas!$D$6,DJ5=Premissas!$D$7),1,DI2))) -> 1 | DK2: =IF(AND(DK4=Premissas!$D$6+Premissas!$E$10,DK5=Premissas!$D$7),0,IF(DJ2=1,1,IF(AND(DK4=Premissas!$D$6,DK5=Premissas!$D$7),1,DJ2))) -> 1 | DL2: =IF(AND(DL4=Premissas!$D$6+Premissas!$E$10,DL5=Premissas!$D$7),0,IF(DK2=1,1,IF(AND(DL4=Premissas!$D$6,DL5=Premissas!$D$7),1,DK2))) -> 1 | DM2: =IF(AND(DM4=Premissas!$D$6+Premissas!$E$10,DM5=Premissas!$D$7),0,IF(DL2=1,1,IF(AND(DM4=Premissas!$D$6,DM5=Premissas!$D$7),1,DL2))) -> 1 | DN2: =IF(AND(DN4=Premissas!$D$6+Premissas!$E$10,DN5=Premissas!$D$7),0,IF(DM2=1,1,IF(AND(DN4=Premissas!$D$6,DN5=Premissas!$D$7),1,DM2))) -> 1 | DO2: =IF(AND(DO4=Premissas!$D$6+Premissas!$E$10,DO5=Premissas!$D$7),0,IF(DN2=1,1,IF(AND(DO4=Premissas!$D$6,DO5=Premissas!$D$7),1,DN2))) -> 1 | DP2: =IF(AND(DP4=Premissas!$D$6+Premissas!$E$10,DP5=Premissas!$D$7),0,IF(DO2=1,1,IF(AND(DP4=Premissas!$D$6,DP5=Premissas!$D$7),1,DO2))) -> 1 | DQ2: =IF(AND(DQ4=Premissas!$D$6+Premissas!$E$10,DQ5=Premissas!$D$7),0,IF(DP2=1,1,IF(AND(DQ4=Premissas!$D$6,DQ5=Premissas!$D$7),1,DP2))) -> 1 | DR2: =IF(AND(DR4=Premissas!$D$6+Premissas!$E$10,DR5=Premissas!$D$7),0,IF(DQ2=1,1,IF(AND(DR4=Premissas!$D$6,DR5=Premissas!$D$7),1,DQ2))) -> 1 | DS2: =IF(AND(DS4=Premissas!$D$6+Premissas!$E$10,DS5=Premissas!$D$7),0,IF(DR2=1,1,IF(AND(DS4=Premissas!$D$6,DS5=Premissas!$D$7),1,DR2))) -> 1 | DT2: =IF(AND(DT4=Premissas!$D$6+Premissas!$E$10,DT5=Premissas!$D$7),0,IF(DS2=1,1,IF(AND(DT4=Premissas!$D$6,DT5=Premissas!$D$7),1,DS2))) -> 1 | DU2: =IF(AND(DU4=Premissas!$D$6+Premissas!$E$10,DU5=Premissas!$D$7),0,IF(DT2=1,1,IF(AND(DU4=Premissas!$D$6,DU5=Premissas!$D$7),1,DT2))) -> 1 | DV2: =IF(AND(DV4=Premissas!$D$6+Premissas!$E$10,DV5=Premissas!$D$7),0,IF(DU2=1,1,IF(AND(DV4=Premissas!$D$6,DV5=Premissas!$D$7),1,DU2))) -> 1 | DW2: =IF(AND(DW4=Premissas!$D$6+Premissas!$E$10,DW5=Premissas!$D$7),0,IF(DV2=1,1,IF(AND(DW4=Premissas!$D$6,DW5=Premissas!$D$7),1,DV2))) -> 1 | DX2: =IF(AND(DX4=Premissas!$D$6+Premissas!$E$10,DX5=Premissas!$D$7),0,IF(DW2=1,1,IF(AND(DX4=Premissas!$D$6,DX5=Premissas!$D$7),1,DW2))) -> 1 | DY2: =IF(AND(DY4=Premissas!$D$6+Premissas!$E$10,DY5=Premissas!$D$7),0,IF(DX2=1,1,IF(AND(DY4=Premissas!$D$6,DY5=Premissas!$D$7),1,DX2))) -> 1 | DZ2: =IF(AND(DZ4=Premissas!$D$6+Premissas!$E$10,DZ5=Premissas!$D$7),0,IF(DY2=1,1,IF(AND(DZ4=Premissas!$D$6,DZ5=Premissas!$D$7),1,DY2))) -> 1 | EA2: =IF(AND(EA4=Premissas!$D$6+Premissas!$E$10,EA5=Premissas!$D$7),0,IF(DZ2=1,1,IF(AND(EA4=Premissas!$D$6,EA5=Premissas!$D$7),1,DZ2))) -> 1 | EB2: =IF(AND(EB4=Premissas!$D$6+Premissas!$E$10,EB5=Premissas!$D$7),0,IF(EA2=1,1,IF(AND(EB4=Premissas!$D$6,EB5=Premissas!$D$7),1,EA2))) -> 1 | EC2: =IF(AND(EC4=Premissas!$D$6+Premissas!$E$10,EC5=Premissas!$D$7),0,IF(EB2=1,1,IF(AND(EC4=Premissas!$D$6,EC5=Premissas!$D$7),1,EB2))) -> 1 | ED2: =IF(AND(ED4=Premissas!$D$6+Premissas!$E$10,ED5=Premissas!$D$7),0,IF(EC2=1,1,IF(AND(ED4=Premissas!$D$6,ED5=Premissas!$D$7),1,EC2))) -> 1 | EE2: =IF(AND(EE4=Premissas!$D$6+Premissas!$E$10,EE5=Premissas!$D$7),0,IF(ED2=1,1,IF(AND(EE4=Premissas!$D$6,EE5=Premissas!$D$7),1,ED2))) -> 1 | EF2: =IF(AND(EF4=Premissas!$D$6+Premissas!$E$10,EF5=Premissas!$D$7),0,IF(EE2=1,1,IF(AND(EF4=Premissas!$D$6,EF5=Premissas!$D$7),1,EE2))) -> 1 | EG2: =IF(AND(EG4=Premissas!$D$6+Premissas!$E$10,EG5=Premissas!$D$7),0,IF(EF2=1,1,IF(AND(EG4=Premissas!$D$6,EG5=Premissas!$D$7),1,EF2))) -> 1 | EH2: =IF(AND(EH4=Premissas!$D$6+Premissas!$E$10,EH5=Premissas!$D$7),0,IF(EG2=1,1,IF(AND(EH4=Premissas!$D$6,EH5=Premissas!$D$7),1,EG2))) -> 1 | EI2: =IF(AND(EI4=Premissas!$D$6+Premissas!$E$10,EI5=Premissas!$D$7),0,IF(EH2=1,1,IF(AND(EI4=Premissas!$D$6,EI5=Premissas!$D$7),1,EH2))) -> 1 | EJ2: =IF(AND(EJ4=Premissas!$D$6+Premissas!$E$10,EJ5=Premissas!$D$7),0,IF(EI2=1,1,IF(AND(EJ4=Premissas!$D$6,EJ5=Premissas!$D$7),1,EI2))) -> 1 | EK2: =IF(AND(EK4=Premissas!$D$6+Premissas!$E$10,EK5=Premissas!$D$7),0,IF(EJ2=1,1,IF(AND(EK4=Premissas!$D$6,EK5=Premissas!$D$7),1,EJ2))) -> 1 | EL2: =IF(AND(EL4=Premissas!$D$6+Premissas!$E$10,EL5=Premissas!$D$7),0,IF(EK2=1,1,IF(AND(EL4=Premissas!$D$6,EL5=Premissas!$D$7),1,EK2))) -> 1 | EM2: =IF(AND(EM4=Premissas!$D$6+Premissas!$E$10,EM5=Premissas!$D$7),0,IF(EL2=1,1,IF(AND(EM4=Premissas!$D$6,EM5=Premissas!$D$7),1,EL2))) -> 1 | EN2: =IF(AND(EN4=Premissas!$D$6+Premissas!$E$10,EN5=Premissas!$D$7),0,IF(EM2=1,1,IF(AND(EN4=Premissas!$D$6,EN5=Premissas!$D$7),1,EM2))) -> 1 | EO2: =IF(AND(EO4=Premissas!$D$6+Premissas!$E$10,EO5=Premissas!$D$7),0,IF(EN2=1,1,IF(AND(EO4=Premissas!$D$6,EO5=Premissas!$D$7),1,EN2))) -> 1 | EP2: =IF(AND(EP4=Premissas!$D$6+Premissas!$E$10,EP5=Premissas!$D$7),0,IF(EO2=1,1,IF(AND(EP4=Premissas!$D$6,EP5=Premissas!$D$7),1,EO2))) -> 1 | EQ2: =IF(AND(EQ4=Premissas!$D$6+Premissas!$E$10,EQ5=Premissas!$D$7),0,IF(EP2=1,1,IF(AND(EQ4=Premissas!$D$6,EQ5=Premissas!$D$7),1,EP2))) -> 1 | ER2: =IF(AND(ER4=Premissas!$D$6+Premissas!$E$10,ER5=Premissas!$D$7),0,IF(EQ2=1,1,IF(AND(ER4=Premissas!$D$6,ER5=Premissas!$D$7),1,EQ2))) -> 1 | ES2: =IF(AND(ES4=Premissas!$D$6+Premissas!$E$10,ES5=Premissas!$D$7),0,IF(ER2=1,1,IF(AND(ES4=Premissas!$D$6,ES5=Premissas!$D$7),1,ER2))) -> 1 | ET2: =IF(AND(ET4=Premissas!$D$6+Premissas!$E$10,ET5=Premissas!$D$7),0,IF(ES2=1,1,IF(AND(ET4=Premissas!$D$6,ET5=Premissas!$D$7),1,ES2))) -> 1 | EU2: =IF(AND(EU4=Premissas!$D$6+Premissas!$E$10,EU5=Premissas!$D$7),0,IF(ET2=1,1,IF(AND(EU4=Premissas!$D$6,EU5=Premissas!$D$7),1,ET2))) -> 1 | EV2: =IF(AND(EV4=Premissas!$D$6+Premissas!$E$10,EV5=Premissas!$D$7),0,IF(EU2=1,1,IF(AND(EV4=Premissas!$D$6,EV5=Premissas!$D$7),1,EU2))) -> 1 | EW2: =IF(AND(EW4=Premissas!$D$6+Premissas!$E$10,EW5=Premissas!$D$7),0,IF(EV2=1,1,IF(AND(EW4=Premissas!$D$6,EW5=Premissas!$D$7),1,EV2))) -> 1 | EX2: =IF(AND(EX4=Premissas!$D$6+Premissas!$E$10,EX5=Premissas!$D$7),0,IF(EW2=1,1,IF(AND(EX4=Premissas!$D$6,EX5=Premissas!$D$7),1,EW2))) -> 1 | EY2: =IF(AND(EY4=Premissas!$D$6+Premissas!$E$10,EY5=Premissas!$D$7),0,IF(EX2=1,1,IF(AND(EY4=Premissas!$D$6,EY5=Premissas!$D$7),1,EX2))) -> 1 | EZ2: =IF(AND(EZ4=Premissas!$D$6+Premissas!$E$10,EZ5=Premissas!$D$7),0,IF(EY2=1,1,IF(AND(EZ4=Premissas!$D$6,EZ5=Premissas!$D$7),1,EY2))) -> 1 | FA2: =IF(AND(FA4=Premissas!$D$6+Premissas!$E$10,FA5=Premissas!$D$7),0,IF(EZ2=1,1,IF(AND(FA4=Premissas!$D$6,FA5=Premissas!$D$7),1,EZ2))) -> 1 | FB2: =IF(AND(FB4=Premissas!$D$6+Premissas!$E$10,FB5=Premissas!$D$7),0,IF(FA2=1,1,IF(AND(FB4=Premissas!$D$6,FB5=Premissas!$D$7),1,FA2))) -> 1 | FC2: =IF(AND(FC4=Premissas!$D$6+Premissas!$E$10,FC5=Premissas!$D$7),0,IF(FB2=1,1,IF(AND(FC4=Premissas!$D$6,FC5=Premissas!$D$7),1,FB2))) -> 1 | FD2: =IF(AND(FD4=Premissas!$D$6+Premissas!$E$10,FD5=Premissas!$D$7),0,IF(FC2=1,1,IF(AND(FD4=Premissas!$D$6,FD5=Premissas!$D$7),1,FC2))) -> 1 | FE2: =IF(AND(FE4=Premissas!$D$6+Premissas!$E$10,FE5=Premissas!$D$7),0,IF(FD2=1,1,IF(AND(FE4=Premissas!$D$6,FE5=Premissas!$D$7),1,FD2))) -> 1 | FF2: =IF(AND(FF4=Premissas!$D$6+Premissas!$E$10,FF5=Premissas!$D$7),0,IF(FE2=1,1,IF(AND(FF4=Premissas!$D$6,FF5=Premissas!$D$7),1,FE2))) -> 1 | FG2: =IF(AND(FG4=Premissas!$D$6+Premissas!$E$10,FG5=Premissas!$D$7),0,IF(FF2=1,1,IF(AND(FG4=Premissas!$D$6,FG5=Premissas!$D$7),1,FF2))) -> 1 | FH2: =IF(AND(FH4=Premissas!$D$6+Premissas!$E$10,FH5=Premissas!$D$7),0,IF(FG2=1,1,IF(AND(FH4=Premissas!$D$6,FH5=Premissas!$D$7),1,FG2))) -> 1 | FI2: =IF(AND(FI4=Premissas!$D$6+Premissas!$E$10,FI5=Premissas!$D$7),0,IF(FH2=1,1,IF(AND(FI4=Premissas!$D$6,FI5=Premissas!$D$7),1,FH2))) -> 1 | FJ2: =IF(AND(FJ4=Premissas!$D$6+Premissas!$E$10,FJ5=Premissas!$D$7),0,IF(FI2=1,1,IF(AND(FJ4=Premissas!$D$6,FJ5=Premissas!$D$7),1,FI2))) -> 1 | FK2: =IF(AND(FK4=Premissas!$D$6+Premissas!$E$10,FK5=Premissas!$D$7),0,IF(FJ2=1,1,IF(AND(FK4=Premissas!$D$6,FK5=Premissas!$D$7),1,FJ2))) -> 1 | FL2: =IF(AND(FL4=Premissas!$D$6+Premissas!$E$10,FL5=Premissas!$D$7),0,IF(FK2=1,1,IF(AND(FL4=Premissas!$D$6,FL5=Premissas!$D$7),1,FK2))) -> 1 | FM2: =IF(AND(FM4=Premissas!$D$6+Premissas!$E$10,FM5=Premissas!$D$7),0,IF(FL2=1,1,IF(AND(FM4=Premissas!$D$6,FM5=Premissas!$D$7),1,FL2))) -> 1 | FN2: =IF(AND(FN4=Premissas!$D$6+Premissas!$E$10,FN5=Premissas!$D$7),0,IF(FM2=1,1,IF(AND(FN4=Premissas!$D$6,FN5=Premissas!$D$7),1,FM2))) -> 1 | FO2: =IF(AND(FO4=Premissas!$D$6+Premissas!$E$10,FO5=Premissas!$D$7),0,IF(FN2=1,1,IF(AND(FO4=Premissas!$D$6,FO5=Premissas!$D$7),1,FN2))) -> 1 | FP2: =IF(AND(FP4=Premissas!$D$6+Premissas!$E$10,FP5=Premissas!$D$7),0,IF(FO2=1,1,IF(AND(FP4=Premissas!$D$6,FP5=Premissas!$D$7),1,FO2))) -> 1 | FQ2: =IF(AND(FQ4=Premissas!$D$6+Premissas!$E$10,FQ5=Premissas!$D$7),0,IF(FP2=1,1,IF(AND(FQ4=Premissas!$D$6,FQ5=Premissas!$D$7),1,FP2))) -> 1 | FR2: =IF(AND(FR4=Premissas!$D$6+Premissas!$E$10,FR5=Premissas!$D$7),0,IF(FQ2=1,1,IF(AND(FR4=Premissas!$D$6,FR5=Premissas!$D$7),1,FQ2))) -> 1 | FS2: =IF(AND(FS4=Premissas!$D$6+Premissas!$E$10,FS5=Premissas!$D$7),0,IF(FR2=1,1,IF(AND(FS4=Premissas!$D$6,FS5=Premissas!$D$7),1,FR2))) -> 1 | FT2: =IF(AND(FT4=Premissas!$D$6+Premissas!$E$10,FT5=Premissas!$D$7),0,IF(FS2=1,1,IF(AND(FT4=Premissas!$D$6,FT5=Premissas!$D$7),1,FS2))) -> 1 | FU2: =IF(AND(FU4=Premissas!$D$6+Premissas!$E$10,FU5=Premissas!$D$7),0,IF(FT2=1,1,IF(AND(FU4=Premissas!$D$6,FU5=Premissas!$D$7),1,FT2))) -> 1 | FV2: =IF(AND(FV4=Premissas!$D$6+Premissas!$E$10,FV5=Premissas!$D$7),0,IF(FU2=1,1,IF(AND(FV4=Premissas!$D$6,FV5=Premissas!$D$7),1,FU2))) -> 1 | FW2: =IF(AND(FW4=Premissas!$D$6+Premissas!$E$10,FW5=Premissas!$D$7),0,IF(FV2=1,1,IF(AND(FW4=Premissas!$D$6,FW5=Premissas!$D$7),1,FV2))) -> 1 | FX2: =IF(AND(FX4=Premissas!$D$6+Premissas!$E$10,FX5=Premissas!$D$7),0,IF(FW2=1,1,IF(AND(FX4=Premissas!$D$6,FX5=Premissas!$D$7),1,FW2))) -> 1 | FY2: =IF(AND(FY4=Premissas!$D$6+Premissas!$E$10,FY5=Premissas!$D$7),0,IF(FX2=1,1,IF(AND(FY4=Premissas!$D$6,FY5=Premissas!$D$7),1,FX2))) -> 1 | FZ2: =IF(AND(FZ4=Premissas!$D$6+Premissas!$E$10,FZ5=Premissas!$D$7),0,IF(FY2=1,1,IF(AND(FZ4=Premissas!$D$6,FZ5=Premissas!$D$7),1,FY2))) -> 1 | GA2: =IF(AND(GA4=Premissas!$D$6+Premissas!$E$10,GA5=Premissas!$D$7),0,IF(FZ2=1,1,IF(AND(GA4=Premissas!$D$6,GA5=Premissas!$D$7),1,FZ2))) -> 1 | GB2: =IF(AND(GB4=Premissas!$D$6+Premissas!$E$10,GB5=Premissas!$D$7),0,IF(GA2=1,1,IF(AND(GB4=Premissas!$D$6,GB5=Premissas!$D$7),1,GA2))) -> 1 | GC2: =IF(AND(GC4=Premissas!$D$6+Premissas!$E$10,GC5=Premissas!$D$7),0,IF(GB2=1,1,IF(AND(GC4=Premissas!$D$6,GC5=Premissas!$D$7),1,GB2))) -> 1 | GD2: =IF(AND(GD4=Premissas!$D$6+Premissas!$E$10,GD5=Premissas!$D$7),0,IF(GC2=1,1,IF(AND(GD4=Premissas!$D$6,GD5=Premissas!$D$7),1,GC2))) -> 1 | GE2: =IF(AND(GE4=Premissas!$D$6+Premissas!$E$10,GE5=Premissas!$D$7),0,IF(GD2=1,1,IF(AND(GE4=Premissas!$D$6,GE5=Premissas!$D$7),1,GD2))) -> 1 | GF2: =IF(AND(GF4=Premissas!$D$6+Premissas!$E$10,GF5=Premissas!$D$7),0,IF(GE2=1,1,IF(AND(GF4=Premissas!$D$6,GF5=Premissas!$D$7),1,GE2))) -> 1 | GG2: =IF(AND(GG4=Premissas!$D$6+Premissas!$E$10,GG5=Premissas!$D$7),0,IF(GF2=1,1,IF(AND(GG4=Premissas!$D$6,GG5=Premissas!$D$7),1,GF2))) -> 1 | GH2: =IF(AND(GH4=Premissas!$D$6+Premissas!$E$10,GH5=Premissas!$D$7),0,IF(GG2=1,1,IF(AND(GH4=Premissas!$D$6,GH5=Premissas!$D$7),1,GG2))) -> 1 | GI2: =IF(AND(GI4=Premissas!$D$6+Premissas!$E$10,GI5=Premissas!$D$7),0,IF(GH2=1,1,IF(AND(GI4=Premissas!$D$6,GI5=Premissas!$D$7),1,GH2))) -> 1 | GJ2: =IF(AND(GJ4=Premissas!$D$6+Premissas!$E$10,GJ5=Premissas!$D$7),0,IF(GI2=1,1,IF(AND(GJ4=Premissas!$D$6,GJ5=Premissas!$D$7),1,GI2))) -> 1 | GK2: =IF(AND(GK4=Premissas!$D$6+Premissas!$E$10,GK5=Premissas!$D$7),0,IF(GJ2=1,1,IF(AND(GK4=Premissas!$D$6,GK5=Premissas!$D$7),1,GJ2))) -> 1 | GL2: =IF(AND(GL4=Premissas!$D$6+Premissas!$E$10,GL5=Premissas!$D$7),0,IF(GK2=1,1,IF(AND(GL4=Premissas!$D$6,GL5=Premissas!$D$7),1,GK2))) -> 1 | GM2: =IF(AND(GM4=Premissas!$D$6+Premissas!$E$10,GM5=Premissas!$D$7),0,IF(GL2=1,1,IF(AND(GM4=Premissas!$D$6,GM5=Premissas!$D$7),1,GL2))) -> 1 | GN2: =IF(AND(GN4=Premissas!$D$6+Premissas!$E$10,GN5=Premissas!$D$7),0,IF(GM2=1,1,IF(AND(GN4=Premissas!$D$6,GN5=Premissas!$D$7),1,GM2))) -> 1 | GO2: =IF(AND(GO4=Premissas!$D$6+Premissas!$E$10,GO5=Premissas!$D$7),0,IF(GN2=1,1,IF(AND(GO4=Premissas!$D$6,GO5=Premissas!$D$7),1,GN2))) -> 1 | GP2: =IF(AND(GP4=Premissas!$D$6+Premissas!$E$10,GP5=Premissas!$D$7),0,IF(GO2=1,1,IF(AND(GP4=Premissas!$D$6,GP5=Premissas!$D$7),1,GO2))) -> 1 | GQ2: =IF(AND(GQ4=Premissas!$D$6+Premissas!$E$10,GQ5=Premissas!$D$7),0,IF(GP2=1,1,IF(AND(GQ4=Premissas!$D$6,GQ5=Premissas!$D$7),1,GP2))) -> 1 | GR2: =IF(AND(GR4=Premissas!$D$6+Premissas!$E$10,GR5=Premissas!$D$7),0,IF(GQ2=1,1,IF(AND(GR4=Premissas!$D$6,GR5=Premissas!$D$7),1,GQ2))) -> 1 | GS2: =IF(AND(GS4=Premissas!$D$6+Premissas!$E$10,GS5=Premissas!$D$7),0,IF(GR2=1,1,IF(AND(GS4=Premissas!$D$6,GS5=Premissas!$D$7),1,GR2))) -> 1 | GT2: =IF(AND(GT4=Premissas!$D$6+Premissas!$E$10,GT5=Premissas!$D$7),0,IF(GS2=1,1,IF(AND(GT4=Premissas!$D$6,GT5=Premissas!$D$7),1,GS2))) -> 1 | GU2: =IF(AND(GU4=Premissas!$D$6+Premissas!$E$10,GU5=Premissas!$D$7),0,IF(GT2=1,1,IF(AND(GU4=Premissas!$D$6,GU5=Premissas!$D$7),1,GT2))) -> 1 | GV2: =IF(AND(GV4=Premissas!$D$6+Premissas!$E$10,GV5=Premissas!$D$7),0,IF(GU2=1,1,IF(AND(GV4=Premissas!$D$6,GV5=Premissas!$D$7),1,GU2))) -> 1 | GW2: =IF(AND(GW4=Premissas!$D$6+Premissas!$E$10,GW5=Premissas!$D$7),0,IF(GV2=1,1,IF(AND(GW4=Premissas!$D$6,GW5=Premissas!$D$7),1,GV2))) -> 1 | GX2: =IF(AND(GX4=Premissas!$D$6+Premissas!$E$10,GX5=Premissas!$D$7),0,IF(GW2=1,1,IF(AND(GX4=Premissas!$D$6,GX5=Premissas!$D$7),1,GW2))) -> 1 | GY2: =IF(AND(GY4=Premissas!$D$6+Premissas!$E$10,GY5=Premissas!$D$7),0,IF(GX2=1,1,IF(AND(GY4=Premissas!$D$6,GY5=Premissas!$D$7),1,GX2))) -> 1 | GZ2: =IF(AND(GZ4=Premissas!$D$6+Premissas!$E$10,GZ5=Premissas!$D$7),0,IF(GY2=1,1,IF(AND(GZ4=Premissas!$D$6,GZ5=Premissas!$D$7),1,GY2))) -> 1 | HA2: =IF(AND(HA4=Premissas!$D$6+Premissas!$E$10,HA5=Premissas!$D$7),0,IF(GZ2=1,1,IF(AND(HA4=Premissas!$D$6,HA5=Premissas!$D$7),1,GZ2))) -> 1 | HB2: =IF(AND(HB4=Premissas!$D$6+Premissas!$E$10,HB5=Premissas!$D$7),0,IF(HA2=1,1,IF(AND(HB4=Premissas!$D$6,HB5=Premissas!$D$7),1,HA2))) -> 1 | HC2: =IF(AND(HC4=Premissas!$D$6+Premissas!$E$10,HC5=Premissas!$D$7),0,IF(HB2=1,1,IF(AND(HC4=Premissas!$D$6,HC5=Premissas!$D$7),1,HB2))) -> 1 | HD2: =IF(AND(HD4=Premissas!$D$6+Premissas!$E$10,HD5=Premissas!$D$7),0,IF(HC2=1,1,IF(AND(HD4=Premissas!$D$6,HD5=Premissas!$D$7),1,HC2))) -> 1 | HE2: =IF(AND(HE4=Premissas!$D$6+Premissas!$E$10,HE5=Premissas!$D$7),0,IF(HD2=1,1,IF(AND(HE4=Premissas!$D$6,HE5=Premissas!$D$7),1,HD2))) -> 1 | HF2: =IF(AND(HF4=Premissas!$D$6+Premissas!$E$10,HF5=Premissas!$D$7),0,IF(HE2=1,1,IF(AND(HF4=Premissas!$D$6,HF5=Premissas!$D$7),1,HE2))) -> 1 | HG2: =IF(AND(HG4=Premissas!$D$6+Premissas!$E$10,HG5=Premissas!$D$7),0,IF(HF2=1,1,IF(AND(HG4=Premissas!$D$6,HG5=Premissas!$D$7),1,HF2))) -> 1 | HH2: =IF(AND(HH4=Premissas!$D$6+Premissas!$E$10,HH5=Premissas!$D$7),0,IF(HG2=1,1,IF(AND(HH4=Premissas!$D$6,HH5=Premissas!$D$7),1,HG2))) -> 1 | HI2: =IF(AND(HI4=Premissas!$D$6+Premissas!$E$10,HI5=Premissas!$D$7),0,IF(HH2=1,1,IF(AND(HI4=Premissas!$D$6,HI5=Premissas!$D$7),1,HH2))) -> 1 | HJ2: =IF(AND(HJ4=Premissas!$D$6+Premissas!$E$10,HJ5=Premissas!$D$7),0,IF(HI2=1,1,IF(AND(HJ4=Premissas!$D$6,HJ5=Premissas!$D$7),1,HI2))) -> 1 | HK2: =IF(AND(HK4=Premissas!$D$6+Premissas!$E$10,HK5=Premissas!$D$7),0,IF(HJ2=1,1,IF(AND(HK4=Premissas!$D$6,HK5=Premissas!$D$7),1,HJ2))) -> 1 | HL2: =IF(AND(HL4=Premissas!$D$6+Premissas!$E$10,HL5=Premissas!$D$7),0,IF(HK2=1,1,IF(AND(HL4=Premissas!$D$6,HL5=Premissas!$D$7),1,HK2))) -> 1 | HM2: =IF(AND(HM4=Premissas!$D$6+Premissas!$E$10,HM5=Premissas!$D$7),0,IF(HL2=1,1,IF(AND(HM4=Premissas!$D$6,HM5=Premissas!$D$7),1,HL2))) -> 1 | HN2: =IF(AND(HN4=Premissas!$D$6+Premissas!$E$10,HN5=Premissas!$D$7),0,IF(HM2=1,1,IF(AND(HN4=Premissas!$D$6,HN5=Premissas!$D$7),1,HM2))) -> 1 | HO2: =IF(AND(HO4=Premissas!$D$6+Premissas!$E$10,HO5=Premissas!$D$7),0,IF(HN2=1,1,IF(AND(HO4=Premissas!$D$6,HO5=Premissas!$D$7),1,HN2))) -> 1 | HP2: =IF(AND(HP4=Premissas!$D$6+Premissas!$E$10,HP5=Premissas!$D$7),0,IF(HO2=1,1,IF(AND(HP4=Premissas!$D$6,HP5=Premissas!$D$7),1,HO2))) -> 1 | HQ2: =IF(AND(HQ4=Premissas!$D$6+Premissas!$E$10,HQ5=Premissas!$D$7),0,IF(HP2=1,1,IF(AND(HQ4=Premissas!$D$6,HQ5=Premissas!$D$7),1,HP2))) -> 1 | HR2: =IF(AND(HR4=Premissas!$D$6+Premissas!$E$10,HR5=Premissas!$D$7),0,IF(HQ2=1,1,IF(AND(HR4=Premissas!$D$6,HR5=Premissas!$D$7),1,HQ2))) -> 1 | HS2: =IF(AND(HS4=Premissas!$D$6+Premissas!$E$10,HS5=Premissas!$D$7),0,IF(HR2=1,1,IF(AND(HS4=Premissas!$D$6,HS5=Premissas!$D$7),1,HR2))) -> 1 | HT2: =IF(AND(HT4=Premissas!$D$6+Premissas!$E$10,HT5=Premissas!$D$7),0,IF(HS2=1,1,IF(AND(HT4=Premissas!$D$6,HT5=Premissas!$D$7),1,HS2))) -> 1 | HU2: =IF(AND(HU4=Premissas!$D$6+Premissas!$E$10,HU5=Premissas!$D$7),0,IF(HT2=1,1,IF(AND(HU4=Premissas!$D$6,HU5=Premissas!$D$7),1,HT2))) -> 1 | HV2: =IF(AND(HV4=Premissas!$D$6+Premissas!$E$10,HV5=Premissas!$D$7),0,IF(HU2=1,1,IF(AND(HV4=Premissas!$D$6,HV5=Premissas!$D$7),1,HU2))) -> 1 | HW2: =IF(AND(HW4=Premissas!$D$6+Premissas!$E$10,HW5=Premissas!$D$7),0,IF(HV2=1,1,IF(AND(HW4=Premissas!$D$6,HW5=Premissas!$D$7),1,HV2))) -> 1 | HX2: =IF(AND(HX4=Premissas!$D$6+Premissas!$E$10,HX5=Premissas!$D$7),0,IF(HW2=1,1,IF(AND(HX4=Premissas!$D$6,HX5=Premissas!$D$7),1,HW2))) -> 1 | HY2: =IF(AND(HY4=Premissas!$D$6+Premissas!$E$10,HY5=Premissas!$D$7),0,IF(HX2=1,1,IF(AND(HY4=Premissas!$D$6,HY5=Premissas!$D$7),1,HX2))) -> 1 | HZ2: =IF(AND(HZ4=Premissas!$D$6+Premissas!$E$10,HZ5=Premissas!$D$7),0,IF(HY2=1,1,IF(AND(HZ4=Premissas!$D$6,HZ5=Premissas!$D$7),1,HY2))) -> 1 | IA2: =IF(AND(IA4=Premissas!$D$6+Premissas!$E$10,IA5=Premissas!$D$7),0,IF(HZ2=1,1,IF(AND(IA4=Premissas!$D$6,IA5=Premissas!$D$7),1,HZ2))) -> 1 | IB2: =IF(AND(IB4=Premissas!$D$6+Premissas!$E$10,IB5=Premissas!$D$7),0,IF(IA2=1,1,IF(AND(IB4=Premissas!$D$6,IB5=Premissas!$D$7),1,IA2))) -> 1 | IC2: =IF(AND(IC4=Premissas!$D$6+Premissas!$E$10,IC5=Premissas!$D$7),0,IF(IB2=1,1,IF(AND(IC4=Premissas!$D$6,IC5=Premissas!$D$7),1,IB2))) -> 1 | ID2: =IF(AND(ID4=Premissas!$D$6+Premissas!$E$10,ID5=Premissas!$D$7),0,IF(IC2=1,1,IF(AND(ID4=Premissas!$D$6,ID5=Premissas!$D$7),1,IC2))) -> 1 | IE2: =IF(AND(IE4=Premissas!$D$6+Premissas!$E$10,IE5=Premissas!$D$7),0,IF(ID2=1,1,IF(AND(IE4=Premissas!$D$6,IE5=Premissas!$D$7),1,ID2))) -> 1 | IF2: =IF(AND(IF4=Premissas!$D$6+Premissas!$E$10,IF5=Premissas!$D$7),0,IF(IE2=1,1,IF(AND(IF4=Premissas!$D$6,IF5=Premissas!$D$7),1,IE2))) -> 1 | IG2: =IF(AND(IG4=Premissas!$D$6+Premissas!$E$10,IG5=Premissas!$D$7),0,IF(IF2=1,1,IF(AND(IG4=Premissas!$D$6,IG5=Premissas!$D$7),1,IF2))) -> 1 | IH2: =IF(AND(IH4=Premissas!$D$6+Premissas!$E$10,IH5=Premissas!$D$7),0,IF(IG2=1,1,IF(AND(IH4=Premissas!$D$6,IH5=Premissas!$D$7),1,IG2))) -> 1 | II2: =IF(AND(II4=Premissas!$D$6+Premissas!$E$10,II5=Premissas!$D$7),0,IF(IH2=1,1,IF(AND(II4=Premissas!$D$6,II5=Premissas!$D$7),1,IH2))) -> 1 | IJ2: =IF(AND(IJ4=Premissas!$D$6+Premissas!$E$10,IJ5=Premissas!$D$7),0,IF(II2=1,1,IF(AND(IJ4=Premissas!$D$6,IJ5=Premissas!$D$7),1,II2))) -> 1 | IK2: =IF(AND(IK4=Premissas!$D$6+Premissas!$E$10,IK5=Premissas!$D$7),0,IF(IJ2=1,1,IF(AND(IK4=Premissas!$D$6,IK5=Premissas!$D$7),1,IJ2))) -> 1 | IL2: =IF(AND(IL4=Premissas!$D$6+Premissas!$E$10,IL5=Premissas!$D$7),0,IF(IK2=1,1,IF(AND(IL4=Premissas!$D$6,IL5=Premissas!$D$7),1,IK2))) -> 1 | IM2: =IF(AND(IM4=Premissas!$D$6+Premissas!$E$10,IM5=Premissas!$D$7),0,IF(IL2=1,1,IF(AND(IM4=Premissas!$D$6,IM5=Premissas!$D$7),1,IL2))) -> 1 | IN2: =IF(AND(IN4=Premissas!$D$6+Premissas!$E$10,IN5=Premissas!$D$7),0,IF(IM2=1,1,IF(AND(IN4=Premissas!$D$6,IN5=Premissas!$D$7),1,IM2))) -> 1 | IO2: =IF(AND(IO4=Premissas!$D$6+Premissas!$E$10,IO5=Premissas!$D$7),0,IF(IN2=1,1,IF(AND(IO4=Premissas!$D$6,IO5=Premissas!$D$7),1,IN2))) -> 1 | IP2: =IF(AND(IP4=Premissas!$D$6+Premissas!$E$10,IP5=Premissas!$D$7),0,IF(IO2=1,1,IF(AND(IP4=Premissas!$D$6,IP5=Premissas!$D$7),1,IO2))) -> 1 | IQ2: =IF(AND(IQ4=Premissas!$D$6+Premissas!$E$10,IQ5=Premissas!$D$7),0,IF(IP2=1,1,IF(AND(IQ4=Premissas!$D$6,IQ5=Premissas!$D$7),1,IP2))) -> 1 | IR2: =IF(AND(IR4=Premissas!$D$6+Premissas!$E$10,IR5=Premissas!$D$7),0,IF(IQ2=1,1,IF(AND(IR4=Premissas!$D$6,IR5=Premissas!$D$7),1,IQ2))) -> 1 | IS2: =IF(AND(IS4=Premissas!$D$6+Premissas!$E$10,IS5=Premissas!$D$7),0,IF(IR2=1,1,IF(AND(IS4=Premissas!$D$6,IS5=Premissas!$D$7),1,IR2))) -> 1 | IT2: =IF(AND(IT4=Premissas!$D$6+Premissas!$E$10,IT5=Premissas!$D$7),0,IF(IS2=1,1,IF(AND(IT4=Premissas!$D$6,IT5=Premissas!$D$7),1,IS2))) -> 1 | IU2: =IF(AND(IU4=Premissas!$D$6+Premissas!$E$10,IU5=Premissas!$D$7),0,IF(IT2=1,1,IF(AND(IU4=Premissas!$D$6,IU5=Premissas!$D$7),1,IT2))) -> 1 | IV2: =IF(AND(IV4=Premissas!$D$6+Premissas!$E$10,IV5=Premissas!$D$7),0,IF(IU2=1,1,IF(AND(IV4=Premissas!$D$6,IV5=Premissas!$D$7),1,IU2))) -> 1 | IW2: =IF(AND(IW4=Premissas!$D$6+Premissas!$E$10,IW5=Premissas!$D$7),0,IF(IV2=1,1,IF(AND(IW4=Premissas!$D$6,IW5=Premissas!$D$7),1,IV2))) -> 1 | IX2: =IF(AND(IX4=Premissas!$D$6+Premissas!$E$10,IX5=Premissas!$D$7),0,IF(IW2=1,1,IF(AND(IX4=Premissas!$D$6,IX5=Premissas!$D$7),1,IW2))) -> 1 | IY2: =IF(AND(IY4=Premissas!$D$6+Premissas!$E$10,IY5=Premissas!$D$7),0,IF(IX2=1,1,IF(AND(IY4=Premissas!$D$6,IY5=Premissas!$D$7),1,IX2))) -> 1 | IZ2: =IF(AND(IZ4=Premissas!$D$6+Premissas!$E$10,IZ5=Premissas!$D$7),0,IF(IY2=1,1,IF(AND(IZ4=Premissas!$D$6,IZ5=Premissas!$D$7),1,IY2))) -> 1 | JA2: =IF(AND(JA4=Premissas!$D$6+Premissas!$E$10,JA5=Premissas!$D$7),0,IF(IZ2=1,1,IF(AND(JA4=Premissas!$D$6,JA5=Premissas!$D$7),1,IZ2))) -> 1 | JB2: =IF(AND(JB4=Premissas!$D$6+Premissas!$E$10,JB5=Premissas!$D$7),0,IF(JA2=1,1,IF(AND(JB4=Premissas!$D$6,JB5=Premissas!$D$7),1,JA2))) -> 1 | JC2: =IF(AND(JC4=Premissas!$D$6+Premissas!$E$10,JC5=Premissas!$D$7),0,IF(JB2=1,1,IF(AND(JC4=Premissas!$D$6,JC5=Premissas!$D$7),1,JB2))) -> 1 | JD2: =IF(AND(JD4=Premissas!$D$6+Premissas!$E$10,JD5=Premissas!$D$7),0,IF(JC2=1,1,IF(AND(JD4=Premissas!$D$6,JD5=Premissas!$D$7),1,JC2))) -> 1 | JE2: =IF(AND(JE4=Premissas!$D$6+Premissas!$E$10,JE5=Premissas!$D$7),0,IF(JD2=1,1,IF(AND(JE4=Premissas!$D$6,JE5=Premissas!$D$7),1,JD2))) -> 1 | JF2: =IF(AND(JF4=Premissas!$D$6+Premissas!$E$10,JF5=Premissas!$D$7),0,IF(JE2=1,1,IF(AND(JF4=Premissas!$D$6,JF5=Premissas!$D$7),1,JE2))) -> 1 | JG2: =IF(AND(JG4=Premissas!$D$6+Premissas!$E$10,JG5=Premissas!$D$7),0,IF(JF2=1,1,IF(AND(JG4=Premissas!$D$6,JG5=Premissas!$D$7),1,JF2))) -> 1 | JH2: =IF(AND(JH4=Premissas!$D$6+Premissas!$E$10,JH5=Premissas!$D$7),0,IF(JG2=1,1,IF(AND(JH4=Premissas!$D$6,JH5=Premissas!$D$7),1,JG2))) -> 1 | JI2: =IF(AND(JI4=Premissas!$D$6+Premissas!$E$10,JI5=Premissas!$D$7),0,IF(JH2=1,1,IF(AND(JI4=Premissas!$D$6,JI5=Premissas!$D$7),1,JH2))) -> 1 | JJ2: =IF(AND(JJ4=Premissas!$D$6+Premissas!$E$10,JJ5=Premissas!$D$7),0,IF(JI2=1,1,IF(AND(JJ4=Premissas!$D$6,JJ5=Premissas!$D$7),1,JI2))) -> 1 | JK2: =IF(AND(JK4=Premissas!$D$6+Premissas!$E$10,JK5=Premissas!$D$7),0,IF(JJ2=1,1,IF(AND(JK4=Premissas!$D$6,JK5=Premissas!$D$7),1,JJ2))) -> 1 | JL2: =IF(AND(JL4=Premissas!$D$6+Premissas!$E$10,JL5=Premissas!$D$7),0,IF(JK2=1,1,IF(AND(JL4=Premissas!$D$6,JL5=Premissas!$D$7),1,JK2))) -> 1 | JM2: =IF(AND(JM4=Premissas!$D$6+Premissas!$E$10,JM5=Premissas!$D$7),0,IF(JL2=1,1,IF(AND(JM4=Premissas!$D$6,JM5=Premissas!$D$7),1,JL2))) -> 1 | JN2: =IF(AND(JN4=Premissas!$D$6+Premissas!$E$10,JN5=Premissas!$D$7),0,IF(JM2=1,1,IF(AND(JN4=Premissas!$D$6,JN5=Premissas!$D$7),1,JM2))) -> 1 | JO2: =IF(AND(JO4=Premissas!$D$6+Premissas!$E$10,JO5=Premissas!$D$7),0,IF(JN2=1,1,IF(AND(JO4=Premissas!$D$6,JO5=Premissas!$D$7),1,JN2))) -> 1 | JP2: =IF(AND(JP4=Premissas!$D$6+Premissas!$E$10,JP5=Premissas!$D$7),0,IF(JO2=1,1,IF(AND(JP4=Premissas!$D$6,JP5=Premissas!$D$7),1,JO2))) -> 1 | JQ2: =IF(AND(JQ4=Premissas!$D$6+Premissas!$E$10,JQ5=Premissas!$D$7),0,IF(JP2=1,1,IF(AND(JQ4=Premissas!$D$6,JQ5=Premissas!$D$7),1,JP2))) -> 1 | JR2: =IF(AND(JR4=Premissas!$D$6+Premissas!$E$10,JR5=Premissas!$D$7),0,IF(JQ2=1,1,IF(AND(JR4=Premissas!$D$6,JR5=Premissas!$D$7),1,JQ2))) -> 1 | JS2: =IF(AND(JS4=Premissas!$D$6+Premissas!$E$10,JS5=Premissas!$D$7),0,IF(JR2=1,1,IF(AND(JS4=Premissas!$D$6,JS5=Premissas!$D$7),1,JR2))) -> 1 | JT2: =IF(AND(JT4=Premissas!$D$6+Premissas!$E$10,JT5=Premissas!$D$7),0,IF(JS2=1,1,IF(AND(JT4=Premissas!$D$6,JT5=Premissas!$D$7),1,JS2))) -> 1 | JU2: =IF(AND(JU4=Premissas!$D$6+Premissas!$E$10,JU5=Premissas!$D$7),0,IF(JT2=1,1,IF(AND(JU4=Premissas!$D$6,JU5=Premissas!$D$7),1,JT2))) -> 1 | JV2: =IF(AND(JV4=Premissas!$D$6+Premissas!$E$10,JV5=Premissas!$D$7),0,IF(JU2=1,1,IF(AND(JV4=Premissas!$D$6,JV5=Premissas!$D$7),1,JU2))) -> 1 | JW2: =IF(AND(JW4=Premissas!$D$6+Premissas!$E$10,JW5=Premissas!$D$7),0,IF(JV2=1,1,IF(AND(JW4=Premissas!$D$6,JW5=Premissas!$D$7),1,JV2))) -> 1 | JX2: =IF(AND(JX4=Premissas!$D$6+Premissas!$E$10,JX5=Premissas!$D$7),0,IF(JW2=1,1,IF(AND(JX4=Premissas!$D$6,JX5=Premissas!$D$7),1,JW2))) -> 1 | JY2: =IF(AND(JY4=Premissas!$D$6+Premissas!$E$10,JY5=Premissas!$D$7),0,IF(JX2=1,1,IF(AND(JY4=Premissas!$D$6,JY5=Premissas!$D$7),1,JX2))) -> 1 | JZ2: =IF(AND(JZ4=Premissas!$D$6+Premissas!$E$10,JZ5=Premissas!$D$7),0,IF(JY2=1,1,IF(AND(JZ4=Premissas!$D$6,JZ5=Premissas!$D$7),1,JY2))) -> 1 | KA2: =IF(AND(KA4=Premissas!$D$6+Premissas!$E$10,KA5=Premissas!$D$7),0,IF(JZ2=1,1,IF(AND(KA4=Premissas!$D$6,KA5=Premissas!$D$7),1,JZ2))) -> 1 | KB2: =IF(AND(KB4=Premissas!$D$6+Premissas!$E$10,KB5=Premissas!$D$7),0,IF(KA2=1,1,IF(AND(KB4=Premissas!$D$6,KB5=Premissas!$D$7),1,KA2))) -> 1 | KC2: =IF(AND(KC4=Premissas!$D$6+Premissas!$E$10,KC5=Premissas!$D$7),0,IF(KB2=1,1,IF(AND(KC4=Premissas!$D$6,KC5=Premissas!$D$7),1,KB2))) -> 1 | KD2: =IF(AND(KD4=Premissas!$D$6+Premissas!$E$10,KD5=Premissas!$D$7),0,IF(KC2=1,1,IF(AND(KD4=Premissas!$D$6,KD5=Premissas!$D$7),1,KC2))) -> 1 | KE2: =IF(AND(KE4=Premissas!$D$6+Premissas!$E$10,KE5=Premissas!$D$7),0,IF(KD2=1,1,IF(AND(KE4=Premissas!$D$6,KE5=Premissas!$D$7),1,KD2))) -> 1 | KF2: =IF(AND(KF4=Premissas!$D$6+Premissas!$E$10,KF5=Premissas!$D$7),0,IF(KE2=1,1,IF(AND(KF4=Premissas!$D$6,KF5=Premissas!$D$7),1,KE2))) -> 1 | KG2: =IF(AND(KG4=Premissas!$D$6+Premissas!$E$10,KG5=Premissas!$D$7),0,IF(KF2=1,1,IF(AND(KG4=Premissas!$D$6,KG5=Premissas!$D$7),1,KF2))) -> 1 | KH2: =IF(AND(KH4=Premissas!$D$6+Premissas!$E$10,KH5=Premissas!$D$7),0,IF(KG2=1,1,IF(AND(KH4=Premissas!$D$6,KH5=Premissas!$D$7),1,KG2))) -> 1 | KI2: =IF(AND(KI4=Premissas!$D$6+Premissas!$E$10,KI5=Premissas!$D$7),0,IF(KH2=1,1,IF(AND(KI4=Premissas!$D$6,KI5=Premissas!$D$7),1,KH2))) -> 1 | KJ2: =IF(AND(KJ4=Premissas!$D$6+Premissas!$E$10,KJ5=Premissas!$D$7),0,IF(KI2=1,1,IF(AND(KJ4=Premissas!$D$6,KJ5=Premissas!$D$7),1,KI2))) -> 1 | KK2: =IF(AND(KK4=Premissas!$D$6+Premissas!$E$10,KK5=Premissas!$D$7),0,IF(KJ2=1,1,IF(AND(KK4=Premissas!$D$6,KK5=Premissas!$D$7),1,KJ2))) -> 1 | KL2: =IF(AND(KL4=Premissas!$D$6+Premissas!$E$10,KL5=Premissas!$D$7),0,IF(KK2=1,1,IF(AND(KL4=Premissas!$D$6,KL5=Premissas!$D$7),1,KK2))) -> 1 | KM2: =IF(AND(KM4=Premissas!$D$6+Premissas!$E$10,KM5=Premissas!$D$7),0,IF(KL2=1,1,IF(AND(KM4=Premissas!$D$6,KM5=Premissas!$D$7),1,KL2))) -> 1 | KN2: =IF(AND(KN4=Premissas!$D$6+Premissas!$E$10,KN5=Premissas!$D$7),0,IF(KM2=1,1,IF(AND(KN4=Premissas!$D$6,KN5=Premissas!$D$7),1,KM2))) -> 1 | KO2: =IF(AND(KO4=Premissas!$D$6+Premissas!$E$10,KO5=Premissas!$D$7),0,IF(KN2=1,1,IF(AND(KO4=Premissas!$D$6,KO5=Premissas!$D$7),1,KN2))) -> 1 | KP2: =IF(AND(KP4=Premissas!$D$6+Premissas!$E$10,KP5=Premissas!$D$7),0,IF(KO2=1,1,IF(AND(KP4=Premissas!$D$6,KP5=Premissas!$D$7),1,KO2))) -> 1 | KQ2: =IF(AND(KQ4=Premissas!$D$6+Premissas!$E$10,KQ5=Premissas!$D$7),0,IF(KP2=1,1,IF(AND(KQ4=Premissas!$D$6,KQ5=Premissas!$D$7),1,KP2))) -> 1 | KR2: =IF(AND(KR4=Premissas!$D$6+Premissas!$E$10,KR5=Premissas!$D$7),0,IF(KQ2=1,1,IF(AND(KR4=Premissas!$D$6,KR5=Premissas!$D$7),1,KQ2))) -> 1 | KS2: =IF(AND(KS4=Premissas!$D$6+Premissas!$E$10,KS5=Premissas!$D$7),0,IF(KR2=1,1,IF(AND(KS4=Premissas!$D$6,KS5=Premissas!$D$7),1,KR2))) -> 1 | KT2: =IF(AND(KT4=Premissas!$D$6+Premissas!$E$10,KT5=Premissas!$D$7),0,IF(KS2=1,1,IF(AND(KT4=Premissas!$D$6,KT5=Premissas!$D$7),1,KS2))) -> 1 | KU2: =IF(AND(KU4=Premissas!$D$6+Premissas!$E$10,KU5=Premissas!$D$7),0,IF(KT2=1,1,IF(AND(KU4=Premissas!$D$6,KU5=Premissas!$D$7),1,KT2))) -> 1 | KV2: =IF(AND(KV4=Premissas!$D$6+Premissas!$E$10,KV5=Premissas!$D$7),0,IF(KU2=1,1,IF(AND(KV4=Premissas!$D$6,KV5=Premissas!$D$7),1,KU2))) -> 1 | KW2: =IF(AND(KW4=Premissas!$D$6+Premissas!$E$10,KW5=Premissas!$D$7),0,IF(KV2=1,1,IF(AND(KW4=Premissas!$D$6,KW5=Premissas!$D$7),1,KV2))) -> 1 | KX2: =IF(AND(KX4=Premissas!$D$6+Premissas!$E$10,KX5=Premissas!$D$7),0,IF(KW2=1,1,IF(AND(KX4=Premissas!$D$6,KX5=Premissas!$D$7),1,KW2))) -> 1 | KY2: =IF(AND(KY4=Premissas!$D$6+Premissas!$E$10,KY5=Premissas!$D$7),0,IF(KX2=1,1,IF(AND(KY4=Premissas!$D$6,KY5=Premissas!$D$7),1,KX2))) -> 1 | KZ2: =IF(AND(KZ4=Premissas!$D$6+Premissas!$E$10,KZ5=Premissas!$D$7),0,IF(KY2=1,1,IF(AND(KZ4=Premissas!$D$6,KZ5=Premissas!$D$7),1,KY2))) -> 1 | LA2: =IF(AND(LA4=Premissas!$D$6+Premissas!$E$10,LA5=Premissas!$D$7),0,IF(KZ2=1,1,IF(AND(LA4=Premissas!$D$6,LA5=Premissas!$D$7),1,KZ2))) -> 1 | LB2: =IF(AND(LB4=Premissas!$D$6+Premissas!$E$10,LB5=Premissas!$D$7),0,IF(LA2=1,1,IF(AND(LB4=Premissas!$D$6,LB5=Premissas!$D$7),1,LA2))) -> 1 | LC2: =IF(AND(LC4=Premissas!$D$6+Premissas!$E$10,LC5=Premissas!$D$7),0,IF(LB2=1,1,IF(AND(LC4=Premissas!$D$6,LC5=Premissas!$D$7),1,LB2))) -> 1 | LD2: =IF(AND(LD4=Premissas!$D$6+Premissas!$E$10,LD5=Premissas!$D$7),0,IF(LC2=1,1,IF(AND(LD4=Premissas!$D$6,LD5=Premissas!$D$7),1,LC2))) -> 1 | LE2: =IF(AND(LE4=Premissas!$D$6+Premissas!$E$10,LE5=Premissas!$D$7),0,IF(LD2=1,1,IF(AND(LE4=Premissas!$D$6,LE5=Premissas!$D$7),1,LD2))) -> 1 | LF2: =IF(AND(LF4=Premissas!$D$6+Premissas!$E$10,LF5=Premissas!$D$7),0,IF(LE2=1,1,IF(AND(LF4=Premissas!$D$6,LF5=Premissas!$D$7),1,LE2))) -> 1 | LG2: =IF(AND(LG4=Premissas!$D$6+Premissas!$E$10,LG5=Premissas!$D$7),0,IF(LF2=1,1,IF(AND(LG4=Premissas!$D$6,LG5=Premissas!$D$7),1,LF2))) -> 1 | LH2: =IF(AND(LH4=Premissas!$D$6+Premissas!$E$10,LH5=Premissas!$D$7),0,IF(LG2=1,1,IF(AND(LH4=Premissas!$D$6,LH5=Premissas!$D$7),1,LG2))) -> 1 | LI2: =IF(AND(LI4=Premissas!$D$6+Premissas!$E$10,LI5=Premissas!$D$7),0,IF(LH2=1,1,IF(AND(LI4=Premissas!$D$6,LI5=Premissas!$D$7),1,LH2))) -> 1 | LJ2: =IF(AND(LJ4=Premissas!$D$6+Premissas!$E$10,LJ5=Premissas!$D$7),0,IF(LI2=1,1,IF(AND(LJ4=Premissas!$D$6,LJ5=Premissas!$D$7),1,LI2))) -> 1 | LK2: =IF(AND(LK4=Premissas!$D$6+Premissas!$E$10,LK5=Premissas!$D$7),0,IF(LJ2=1,1,IF(AND(LK4=Premissas!$D$6,LK5=Premissas!$D$7),1,LJ2))) -> 1 | LL2: =IF(AND(LL4=Premissas!$D$6+Premissas!$E$10,LL5=Premissas!$D$7),0,IF(LK2=1,1,IF(AND(LL4=Premissas!$D$6,LL5=Premissas!$D$7),1,LK2))) -> 1 | LM2: =IF(AND(LM4=Premissas!$D$6+Premissas!$E$10,LM5=Premissas!$D$7),0,IF(LL2=1,1,IF(AND(LM4=Premissas!$D$6,LM5=Premissas!$D$7),1,LL2))) -> 1 | LN2: =IF(AND(LN4=Premissas!$D$6+Premissas!$E$10,LN5=Premissas!$D$7),0,IF(LM2=1,1,IF(AND(LN4=Premissas!$D$6,LN5=Premissas!$D$7),1,LM2))) -> 1 | LO2: =IF(AND(LO4=Premissas!$D$6+Premissas!$E$10,LO5=Premissas!$D$7),0,IF(LN2=1,1,IF(AND(LO4=Premissas!$D$6,LO5=Premissas!$D$7),1,LN2))) -> 1 | LP2: =IF(AND(LP4=Premissas!$D$6+Premissas!$E$10,LP5=Premissas!$D$7),0,IF(LO2=1,1,IF(AND(LP4=Premissas!$D$6,LP5=Premissas!$D$7),1,LO2))) -> 1 | LQ2: =IF(AND(LQ4=Premissas!$D$6+Premissas!$E$10,LQ5=Premissas!$D$7),0,IF(LP2=1,1,IF(AND(LQ4=Premissas!$D$6,LQ5=Premissas!$D$7),1,LP2))) -> 1 | LR2: =IF(AND(LR4=Premissas!$D$6+Premissas!$E$10,LR5=Premissas!$D$7),0,IF(LQ2=1,1,IF(AND(LR4=Premissas!$D$6,LR5=Premissas!$D$7),1,LQ2))) -> 1 | LS2: =IF(AND(LS4=Premissas!$D$6+Premissas!$E$10,LS5=Premissas!$D$7),0,IF(LR2=1,1,IF(AND(LS4=Premissas!$D$6,LS5=Premissas!$D$7),1,LR2))) -> 1 | LT2: =IF(AND(LT4=Premissas!$D$6+Premissas!$E$10,LT5=Premissas!$D$7),0,IF(LS2=1,1,IF(AND(LT4=Premissas!$D$6,LT5=Premissas!$D$7),1,LS2))) -> 1 | LU2: =IF(AND(LU4=Premissas!$D$6+Premissas!$E$10,LU5=Premissas!$D$7),0,IF(LT2=1,1,IF(AND(LU4=Premissas!$D$6,LU5=Premissas!$D$7),1,LT2))) -> 1 | LV2: =IF(AND(LV4=Premissas!$D$6+Premissas!$E$10,LV5=Premissas!$D$7),0,IF(LU2=1,1,IF(AND(LV4=Premissas!$D$6,LV5=Premissas!$D$7),1,LU2))) -> 1 | LW2: =IF(AND(LW4=Premissas!$D$6+Premissas!$E$10,LW5=Premissas!$D$7),0,IF(LV2=1,1,IF(AND(LW4=Premissas!$D$6,LW5=Premissas!$D$7),1,LV2))) -> 1 | LX2: =IF(AND(LX4=Premissas!$D$6+Premissas!$E$10,LX5=Premissas!$D$7),0,IF(LW2=1,1,IF(AND(LX4=Premissas!$D$6,LX5=Premissas!$D$7),1,LW2))) -> 1 | LY2: =IF(AND(LY4=Premissas!$D$6+Premissas!$E$10,LY5=Premissas!$D$7),0,IF(LX2=1,1,IF(AND(LY4=Premissas!$D$6,LY5=Premissas!$D$7),1,LX2))) -> 1 | LZ2: =IF(AND(LZ4=Premissas!$D$6+Premissas!$E$10,LZ5=Premissas!$D$7),0,IF(LY2=1,1,IF(AND(LZ4=Premissas!$D$6,LZ5=Premissas!$D$7),1,LY2))) -> 1 | MA2: =IF(AND(MA4=Premissas!$D$6+Premissas!$E$10,MA5=Premissas!$D$7),0,IF(LZ2=1,1,IF(AND(MA4=Premissas!$D$6,MA5=Premissas!$D$7),1,LZ2))) -> 1 | MB2: =IF(AND(MB4=Premissas!$D$6+Premissas!$E$10,MB5=Premissas!$D$7),0,IF(MA2=1,1,IF(AND(MB4=Premissas!$D$6,MB5=Premissas!$D$7),1,MA2))) -> 1 | MC2: =IF(AND(MC4=Premissas!$D$6+Premissas!$E$10,MC5=Premissas!$D$7),0,IF(MB2=1,1,IF(AND(MC4=Premissas!$D$6,MC5=Premissas!$D$7),1,MB2))) -> 1 | MD2: =IF(AND(MD4=Premissas!$D$6+Premissas!$E$10,MD5=Premissas!$D$7),0,IF(MC2=1,1,IF(AND(MD4=Premissas!$D$6,MD5=Premissas!$D$7),1,MC2))) -> 1 | ME2: =IF(AND(ME4=Premissas!$D$6+Premissas!$E$10,ME5=Premissas!$D$7),0,IF(MD2=1,1,IF(AND(ME4=Premissas!$D$6,ME5=Premissas!$D$7),1,MD2))) -> 1 | MF2: =IF(AND(MF4=Premissas!$D$6+Premissas!$E$10,MF5=Premissas!$D$7),0,IF(ME2=1,1,IF(AND(MF4=Premissas!$D$6,MF5=Premissas!$D$7),1,ME2))) -> 1 | MG2: =IF(AND(MG4=Premissas!$D$6+Premissas!$E$10,MG5=Premissas!$D$7),0,IF(MF2=1,1,IF(AND(MG4=Premissas!$D$6,MG5=Premissas!$D$7),1,MF2))) -> 1 | MH2: =IF(AND(MH4=Premissas!$D$6+Premissas!$E$10,MH5=Premissas!$D$7),0,IF(MG2=1,1,IF(AND(MH4=Premissas!$D$6,MH5=Premissas!$D$7),1,MG2))) -> 1 | MI2: =IF(AND(MI4=Premissas!$D$6+Premissas!$E$10,MI5=Premissas!$D$7),0,IF(MH2=1,1,IF(AND(MI4=Premissas!$D$6,MI5=Premissas!$D$7),1,MH2))) -> 1 | MJ2: =IF(AND(MJ4=Premissas!$D$6+Premissas!$E$10,MJ5=Premissas!$D$7),0,IF(MI2=1,1,IF(AND(MJ4=Premissas!$D$6,MJ5=Premissas!$D$7),1,MI2))) -> 1 | MK2: =IF(AND(MK4=Premissas!$D$6+Premissas!$E$10,MK5=Premissas!$D$7),0,IF(MJ2=1,1,IF(AND(MK4=Premissas!$D$6,MK5=Premissas!$D$7),1,MJ2))) -> 1 | ML2: =IF(AND(ML4=Premissas!$D$6+Premissas!$E$10,ML5=Premissas!$D$7),0,IF(MK2=1,1,IF(AND(ML4=Premissas!$D$6,ML5=Premissas!$D$7),1,MK2))) -> 1 | MM2: =IF(AND(MM4=Premissas!$D$6+Premissas!$E$10,MM5=Premissas!$D$7),0,IF(ML2=1,1,IF(AND(MM4=Premissas!$D$6,MM5=Premissas!$D$7),1,ML2))) -> 1 | MN2: =IF(AND(MN4=Premissas!$D$6+Premissas!$E$10,MN5=Premissas!$D$7),0,IF(MM2=1,1,IF(AND(MN4=Premissas!$D$6,MN5=Premissas!$D$7),1,MM2))) -> 1 | MO2: =IF(AND(MO4=Premissas!$D$6+Premissas!$E$10,MO5=Premissas!$D$7),0,IF(MN2=1,1,IF(AND(MO4=Premissas!$D$6,MO5=Premissas!$D$7),1,MN2))) -> 1 | MP2: =IF(AND(MP4=Premissas!$D$6+Premissas!$E$10,MP5=Premissas!$D$7),0,IF(MO2=1,1,IF(AND(MP4=Premissas!$D$6,MP5=Premissas!$D$7),1,MO2))) -> 1 | MQ2: =IF(AND(MQ4=Premissas!$D$6+Premissas!$E$10,MQ5=Premissas!$D$7),0,IF(MP2=1,1,IF(AND(MQ4=Premissas!$D$6,MQ5=Premissas!$D$7),1,MP2))) -> 1 | MR2: =IF(AND(MR4=Premissas!$D$6+Premissas!$E$10,MR5=Premissas!$D$7),0,IF(MQ2=1,1,IF(AND(MR4=Premissas!$D$6,MR5=Premissas!$D$7),1,MQ2))) -> 1 | MS2: =IF(AND(MS4=Premissas!$D$6+Premissas!$E$10,MS5=Premissas!$D$7),0,IF(MR2=1,1,IF(AND(MS4=Premissas!$D$6,MS5=Premissas!$D$7),1,MR2))) -> 1 | MT2: =IF(AND(MT4=Premissas!$D$6+Premissas!$E$10,MT5=Premissas!$D$7),0,IF(MS2=1,1,IF(AND(MT4=Premissas!$D$6,MT5=Premissas!$D$7),1,MS2))) -> 1 | MU2: =IF(AND(MU4=Premissas!$D$6+Premissas!$E$10,MU5=Premissas!$D$7),0,IF(MT2=1,1,IF(AND(MU4=Premissas!$D$6,MU5=Premissas!$D$7),1,MT2))) -> 1 | MV2: =IF(AND(MV4=Premissas!$D$6+Premissas!$E$10,MV5=Premissas!$D$7),0,IF(MU2=1,1,IF(AND(MV4=Premissas!$D$6,MV5=Premissas!$D$7),1,MU2))) -> 1 | MW2: =IF(AND(MW4=Premissas!$D$6+Premissas!$E$10,MW5=Premissas!$D$7),0,IF(MV2=1,1,IF(AND(MW4=Premissas!$D$6,MW5=Premissas!$D$7),1,MV2))) -> 1 | MX2: =IF(AND(MX4=Premissas!$D$6+Premissas!$E$10,MX5=Premissas!$D$7),0,IF(MW2=1,1,IF(AND(MX4=Premissas!$D$6,MX5=Premissas!$D$7),1,MW2))) -> 1 | MY2: =IF(AND(MY4=Premissas!$D$6+Premissas!$E$10,MY5=Premissas!$D$7),0,IF(MX2=1,1,IF(AND(MY4=Premissas!$D$6,MY5=Premissas!$D$7),1,MX2))) -> 1 | MZ2: =IF(AND(MZ4=Premissas!$D$6+Premissas!$E$10,MZ5=Premissas!$D$7),0,IF(MY2=1,1,IF(AND(MZ4=Premissas!$D$6,MZ5=Premissas!$D$7),1,MY2))) -> 1 | NA2: =IF(AND(NA4=Premissas!$D$6+Premissas!$E$10,NA5=Premissas!$D$7),0,IF(MZ2=1,1,IF(AND(NA4=Premissas!$D$6,NA5=Premissas!$D$7),1,MZ2))) -> 1 | NB2: =IF(AND(NB4=Premissas!$D$6+Premissas!$E$10,NB5=Premissas!$D$7),0,IF(NA2=1,1,IF(AND(NB4=Premissas!$D$6,NB5=Premissas!$D$7),1,NA2))) -> 1 | NC2: =IF(AND(NC4=Premissas!$D$6+Premissas!$E$10,NC5=Premissas!$D$7),0,IF(NB2=1,1,IF(AND(NC4=Premissas!$D$6,NC5=Premissas!$D$7),1,NB2))) -> 1 | ND2: =IF(AND(ND4=Premissas!$D$6+Premissas!$E$10,ND5=Premissas!$D$7),0,IF(NC2=1,1,IF(AND(ND4=Premissas!$D$6,ND5=Premissas!$D$7),1,NC2))) -> 0 | NE2: =IF(AND(NE4=Premissas!$D$6+Premissas!$E$10,NE5=Premissas!$D$7),0,IF(ND2=1,1,IF(AND(NE4=Premissas!$D$6,NE5=Premissas!$D$7),1,ND2))) -> 0 | NF2: =IF(AND(NF4=Premissas!$D$6+Premissas!$E$10,NF5=Premissas!$D$7),0,IF(NE2=1,1,IF(AND(NF4=Premissas!$D$6,NF5=Premissas!$D$7),1,NE2))) -> 0 | NG2: =IF(AND(NG4=Premissas!$D$6+Premissas!$E$10,NG5=Premissas!$D$7),0,IF(NF2=1,1,IF(AND(NG4=Premissas!$D$6,NG5=Premissas!$D$7),1,NF2))) -> 0 | NH2: =IF(AND(NH4=Premissas!$D$6+Premissas!$E$10,NH5=Premissas!$D$7),0,IF(NG2=1,1,IF(AND(NH4=Premissas!$D$6,NH5=Premissas!$D$7),1,NG2))) -> 0 | NI2: =IF(AND(NI4=Premissas!$D$6+Premissas!$E$10,NI5=Premissas!$D$7),0,IF(NH2=1,1,IF(AND(NI4=Premissas!$D$6,NI5=Premissas!$D$7),1,NH2))) -> 0 | NJ2: =IF(AND(NJ4=Premissas!$D$6+Premissas!$E$10,NJ5=Premissas!$D$7),0,IF(NI2=1,1,IF(AND(NJ4=Premissas!$D$6,NJ5=Premissas!$D$7),1,NI2))) -> 0 | NK2: =IF(AND(NK4=Premissas!$D$6+Premissas!$E$10,NK5=Premissas!$D$7),0,IF(NJ2=1,1,IF(AND(NK4=Premissas!$D$6,NK5=Premissas!$D$7),1,NJ2))) -> 0 | NL2: =IF(AND(NL4=Premissas!$D$6+Premissas!$E$10,NL5=Premissas!$D$7),0,IF(NK2=1,1,IF(AND(NL4=Premissas!$D$6,NL5=Premissas!$D$7),1,NK2))) -> 0 | NM2: =IF(AND(NM4=Premissas!$D$6+Premissas!$E$10,NM5=Premissas!$D$7),0,IF(NL2=1,1,IF(AND(NM4=Premissas!$D$6,NM5=Premissas!$D$7),1,NL2))) -> 0 | NN2: =IF(AND(NN4=Premissas!$D$6+Premissas!$E$10,NN5=Premissas!$D$7),0,IF(NM2=1,1,IF(AND(NN4=Premissas!$D$6,NN5=Premissas!$D$7),1,NM2))) -> 0 | NO2: =IF(AND(NO4=Premissas!$D$6+Premissas!$E$10,NO5=Premissas!$D$7),0,IF(NN2=1,1,IF(AND(NO4=Premissas!$D$6,NO5=Premissas!$D$7),1,NN2))) -> 0 | NP2: =IF(AND(NP4=Premissas!$D$6+Premissas!$E$10,NP5=Premissas!$D$7),0,IF(NO2=1,1,IF(AND(NP4=Premissas!$D$6,NP5=Premissas!$D$7),1,NO2))) -> 0 | NQ2: =IF(AND(NQ4=Premissas!$D$6+Premissas!$E$10,NQ5=Premissas!$D$7),0,IF(NP2=1,1,IF(AND(NQ4=Premissas!$D$6,NQ5=Premissas!$D$7),1,NP2))) -> 0 | NR2: =IF(AND(NR4=Premissas!$D$6+Premissas!$E$10,NR5=Premissas!$D$7),0,IF(NQ2=1,1,IF(AND(NR4=Premissas!$D$6,NR5=Premissas!$D$7),1,NQ2))) -> 0 | NS2: =IF(AND(NS4=Premissas!$D$6+Premissas!$E$10,NS5=Premissas!$D$7),0,IF(NR2=1,1,IF(AND(NS4=Premissas!$D$6,NS5=Premissas!$D$7),1,NR2))) -> 0 | NT2: =IF(AND(NT4=Premissas!$D$6+Premissas!$E$10,NT5=Premissas!$D$7),0,IF(NS2=1,1,IF(AND(NT4=Premissas!$D$6,NT5=Premissas!$D$7),1,NS2))) -> 0 | NU2: =IF(AND(NU4=Premissas!$D$6+Premissas!$E$10,NU5=Premissas!$D$7),0,IF(NT2=1,1,IF(AND(NU4=Premissas!$D$6,NU5=Premissas!$D$7),1,NT2))) -> 0 | NV2: =IF(AND(NV4=Premissas!$D$6+Premissas!$E$10,NV5=Premissas!$D$7),0,IF(NU2=1,1,IF(AND(NV4=Premissas!$D$6,NV5=Premissas!$D$7),1,NU2))) -> 0 | NW2: =IF(AND(NW4=Premissas!$D$6+Premissas!$E$10,NW5=Premissas!$D$7),0,IF(NV2=1,1,IF(AND(NW4=Premissas!$D$6,NW5=Premissas!$D$7),1,NV2))) -> 0 | NX2: =IF(AND(NX4=Premissas!$D$6+Premissas!$E$10,NX5=Premissas!$D$7),0,IF(NW2=1,1,IF(AND(NX4=Premissas!$D$6,NX5=Premissas!$D$7),1,NW2))) -> 0 | NY2: =IF(AND(NY4=Premissas!$D$6+Premissas!$E$10,NY5=Premissas!$D$7),0,IF(NX2=1,1,IF(AND(NY4=Premissas!$D$6,NY5=Premissas!$D$7),1,NX2))) -> 0 | NZ2: =IF(AND(NZ4=Premissas!$D$6+Premissas!$E$10,NZ5=Premissas!$D$7),0,IF(NY2=1,1,IF(AND(NZ4=Premissas!$D$6,NZ5=Premissas!$D$7),1,NY2))) -> 0 | OA2: =IF(AND(OA4=Premissas!$D$6+Premissas!$E$10,OA5=Premissas!$D$7),0,IF(NZ2=1,1,IF(AND(OA4=Premissas!$D$6,OA5=Premissas!$D$7),1,NZ2))) -> 0 | OB2: =IF(AND(OB4=Premissas!$D$6+Premissas!$E$10,OB5=Premissas!$D$7),0,IF(OA2=1,1,IF(AND(OB4=Premissas!$D$6,OB5=Premissas!$D$7),1,OA2))) -> 0 | OC2: =IF(AND(OC4=Premissas!$D$6+Premissas!$E$10,OC5=Premissas!$D$7),0,IF(OB2=1,1,IF(AND(OC4=Premissas!$D$6,OC5=Premissas!$D$7),1,OB2))) -> 0 | OD2: =IF(AND(OD4=Premissas!$D$6+Premissas!$E$10,OD5=Premissas!$D$7),0,IF(OC2=1,1,IF(AND(OD4=Premissas!$D$6,OD5=Premissas!$D$7),1,OC2))) -> 0 | OE2: =IF(AND(OE4=Premissas!$D$6+Premissas!$E$10,OE5=Premissas!$D$7),0,IF(OD2=1,1,IF(AND(OE4=Premissas!$D$6,OE5=Premissas!$D$7),1,OD2))) -> 0 | OF2: =IF(AND(OF4=Premissas!$D$6+Premissas!$E$10,OF5=Premissas!$D$7),0,IF(OE2=1,1,IF(AND(OF4=Premissas!$D$6,OF5=Premissas!$D$7),1,OE2))) -> 0 | OG2: =IF(AND(OG4=Premissas!$D$6+Premissas!$E$10,OG5=Premissas!$D$7),0,IF(OF2=1,1,IF(AND(OG4=Premissas!$D$6,OG5=Premissas!$D$7),1,OF2))) -> 0 | OH2: =IF(AND(OH4=Premissas!$D$6+Premissas!$E$10,OH5=Premissas!$D$7),0,IF(OG2=1,1,IF(AND(OH4=Premissas!$D$6,OH5=Premissas!$D$7),1,OG2))) -> 0 | OI2: =IF(AND(OI4=Premissas!$D$6+Premissas!$E$10,OI5=Premissas!$D$7),0,IF(OH2=1,1,IF(AND(OI4=Premissas!$D$6,OI5=Premissas!$D$7),1,OH2))) -> 0 | OJ2: =IF(AND(OJ4=Premissas!$D$6+Premissas!$E$10,OJ5=Premissas!$D$7),0,IF(OI2=1,1,IF(AND(OJ4=Premissas!$D$6,OJ5=Premissas!$D$7),1,OI2))) -> 0 | OK2: =IF(AND(OK4=Premissas!$D$6+Premissas!$E$10,OK5=Premissas!$D$7),0,IF(OJ2=1,1,IF(AND(OK4=Premissas!$D$6,OK5=Premissas!$D$7),1,OJ2))) -> 0 | OL2: =IF(AND(OL4=Premissas!$D$6+Premissas!$E$10,OL5=Premissas!$D$7),0,IF(OK2=1,1,IF(AND(OL4=Premissas!$D$6,OL5=Premissas!$D$7),1,OK2))) -> 0 | OM2: =IF(AND(OM4=Premissas!$D$6+Premissas!$E$10,OM5=Premissas!$D$7),0,IF(OL2=1,1,IF(AND(OM4=Premissas!$D$6,OM5=Premissas!$D$7),1,OL2))) -> 0 | ON2: =IF(AND(ON4=Premissas!$D$6+Premissas!$E$10,ON5=Premissas!$D$7),0,IF(OM2=1,1,IF(AND(ON4=Premissas!$D$6,ON5=Premissas!$D$7),1,OM2))) -> 0 | OO2: =IF(AND(OO4=Premissas!$D$6+Premissas!$E$10,OO5=Premissas!$D$7),0,IF(ON2=1,1,IF(AND(OO4=Premissas!$D$6,OO5=Premissas!$D$7),1,ON2))) -> 0 | OP2: =IF(AND(OP4=Premissas!$D$6+Premissas!$E$10,OP5=Premissas!$D$7),0,IF(OO2=1,1,IF(AND(OP4=Premissas!$D$6,OP5=Premissas!$D$7),1,OO2))) -> 0 | OQ2: =IF(AND(OQ4=Premissas!$D$6+Premissas!$E$10,OQ5=Premissas!$D$7),0,IF(OP2=1,1,IF(AND(OQ4=Premissas!$D$6,OQ5=Premissas!$D$7),1,OP2))) -> 0 | OR2: =IF(AND(OR4=Premissas!$D$6+Premissas!$E$10,OR5=Premissas!$D$7),0,IF(OQ2=1,1,IF(AND(OR4=Premissas!$D$6,OR5=Premissas!$D$7),1,OQ2))) -> 0 | OS2: =IF(AND(OS4=Premissas!$D$6+Premissas!$E$10,OS5=Premissas!$D$7),0,IF(OR2=1,1,IF(AND(OS4=Premissas!$D$6,OS5=Premissas!$D$7),1,OR2))) -> 0 | OT2: =IF(AND(OT4=Premissas!$D$6+Premissas!$E$10,OT5=Premissas!$D$7),0,IF(OS2=1,1,IF(AND(OT4=Premissas!$D$6,OT5=Premissas!$D$7),1,OS2))) -> 0 | OU2: =IF(AND(OU4=Premissas!$D$6+Premissas!$E$10,OU5=Premissas!$D$7),0,IF(OT2=1,1,IF(AND(OU4=Premissas!$D$6,OU5=Premissas!$D$7),1,OT2))) -> 0 | OV2: =IF(AND(OV4=Premissas!$D$6+Premissas!$E$10,OV5=Premissas!$D$7),0,IF(OU2=1,1,IF(AND(OV4=Premissas!$D$6,OV5=Premissas!$D$7),1,OU2))) -> 0 | OW2: =IF(AND(OW4=Premissas!$D$6+Premissas!$E$10,OW5=Premissas!$D$7),0,IF(OV2=1,1,IF(AND(OW4=Premissas!$D$6,OW5=Premissas!$D$7),1,OV2))) -> 0 | OX2: =IF(AND(OX4=Premissas!$D$6+Premissas!$E$10,OX5=Premissas!$D$7),0,IF(OW2=1,1,IF(AND(OX4=Premissas!$D$6,OX5=Premissas!$D$7),1,OW2))) -> 0 | OY2: =IF(AND(OY4=Premissas!$D$6+Premissas!$E$10,OY5=Premissas!$D$7),0,IF(OX2=1,1,IF(AND(OY4=Premissas!$D$6,OY5=Premissas!$D$7),1,OX2))) -> 0 | OZ2: =IF(AND(OZ4=Premissas!$D$6+Premissas!$E$10,OZ5=Premissas!$D$7),0,IF(OY2=1,1,IF(AND(OZ4=Premissas!$D$6,OZ5=Premissas!$D$7),1,OY2))) -> 0 | PA2: =IF(AND(PA4=Premissas!$D$6+Premissas!$E$10,PA5=Premissas!$D$7),0,IF(OZ2=1,1,IF(AND(PA4=Premissas!$D$6,PA5=Premissas!$D$7),1,OZ2))) -> 0 | PB2: =IF(AND(PB4=Premissas!$D$6+Premissas!$E$10,PB5=Premissas!$D$7),0,IF(PA2=1,1,IF(AND(PB4=Premissas!$D$6,PB5=Premissas!$D$7),1,PA2))) -> 0 | PC2: =IF(AND(PC4=Premissas!$D$6+Premissas!$E$10,PC5=Premissas!$D$7),0,IF(PB2=1,1,IF(AND(PC4=Premissas!$D$6,PC5=Premissas!$D$7),1,PB2))) -> 0 | PD2: =IF(AND(PD4=Premissas!$D$6+Premissas!$E$10,PD5=Premissas!$D$7),0,IF(PC2=1,1,IF(AND(PD4=Premissas!$D$6,PD5=Premissas!$D$7),1,PC2))) -> 0 | PE2: =IF(AND(PE4=Premissas!$D$6+Premissas!$E$10,PE5=Premissas!$D$7),0,IF(PD2=1,1,IF(AND(PE4=Premissas!$D$6,PE5=Premissas!$D$7),1,PD2))) -> 0 | PF2: =IF(AND(PF4=Premissas!$D$6+Premissas!$E$10,PF5=Premissas!$D$7),0,IF(PE2=1,1,IF(AND(PF4=Premissas!$D$6,PF5=Premissas!$D$7),1,PE2))) -> 0 | PG2: =IF(AND(PG4=Premissas!$D$6+Premissas!$E$10,PG5=Premissas!$D$7),0,IF(PF2=1,1,IF(AND(PG4=Premissas!$D$6,PG5=Premissas!$D$7),1,PF2))) -> 0 | PH2: =IF(AND(PH4=Premissas!$D$6+Premissas!$E$10,PH5=Premissas!$D$7),0,IF(PG2=1,1,IF(AND(PH4=Premissas!$D$6,PH5=Premissas!$D$7),1,PG2))) -> 0 | PI2: =IF(AND(PI4=Premissas!$D$6+Premissas!$E$10,PI5=Premissas!$D$7),0,IF(PH2=1,1,IF(AND(PI4=Premissas!$D$6,PI5=Premissas!$D$7),1,PH2))) -> 0 | PJ2: =IF(AND(PJ4=Premissas!$D$6+Premissas!$E$10,PJ5=Premissas!$D$7),0,IF(PI2=1,1,IF(AND(PJ4=Premissas!$D$6,PJ5=Premissas!$D$7),1,PI2))) -> 0 | PK2: =IF(AND(PK4=Premissas!$D$6+Premissas!$E$10,PK5=Premissas!$D$7),0,IF(PJ2=1,1,IF(AND(PK4=Premissas!$D$6,PK5=Premissas!$D$7),1,PJ2))) -> 0
F3: Ano Contratual | G3: - | H3: =ROUNDDOWN(IF(ROUNDDOWN((DATE(H4,H5,1)-(DATE(Premissas!$D$6,Premissas!$D$7,1)))/365,2)<0,ROUNDDOWN((DATE(H4,H5,1)-(DATE(Premissas!$D$6,Premissas!$D$7,1)))/365,2)-1,ROUNDDOWN((DATE(H4,H5,1)-(DATE(Premissas!$D$6,Premissas!$D$7,1)))/365,2)),0) -> 0 | I3: =ROUNDDOWN(IF(ROUNDDOWN((DATE(I4,I5,1)-(DATE(Premissas!$D$6,Premissas!$D$7,1)))/365,2)<0,ROUNDDOWN((DATE(I4,I5,1)-(DATE(Premissas!$D$6,Premissas!$D$7,1)))/365,2)-1,ROUNDDOWN((DATE(I4,I5,1)-(DATE(Premissas!$D$6,Premissas!$D$7,1)))/365,2)),0) -> 0 | J3: =ROUNDDOWN(IF(ROUNDDOWN((DATE(J4,J5,1)-(DATE(Premissas!$D$6,Premissas!$D$7,1)))/365,2)<0,ROUNDDOWN((DATE(J4,J5,1)-(DATE(Premissas!$D$6,Premissas!$D$7,1)))/365,2)-1,ROUNDDOWN((DATE(J4,J5,1)-(DATE(Premissas!$D$6,Premissas!$D$7,1)))/365,2)),0) -> 0 | K3: =ROUNDDOWN(IF(ROUNDDOWN((DATE(K4,K5,1)-(DATE(Premissas!$D$6,Premissas!$D$7,1)))/365,2)<0,ROUNDDOWN((DATE(K4,K5,1)-(DATE(Premissas!$D$6,Premissas!$D$7,1)))/365,2)-1,ROUNDDOWN((DATE(K4,K5,1)-(DATE(Premissas!$D$6,Premissas!$D$7,1)))/365,2)),0) -> 0 | L3: =ROUNDDOWN(IF(ROUNDDOWN((DATE(L4,L5,1)-(DATE(Premissas!$D$6,Premissas!$D$7,1)))/365,2)<0,ROUNDDOWN((DATE(L4,L5,1)-(DATE(Premissas!$D$6,Premissas!$D$7,1)))/365,2)-1,ROUNDDOWN((DATE(L4,L5,1)-(DATE(Premissas!$D$6,Premissas!$D$7,1)))/365,2)),0) -> 0 | M3: =ROUNDDOWN(IF(ROUNDDOWN((DATE(M4,M5,1)-(DATE(Premissas!$D$6,Premissas!$D$7,1)))/365,2)<0,ROUNDDOWN((DATE(M4,M5,1)-(DATE(Premissas!$D$6,Premissas!$D$7,1)))/365,2)-1,ROUNDDOWN((DATE(M4,M5,1)-(DATE(Premissas!$D$6,Premissas!$D$7,1)))/365,2)),0) -> 0 | N3: =ROUNDDOWN(IF(ROUNDDOWN((DATE(N4,N5,1)-(DATE(Premissas!$D$6,Premissas!$D$7,1)))/365,2)<0,ROUNDDOWN((DATE(N4,N5,1)-(DATE(Premissas!$D$6,Premissas!$D$7,1)))/365,2)-1,ROUNDDOWN((DATE(N4,N5,1)-(DATE(Premissas!$D$6,Premissas!$D$7,1)))/365,2)),0) -> 0 | O3: =ROUNDDOWN(IF(ROUNDDOWN((DATE(O4,O5,1)-(DATE(Premissas!$D$6,Premissas!$D$7,1)))/365,2)<0,ROUNDDOWN((DATE(O4,O5,1)-(DATE(Premissas!$D$6,Premissas!$D$7,1)))/365,2)-1,ROUNDDOWN((DATE(O4,O5,1)-(DATE(Premissas!$D$6,Premissas!$D$7,1)))/365,2)),0) -> 0 | P3: =ROUNDDOWN(IF(ROUNDDOWN((DATE(P4,P5,1)-(DATE(Premissas!$D$6,Premissas!$D$7,1)))/365,2)<0,ROUNDDOWN((DATE(P4,P5,1)-(DATE(Premissas!$D$6,Premissas!$D$7,1)))/365,2)-1,ROUNDDOWN((DATE(P4,P5,1)-(DATE(Premissas!$D$6,Premissas!$D$7,1)))/365,2)),0) -> 0 | Q3: =ROUNDDOWN(IF(ROUNDDOWN((DATE(Q4,Q5,1)-(DATE(Premissas!$D$6,Premissas!$D$7,1)))/365,2)<0,ROUNDDOWN((DATE(Q4,Q5,1)-(DATE(Premissas!$D$6,Premissas!$D$7,1)))/365,2)-1,ROUNDDOWN((DATE(Q4,Q5,1)-(DATE(Premissas!$D$6,Premissas!$D$7,1)))/365,2)),0) -> 0 | R3: =ROUNDDOWN(IF(ROUNDDOWN((DATE(R4,R5,1)-(DATE(Premissas!$D$6,Premissas!$D$7,1)))/365,2)<0,ROUNDDOWN((DATE(R4,R5,1)-(DATE(Premissas!$D$6,Premissas!$D$7,1)))/365,2)-1,ROUNDDOWN((DATE(R4,R5,1)-(DATE(Premissas!$D$6,Premissas!$D$7,1)))/365,2)),0) -> 0 | S3: =ROUNDDOWN(IF(ROUNDDOWN((DATE(S4,S5,1)-(DATE(Premissas!$D$6,Premissas!$D$7,1)))/365,2)<0,ROUNDDOWN((DATE(S4,S5,1)-(DATE(Premissas!$D$6,Premissas!$D$7,1)))/365,2)-1,ROUNDDOWN((DATE(S4,S5,1)-(DATE(Premissas!$D$6,Premissas!$D$7,1)))/365,2)),0) -> 0 | T3: =ROUNDDOWN(IF(ROUNDDOWN((DATE(T4,T5,1)-(DATE(Premissas!$D$6,Premissas!$D$7,1)))/365,2)<0,ROUNDDOWN((DATE(T4,T5,1)-(DATE(Premissas!$D$6,Premissas!$D$7,1)))/365,2)-1,ROUNDDOWN((DATE(T4,T5,1)-(DATE(Premissas!$D$6,Premissas!$D$7,1)))/365,2)),0) -> 1 | U3: =ROUNDDOWN(IF(ROUNDDOWN((DATE(U4,U5,1)-(DATE(Premissas!$D$6,Premissas!$D$7,1)))/365,2)<0,ROUNDDOWN((DATE(U4,U5,1)-(DATE(Premissas!$D$6,Premissas!$D$7,1)))/365,2)-1,ROUNDDOWN((DATE(U4,U5,1)-(DATE(Premissas!$D$6,Premissas!$D$7,1)))/365,2)),0) -> 1 | V3: =ROUNDDOWN(IF(ROUNDDOWN((DATE(V4,V5,1)-(DATE(Premissas!$D$6,Premissas!$D$7,1)))/365,2)<0,ROUNDDOWN((DATE(V4,V5,1)-(DATE(Premissas!$D$6,Premissas!$D$7,1)))/365,2)-1,ROUNDDOWN((DATE(V4,V5,1)-(DATE(Premissas!$D$6,Premissas!$D$7,1)))/365,2)),0) -> 1 | W3: =ROUNDDOWN(IF(ROUNDDOWN((DATE(W4,W5,1)-(DATE(Premissas!$D$6,Premissas!$D$7,1)))/365,2)<0,ROUNDDOWN((DATE(W4,W5,1)-(DATE(Premissas!$D$6,Premissas!$D$7,1)))/365,2)-1,ROUNDDOWN((DATE(W4,W5,1)-(DATE(Premissas!$D$6,Premissas!$D$7,1)))/365,2)),0) -> 1 | X3: =ROUNDDOWN(IF(ROUNDDOWN((DATE(X4,X5,1)-(DATE(Premissas!$D$6,Premissas!$D$7,1)))/365,2)<0,ROUNDDOWN((DATE(X4,X5,1)-(DATE(Premissas!$D$6,Premissas!$D$7,1)))/365,2)-1,ROUNDDOWN((DATE(X4,X5,1)-(DATE(Premissas!$D$6,Premissas!$D$7,1)))/365,2)),0) -> 1 | Y3: =ROUNDDOWN(IF(ROUNDDOWN((DATE(Y4,Y5,1)-(DATE(Premissas!$D$6,Premissas!$D$7,1)))/365,2)<0,ROUNDDOWN((DATE(Y4,Y5,1)-(DATE(Premissas!$D$6,Premissas!$D$7,1)))/365,2)-1,ROUNDDOWN((DATE(Y4,Y5,1)-(DATE(Premissas!$D$6,Premissas!$D$7,1)))/365,2)),0) -> 1 | Z3: =ROUNDDOWN(IF(ROUNDDOWN((DATE(Z4,Z5,1)-(DATE(Premissas!$D$6,Premissas!$D$7,1)))/365,2)<0,ROUNDDOWN((DATE(Z4,Z5,1)-(DATE(Premissas!$D$6,Premissas!$D$7,1)))/365,2)-1,ROUNDDOWN((DATE(Z4,Z5,1)-(DATE(Premissas!$D$6,Premissas!$D$7,1)))/365,2)),0) -> 1 | AA3: =ROUNDDOWN(IF(ROUNDDOWN((DATE(AA4,AA5,1)-(DATE(Premissas!$D$6,Premissas!$D$7,1)))/365,2)<0,ROUNDDOWN((DATE(AA4,AA5,1)-(DATE(Premissas!$D$6,Premissas!$D$7,1)))/365,2)-1,ROUNDDOWN((DATE(AA4,AA5,1)-(DATE(Premissas!$D$6,Premissas!$D$7,1)))/365,2)),0) -> 1 | AB3: =ROUNDDOWN(IF(ROUNDDOWN((DATE(AB4,AB5,1)-(DATE(Premissas!$D$6,Premissas!$D$7,1)))/365,2)<0,ROUNDDOWN((DATE(AB4,AB5,1)-(DATE(Premissas!$D$6,Premissas!$D$7,1)))/365,2)-1,ROUNDDOWN((DATE(AB4,AB5,1)-(DATE(Premissas!$D$6,Premissas!$D$7,1)))/365,2)),0) -> 1 | AC3: =ROUNDDOWN(IF(ROUNDDOWN((DATE(AC4,AC5,1)-(DATE(Premissas!$D$6,Premissas!$D$7,1)))/365,2)<0,ROUNDDOWN((DATE(AC4,AC5,1)-(DATE(Premissas!$D$6,Premissas!$D$7,1)))/365,2)-1,ROUNDDOWN((DATE(AC4,AC5,1)-(DATE(Premissas!$D$6,Premissas!$D$7,1)))/365,2)),0) -> 1 | AD3: =ROUNDDOWN(IF(ROUNDDOWN((DATE(AD4,AD5,1)-(DATE(Premissas!$D$6,Premissas!$D$7,1)))/365,2)<0,ROUNDDOWN((DATE(AD4,AD5,1)-(DATE(Premissas!$D$6,Premissas!$D$7,1)))/365,2)-1,ROUNDDOWN((DATE(AD4,AD5,1)-(DATE(Premissas!$D$6,Premissas!$D$7,1)))/365,2)),0) -> 1 | AE3: =ROUNDDOWN(IF(ROUNDDOWN((DATE(AE4,AE5,1)-(DATE(Premissas!$D$6,Premissas!$D$7,1)))/365,2)<0,ROUNDDOWN((DATE(AE4,AE5,1)-(DATE(Premissas!$D$6,Premissas!$D$7,1)))/365,2)-1,ROUNDDOWN((DATE(AE4,AE5,1)-(DATE(Premissas!$D$6,Premissas!$D$7,1)))/365,2)),0) -> 1 | AF3: =ROUNDDOWN(IF(ROUNDDOWN((DATE(AF4,AF5,1)-(DATE(Premissas!$D$6,Premissas!$D$7,1)))/365,2)<0,ROUNDDOWN((DATE(AF4,AF5,1)-(DATE(Premissas!$D$6,Premissas!$D$7,1)))/365,2)-1,ROUNDDOWN((DATE(AF4,AF5,1)-(DATE(Premissas!$D$6,Premissas!$D$7,1)))/365,2)),0) -> 2 | AG3: =ROUNDDOWN(IF(ROUNDDOWN((DATE(AG4,AG5,1)-(DATE(Premissas!$D$6,Premissas!$D$7,1)))/365,2)<0,ROUNDDOWN((DATE(AG4,AG5,1)-(DATE(Premissas!$D$6,Premissas!$D$7,1)))/365,2)-1,ROUNDDOWN((DATE(AG4,AG5,1)-(DATE(Premissas!$D$6,Premissas!$D$7,1)))/365,2)),0) -> 2 | AH3: =ROUNDDOWN(IF(ROUNDDOWN((DATE(AH4,AH5,1)-(DATE(Premissas!$D$6,Premissas!$D$7,1)))/365,2)<0,ROUNDDOWN((DATE(AH4,AH5,1)-(DATE(Premissas!$D$6,Premissas!$D$7,1)))/365,2)-1,ROUNDDOWN((DATE(AH4,AH5,1)-(DATE(Premissas!$D$6,Premissas!$D$7,1)))/365,2)),0) -> 2 | AI3: =ROUNDDOWN(IF(ROUNDDOWN((DATE(AI4,AI5,1)-(DATE(Premissas!$D$6,Premissas!$D$7,1)))/365,2)<0,ROUNDDOWN((DATE(AI4,AI5,1)-(DATE(Premissas!$D$6,Premissas!$D$7,1)))/365,2)-1,ROUNDDOWN((DATE(AI4,AI5,1)-(DATE(Premissas!$D$6,Premissas!$D$7,1)))/365,2)),0) -> 2 | AJ3: =ROUNDDOWN(IF(ROUNDDOWN((DATE(AJ4,AJ5,1)-(DATE(Premissas!$D$6,Premissas!$D$7,1)))/365,2)<0,ROUNDDOWN((DATE(AJ4,AJ5,1)-(DATE(Premissas!$D$6,Premissas!$D$7,1)))/365,2)-1,ROUNDDOWN((DATE(AJ4,AJ5,1)-(DATE(Premissas!$D$6,Premissas!$D$7,1)))/365,2)),0) -> 2 | AK3: =ROUNDDOWN(IF(ROUNDDOWN((DATE(AK4,AK5,1)-(DATE(Premissas!$D$6,Premissas!$D$7,1)))/365,2)<0,ROUNDDOWN((DATE(AK4,AK5,1)-(DATE(Premissas!$D$6,Premissas!$D$7,1)))/365,2)-1,ROUNDDOWN((DATE(AK4,AK5,1)-(DATE(Premissas!$D$6,Premissas!$D$7,1)))/365,2)),0) -> 2 | AL3: =ROUNDDOWN(IF(ROUNDDOWN((DATE(AL4,AL5,1)-(DATE(Premissas!$D$6,Premissas!$D$7,1)))/365,2)<0,ROUNDDOWN((DATE(AL4,AL5,1)-(DATE(Premissas!$D$6,Premissas!$D$7,1)))/365,2)-1,ROUNDDOWN((DATE(AL4,AL5,1)-(DATE(Premissas!$D$6,Premissas!$D$7,1)))/365,2)),0) -> 2 | AM3: =ROUNDDOWN(IF(ROUNDDOWN((DATE(AM4,AM5,1)-(DATE(Premissas!$D$6,Premissas!$D$7,1)))/365,2)<0,ROUNDDOWN((DATE(AM4,AM5,1)-(DATE(Premissas!$D$6,Premissas!$D$7,1)))/365,2)-1,ROUNDDOWN((DATE(AM4,AM5,1)-(DATE(Premissas!$D$6,Premissas!$D$7,1)))/365,2)),0) -> 2 | AN3: =ROUNDDOWN(IF(ROUNDDOWN((DATE(AN4,AN5,1)-(DATE(Premissas!$D$6,Premissas!$D$7,1)))/365,2)<0,ROUNDDOWN((DATE(AN4,AN5,1)-(DATE(Premissas!$D$6,Premissas!$D$7,1)))/365,2)-1,ROUNDDOWN((DATE(AN4,AN5,1)-(DATE(Premissas!$D$6,Premissas!$D$7,1)))/365,2)),0) -> 2 | AO3: =ROUNDDOWN(IF(ROUNDDOWN((DATE(AO4,AO5,1)-(DATE(Premissas!$D$6,Premissas!$D$7,1)))/365,2)<0,ROUNDDOWN((DATE(AO4,AO5,1)-(DATE(Premissas!$D$6,Premissas!$D$7,1)))/365,2)-1,ROUNDDOWN((DATE(AO4,AO5,1)-(DATE(Premissas!$D$6,Premissas!$D$7,1)))/365,2)),0) -> 2 | AP3: =ROUNDDOWN(IF(ROUNDDOWN((DATE(AP4,AP5,1)-(DATE(Premissas!$D$6,Premissas!$D$7,1)))/365,2)<0,ROUNDDOWN((DATE(AP4,AP5,1)-(DATE(Premissas!$D$6,Premissas!$D$7,1)))/365,2)-1,ROUNDDOWN((DATE(AP4,AP5,1)-(DATE(Premissas!$D$6,Premissas!$D$7,1)))/365,2)),0) -> 2 | AQ3: =ROUNDDOWN(IF(ROUNDDOWN((DATE(AQ4,AQ5,1)-(DATE(Premissas!$D$6,Premissas!$D$7,1)))/365,2)<0,ROUNDDOWN((DATE(AQ4,AQ5,1)-(DATE(Premissas!$D$6,Premissas!$D$7,1)))/365,2)-1,ROUNDDOWN((DATE(AQ4,AQ5,1)-(DATE(Premissas!$D$6,Premissas!$D$7,1)))/365,2)),0) -> 2 | AR3: =ROUNDDOWN(IF(ROUNDDOWN((DATE(AR4,AR5,1)-(DATE(Premissas!$D$6,Premissas!$D$7,1)))/365,2)<0,ROUNDDOWN((DATE(AR4,AR5,1)-(DATE(Premissas!$D$6,Premissas!$D$7,1)))/365,2)-1,ROUNDDOWN((DATE(AR4,AR5,1)-(DATE(Premissas!$D$6,Premissas!$D$7,1)))/365,2)),0) -> 3 | AS3: =ROUNDDOWN(IF(ROUNDDOWN((DATE(AS4,AS5,1)-(DATE(Premissas!$D$6,Premissas!$D$7,1)))/365,2)<0,ROUNDDOWN((DATE(AS4,AS5,1)-(DATE(Premissas!$D$6,Premissas!$D$7,1)))/365,2)-1,ROUNDDOWN((DATE(AS4,AS5,1)-(DATE(Premissas!$D$6,Premissas!$D$7,1)))/365,2)),0) -> 3 | AT3: =ROUNDDOWN(IF(ROUNDDOWN((DATE(AT4,AT5,1)-(DATE(Premissas!$D$6,Premissas!$D$7,1)))/365,2)<0,ROUNDDOWN((DATE(AT4,AT5,1)-(DATE(Premissas!$D$6,Premissas!$D$7,1)))/365,2)-1,ROUNDDOWN((DATE(AT4,AT5,1)-(DATE(Premissas!$D$6,Premissas!$D$7,1)))/365,2)),0) -> 3 | AU3: =ROUNDDOWN(IF(ROUNDDOWN((DATE(AU4,AU5,1)-(DATE(Premissas!$D$6,Premissas!$D$7,1)))/365,2)<0,ROUNDDOWN((DATE(AU4,AU5,1)-(DATE(Premissas!$D$6,Premissas!$D$7,1)))/365,2)-1,ROUNDDOWN((DATE(AU4,AU5,1)-(DATE(Premissas!$D$6,Premissas!$D$7,1)))/365,2)),0) -> 3 | AV3: =ROUNDDOWN(IF(ROUNDDOWN((DATE(AV4,AV5,1)-(DATE(Premissas!$D$6,Premissas!$D$7,1)))/365,2)<0,ROUNDDOWN((DATE(AV4,AV5,1)-(DATE(Premissas!$D$6,Premissas!$D$7,1)))/365,2)-1,ROUNDDOWN((DATE(AV4,AV5,1)-(DATE(Premissas!$D$6,Premissas!$D$7,1)))/365,2)),0) -> 3 | AW3: =ROUNDDOWN(IF(ROUNDDOWN((DATE(AW4,AW5,1)-(DATE(Premissas!$D$6,Premissas!$D$7,1)))/365,2)<0,ROUNDDOWN((DATE(AW4,AW5,1)-(DATE(Premissas!$D$6,Premissas!$D$7,1)))/365,2)-1,ROUNDDOWN((DATE(AW4,AW5,1)-(DATE(Premissas!$D$6,Premissas!$D$7,1)))/365,2)),0) -> 3 | AX3: =ROUNDDOWN(IF(ROUNDDOWN((DATE(AX4,AX5,1)-(DATE(Premissas!$D$6,Premissas!$D$7,1)))/365,2)<0,ROUNDDOWN((DATE(AX4,AX5,1)-(DATE(Premissas!$D$6,Premissas!$D$7,1)))/365,2)-1,ROUNDDOWN((DATE(AX4,AX5,1)-(DATE(Premissas!$D$6,Premissas!$D$7,1)))/365,2)),0) -> 3 | AY3: =ROUNDDOWN(IF(ROUNDDOWN((DATE(AY4,AY5,1)-(DATE(Premissas!$D$6,Premissas!$D$7,1)))/365,2)<0,ROUNDDOWN((DATE(AY4,AY5,1)-(DATE(Premissas!$D$6,Premissas!$D$7,1)))/365,2)-1,ROUNDDOWN((DATE(AY4,AY5,1)-(DATE(Premissas!$D$6,Premissas!$D$7,1)))/365,2)),0) -> 3 | AZ3: =ROUNDDOWN(IF(ROUNDDOWN((DATE(AZ4,AZ5,1)-(DATE(Premissas!$D$6,Premissas!$D$7,1)))/365,2)<0,ROUNDDOWN((DATE(AZ4,AZ5,1)-(DATE(Premissas!$D$6,Premissas!$D$7,1)))/365,2)-1,ROUNDDOWN((DATE(AZ4,AZ5,1)-(DATE(Premissas!$D$6,Premissas!$D$7,1)))/365,2)),0) -> 3 | BA3: =ROUNDDOWN(IF(ROUNDDOWN((DATE(BA4,BA5,1)-(DATE(Premissas!$D$6,Premissas!$D$7,1)))/365,2)<0,ROUNDDOWN((DATE(BA4,BA5,1)-(DATE(Premissas!$D$6,Premissas!$D$7,1)))/365,2)-1,ROUNDDOWN((DATE(BA4,BA5,1)-(DATE(Premissas!$D$6,Premissas!$D$7,1)))/365,2)),0) -> 3 | BB3: =ROUNDDOWN(IF(ROUNDDOWN((DATE(BB4,BB5,1)-(DATE(Premissas!$D$6,Premissas!$D$7,1)))/365,2)<0,ROUNDDOWN((DATE(BB4,BB5,1)-(DATE(Premissas!$D$6,Premissas!$D$7,1)))/365,2)-1,ROUNDDOWN((DATE(BB4,BB5,1)-(DATE(Premissas!$D$6,Premissas!$D$7,1)))/365,2)),0) -> 3 | BC3: =ROUNDDOWN(IF(ROUNDDOWN((DATE(BC4,BC5,1)-(DATE(Premissas!$D$6,Premissas!$D$7,1)))/365,2)<0,ROUNDDOWN((DATE(BC4,BC5,1)-(DATE(Premissas!$D$6,Premissas!$D$7,1)))/365,2)-1,ROUNDDOWN((DATE(BC4,BC5,1)-(DATE(Premissas!$D$6,Premissas!$D$7,1)))/365,2)),0) -> 3 | BD3: =ROUNDDOWN(IF(ROUNDDOWN((DATE(BD4,BD5,1)-(DATE(Premissas!$D$6,Premissas!$D$7,1)))/365,2)<0,ROUNDDOWN((DATE(BD4,BD5,1)-(DATE(Premissas!$D$6,Premissas!$D$7,1)))/365,2)-1,ROUNDDOWN((DATE(BD4,BD5,1)-(DATE(Premissas!$D$6,Premissas!$D$7,1)))/365,2)),0) -> 4 | BE3: =ROUNDDOWN(IF(ROUNDDOWN((DATE(BE4,BE5,1)-(DATE(Premissas!$D$6,Premissas!$D$7,1)))/365,2)<0,ROUNDDOWN((DATE(BE4,BE5,1)-(DATE(Premissas!$D$6,Premissas!$D$7,1)))/365,2)-1,ROUNDDOWN((DATE(BE4,BE5,1)-(DATE(Premissas!$D$6,Premissas!$D$7,1)))/365,2)),0) -> 4 | BF3: =ROUNDDOWN(IF(ROUNDDOWN((DATE(BF4,BF5,1)-(DATE(Premissas!$D$6,Premissas!$D$7,1)))/365,2)<0,ROUNDDOWN((DATE(BF4,BF5,1)-(DATE(Premissas!$D$6,Premissas!$D$7,1)))/365,2)-1,ROUNDDOWN((DATE(BF4,BF5,1)-(DATE(Premissas!$D$6,Premissas!$D$7,1)))/365,2)),0) -> 4 | BG3: =ROUNDDOWN(IF(ROUNDDOWN((DATE(BG4,BG5,1)-(DATE(Premissas!$D$6,Premissas!$D$7,1)))/365,2)<0,ROUNDDOWN((DATE(BG4,BG5,1)-(DATE(Premissas!$D$6,Premissas!$D$7,1)))/365,2)-1,ROUNDDOWN((DATE(BG4,BG5,1)-(DATE(Premissas!$D$6,Premissas!$D$7,1)))/365,2)),0) -> 4 | BH3: =ROUNDDOWN(IF(ROUNDDOWN((DATE(BH4,BH5,1)-(DATE(Premissas!$D$6,Premissas!$D$7,1)))/365,2)<0,ROUNDDOWN((DATE(BH4,BH5,1)-(DATE(Premissas!$D$6,Premissas!$D$7,1)))/365,2)-1,ROUNDDOWN((DATE(BH4,BH5,1)-(DATE(Premissas!$D$6,Premissas!$D$7,1)))/365,2)),0) -> 4 | BI3: =ROUNDDOWN(IF(ROUNDDOWN((DATE(BI4,BI5,1)-(DATE(Premissas!$D$6,Premissas!$D$7,1)))/365,2)<0,ROUNDDOWN((DATE(BI4,BI5,1)-(DATE(Premissas!$D$6,Premissas!$D$7,1)))/365,2)-1,ROUNDDOWN((DATE(BI4,BI5,1)-(DATE(Premissas!$D$6,Premissas!$D$7,1)))/365,2)),0) -> 4 | BJ3: =ROUNDDOWN(IF(ROUNDDOWN((DATE(BJ4,BJ5,1)-(DATE(Premissas!$D$6,Premissas!$D$7,1)))/365,2)<0,ROUNDDOWN((DATE(BJ4,BJ5,1)-(DATE(Premissas!$D$6,Premissas!$D$7,1)))/365,2)-1,ROUNDDOWN((DATE(BJ4,BJ5,1)-(DATE(Premissas!$D$6,Premissas!$D$7,1)))/365,2)),0) -> 4 | BK3: =ROUNDDOWN(IF(ROUNDDOWN((DATE(BK4,BK5,1)-(DATE(Premissas!$D$6,Premissas!$D$7,1)))/365,2)<0,ROUNDDOWN((DATE(BK4,BK5,1)-(DATE(Premissas!$D$6,Premissas!$D$7,1)))/365,2)-1,ROUNDDOWN((DATE(BK4,BK5,1)-(DATE(Premissas!$D$6,Premissas!$D$7,1)))/365,2)),0) -> 4 | BL3: =ROUNDDOWN(IF(ROUNDDOWN((DATE(BL4,BL5,1)-(DATE(Premissas!$D$6,Premissas!$D$7,1)))/365,2)<0,ROUNDDOWN((DATE(BL4,BL5,1)-(DATE(Premissas!$D$6,Premissas!$D$7,1)))/365,2)-1,ROUNDDOWN((DATE(BL4,BL5,1)-(DATE(Premissas!$D$6,Premissas!$D$7,1)))/365,2)),0) -> 4 | BM3: =ROUNDDOWN(IF(ROUNDDOWN((DATE(BM4,BM5,1)-(DATE(Premissas!$D$6,Premissas!$D$7,1)))/365,2)<0,ROUNDDOWN((DATE(BM4,BM5,1)-(DATE(Premissas!$D$6,Premissas!$D$7,1)))/365,2)-1,ROUNDDOWN((DATE(BM4,BM5,1)-(DATE(Premissas!$D$6,Premissas!$D$7,1)))/365,2)),0) -> 4 | BN3: =ROUNDDOWN(IF(ROUNDDOWN((DATE(BN4,BN5,1)-(DATE(Premissas!$D$6,Premissas!$D$7,1)))/365,2)<0,ROUNDDOWN((DATE(BN4,BN5,1)-(DATE(Premissas!$D$6,Premissas!$D$7,1)))/365,2)-1,ROUNDDOWN((DATE(BN4,BN5,1)-(DATE(Premissas!$D$6,Premissas!$D$7,1)))/365,2)),0) -> 4 | BO3: =ROUNDDOWN(IF(ROUNDDOWN((DATE(BO4,BO5,1)-(DATE(Premissas!$D$6,Premissas!$D$7,1)))/365,2)<0,ROUNDDOWN((DATE(BO4,BO5,1)-(DATE(Premissas!$D$6,Premissas!$D$7,1)))/365,2)-1,ROUNDDOWN((DATE(BO4,BO5,1)-(DATE(Premissas!$D$6,Premissas!$D$7,1)))/365,2)),0) -> 4 | BP3: =ROUNDDOWN(IF(ROUNDDOWN((DATE(BP4,BP5,1)-(DATE(Premissas!$D$6,Premissas!$D$7,1)))/365,2)<0,ROUNDDOWN((DATE(BP4,BP5,1)-(DATE(Premissas!$D$6,Premissas!$D$7,1)))/365,2)-1,ROUNDDOWN((DATE(BP4,BP5,1)-(DATE(Premissas!$D$6,Premissas!$D$7,1)))/365,2)),0) -> 5 | BQ3: =ROUNDDOWN(IF(ROUNDDOWN((DATE(BQ4,BQ5,1)-(DATE(Premissas!$D$6,Premissas!$D$7,1)))/365,2)<0,ROUNDDOWN((DATE(BQ4,BQ5,1)-(DATE(Premissas!$D$6,Premissas!$D$7,1)))/365,2)-1,ROUNDDOWN((DATE(BQ4,BQ5,1)-(DATE(Premissas!$D$6,Premissas!$D$7,1)))/365,2)),0) -> 5 | BR3: =ROUNDDOWN(IF(ROUNDDOWN((DATE(BR4,BR5,1)-(DATE(Premissas!$D$6,Premissas!$D$7,1)))/365,2)<0,ROUNDDOWN((DATE(BR4,BR5,1)-(DATE(Premissas!$D$6,Premissas!$D$7,1)))/365,2)-1,ROUNDDOWN((DATE(BR4,BR5,1)-(DATE(Premissas!$D$6,Premissas!$D$7,1)))/365,2)),0) -> 5 | BS3: =ROUNDDOWN(IF(ROUNDDOWN((DATE(BS4,BS5,1)-(DATE(Premissas!$D$6,Premissas!$D$7,1)))/365,2)<0,ROUNDDOWN((DATE(BS4,BS5,1)-(DATE(Premissas!$D$6,Premissas!$D$7,1)))/365,2)-1,ROUNDDOWN((DATE(BS4,BS5,1)-(DATE(Premissas!$D$6,Premissas!$D$7,1)))/365,2)),0) -> 5 | BT3: =ROUNDDOWN(IF(ROUNDDOWN((DATE(BT4,BT5,1)-(DATE(Premissas!$D$6,Premissas!$D$7,1)))/365,2)<0,ROUNDDOWN((DATE(BT4,BT5,1)-(DATE(Premissas!$D$6,Premissas!$D$7,1)))/365,2)-1,ROUNDDOWN((DATE(BT4,BT5,1)-(DATE(Premissas!$D$6,Premissas!$D$7,1)))/365,2)),0) -> 5 | BU3: =ROUNDDOWN(IF(ROUNDDOWN((DATE(BU4,BU5,1)-(DATE(Premissas!$D$6,Premissas!$D$7,1)))/365,2)<0,ROUNDDOWN((DATE(BU4,BU5,1)-(DATE(Premissas!$D$6,Premissas!$D$7,1)))/365,2)-1,ROUNDDOWN((DATE(BU4,BU5,1)-(DATE(Premissas!$D$6,Premissas!$D$7,1)))/365,2)),0) -> 5 | BV3: =ROUNDDOWN(IF(ROUNDDOWN((DATE(BV4,BV5,1)-(DATE(Premissas!$D$6,Premissas!$D$7,1)))/365,2)<0,ROUNDDOWN((DATE(BV4,BV5,1)-(DATE(Premissas!$D$6,Premissas!$D$7,1)))/365,2)-1,ROUNDDOWN((DATE(BV4,BV5,1)-(DATE(Premissas!$D$6,Premissas!$D$7,1)))/365,2)),0) -> 5 | BW3: =ROUNDDOWN(IF(ROUNDDOWN((DATE(BW4,BW5,1)-(DATE(Premissas!$D$6,Premissas!$D$7,1)))/365,2)<0,ROUNDDOWN((DATE(BW4,BW5,1)-(DATE(Premissas!$D$6,Premissas!$D$7,1)))/365,2)-1,ROUNDDOWN((DATE(BW4,BW5,1)-(DATE(Premissas!$D$6,Premissas!$D$7,1)))/365,2)),0) -> 5 | BX3: =ROUNDDOWN(IF(ROUNDDOWN((DATE(BX4,BX5,1)-(DATE(Premissas!$D$6,Premissas!$D$7,1)))/365,2)<0,ROUNDDOWN((DATE(BX4,BX5,1)-(DATE(Premissas!$D$6,Premissas!$D$7,1)))/365,2)-1,ROUNDDOWN((DATE(BX4,BX5,1)-(DATE(Premissas!$D$6,Premissas!$D$7,1)))/365,2)),0) -> 5 | BY3: =ROUNDDOWN(IF(ROUNDDOWN((DATE(BY4,BY5,1)-(DATE(Premissas!$D$6,Premissas!$D$7,1)))/365,2)<0,ROUNDDOWN((DATE(BY4,BY5,1)-(DATE(Premissas!$D$6,Premissas!$D$7,1)))/365,2)-1,ROUNDDOWN((DATE(BY4,BY5,1)-(DATE(Premissas!$D$6,Premissas!$D$7,1)))/365,2)),0) -> 5 | BZ3: =ROUNDDOWN(IF(ROUNDDOWN((DATE(BZ4,BZ5,1)-(DATE(Premissas!$D$6,Premissas!$D$7,1)))/365,2)<0,ROUNDDOWN((DATE(BZ4,BZ5,1)-(DATE(Premissas!$D$6,Premissas!$D$7,1)))/365,2)-1,ROUNDDOWN((DATE(BZ4,BZ5,1)-(DATE(Premissas!$D$6,Premissas!$D$7,1)))/365,2)),0) -> 5 | CA3: =ROUNDDOWN(IF(ROUNDDOWN((DATE(CA4,CA5,1)-(DATE(Premissas!$D$6,Premissas!$D$7,1)))/365,2)<0,ROUNDDOWN((DATE(CA4,CA5,1)-(DATE(Premissas!$D$6,Premissas!$D$7,1)))/365,2)-1,ROUNDDOWN((DATE(CA4,CA5,1)-(DATE(Premissas!$D$6,Premissas!$D$7,1)))/365,2)),0) -> 5 | CB3: =ROUNDDOWN(IF(ROUNDDOWN((DATE(CB4,CB5,1)-(DATE(Premissas!$D$6,Premissas!$D$7,1)))/365,2)<0,ROUNDDOWN((DATE(CB4,CB5,1)-(DATE(Premissas!$D$6,Premissas!$D$7,1)))/365,2)-1,ROUNDDOWN((DATE(CB4,CB5,1)-(DATE(Premissas!$D$6,Premissas!$D$7,1)))/365,2)),0) -> 6 | CC3: =ROUNDDOWN(IF(ROUNDDOWN((DATE(CC4,CC5,1)-(DATE(Premissas!$D$6,Premissas!$D$7,1)))/365,2)<0,ROUNDDOWN((DATE(CC4,CC5,1)-(DATE(Premissas!$D$6,Premissas!$D$7,1)))/365,2)-1,ROUNDDOWN((DATE(CC4,CC5,1)-(DATE(Premissas!$D$6,Premissas!$D$7,1)))/365,2)),0) -> 6 | CD3: =ROUNDDOWN(IF(ROUNDDOWN((DATE(CD4,CD5,1)-(DATE(Premissas!$D$6,Premissas!$D$7,1)))/365,2)<0,ROUNDDOWN((DATE(CD4,CD5,1)-(DATE(Premissas!$D$6,Premissas!$D$7,1)))/365,2)-1,ROUNDDOWN((DATE(CD4,CD5,1)-(DATE(Premissas!$D$6,Premissas!$D$7,1)))/365,2)),0) -> 6 | CE3: =ROUNDDOWN(IF(ROUNDDOWN((DATE(CE4,CE5,1)-(DATE(Premissas!$D$6,Premissas!$D$7,1)))/365,2)<0,ROUNDDOWN((DATE(CE4,CE5,1)-(DATE(Premissas!$D$6,Premissas!$D$7,1)))/365,2)-1,ROUNDDOWN((DATE(CE4,CE5,1)-(DATE(Premissas!$D$6,Premissas!$D$7,1)))/365,2)),0) -> 6 | CF3: =ROUNDDOWN(IF(ROUNDDOWN((DATE(CF4,CF5,1)-(DATE(Premissas!$D$6,Premissas!$D$7,1)))/365,2)<0,ROUNDDOWN((DATE(CF4,CF5,1)-(DATE(Premissas!$D$6,Premissas!$D$7,1)))/365,2)-1,ROUNDDOWN((DATE(CF4,CF5,1)-(DATE(Premissas!$D$6,Premissas!$D$7,1)))/365,2)),0) -> 6 | CG3: =ROUNDDOWN(IF(ROUNDDOWN((DATE(CG4,CG5,1)-(DATE(Premissas!$D$6,Premissas!$D$7,1)))/365,2)<0,ROUNDDOWN((DATE(CG4,CG5,1)-(DATE(Premissas!$D$6,Premissas!$D$7,1)))/365,2)-1,ROUNDDOWN((DATE(CG4,CG5,1)-(DATE(Premissas!$D$6,Premissas!$D$7,1)))/365,2)),0) -> 6 | CH3: =ROUNDDOWN(IF(ROUNDDOWN((DATE(CH4,CH5,1)-(DATE(Premissas!$D$6,Premissas!$D$7,1)))/365,2)<0,ROUNDDOWN((DATE(CH4,CH5,1)-(DATE(Premissas!$D$6,Premissas!$D$7,1)))/365,2)-1,ROUNDDOWN((DATE(CH4,CH5,1)-(DATE(Premissas!$D$6,Premissas!$D$7,1)))/365,2)),0) -> 6 | CI3: =ROUNDDOWN(IF(ROUNDDOWN((DATE(CI4,CI5,1)-(DATE(Premissas!$D$6,Premissas!$D$7,1)))/365,2)<0,ROUNDDOWN((DATE(CI4,CI5,1)-(DATE(Premissas!$D$6,Premissas!$D$7,1)))/365,2)-1,ROUNDDOWN((DATE(CI4,CI5,1)-(DATE(Premissas!$D$6,Premissas!$D$7,1)))/365,2)),0) -> 6 | CJ3: =ROUNDDOWN(IF(ROUNDDOWN((DATE(CJ4,CJ5,1)-(DATE(Premissas!$D$6,Premissas!$D$7,1)))/365,2)<0,ROUNDDOWN((DATE(CJ4,CJ5,1)-(DATE(Premissas!$D$6,Premissas!$D$7,1)))/365,2)-1,ROUNDDOWN((DATE(CJ4,CJ5,1)-(DATE(Premissas!$D$6,Premissas!$D$7,1)))/365,2)),0) -> 6 | CK3: =ROUNDDOWN(IF(ROUNDDOWN((DATE(CK4,CK5,1)-(DATE(Premissas!$D$6,Premissas!$D$7,1)))/365,2)<0,ROUNDDOWN((DATE(CK4,CK5,1)-(DATE(Premissas!$D$6,Premissas!$D$7,1)))/365,2)-1,ROUNDDOWN((DATE(CK4,CK5,1)-(DATE(Premissas!$D$6,Premissas!$D$7,1)))/365,2)),0) -> 6 | CL3: =ROUNDDOWN(IF(ROUNDDOWN((DATE(CL4,CL5,1)-(DATE(Premissas!$D$6,Premissas!$D$7,1)))/365,2)<0,ROUNDDOWN((DATE(CL4,CL5,1)-(DATE(Premissas!$D$6,Premissas!$D$7,1)))/365,2)-1,ROUNDDOWN((DATE(CL4,CL5,1)-(DATE(Premissas!$D$6,Premissas!$D$7,1)))/365,2)),0) -> 6 | CM3: =ROUNDDOWN(IF(ROUNDDOWN((DATE(CM4,CM5,1)-(DATE(Premissas!$D$6,Premissas!$D$7,1)))/365,2)<0,ROUNDDOWN((DATE(CM4,CM5,1)-(DATE(Premissas!$D$6,Premissas!$D$7,1)))/365,2)-1,ROUNDDOWN((DATE(CM4,CM5,1)-(DATE(Premissas!$D$6,Premissas!$D$7,1)))/365,2)),0) -> 6 | CN3: =ROUNDDOWN(IF(ROUNDDOWN((DATE(CN4,CN5,1)-(DATE(Premissas!$D$6,Premissas!$D$7,1)))/365,2)<0,ROUNDDOWN((DATE(CN4,CN5,1)-(DATE(Premissas!$D$6,Premissas!$D$7,1)))/365,2)-1,ROUNDDOWN((DATE(CN4,CN5,1)-(DATE(Premissas!$D$6,Premissas!$D$7,1)))/365,2)),0) -> 7 | CO3: =ROUNDDOWN(IF(ROUNDDOWN((DATE(CO4,CO5,1)-(DATE(Premissas!$D$6,Premissas!$D$7,1)))/365,2)<0,ROUNDDOWN((DATE(CO4,CO5,1)-(DATE(Premissas!$D$6,Premissas!$D$7,1)))/365,2)-1,ROUNDDOWN((DATE(CO4,CO5,1)-(DATE(Premissas!$D$6,Premissas!$D$7,1)))/365,2)),0) -> 7 | CP3: =ROUNDDOWN(IF(ROUNDDOWN((DATE(CP4,CP5,1)-(DATE(Premissas!$D$6,Premissas!$D$7,1)))/365,2)<0,ROUNDDOWN((DATE(CP4,CP5,1)-(DATE(Premissas!$D$6,Premissas!$D$7,1)))/365,2)-1,ROUNDDOWN((DATE(CP4,CP5,1)-(DATE(Premissas!$D$6,Premissas!$D$7,1)))/365,2)),0) -> 7 | CQ3: =ROUNDDOWN(IF(ROUNDDOWN((DATE(CQ4,CQ5,1)-(DATE(Premissas!$D$6,Premissas!$D$7,1)))/365,2)<0,ROUNDDOWN((DATE(CQ4,CQ5,1)-(DATE(Premissas!$D$6,Premissas!$D$7,1)))/365,2)-1,ROUNDDOWN((DATE(CQ4,CQ5,1)-(DATE(Premissas!$D$6,Premissas!$D$7,1)))/365,2)),0) -> 7 | CR3: =ROUNDDOWN(IF(ROUNDDOWN((DATE(CR4,CR5,1)-(DATE(Premissas!$D$6,Premissas!$D$7,1)))/365,2)<0,ROUNDDOWN((DATE(CR4,CR5,1)-(DATE(Premissas!$D$6,Premissas!$D$7,1)))/365,2)-1,ROUNDDOWN((DATE(CR4,CR5,1)-(DATE(Premissas!$D$6,Premissas!$D$7,1)))/365,2)),0) -> 7 | CS3: =ROUNDDOWN(IF(ROUNDDOWN((DATE(CS4,CS5,1)-(DATE(Premissas!$D$6,Premissas!$D$7,1)))/365,2)<0,ROUNDDOWN((DATE(CS4,CS5,1)-(DATE(Premissas!$D$6,Premissas!$D$7,1)))/365,2)-1,ROUNDDOWN((DATE(CS4,CS5,1)-(DATE(Premissas!$D$6,Premissas!$D$7,1)))/365,2)),0) -> 7 | CT3: =ROUNDDOWN(IF(ROUNDDOWN((DATE(CT4,CT5,1)-(DATE(Premissas!$D$6,Premissas!$D$7,1)))/365,2)<0,ROUNDDOWN((DATE(CT4,CT5,1)-(DATE(Premissas!$D$6,Premissas!$D$7,1)))/365,2)-1,ROUNDDOWN((DATE(CT4,CT5,1)-(DATE(Premissas!$D$6,Premissas!$D$7,1)))/365,2)),0) -> 7 | CU3: =ROUNDDOWN(IF(ROUNDDOWN((DATE(CU4,CU5,1)-(DATE(Premissas!$D$6,Premissas!$D$7,1)))/365,2)<0,ROUNDDOWN((DATE(CU4,CU5,1)-(DATE(Premissas!$D$6,Premissas!$D$7,1)))/365,2)-1,ROUNDDOWN((DATE(CU4,CU5,1)-(DATE(Premissas!$D$6,Premissas!$D$7,1)))/365,2)),0) -> 7 | CV3: =ROUNDDOWN(IF(ROUNDDOWN((DATE(CV4,CV5,1)-(DATE(Premissas!$D$6,Premissas!$D$7,1)))/365,2)<0,ROUNDDOWN((DATE(CV4,CV5,1)-(DATE(Premissas!$D$6,Premissas!$D$7,1)))/365,2)-1,ROUNDDOWN((DATE(CV4,CV5,1)-(DATE(Premissas!$D$6,Premissas!$D$7,1)))/365,2)),0) -> 7 | CW3: =ROUNDDOWN(IF(ROUNDDOWN((DATE(CW4,CW5,1)-(DATE(Premissas!$D$6,Premissas!$D$7,1)))/365,2)<0,ROUNDDOWN((DATE(CW4,CW5,1)-(DATE(Premissas!$D$6,Premissas!$D$7,1)))/365,2)-1,ROUNDDOWN((DATE(CW4,CW5,1)-(DATE(Premissas!$D$6,Premissas!$D$7,1)))/365,2)),0) -> 7 | CX3: =ROUNDDOWN(IF(ROUNDDOWN((DATE(CX4,CX5,1)-(DATE(Premissas!$D$6,Premissas!$D$7,1)))/365,2)<0,ROUNDDOWN((DATE(CX4,CX5,1)-(DATE(Premissas!$D$6,Premissas!$D$7,1)))/365,2)-1,ROUNDDOWN((DATE(CX4,CX5,1)-(DATE(Premissas!$D$6,Premissas!$D$7,1)))/365,2)),0) -> 7 | CY3: =ROUNDDOWN(IF(ROUNDDOWN((DATE(CY4,CY5,1)-(DATE(Premissas!$D$6,Premissas!$D$7,1)))/365,2)<0,ROUNDDOWN((DATE(CY4,CY5,1)-(DATE(Premissas!$D$6,Premissas!$D$7,1)))/365,2)-1,ROUNDDOWN((DATE(CY4,CY5,1)-(DATE(Premissas!$D$6,Premissas!$D$7,1)))/365,2)),0) -> 7 | CZ3: =ROUNDDOWN(IF(ROUNDDOWN((DATE(CZ4,CZ5,1)-(DATE(Premissas!$D$6,Premissas!$D$7,1)))/365,2)<0,ROUNDDOWN((DATE(CZ4,CZ5,1)-(DATE(Premissas!$D$6,Premissas!$D$7,1)))/365,2)-1,ROUNDDOWN((DATE(CZ4,CZ5,1)-(DATE(Premissas!$D$6,Premissas!$D$7,1)))/365,2)),0) -> 8 | DA3: =ROUNDDOWN(IF(ROUNDDOWN((DATE(DA4,DA5,1)-(DATE(Premissas!$D$6,Premissas!$D$7,1)))/365,2)<0,ROUNDDOWN((DATE(DA4,DA5,1)-(DATE(Premissas!$D$6,Premissas!$D$7,1)))/365,2)-1,ROUNDDOWN((DATE(DA4,DA5,1)-(DATE(Premissas!$D$6,Premissas!$D$7,1)))/365,2)),0) -> 8 | DB3: =ROUNDDOWN(IF(ROUNDDOWN((DATE(DB4,DB5,1)-(DATE(Premissas!$D$6,Premissas!$D$7,1)))/365,2)<0,ROUNDDOWN((DATE(DB4,DB5,1)-(DATE(Premissas!$D$6,Premissas!$D$7,1)))/365,2)-1,ROUNDDOWN((DATE(DB4,DB5,1)-(DATE(Premissas!$D$6,Premissas!$D$7,1)))/365,2)),0) -> 8 | DC3: =ROUNDDOWN(IF(ROUNDDOWN((DATE(DC4,DC5,1)-(DATE(Premissas!$D$6,Premissas!$D$7,1)))/365,2)<0,ROUNDDOWN((DATE(DC4,DC5,1)-(DATE(Premissas!$D$6,Premissas!$D$7,1)))/365,2)-1,ROUNDDOWN((DATE(DC4,DC5,1)-(DATE(Premissas!$D$6,Premissas!$D$7,1)))/365,2)),0) -> 8 | DD3: =ROUNDDOWN(IF(ROUNDDOWN((DATE(DD4,DD5,1)-(DATE(Premissas!$D$6,Premissas!$D$7,1)))/365,2)<0,ROUNDDOWN((DATE(DD4,DD5,1)-(DATE(Premissas!$D$6,Premissas!$D$7,1)))/365,2)-1,ROUNDDOWN((DATE(DD4,DD5,1)-(DATE(Premissas!$D$6,Premissas!$D$7,1)))/365,2)),0) -> 8 | DE3: =ROUNDDOWN(IF(ROUNDDOWN((DATE(DE4,DE5,1)-(DATE(Premissas!$D$6,Premissas!$D$7,1)))/365,2)<0,ROUNDDOWN((DATE(DE4,DE5,1)-(DATE(Premissas!$D$6,Premissas!$D$7,1)))/365,2)-1,ROUNDDOWN((DATE(DE4,DE5,1)-(DATE(Premissas!$D$6,Premissas!$D$7,1)))/365,2)),0) -> 8 | DF3: =ROUNDDOWN(IF(ROUNDDOWN((DATE(DF4,DF5,1)-(DATE(Premissas!$D$6,Premissas!$D$7,1)))/365,2)<0,ROUNDDOWN((DATE(DF4,DF5,1)-(DATE(Premissas!$D$6,Premissas!$D$7,1)))/365,2)-1,ROUNDDOWN((DATE(DF4,DF5,1)-(DATE(Premissas!$D$6,Premissas!$D$7,1)))/365,2)),0) -> 8 | DG3: =ROUNDDOWN(IF(ROUNDDOWN((DATE(DG4,DG5,1)-(DATE(Premissas!$D$6,Premissas!$D$7,1)))/365,2)<0,ROUNDDOWN((DATE(DG4,DG5,1)-(DATE(Premissas!$D$6,Premissas!$D$7,1)))/365,2)-1,ROUNDDOWN((DATE(DG4,DG5,1)-(DATE(Premissas!$D$6,Premissas!$D$7,1)))/365,2)),0) -> 8 | DH3: =ROUNDDOWN(IF(ROUNDDOWN((DATE(DH4,DH5,1)-(DATE(Premissas!$D$6,Premissas!$D$7,1)))/365,2)<0,ROUNDDOWN((DATE(DH4,DH5,1)-(DATE(Premissas!$D$6,Premissas!$D$7,1)))/365,2)-1,ROUNDDOWN((DATE(DH4,DH5,1)-(DATE(Premissas!$D$6,Premissas!$D$7,1)))/365,2)),0) -> 8 | DI3: =ROUNDDOWN(IF(ROUNDDOWN((DATE(DI4,DI5,1)-(DATE(Premissas!$D$6,Premissas!$D$7,1)))/365,2)<0,ROUNDDOWN((DATE(DI4,DI5,1)-(DATE(Premissas!$D$6,Premissas!$D$7,1)))/365,2)-1,ROUNDDOWN((DATE(DI4,DI5,1)-(DATE(Premissas!$D$6,Premissas!$D$7,1)))/365,2)),0) -> 8 | DJ3: =ROUNDDOWN(IF(ROUNDDOWN((DATE(DJ4,DJ5,1)-(DATE(Premissas!$D$6,Premissas!$D$7,1)))/365,2)<0,ROUNDDOWN((DATE(DJ4,DJ5,1)-(DATE(Premissas!$D$6,Premissas!$D$7,1)))/365,2)-1,ROUNDDOWN((DATE(DJ4,DJ5,1)-(DATE(Premissas!$D$6,Premissas!$D$7,1)))/365,2)),0) -> 8 | DK3: =ROUNDDOWN(IF(ROUNDDOWN((DATE(DK4,DK5,1)-(DATE(Premissas!$D$6,Premissas!$D$7,1)))/365,2)<0,ROUNDDOWN((DATE(DK4,DK5,1)-(DATE(Premissas!$D$6,Premissas!$D$7,1)))/365,2)-1,ROUNDDOWN((DATE(DK4,DK5,1)-(DATE(Premissas!$D$6,Premissas!$D$7,1)))/365,2)),0) -> 8 | DL3: =ROUNDDOWN(IF(ROUNDDOWN((DATE(DL4,DL5,1)-(DATE(Premissas!$D$6,Premissas!$D$7,1)))/365,2)<0,ROUNDDOWN((DATE(DL4,DL5,1)-(DATE(Premissas!$D$6,Premissas!$D$7,1)))/365,2)-1,ROUNDDOWN((DATE(DL4,DL5,1)-(DATE(Premissas!$D$6,Premissas!$D$7,1)))/365,2)),0) -> 9 | DM3: =ROUNDDOWN(IF(ROUNDDOWN((DATE(DM4,DM5,1)-(DATE(Premissas!$D$6,Premissas!$D$7,1)))/365,2)<0,ROUNDDOWN((DATE(DM4,DM5,1)-(DATE(Premissas!$D$6,Premissas!$D$7,1)))/365,2)-1,ROUNDDOWN((DATE(DM4,DM5,1)-(DATE(Premissas!$D$6,Premissas!$D$7,1)))/365,2)),0) -> 9 | DN3: =ROUNDDOWN(IF(ROUNDDOWN((DATE(DN4,DN5,1)-(DATE(Premissas!$D$6,Premissas!$D$7,1)))/365,2)<0,ROUNDDOWN((DATE(DN4,DN5,1)-(DATE(Premissas!$D$6,Premissas!$D$7,1)))/365,2)-1,ROUNDDOWN((DATE(DN4,DN5,1)-(DATE(Premissas!$D$6,Premissas!$D$7,1)))/365,2)),0) -> 9 | DO3: =ROUNDDOWN(IF(ROUNDDOWN((DATE(DO4,DO5,1)-(DATE(Premissas!$D$6,Premissas!$D$7,1)))/365,2)<0,ROUNDDOWN((DATE(DO4,DO5,1)-(DATE(Premissas!$D$6,Premissas!$D$7,1)))/365,2)-1,ROUNDDOWN((DATE(DO4,DO5,1)-(DATE(Premissas!$D$6,Premissas!$D$7,1)))/365,2)),0) -> 9 | DP3: =ROUNDDOWN(IF(ROUNDDOWN((DATE(DP4,DP5,1)-(DATE(Premissas!$D$6,Premissas!$D$7,1)))/365,2)<0,ROUNDDOWN((DATE(DP4,DP5,1)-(DATE(Premissas!$D$6,Premissas!$D$7,1)))/365,2)-1,ROUNDDOWN((DATE(DP4,DP5,1)-(DATE(Premissas!$D$6,Premissas!$D$7,1)))/365,2)),0) -> 9 | DQ3: =ROUNDDOWN(IF(ROUNDDOWN((DATE(DQ4,DQ5,1)-(DATE(Premissas!$D$6,Premissas!$D$7,1)))/365,2)<0,ROUNDDOWN((DATE(DQ4,DQ5,1)-(DATE(Premissas!$D$6,Premissas!$D$7,1)))/365,2)-1,ROUNDDOWN((DATE(DQ4,DQ5,1)-(DATE(Premissas!$D$6,Premissas!$D$7,1)))/365,2)),0) -> 9 | DR3: =ROUNDDOWN(IF(ROUNDDOWN((DATE(DR4,DR5,1)-(DATE(Premissas!$D$6,Premissas!$D$7,1)))/365,2)<0,ROUNDDOWN((DATE(DR4,DR5,1)-(DATE(Premissas!$D$6,Premissas!$D$7,1)))/365,2)-1,ROUNDDOWN((DATE(DR4,DR5,1)-(DATE(Premissas!$D$6,Premissas!$D$7,1)))/365,2)),0) -> 9 | DS3: =ROUNDDOWN(IF(ROUNDDOWN((DATE(DS4,DS5,1)-(DATE(Premissas!$D$6,Premissas!$D$7,1)))/365,2)<0,ROUNDDOWN((DATE(DS4,DS5,1)-(DATE(Premissas!$D$6,Premissas!$D$7,1)))/365,2)-1,ROUNDDOWN((DATE(DS4,DS5,1)-(DATE(Premissas!$D$6,Premissas!$D$7,1)))/365,2)),0) -> 9 | DT3: =ROUNDDOWN(IF(ROUNDDOWN((DATE(DT4,DT5,1)-(DATE(Premissas!$D$6,Premissas!$D$7,1)))/365,2)<0,ROUNDDOWN((DATE(DT4,DT5,1)-(DATE(Premissas!$D$6,Premissas!$D$7,1)))/365,2)-1,ROUNDDOWN((DATE(DT4,DT5,1)-(DATE(Premissas!$D$6,Premissas!$D$7,1)))/365,2)),0) -> 9 | DU3: =ROUNDDOWN(IF(ROUNDDOWN((DATE(DU4,DU5,1)-(DATE(Premissas!$D$6,Premissas!$D$7,1)))/365,2)<0,ROUNDDOWN((DATE(DU4,DU5,1)-(DATE(Premissas!$D$6,Premissas!$D$7,1)))/365,2)-1,ROUNDDOWN((DATE(DU4,DU5,1)-(DATE(Premissas!$D$6,Premissas!$D$7,1)))/365,2)),0) -> 9 | DV3: =ROUNDDOWN(IF(ROUNDDOWN((DATE(DV4,DV5,1)-(DATE(Premissas!$D$6,Premissas!$D$7,1)))/365,2)<0,ROUNDDOWN((DATE(DV4,DV5,1)-(DATE(Premissas!$D$6,Premissas!$D$7,1)))/365,2)-1,ROUNDDOWN((DATE(DV4,DV5,1)-(DATE(Premissas!$D$6,Premissas!$D$7,1)))/365,2)),0) -> 9 | DW3: =ROUNDDOWN(IF(ROUNDDOWN((DATE(DW4,DW5,1)-(DATE(Premissas!$D$6,Premissas!$D$7,1)))/365,2)<0,ROUNDDOWN((DATE(DW4,DW5,1)-(DATE(Premissas!$D$6,Premissas!$D$7,1)))/365,2)-1,ROUNDDOWN((DATE(DW4,DW5,1)-(DATE(Premissas!$D$6,Premissas!$D$7,1)))/365,2)),0) -> 9 | DX3: =ROUNDDOWN(IF(ROUNDDOWN((DATE(DX4,DX5,1)-(DATE(Premissas!$D$6,Premissas!$D$7,1)))/365,2)<0,ROUNDDOWN((DATE(DX4,DX5,1)-(DATE(Premissas!$D$6,Premissas!$D$7,1)))/365,2)-1,ROUNDDOWN((DATE(DX4,DX5,1)-(DATE(Premissas!$D$6,Premissas!$D$7,1)))/365,2)),0) -> 10 | DY3: =ROUNDDOWN(IF(ROUNDDOWN((DATE(DY4,DY5,1)-(DATE(Premissas!$D$6,Premissas!$D$7,1)))/365,2)<0,ROUNDDOWN((DATE(DY4,DY5,1)-(DATE(Premissas!$D$6,Premissas!$D$7,1)))/365,2)-1,ROUNDDOWN((DATE(DY4,DY5,1)-(DATE(Premissas!$D$6,Premissas!$D$7,1)))/365,2)),0) -> 10 | DZ3: =ROUNDDOWN(IF(ROUNDDOWN((DATE(DZ4,DZ5,1)-(DATE(Premissas!$D$6,Premissas!$D$7,1)))/365,2)<0,ROUNDDOWN((DATE(DZ4,DZ5,1)-(DATE(Premissas!$D$6,Premissas!$D$7,1)))/365,2)-1,ROUNDDOWN((DATE(DZ4,DZ5,1)-(DATE(Premissas!$D$6,Premissas!$D$7,1)))/365,2)),0) -> 10 | EA3: =ROUNDDOWN(IF(ROUNDDOWN((DATE(EA4,EA5,1)-(DATE(Premissas!$D$6,Premissas!$D$7,1)))/365,2)<0,ROUNDDOWN((DATE(EA4,EA5,1)-(DATE(Premissas!$D$6,Premissas!$D$7,1)))/365,2)-1,ROUNDDOWN((DATE(EA4,EA5,1)-(DATE(Premissas!$D$6,Premissas!$D$7,1)))/365,2)),0) -> 10 | EB3: =ROUNDDOWN(IF(ROUNDDOWN((DATE(EB4,EB5,1)-(DATE(Premissas!$D$6,Premissas!$D$7,1)))/365,2)<0,ROUNDDOWN((DATE(EB4,EB5,1)-(DATE(Premissas!$D$6,Premissas!$D$7,1)))/365,2)-1,ROUNDDOWN((DATE(EB4,EB5,1)-(DATE(Premissas!$D$6,Premissas!$D$7,1)))/365,2)),0) -> 10 | EC3: =ROUNDDOWN(IF(ROUNDDOWN((DATE(EC4,EC5,1)-(DATE(Premissas!$D$6,Premissas!$D$7,1)))/365,2)<0,ROUNDDOWN((DATE(EC4,EC5,1)-(DATE(Premissas!$D$6,Premissas!$D$7,1)))/365,2)-1,ROUNDDOWN((DATE(EC4,EC5,1)-(DATE(Premissas!$D$6,Premissas!$D$7,1)))/365,2)),0) -> 10 | ED3: =ROUNDDOWN(IF(ROUNDDOWN((DATE(ED4,ED5,1)-(DATE(Premissas!$D$6,Premissas!$D$7,1)))/365,2)<0,ROUNDDOWN((DATE(ED4,ED5,1)-(DATE(Premissas!$D$6,Premissas!$D$7,1)))/365,2)-1,ROUNDDOWN((DATE(ED4,ED5,1)-(DATE(Premissas!$D$6,Premissas!$D$7,1)))/365,2)),0) -> 10 | EE3: =ROUNDDOWN(IF(ROUNDDOWN((DATE(EE4,EE5,1)-(DATE(Premissas!$D$6,Premissas!$D$7,1)))/365,2)<0,ROUNDDOWN((DATE(EE4,EE5,1)-(DATE(Premissas!$D$6,Premissas!$D$7,1)))/365,2)-1,ROUNDDOWN((DATE(EE4,EE5,1)-(DATE(Premissas!$D$6,Premissas!$D$7,1)))/365,2)),0) -> 10 | EF3: =ROUNDDOWN(IF(ROUNDDOWN((DATE(EF4,EF5,1)-(DATE(Premissas!$D$6,Premissas!$D$7,1)))/365,2)<0,ROUNDDOWN((DATE(EF4,EF5,1)-(DATE(Premissas!$D$6,Premissas!$D$7,1)))/365,2)-1,ROUNDDOWN((DATE(EF4,EF5,1)-(DATE(Premissas!$D$6,Premissas!$D$7,1)))/365,2)),0) -> 10 | EG3: =ROUNDDOWN(IF(ROUNDDOWN((DATE(EG4,EG5,1)-(DATE(Premissas!$D$6,Premissas!$D$7,1)))/365,2)<0,ROUNDDOWN((DATE(EG4,EG5,1)-(DATE(Premissas!$D$6,Premissas!$D$7,1)))/365,2)-1,ROUNDDOWN((DATE(EG4,EG5,1)-(DATE(Premissas!$D$6,Premissas!$D$7,1)))/365,2)),0) -> 10 | EH3: =ROUNDDOWN(IF(ROUNDDOWN((DATE(EH4,EH5,1)-(DATE(Premissas!$D$6,Premissas!$D$7,1)))/365,2)<0,ROUNDDOWN((DATE(EH4,EH5,1)-(DATE(Premissas!$D$6,Premissas!$D$7,1)))/365,2)-1,ROUNDDOWN((DATE(EH4,EH5,1)-(DATE(Premissas!$D$6,Premissas!$D$7,1)))/365,2)),0) -> 10 | EI3: =ROUNDDOWN(IF(ROUNDDOWN((DATE(EI4,EI5,1)-(DATE(Premissas!$D$6,Premissas!$D$7,1)))/365,2)<0,ROUNDDOWN((DATE(EI4,EI5,1)-(DATE(Premissas!$D$6,Premissas!$D$7,1)))/365,2)-1,ROUNDDOWN((DATE(EI4,EI5,1)-(DATE(Premissas!$D$6,Premissas!$D$7,1)))/365,2)),0) -> 10 | EJ3: =ROUNDDOWN(IF(ROUNDDOWN((DATE(EJ4,EJ5,1)-(DATE(Premissas!$D$6,Premissas!$D$7,1)))/365,2)<0,ROUNDDOWN((DATE(EJ4,EJ5,1)-(DATE(Premissas!$D$6,Premissas!$D$7,1)))/365,2)-1,ROUNDDOWN((DATE(EJ4,EJ5,1)-(DATE(Premissas!$D$6,Premissas!$D$7,1)))/365,2)),0) -> 11 | EK3: =ROUNDDOWN(IF(ROUNDDOWN((DATE(EK4,EK5,1)-(DATE(Premissas!$D$6,Premissas!$D$7,1)))/365,2)<0,ROUNDDOWN((DATE(EK4,EK5,1)-(DATE(Premissas!$D$6,Premissas!$D$7,1)))/365,2)-1,ROUNDDOWN((DATE(EK4,EK5,1)-(DATE(Premissas!$D$6,Premissas!$D$7,1)))/365,2)),0) -> 11 | EL3: =ROUNDDOWN(IF(ROUNDDOWN((DATE(EL4,EL5,1)-(DATE(Premissas!$D$6,Premissas!$D$7,1)))/365,2)<0,ROUNDDOWN((DATE(EL4,EL5,1)-(DATE(Premissas!$D$6,Premissas!$D$7,1)))/365,2)-1,ROUNDDOWN((DATE(EL4,EL5,1)-(DATE(Premissas!$D$6,Premissas!$D$7,1)))/365,2)),0) -> 11 | EM3: =ROUNDDOWN(IF(ROUNDDOWN((DATE(EM4,EM5,1)-(DATE(Premissas!$D$6,Premissas!$D$7,1)))/365,2)<0,ROUNDDOWN((DATE(EM4,EM5,1)-(DATE(Premissas!$D$6,Premissas!$D$7,1)))/365,2)-1,ROUNDDOWN((DATE(EM4,EM5,1)-(DATE(Premissas!$D$6,Premissas!$D$7,1)))/365,2)),0) -> 11 | EN3: =ROUNDDOWN(IF(ROUNDDOWN((DATE(EN4,EN5,1)-(DATE(Premissas!$D$6,Premissas!$D$7,1)))/365,2)<0,ROUNDDOWN((DATE(EN4,EN5,1)-(DATE(Premissas!$D$6,Premissas!$D$7,1)))/365,2)-1,ROUNDDOWN((DATE(EN4,EN5,1)-(DATE(Premissas!$D$6,Premissas!$D$7,1)))/365,2)),0) -> 11 | EO3: =ROUNDDOWN(IF(ROUNDDOWN((DATE(EO4,EO5,1)-(DATE(Premissas!$D$6,Premissas!$D$7,1)))/365,2)<0,ROUNDDOWN((DATE(EO4,EO5,1)-(DATE(Premissas!$D$6,Premissas!$D$7,1)))/365,2)-1,ROUNDDOWN((DATE(EO4,EO5,1)-(DATE(Premissas!$D$6,Premissas!$D$7,1)))/365,2)),0) -> 11 | EP3: =ROUNDDOWN(IF(ROUNDDOWN((DATE(EP4,EP5,1)-(DATE(Premissas!$D$6,Premissas!$D$7,1)))/365,2)<0,ROUNDDOWN((DATE(EP4,EP5,1)-(DATE(Premissas!$D$6,Premissas!$D$7,1)))/365,2)-1,ROUNDDOWN((DATE(EP4,EP5,1)-(DATE(Premissas!$D$6,Premissas!$D$7,1)))/365,2)),0) -> 11 | EQ3: =ROUNDDOWN(IF(ROUNDDOWN((DATE(EQ4,EQ5,1)-(DATE(Premissas!$D$6,Premissas!$D$7,1)))/365,2)<0,ROUNDDOWN((DATE(EQ4,EQ5,1)-(DATE(Premissas!$D$6,Premissas!$D$7,1)))/365,2)-1,ROUNDDOWN((DATE(EQ4,EQ5,1)-(DATE(Premissas!$D$6,Premissas!$D$7,1)))/365,2)),0) -> 11 | ER3: =ROUNDDOWN(IF(ROUNDDOWN((DATE(ER4,ER5,1)-(DATE(Premissas!$D$6,Premissas!$D$7,1)))/365,2)<0,ROUNDDOWN((DATE(ER4,ER5,1)-(DATE(Premissas!$D$6,Premissas!$D$7,1)))/365,2)-1,ROUNDDOWN((DATE(ER4,ER5,1)-(DATE(Premissas!$D$6,Premissas!$D$7,1)))/365,2)),0) -> 11 | ES3: =ROUNDDOWN(IF(ROUNDDOWN((DATE(ES4,ES5,1)-(DATE(Premissas!$D$6,Premissas!$D$7,1)))/365,2)<0,ROUNDDOWN((DATE(ES4,ES5,1)-(DATE(Premissas!$D$6,Premissas!$D$7,1)))/365,2)-1,ROUNDDOWN((DATE(ES4,ES5,1)-(DATE(Premissas!$D$6,Premissas!$D$7,1)))/365,2)),0) -> 11 | ET3: =ROUNDDOWN(IF(ROUNDDOWN((DATE(ET4,ET5,1)-(DATE(Premissas!$D$6,Premissas!$D$7,1)))/365,2)<0,ROUNDDOWN((DATE(ET4,ET5,1)-(DATE(Premissas!$D$6,Premissas!$D$7,1)))/365,2)-1,ROUNDDOWN((DATE(ET4,ET5,1)-(DATE(Premissas!$D$6,Premissas!$D$7,1)))/365,2)),0) -> 11 | EU3: =ROUNDDOWN(IF(ROUNDDOWN((DATE(EU4,EU5,1)-(DATE(Premissas!$D$6,Premissas!$D$7,1)))/365,2)<0,ROUNDDOWN((DATE(EU4,EU5,1)-(DATE(Premissas!$D$6,Premissas!$D$7,1)))/365,2)-1,ROUNDDOWN((DATE(EU4,EU5,1)-(DATE(Premissas!$D$6,Premissas!$D$7,1)))/365,2)),0) -> 11 | EV3: =ROUNDDOWN(IF(ROUNDDOWN((DATE(EV4,EV5,1)-(DATE(Premissas!$D$6,Premissas!$D$7,1)))/365,2)<0,ROUNDDOWN((DATE(EV4,EV5,1)-(DATE(Premissas!$D$6,Premissas!$D$7,1)))/365,2)-1,ROUNDDOWN((DATE(EV4,EV5,1)-(DATE(Premissas!$D$6,Premissas!$D$7,1)))/365,2)),0) -> 12 | EW3: =ROUNDDOWN(IF(ROUNDDOWN((DATE(EW4,EW5,1)-(DATE(Premissas!$D$6,Premissas!$D$7,1)))/365,2)<0,ROUNDDOWN((DATE(EW4,EW5,1)-(DATE(Premissas!$D$6,Premissas!$D$7,1)))/365,2)-1,ROUNDDOWN((DATE(EW4,EW5,1)-(DATE(Premissas!$D$6,Premissas!$D$7,1)))/365,2)),0) -> 12 | EX3: =ROUNDDOWN(IF(ROUNDDOWN((DATE(EX4,EX5,1)-(DATE(Premissas!$D$6,Premissas!$D$7,1)))/365,2)<0,ROUNDDOWN((DATE(EX4,EX5,1)-(DATE(Premissas!$D$6,Premissas!$D$7,1)))/365,2)-1,ROUNDDOWN((DATE(EX4,EX5,1)-(DATE(Premissas!$D$6,Premissas!$D$7,1)))/365,2)),0) -> 12 | EY3: =ROUNDDOWN(IF(ROUNDDOWN((DATE(EY4,EY5,1)-(DATE(Premissas!$D$6,Premissas!$D$7,1)))/365,2)<0,ROUNDDOWN((DATE(EY4,EY5,1)-(DATE(Premissas!$D$6,Premissas!$D$7,1)))/365,2)-1,ROUNDDOWN((DATE(EY4,EY5,1)-(DATE(Premissas!$D$6,Premissas!$D$7,1)))/365,2)),0) -> 12 | EZ3: =ROUNDDOWN(IF(ROUNDDOWN((DATE(EZ4,EZ5,1)-(DATE(Premissas!$D$6,Premissas!$D$7,1)))/365,2)<0,ROUNDDOWN((DATE(EZ4,EZ5,1)-(DATE(Premissas!$D$6,Premissas!$D$7,1)))/365,2)-1,ROUNDDOWN((DATE(EZ4,EZ5,1)-(DATE(Premissas!$D$6,Premissas!$D$7,1)))/365,2)),0) -> 12 | FA3: =ROUNDDOWN(IF(ROUNDDOWN((DATE(FA4,FA5,1)-(DATE(Premissas!$D$6,Premissas!$D$7,1)))/365,2)<0,ROUNDDOWN((DATE(FA4,FA5,1)-(DATE(Premissas!$D$6,Premissas!$D$7,1)))/365,2)-1,ROUNDDOWN((DATE(FA4,FA5,1)-(DATE(Premissas!$D$6,Premissas!$D$7,1)))/365,2)),0) -> 12 | FB3: =ROUNDDOWN(IF(ROUNDDOWN((DATE(FB4,FB5,1)-(DATE(Premissas!$D$6,Premissas!$D$7,1)))/365,2)<0,ROUNDDOWN((DATE(FB4,FB5,1)-(DATE(Premissas!$D$6,Premissas!$D$7,1)))/365,2)-1,ROUNDDOWN((DATE(FB4,FB5,1)-(DATE(Premissas!$D$6,Premissas!$D$7,1)))/365,2)),0) -> 12 | FC3: =ROUNDDOWN(IF(ROUNDDOWN((DATE(FC4,FC5,1)-(DATE(Premissas!$D$6,Premissas!$D$7,1)))/365,2)<0,ROUNDDOWN((DATE(FC4,FC5,1)-(DATE(Premissas!$D$6,Premissas!$D$7,1)))/365,2)-1,ROUNDDOWN((DATE(FC4,FC5,1)-(DATE(Premissas!$D$6,Premissas!$D$7,1)))/365,2)),0) -> 12 | FD3: =ROUNDDOWN(IF(ROUNDDOWN((DATE(FD4,FD5,1)-(DATE(Premissas!$D$6,Premissas!$D$7,1)))/365,2)<0,ROUNDDOWN((DATE(FD4,FD5,1)-(DATE(Premissas!$D$6,Premissas!$D$7,1)))/365,2)-1,ROUNDDOWN((DATE(FD4,FD5,1)-(DATE(Premissas!$D$6,Premissas!$D$7,1)))/365,2)),0) -> 12 | FE3: =ROUNDDOWN(IF(ROUNDDOWN((DATE(FE4,FE5,1)-(DATE(Premissas!$D$6,Premissas!$D$7,1)))/365,2)<0,ROUNDDOWN((DATE(FE4,FE5,1)-(DATE(Premissas!$D$6,Premissas!$D$7,1)))/365,2)-1,ROUNDDOWN((DATE(FE4,FE5,1)-(DATE(Premissas!$D$6,Premissas!$D$7,1)))/365,2)),0) -> 12 | FF3: =ROUNDDOWN(IF(ROUNDDOWN((DATE(FF4,FF5,1)-(DATE(Premissas!$D$6,Premissas!$D$7,1)))/365,2)<0,ROUNDDOWN((DATE(FF4,FF5,1)-(DATE(Premissas!$D$6,Premissas!$D$7,1)))/365,2)-1,ROUNDDOWN((DATE(FF4,FF5,1)-(DATE(Premissas!$D$6,Premissas!$D$7,1)))/365,2)),0) -> 12 | FG3: =ROUNDDOWN(IF(ROUNDDOWN((DATE(FG4,FG5,1)-(DATE(Premissas!$D$6,Premissas!$D$7,1)))/365,2)<0,ROUNDDOWN((DATE(FG4,FG5,1)-(DATE(Premissas!$D$6,Premissas!$D$7,1)))/365,2)-1,ROUNDDOWN((DATE(FG4,FG5,1)-(DATE(Premissas!$D$6,Premissas!$D$7,1)))/365,2)),0) -> 12 | FH3: =ROUNDDOWN(IF(ROUNDDOWN((DATE(FH4,FH5,1)-(DATE(Premissas!$D$6,Premissas!$D$7,1)))/365,2)<0,ROUNDDOWN((DATE(FH4,FH5,1)-(DATE(Premissas!$D$6,Premissas!$D$7,1)))/365,2)-1,ROUNDDOWN((DATE(FH4,FH5,1)-(DATE(Premissas!$D$6,Premissas!$D$7,1)))/365,2)),0) -> 13 | FI3: =ROUNDDOWN(IF(ROUNDDOWN((DATE(FI4,FI5,1)-(DATE(Premissas!$D$6,Premissas!$D$7,1)))/365,2)<0,ROUNDDOWN((DATE(FI4,FI5,1)-(DATE(Premissas!$D$6,Premissas!$D$7,1)))/365,2)-1,ROUNDDOWN((DATE(FI4,FI5,1)-(DATE(Premissas!$D$6,Premissas!$D$7,1)))/365,2)),0) -> 13 | FJ3: =ROUNDDOWN(IF(ROUNDDOWN((DATE(FJ4,FJ5,1)-(DATE(Premissas!$D$6,Premissas!$D$7,1)))/365,2)<0,ROUNDDOWN((DATE(FJ4,FJ5,1)-(DATE(Premissas!$D$6,Premissas!$D$7,1)))/365,2)-1,ROUNDDOWN((DATE(FJ4,FJ5,1)-(DATE(Premissas!$D$6,Premissas!$D$7,1)))/365,2)),0) -> 13 | FK3: =ROUNDDOWN(IF(ROUNDDOWN((DATE(FK4,FK5,1)-(DATE(Premissas!$D$6,Premissas!$D$7,1)))/365,2)<0,ROUNDDOWN((DATE(FK4,FK5,1)-(DATE(Premissas!$D$6,Premissas!$D$7,1)))/365,2)-1,ROUNDDOWN((DATE(FK4,FK5,1)-(DATE(Premissas!$D$6,Premissas!$D$7,1)))/365,2)),0) -> 13 | FL3: =ROUNDDOWN(IF(ROUNDDOWN((DATE(FL4,FL5,1)-(DATE(Premissas!$D$6,Premissas!$D$7,1)))/365,2)<0,ROUNDDOWN((DATE(FL4,FL5,1)-(DATE(Premissas!$D$6,Premissas!$D$7,1)))/365,2)-1,ROUNDDOWN((DATE(FL4,FL5,1)-(DATE(Premissas!$D$6,Premissas!$D$7,1)))/365,2)),0) -> 13 | FM3: =ROUNDDOWN(IF(ROUNDDOWN((DATE(FM4,FM5,1)-(DATE(Premissas!$D$6,Premissas!$D$7,1)))/365,2)<0,ROUNDDOWN((DATE(FM4,FM5,1)-(DATE(Premissas!$D$6,Premissas!$D$7,1)))/365,2)-1,ROUNDDOWN((DATE(FM4,FM5,1)-(DATE(Premissas!$D$6,Premissas!$D$7,1)))/365,2)),0) -> 13 | FN3: =ROUNDDOWN(IF(ROUNDDOWN((DATE(FN4,FN5,1)-(DATE(Premissas!$D$6,Premissas!$D$7,1)))/365,2)<0,ROUNDDOWN((DATE(FN4,FN5,1)-(DATE(Premissas!$D$6,Premissas!$D$7,1)))/365,2)-1,ROUNDDOWN((DATE(FN4,FN5,1)-(DATE(Premissas!$D$6,Premissas!$D$7,1)))/365,2)),0) -> 13 | FO3: =ROUNDDOWN(IF(ROUNDDOWN((DATE(FO4,FO5,1)-(DATE(Premissas!$D$6,Premissas!$D$7,1)))/365,2)<0,ROUNDDOWN((DATE(FO4,FO5,1)-(DATE(Premissas!$D$6,Premissas!$D$7,1)))/365,2)-1,ROUNDDOWN((DATE(FO4,FO5,1)-(DATE(Premissas!$D$6,Premissas!$D$7,1)))/365,2)),0) -> 13 | FP3: =ROUNDDOWN(IF(ROUNDDOWN((DATE(FP4,FP5,1)-(DATE(Premissas!$D$6,Premissas!$D$7,1)))/365,2)<0,ROUNDDOWN((DATE(FP4,FP5,1)-(DATE(Premissas!$D$6,Premissas!$D$7,1)))/365,2)-1,ROUNDDOWN((DATE(FP4,FP5,1)-(DATE(Premissas!$D$6,Premissas!$D$7,1)))/365,2)),0) -> 13 | FQ3: =ROUNDDOWN(IF(ROUNDDOWN((DATE(FQ4,FQ5,1)-(DATE(Premissas!$D$6,Premissas!$D$7,1)))/365,2)<0,ROUNDDOWN((DATE(FQ4,FQ5,1)-(DATE(Premissas!$D$6,Premissas!$D$7,1)))/365,2)-1,ROUNDDOWN((DATE(FQ4,FQ5,1)-(DATE(Premissas!$D$6,Premissas!$D$7,1)))/365,2)),0) -> 13 | FR3: =ROUNDDOWN(IF(ROUNDDOWN((DATE(FR4,FR5,1)-(DATE(Premissas!$D$6,Premissas!$D$7,1)))/365,2)<0,ROUNDDOWN((DATE(FR4,FR5,1)-(DATE(Premissas!$D$6,Premissas!$D$7,1)))/365,2)-1,ROUNDDOWN((DATE(FR4,FR5,1)-(DATE(Premissas!$D$6,Premissas!$D$7,1)))/365,2)),0) -> 13 | FS3: =ROUNDDOWN(IF(ROUNDDOWN((DATE(FS4,FS5,1)-(DATE(Premissas!$D$6,Premissas!$D$7,1)))/365,2)<0,ROUNDDOWN((DATE(FS4,FS5,1)-(DATE(Premissas!$D$6,Premissas!$D$7,1)))/365,2)-1,ROUNDDOWN((DATE(FS4,FS5,1)-(DATE(Premissas!$D$6,Premissas!$D$7,1)))/365,2)),0) -> 13 | FT3: =ROUNDDOWN(IF(ROUNDDOWN((DATE(FT4,FT5,1)-(DATE(Premissas!$D$6,Premissas!$D$7,1)))/365,2)<0,ROUNDDOWN((DATE(FT4,FT5,1)-(DATE(Premissas!$D$6,Premissas!$D$7,1)))/365,2)-1,ROUNDDOWN((DATE(FT4,FT5,1)-(DATE(Premissas!$D$6,Premissas!$D$7,1)))/365,2)),0) -> 14 | FU3: =ROUNDDOWN(IF(ROUNDDOWN((DATE(FU4,FU5,1)-(DATE(Premissas!$D$6,Premissas!$D$7,1)))/365,2)<0,ROUNDDOWN((DATE(FU4,FU5,1)-(DATE(Premissas!$D$6,Premissas!$D$7,1)))/365,2)-1,ROUNDDOWN((DATE(FU4,FU5,1)-(DATE(Premissas!$D$6,Premissas!$D$7,1)))/365,2)),0) -> 14 | FV3: =ROUNDDOWN(IF(ROUNDDOWN((DATE(FV4,FV5,1)-(DATE(Premissas!$D$6,Premissas!$D$7,1)))/365,2)<0,ROUNDDOWN((DATE(FV4,FV5,1)-(DATE(Premissas!$D$6,Premissas!$D$7,1)))/365,2)-1,ROUNDDOWN((DATE(FV4,FV5,1)-(DATE(Premissas!$D$6,Premissas!$D$7,1)))/365,2)),0) -> 14 | FW3: =ROUNDDOWN(IF(ROUNDDOWN((DATE(FW4,FW5,1)-(DATE(Premissas!$D$6,Premissas!$D$7,1)))/365,2)<0,ROUNDDOWN((DATE(FW4,FW5,1)-(DATE(Premissas!$D$6,Premissas!$D$7,1)))/365,2)-1,ROUNDDOWN((DATE(FW4,FW5,1)-(DATE(Premissas!$D$6,Premissas!$D$7,1)))/365,2)),0) -> 14 | FX3: =ROUNDDOWN(IF(ROUNDDOWN((DATE(FX4,FX5,1)-(DATE(Premissas!$D$6,Premissas!$D$7,1)))/365,2)<0,ROUNDDOWN((DATE(FX4,FX5,1)-(DATE(Premissas!$D$6,Premissas!$D$7,1)))/365,2)-1,ROUNDDOWN((DATE(FX4,FX5,1)-(DATE(Premissas!$D$6,Premissas!$D$7,1)))/365,2)),0) -> 14 | FY3: =ROUNDDOWN(IF(ROUNDDOWN((DATE(FY4,FY5,1)-(DATE(Premissas!$D$6,Premissas!$D$7,1)))/365,2)<0,ROUNDDOWN((DATE(FY4,FY5,1)-(DATE(Premissas!$D$6,Premissas!$D$7,1)))/365,2)-1,ROUNDDOWN((DATE(FY4,FY5,1)-(DATE(Premissas!$D$6,Premissas!$D$7,1)))/365,2)),0) -> 14 | FZ3: =ROUNDDOWN(IF(ROUNDDOWN((DATE(FZ4,FZ5,1)-(DATE(Premissas!$D$6,Premissas!$D$7,1)))/365,2)<0,ROUNDDOWN((DATE(FZ4,FZ5,1)-(DATE(Premissas!$D$6,Premissas!$D$7,1)))/365,2)-1,ROUNDDOWN((DATE(FZ4,FZ5,1)-(DATE(Premissas!$D$6,Premissas!$D$7,1)))/365,2)),0) -> 14 | GA3: =ROUNDDOWN(IF(ROUNDDOWN((DATE(GA4,GA5,1)-(DATE(Premissas!$D$6,Premissas!$D$7,1)))/365,2)<0,ROUNDDOWN((DATE(GA4,GA5,1)-(DATE(Premissas!$D$6,Premissas!$D$7,1)))/365,2)-1,ROUNDDOWN((DATE(GA4,GA5,1)-(DATE(Premissas!$D$6,Premissas!$D$7,1)))/365,2)),0) -> 14 | GB3: =ROUNDDOWN(IF(ROUNDDOWN((DATE(GB4,GB5,1)-(DATE(Premissas!$D$6,Premissas!$D$7,1)))/365,2)<0,ROUNDDOWN((DATE(GB4,GB5,1)-(DATE(Premissas!$D$6,Premissas!$D$7,1)))/365,2)-1,ROUNDDOWN((DATE(GB4,GB5,1)-(DATE(Premissas!$D$6,Premissas!$D$7,1)))/365,2)),0) -> 14 | GC3: =ROUNDDOWN(IF(ROUNDDOWN((DATE(GC4,GC5,1)-(DATE(Premissas!$D$6,Premissas!$D$7,1)))/365,2)<0,ROUNDDOWN((DATE(GC4,GC5,1)-(DATE(Premissas!$D$6,Premissas!$D$7,1)))/365,2)-1,ROUNDDOWN((DATE(GC4,GC5,1)-(DATE(Premissas!$D$6,Premissas!$D$7,1)))/365,2)),0) -> 14 | GD3: =ROUNDDOWN(IF(ROUNDDOWN((DATE(GD4,GD5,1)-(DATE(Premissas!$D$6,Premissas!$D$7,1)))/365,2)<0,ROUNDDOWN((DATE(GD4,GD5,1)-(DATE(Premissas!$D$6,Premissas!$D$7,1)))/365,2)-1,ROUNDDOWN((DATE(GD4,GD5,1)-(DATE(Premissas!$D$6,Premissas!$D$7,1)))/365,2)),0) -> 14 | GE3: =ROUNDDOWN(IF(ROUNDDOWN((DATE(GE4,GE5,1)-(DATE(Premissas!$D$6,Premissas!$D$7,1)))/365,2)<0,ROUNDDOWN((DATE(GE4,GE5,1)-(DATE(Premissas!$D$6,Premissas!$D$7,1)))/365,2)-1,ROUNDDOWN((DATE(GE4,GE5,1)-(DATE(Premissas!$D$6,Premissas!$D$7,1)))/365,2)),0) -> 14 | GF3: =ROUNDDOWN(IF(ROUNDDOWN((DATE(GF4,GF5,1)-(DATE(Premissas!$D$6,Premissas!$D$7,1)))/365,2)<0,ROUNDDOWN((DATE(GF4,GF5,1)-(DATE(Premissas!$D$6,Premissas!$D$7,1)))/365,2)-1,ROUNDDOWN((DATE(GF4,GF5,1)-(DATE(Premissas!$D$6,Premissas!$D$7,1)))/365,2)),0) -> 15 | GG3: =ROUNDDOWN(IF(ROUNDDOWN((DATE(GG4,GG5,1)-(DATE(Premissas!$D$6,Premissas!$D$7,1)))/365,2)<0,ROUNDDOWN((DATE(GG4,GG5,1)-(DATE(Premissas!$D$6,Premissas!$D$7,1)))/365,2)-1,ROUNDDOWN((DATE(GG4,GG5,1)-(DATE(Premissas!$D$6,Premissas!$D$7,1)))/365,2)),0) -> 15 | GH3: =ROUNDDOWN(IF(ROUNDDOWN((DATE(GH4,GH5,1)-(DATE(Premissas!$D$6,Premissas!$D$7,1)))/365,2)<0,ROUNDDOWN((DATE(GH4,GH5,1)-(DATE(Premissas!$D$6,Premissas!$D$7,1)))/365,2)-1,ROUNDDOWN((DATE(GH4,GH5,1)-(DATE(Premissas!$D$6,Premissas!$D$7,1)))/365,2)),0) -> 15 | GI3: =ROUNDDOWN(IF(ROUNDDOWN((DATE(GI4,GI5,1)-(DATE(Premissas!$D$6,Premissas!$D$7,1)))/365,2)<0,ROUNDDOWN((DATE(GI4,GI5,1)-(DATE(Premissas!$D$6,Premissas!$D$7,1)))/365,2)-1,ROUNDDOWN((DATE(GI4,GI5,1)-(DATE(Premissas!$D$6,Premissas!$D$7,1)))/365,2)),0) -> 15 | GJ3: =ROUNDDOWN(IF(ROUNDDOWN((DATE(GJ4,GJ5,1)-(DATE(Premissas!$D$6,Premissas!$D$7,1)))/365,2)<0,ROUNDDOWN((DATE(GJ4,GJ5,1)-(DATE(Premissas!$D$6,Premissas!$D$7,1)))/365,2)-1,ROUNDDOWN((DATE(GJ4,GJ5,1)-(DATE(Premissas!$D$6,Premissas!$D$7,1)))/365,2)),0) -> 15 | GK3: =ROUNDDOWN(IF(ROUNDDOWN((DATE(GK4,GK5,1)-(DATE(Premissas!$D$6,Premissas!$D$7,1)))/365,2)<0,ROUNDDOWN((DATE(GK4,GK5,1)-(DATE(Premissas!$D$6,Premissas!$D$7,1)))/365,2)-1,ROUNDDOWN((DATE(GK4,GK5,1)-(DATE(Premissas!$D$6,Premissas!$D$7,1)))/365,2)),0) -> 15 | GL3: =ROUNDDOWN(IF(ROUNDDOWN((DATE(GL4,GL5,1)-(DATE(Premissas!$D$6,Premissas!$D$7,1)))/365,2)<0,ROUNDDOWN((DATE(GL4,GL5,1)-(DATE(Premissas!$D$6,Premissas!$D$7,1)))/365,2)-1,ROUNDDOWN((DATE(GL4,GL5,1)-(DATE(Premissas!$D$6,Premissas!$D$7,1)))/365,2)),0) -> 15 | GM3: =ROUNDDOWN(IF(ROUNDDOWN((DATE(GM4,GM5,1)-(DATE(Premissas!$D$6,Premissas!$D$7,1)))/365,2)<0,ROUNDDOWN((DATE(GM4,GM5,1)-(DATE(Premissas!$D$6,Premissas!$D$7,1)))/365,2)-1,ROUNDDOWN((DATE(GM4,GM5,1)-(DATE(Premissas!$D$6,Premissas!$D$7,1)))/365,2)),0) -> 15 | GN3: =ROUNDDOWN(IF(ROUNDDOWN((DATE(GN4,GN5,1)-(DATE(Premissas!$D$6,Premissas!$D$7,1)))/365,2)<0,ROUNDDOWN((DATE(GN4,GN5,1)-(DATE(Premissas!$D$6,Premissas!$D$7,1)))/365,2)-1,ROUNDDOWN((DATE(GN4,GN5,1)-(DATE(Premissas!$D$6,Premissas!$D$7,1)))/365,2)),0) -> 15 | GO3: =ROUNDDOWN(IF(ROUNDDOWN((DATE(GO4,GO5,1)-(DATE(Premissas!$D$6,Premissas!$D$7,1)))/365,2)<0,ROUNDDOWN((DATE(GO4,GO5,1)-(DATE(Premissas!$D$6,Premissas!$D$7,1)))/365,2)-1,ROUNDDOWN((DATE(GO4,GO5,1)-(DATE(Premissas!$D$6,Premissas!$D$7,1)))/365,2)),0) -> 15 | GP3: =ROUNDDOWN(IF(ROUNDDOWN((DATE(GP4,GP5,1)-(DATE(Premissas!$D$6,Premissas!$D$7,1)))/365,2)<0,ROUNDDOWN((DATE(GP4,GP5,1)-(DATE(Premissas!$D$6,Premissas!$D$7,1)))/365,2)-1,ROUNDDOWN((DATE(GP4,GP5,1)-(DATE(Premissas!$D$6,Premissas!$D$7,1)))/365,2)),0) -> 15 | GQ3: =ROUNDDOWN(IF(ROUNDDOWN((DATE(GQ4,GQ5,1)-(DATE(Premissas!$D$6,Premissas!$D$7,1)))/365,2)<0,ROUNDDOWN((DATE(GQ4,GQ5,1)-(DATE(Premissas!$D$6,Premissas!$D$7,1)))/365,2)-1,ROUNDDOWN((DATE(GQ4,GQ5,1)-(DATE(Premissas!$D$6,Premissas!$D$7,1)))/365,2)),0) -> 15 | GR3: =ROUNDDOWN(IF(ROUNDDOWN((DATE(GR4,GR5,1)-(DATE(Premissas!$D$6,Premissas!$D$7,1)))/365,2)<0,ROUNDDOWN((DATE(GR4,GR5,1)-(DATE(Premissas!$D$6,Premissas!$D$7,1)))/365,2)-1,ROUNDDOWN((DATE(GR4,GR5,1)-(DATE(Premissas!$D$6,Premissas!$D$7,1)))/365,2)),0) -> 16 | GS3: =ROUNDDOWN(IF(ROUNDDOWN((DATE(GS4,GS5,1)-(DATE(Premissas!$D$6,Premissas!$D$7,1)))/365,2)<0,ROUNDDOWN((DATE(GS4,GS5,1)-(DATE(Premissas!$D$6,Premissas!$D$7,1)))/365,2)-1,ROUNDDOWN((DATE(GS4,GS5,1)-(DATE(Premissas!$D$6,Premissas!$D$7,1)))/365,2)),0) -> 16 | GT3: =ROUNDDOWN(IF(ROUNDDOWN((DATE(GT4,GT5,1)-(DATE(Premissas!$D$6,Premissas!$D$7,1)))/365,2)<0,ROUNDDOWN((DATE(GT4,GT5,1)-(DATE(Premissas!$D$6,Premissas!$D$7,1)))/365,2)-1,ROUNDDOWN((DATE(GT4,GT5,1)-(DATE(Premissas!$D$6,Premissas!$D$7,1)))/365,2)),0) -> 16 | GU3: =ROUNDDOWN(IF(ROUNDDOWN((DATE(GU4,GU5,1)-(DATE(Premissas!$D$6,Premissas!$D$7,1)))/365,2)<0,ROUNDDOWN((DATE(GU4,GU5,1)-(DATE(Premissas!$D$6,Premissas!$D$7,1)))/365,2)-1,ROUNDDOWN((DATE(GU4,GU5,1)-(DATE(Premissas!$D$6,Premissas!$D$7,1)))/365,2)),0) -> 16 | GV3: =ROUNDDOWN(IF(ROUNDDOWN((DATE(GV4,GV5,1)-(DATE(Premissas!$D$6,Premissas!$D$7,1)))/365,2)<0,ROUNDDOWN((DATE(GV4,GV5,1)-(DATE(Premissas!$D$6,Premissas!$D$7,1)))/365,2)-1,ROUNDDOWN((DATE(GV4,GV5,1)-(DATE(Premissas!$D$6,Premissas!$D$7,1)))/365,2)),0) -> 16 | GW3: =ROUNDDOWN(IF(ROUNDDOWN((DATE(GW4,GW5,1)-(DATE(Premissas!$D$6,Premissas!$D$7,1)))/365,2)<0,ROUNDDOWN((DATE(GW4,GW5,1)-(DATE(Premissas!$D$6,Premissas!$D$7,1)))/365,2)-1,ROUNDDOWN((DATE(GW4,GW5,1)-(DATE(Premissas!$D$6,Premissas!$D$7,1)))/365,2)),0) -> 16 | GX3: =ROUNDDOWN(IF(ROUNDDOWN((DATE(GX4,GX5,1)-(DATE(Premissas!$D$6,Premissas!$D$7,1)))/365,2)<0,ROUNDDOWN((DATE(GX4,GX5,1)-(DATE(Premissas!$D$6,Premissas!$D$7,1)))/365,2)-1,ROUNDDOWN((DATE(GX4,GX5,1)-(DATE(Premissas!$D$6,Premissas!$D$7,1)))/365,2)),0) -> 16 | GY3: =ROUNDDOWN(IF(ROUNDDOWN((DATE(GY4,GY5,1)-(DATE(Premissas!$D$6,Premissas!$D$7,1)))/365,2)<0,ROUNDDOWN((DATE(GY4,GY5,1)-(DATE(Premissas!$D$6,Premissas!$D$7,1)))/365,2)-1,ROUNDDOWN((DATE(GY4,GY5,1)-(DATE(Premissas!$D$6,Premissas!$D$7,1)))/365,2)),0) -> 16 | GZ3: =ROUNDDOWN(IF(ROUNDDOWN((DATE(GZ4,GZ5,1)-(DATE(Premissas!$D$6,Premissas!$D$7,1)))/365,2)<0,ROUNDDOWN((DATE(GZ4,GZ5,1)-(DATE(Premissas!$D$6,Premissas!$D$7,1)))/365,2)-1,ROUNDDOWN((DATE(GZ4,GZ5,1)-(DATE(Premissas!$D$6,Premissas!$D$7,1)))/365,2)),0) -> 16 | HA3: =ROUNDDOWN(IF(ROUNDDOWN((DATE(HA4,HA5,1)-(DATE(Premissas!$D$6,Premissas!$D$7,1)))/365,2)<0,ROUNDDOWN((DATE(HA4,HA5,1)-(DATE(Premissas!$D$6,Premissas!$D$7,1)))/365,2)-1,ROUNDDOWN((DATE(HA4,HA5,1)-(DATE(Premissas!$D$6,Premissas!$D$7,1)))/365,2)),0) -> 16 | HB3: =ROUNDDOWN(IF(ROUNDDOWN((DATE(HB4,HB5,1)-(DATE(Premissas!$D$6,Premissas!$D$7,1)))/365,2)<0,ROUNDDOWN((DATE(HB4,HB5,1)-(DATE(Premissas!$D$6,Premissas!$D$7,1)))/365,2)-1,ROUNDDOWN((DATE(HB4,HB5,1)-(DATE(Premissas!$D$6,Premissas!$D$7,1)))/365,2)),0) -> 16 | HC3: =ROUNDDOWN(IF(ROUNDDOWN((DATE(HC4,HC5,1)-(DATE(Premissas!$D$6,Premissas!$D$7,1)))/365,2)<0,ROUNDDOWN((DATE(HC4,HC5,1)-(DATE(Premissas!$D$6,Premissas!$D$7,1)))/365,2)-1,ROUNDDOWN((DATE(HC4,HC5,1)-(DATE(Premissas!$D$6,Premissas!$D$7,1)))/365,2)),0) -> 16 | HD3: =ROUNDDOWN(IF(ROUNDDOWN((DATE(HD4,HD5,1)-(DATE(Premissas!$D$6,Premissas!$D$7,1)))/365,2)<0,ROUNDDOWN((DATE(HD4,HD5,1)-(DATE(Premissas!$D$6,Premissas!$D$7,1)))/365,2)-1,ROUNDDOWN((DATE(HD4,HD5,1)-(DATE(Premissas!$D$6,Premissas!$D$7,1)))/365,2)),0) -> 17 | HE3: =ROUNDDOWN(IF(ROUNDDOWN((DATE(HE4,HE5,1)-(DATE(Premissas!$D$6,Premissas!$D$7,1)))/365,2)<0,ROUNDDOWN((DATE(HE4,HE5,1)-(DATE(Premissas!$D$6,Premissas!$D$7,1)))/365,2)-1,ROUNDDOWN((DATE(HE4,HE5,1)-(DATE(Premissas!$D$6,Premissas!$D$7,1)))/365,2)),0) -> 17 | HF3: =ROUNDDOWN(IF(ROUNDDOWN((DATE(HF4,HF5,1)-(DATE(Premissas!$D$6,Premissas!$D$7,1)))/365,2)<0,ROUNDDOWN((DATE(HF4,HF5,1)-(DATE(Premissas!$D$6,Premissas!$D$7,1)))/365,2)-1,ROUNDDOWN((DATE(HF4,HF5,1)-(DATE(Premissas!$D$6,Premissas!$D$7,1)))/365,2)),0) -> 17 | HG3: =ROUNDDOWN(IF(ROUNDDOWN((DATE(HG4,HG5,1)-(DATE(Premissas!$D$6,Premissas!$D$7,1)))/365,2)<0,ROUNDDOWN((DATE(HG4,HG5,1)-(DATE(Premissas!$D$6,Premissas!$D$7,1)))/365,2)-1,ROUNDDOWN((DATE(HG4,HG5,1)-(DATE(Premissas!$D$6,Premissas!$D$7,1)))/365,2)),0) -> 17 | HH3: =ROUNDDOWN(IF(ROUNDDOWN((DATE(HH4,HH5,1)-(DATE(Premissas!$D$6,Premissas!$D$7,1)))/365,2)<0,ROUNDDOWN((DATE(HH4,HH5,1)-(DATE(Premissas!$D$6,Premissas!$D$7,1)))/365,2)-1,ROUNDDOWN((DATE(HH4,HH5,1)-(DATE(Premissas!$D$6,Premissas!$D$7,1)))/365,2)),0) -> 17 | HI3: =ROUNDDOWN(IF(ROUNDDOWN((DATE(HI4,HI5,1)-(DATE(Premissas!$D$6,Premissas!$D$7,1)))/365,2)<0,ROUNDDOWN((DATE(HI4,HI5,1)-(DATE(Premissas!$D$6,Premissas!$D$7,1)))/365,2)-1,ROUNDDOWN((DATE(HI4,HI5,1)-(DATE(Premissas!$D$6,Premissas!$D$7,1)))/365,2)),0) -> 17 | HJ3: =ROUNDDOWN(IF(ROUNDDOWN((DATE(HJ4,HJ5,1)-(DATE(Premissas!$D$6,Premissas!$D$7,1)))/365,2)<0,ROUNDDOWN((DATE(HJ4,HJ5,1)-(DATE(Premissas!$D$6,Premissas!$D$7,1)))/365,2)-1,ROUNDDOWN((DATE(HJ4,HJ5,1)-(DATE(Premissas!$D$6,Premissas!$D$7,1)))/365,2)),0) -> 17 | HK3: =ROUNDDOWN(IF(ROUNDDOWN((DATE(HK4,HK5,1)-(DATE(Premissas!$D$6,Premissas!$D$7,1)))/365,2)<0,ROUNDDOWN((DATE(HK4,HK5,1)-(DATE(Premissas!$D$6,Premissas!$D$7,1)))/365,2)-1,ROUNDDOWN((DATE(HK4,HK5,1)-(DATE(Premissas!$D$6,Premissas!$D$7,1)))/365,2)),0) -> 17 | HL3: =ROUNDDOWN(IF(ROUNDDOWN((DATE(HL4,HL5,1)-(DATE(Premissas!$D$6,Premissas!$D$7,1)))/365,2)<0,ROUNDDOWN((DATE(HL4,HL5,1)-(DATE(Premissas!$D$6,Premissas!$D$7,1)))/365,2)-1,ROUNDDOWN((DATE(HL4,HL5,1)-(DATE(Premissas!$D$6,Premissas!$D$7,1)))/365,2)),0) -> 17 | HM3: =ROUNDDOWN(IF(ROUNDDOWN((DATE(HM4,HM5,1)-(DATE(Premissas!$D$6,Premissas!$D$7,1)))/365,2)<0,ROUNDDOWN((DATE(HM4,HM5,1)-(DATE(Premissas!$D$6,Premissas!$D$7,1)))/365,2)-1,ROUNDDOWN((DATE(HM4,HM5,1)-(DATE(Premissas!$D$6,Premissas!$D$7,1)))/365,2)),0) -> 17 | HN3: =ROUNDDOWN(IF(ROUNDDOWN((DATE(HN4,HN5,1)-(DATE(Premissas!$D$6,Premissas!$D$7,1)))/365,2)<0,ROUNDDOWN((DATE(HN4,HN5,1)-(DATE(Premissas!$D$6,Premissas!$D$7,1)))/365,2)-1,ROUNDDOWN((DATE(HN4,HN5,1)-(DATE(Premissas!$D$6,Premissas!$D$7,1)))/365,2)),0) -> 17 | HO3: =ROUNDDOWN(IF(ROUNDDOWN((DATE(HO4,HO5,1)-(DATE(Premissas!$D$6,Premissas!$D$7,1)))/365,2)<0,ROUNDDOWN((DATE(HO4,HO5,1)-(DATE(Premissas!$D$6,Premissas!$D$7,1)))/365,2)-1,ROUNDDOWN((DATE(HO4,HO5,1)-(DATE(Premissas!$D$6,Premissas!$D$7,1)))/365,2)),0) -> 17 | HP3: =ROUNDDOWN(IF(ROUNDDOWN((DATE(HP4,HP5,1)-(DATE(Premissas!$D$6,Premissas!$D$7,1)))/365,2)<0,ROUNDDOWN((DATE(HP4,HP5,1)-(DATE(Premissas!$D$6,Premissas!$D$7,1)))/365,2)-1,ROUNDDOWN((DATE(HP4,HP5,1)-(DATE(Premissas!$D$6,Premissas!$D$7,1)))/365,2)),0) -> 18 | HQ3: =ROUNDDOWN(IF(ROUNDDOWN((DATE(HQ4,HQ5,1)-(DATE(Premissas!$D$6,Premissas!$D$7,1)))/365,2)<0,ROUNDDOWN((DATE(HQ4,HQ5,1)-(DATE(Premissas!$D$6,Premissas!$D$7,1)))/365,2)-1,ROUNDDOWN((DATE(HQ4,HQ5,1)-(DATE(Premissas!$D$6,Premissas!$D$7,1)))/365,2)),0) -> 18 | HR3: =ROUNDDOWN(IF(ROUNDDOWN((DATE(HR4,HR5,1)-(DATE(Premissas!$D$6,Premissas!$D$7,1)))/365,2)<0,ROUNDDOWN((DATE(HR4,HR5,1)-(DATE(Premissas!$D$6,Premissas!$D$7,1)))/365,2)-1,ROUNDDOWN((DATE(HR4,HR5,1)-(DATE(Premissas!$D$6,Premissas!$D$7,1)))/365,2)),0) -> 18 | HS3: =ROUNDDOWN(IF(ROUNDDOWN((DATE(HS4,HS5,1)-(DATE(Premissas!$D$6,Premissas!$D$7,1)))/365,2)<0,ROUNDDOWN((DATE(HS4,HS5,1)-(DATE(Premissas!$D$6,Premissas!$D$7,1)))/365,2)-1,ROUNDDOWN((DATE(HS4,HS5,1)-(DATE(Premissas!$D$6,Premissas!$D$7,1)))/365,2)),0) -> 18 | HT3: =ROUNDDOWN(IF(ROUNDDOWN((DATE(HT4,HT5,1)-(DATE(Premissas!$D$6,Premissas!$D$7,1)))/365,2)<0,ROUNDDOWN((DATE(HT4,HT5,1)-(DATE(Premissas!$D$6,Premissas!$D$7,1)))/365,2)-1,ROUNDDOWN((DATE(HT4,HT5,1)-(DATE(Premissas!$D$6,Premissas!$D$7,1)))/365,2)),0) -> 18 | HU3: =ROUNDDOWN(IF(ROUNDDOWN((DATE(HU4,HU5,1)-(DATE(Premissas!$D$6,Premissas!$D$7,1)))/365,2)<0,ROUNDDOWN((DATE(HU4,HU5,1)-(DATE(Premissas!$D$6,Premissas!$D$7,1)))/365,2)-1,ROUNDDOWN((DATE(HU4,HU5,1)-(DATE(Premissas!$D$6,Premissas!$D$7,1)))/365,2)),0) -> 18 | HV3: =ROUNDDOWN(IF(ROUNDDOWN((DATE(HV4,HV5,1)-(DATE(Premissas!$D$6,Premissas!$D$7,1)))/365,2)<0,ROUNDDOWN((DATE(HV4,HV5,1)-(DATE(Premissas!$D$6,Premissas!$D$7,1)))/365,2)-1,ROUNDDOWN((DATE(HV4,HV5,1)-(DATE(Premissas!$D$6,Premissas!$D$7,1)))/365,2)),0) -> 18 | HW3: =ROUNDDOWN(IF(ROUNDDOWN((DATE(HW4,HW5,1)-(DATE(Premissas!$D$6,Premissas!$D$7,1)))/365,2)<0,ROUNDDOWN((DATE(HW4,HW5,1)-(DATE(Premissas!$D$6,Premissas!$D$7,1)))/365,2)-1,ROUNDDOWN((DATE(HW4,HW5,1)-(DATE(Premissas!$D$6,Premissas!$D$7,1)))/365,2)),0) -> 18 | HX3: =ROUNDDOWN(IF(ROUNDDOWN((DATE(HX4,HX5,1)-(DATE(Premissas!$D$6,Premissas!$D$7,1)))/365,2)<0,ROUNDDOWN((DATE(HX4,HX5,1)-(DATE(Premissas!$D$6,Premissas!$D$7,1)))/365,2)-1,ROUNDDOWN((DATE(HX4,HX5,1)-(DATE(Premissas!$D$6,Premissas!$D$7,1)))/365,2)),0) -> 18 | HY3: =ROUNDDOWN(IF(ROUNDDOWN((DATE(HY4,HY5,1)-(DATE(Premissas!$D$6,Premissas!$D$7,1)))/365,2)<0,ROUNDDOWN((DATE(HY4,HY5,1)-(DATE(Premissas!$D$6,Premissas!$D$7,1)))/365,2)-1,ROUNDDOWN((DATE(HY4,HY5,1)-(DATE(Premissas!$D$6,Premissas!$D$7,1)))/365,2)),0) -> 18 | HZ3: =ROUNDDOWN(IF(ROUNDDOWN((DATE(HZ4,HZ5,1)-(DATE(Premissas!$D$6,Premissas!$D$7,1)))/365,2)<0,ROUNDDOWN((DATE(HZ4,HZ5,1)-(DATE(Premissas!$D$6,Premissas!$D$7,1)))/365,2)-1,ROUNDDOWN((DATE(HZ4,HZ5,1)-(DATE(Premissas!$D$6,Premissas!$D$7,1)))/365,2)),0) -> 18 | IA3: =ROUNDDOWN(IF(ROUNDDOWN((DATE(IA4,IA5,1)-(DATE(Premissas!$D$6,Premissas!$D$7,1)))/365,2)<0,ROUNDDOWN((DATE(IA4,IA5,1)-(DATE(Premissas!$D$6,Premissas!$D$7,1)))/365,2)-1,ROUNDDOWN((DATE(IA4,IA5,1)-(DATE(Premissas!$D$6,Premissas!$D$7,1)))/365,2)),0) -> 18 | IB3: =ROUNDDOWN(IF(ROUNDDOWN((DATE(IB4,IB5,1)-(DATE(Premissas!$D$6,Premissas!$D$7,1)))/365,2)<0,ROUNDDOWN((DATE(IB4,IB5,1)-(DATE(Premissas!$D$6,Premissas!$D$7,1)))/365,2)-1,ROUNDDOWN((DATE(IB4,IB5,1)-(DATE(Premissas!$D$6,Premissas!$D$7,1)))/365,2)),0) -> 19 | IC3: =ROUNDDOWN(IF(ROUNDDOWN((DATE(IC4,IC5,1)-(DATE(Premissas!$D$6,Premissas!$D$7,1)))/365,2)<0,ROUNDDOWN((DATE(IC4,IC5,1)-(DATE(Premissas!$D$6,Premissas!$D$7,1)))/365,2)-1,ROUNDDOWN((DATE(IC4,IC5,1)-(DATE(Premissas!$D$6,Premissas!$D$7,1)))/365,2)),0) -> 19 | ID3: =ROUNDDOWN(IF(ROUNDDOWN((DATE(ID4,ID5,1)-(DATE(Premissas!$D$6,Premissas!$D$7,1)))/365,2)<0,ROUNDDOWN((DATE(ID4,ID5,1)-(DATE(Premissas!$D$6,Premissas!$D$7,1)))/365,2)-1,ROUNDDOWN((DATE(ID4,ID5,1)-(DATE(Premissas!$D$6,Premissas!$D$7,1)))/365,2)),0) -> 19 | IE3: =ROUNDDOWN(IF(ROUNDDOWN((DATE(IE4,IE5,1)-(DATE(Premissas!$D$6,Premissas!$D$7,1)))/365,2)<0,ROUNDDOWN((DATE(IE4,IE5,1)-(DATE(Premissas!$D$6,Premissas!$D$7,1)))/365,2)-1,ROUNDDOWN((DATE(IE4,IE5,1)-(DATE(Premissas!$D$6,Premissas!$D$7,1)))/365,2)),0) -> 19 | IF3: =ROUNDDOWN(IF(ROUNDDOWN((DATE(IF4,IF5,1)-(DATE(Premissas!$D$6,Premissas!$D$7,1)))/365,2)<0,ROUNDDOWN((DATE(IF4,IF5,1)-(DATE(Premissas!$D$6,Premissas!$D$7,1)))/365,2)-1,ROUNDDOWN((DATE(IF4,IF5,1)-(DATE(Premissas!$D$6,Premissas!$D$7,1)))/365,2)),0) -> 19 | IG3: =ROUNDDOWN(IF(ROUNDDOWN((DATE(IG4,IG5,1)-(DATE(Premissas!$D$6,Premissas!$D$7,1)))/365,2)<0,ROUNDDOWN((DATE(IG4,IG5,1)-(DATE(Premissas!$D$6,Premissas!$D$7,1)))/365,2)-1,ROUNDDOWN((DATE(IG4,IG5,1)-(DATE(Premissas!$D$6,Premissas!$D$7,1)))/365,2)),0) -> 19 | IH3: =ROUNDDOWN(IF(ROUNDDOWN((DATE(IH4,IH5,1)-(DATE(Premissas!$D$6,Premissas!$D$7,1)))/365,2)<0,ROUNDDOWN((DATE(IH4,IH5,1)-(DATE(Premissas!$D$6,Premissas!$D$7,1)))/365,2)-1,ROUNDDOWN((DATE(IH4,IH5,1)-(DATE(Premissas!$D$6,Premissas!$D$7,1)))/365,2)),0) -> 19 | II3: =ROUNDDOWN(IF(ROUNDDOWN((DATE(II4,II5,1)-(DATE(Premissas!$D$6,Premissas!$D$7,1)))/365,2)<0,ROUNDDOWN((DATE(II4,II5,1)-(DATE(Premissas!$D$6,Premissas!$D$7,1)))/365,2)-1,ROUNDDOWN((DATE(II4,II5,1)-(DATE(Premissas!$D$6,Premissas!$D$7,1)))/365,2)),0) -> 19 | IJ3: =ROUNDDOWN(IF(ROUNDDOWN((DATE(IJ4,IJ5,1)-(DATE(Premissas!$D$6,Premissas!$D$7,1)))/365,2)<0,ROUNDDOWN((DATE(IJ4,IJ5,1)-(DATE(Premissas!$D$6,Premissas!$D$7,1)))/365,2)-1,ROUNDDOWN((DATE(IJ4,IJ5,1)-(DATE(Premissas!$D$6,Premissas!$D$7,1)))/365,2)),0) -> 19 | IK3: =ROUNDDOWN(IF(ROUNDDOWN((DATE(IK4,IK5,1)-(DATE(Premissas!$D$6,Premissas!$D$7,1)))/365,2)<0,ROUNDDOWN((DATE(IK4,IK5,1)-(DATE(Premissas!$D$6,Premissas!$D$7,1)))/365,2)-1,ROUNDDOWN((DATE(IK4,IK5,1)-(DATE(Premissas!$D$6,Premissas!$D$7,1)))/365,2)),0) -> 19 | IL3: =ROUNDDOWN(IF(ROUNDDOWN((DATE(IL4,IL5,1)-(DATE(Premissas!$D$6,Premissas!$D$7,1)))/365,2)<0,ROUNDDOWN((DATE(IL4,IL5,1)-(DATE(Premissas!$D$6,Premissas!$D$7,1)))/365,2)-1,ROUNDDOWN((DATE(IL4,IL5,1)-(DATE(Premissas!$D$6,Premissas!$D$7,1)))/365,2)),0) -> 19 | IM3: =ROUNDDOWN(IF(ROUNDDOWN((DATE(IM4,IM5,1)-(DATE(Premissas!$D$6,Premissas!$D$7,1)))/365,2)<0,ROUNDDOWN((DATE(IM4,IM5,1)-(DATE(Premissas!$D$6,Premissas!$D$7,1)))/365,2)-1,ROUNDDOWN((DATE(IM4,IM5,1)-(DATE(Premissas!$D$6,Premissas!$D$7,1)))/365,2)),0) -> 19 | IN3: =ROUNDDOWN(IF(ROUNDDOWN((DATE(IN4,IN5,1)-(DATE(Premissas!$D$6,Premissas!$D$7,1)))/365,2)<0,ROUNDDOWN((DATE(IN4,IN5,1)-(DATE(Premissas!$D$6,Premissas!$D$7,1)))/365,2)-1,ROUNDDOWN((DATE(IN4,IN5,1)-(DATE(Premissas!$D$6,Premissas!$D$7,1)))/365,2)),0) -> 20 | IO3: =ROUNDDOWN(IF(ROUNDDOWN((DATE(IO4,IO5,1)-(DATE(Premissas!$D$6,Premissas!$D$7,1)))/365,2)<0,ROUNDDOWN((DATE(IO4,IO5,1)-(DATE(Premissas!$D$6,Premissas!$D$7,1)))/365,2)-1,ROUNDDOWN((DATE(IO4,IO5,1)-(DATE(Premissas!$D$6,Premissas!$D$7,1)))/365,2)),0) -> 20 | IP3: =ROUNDDOWN(IF(ROUNDDOWN((DATE(IP4,IP5,1)-(DATE(Premissas!$D$6,Premissas!$D$7,1)))/365,2)<0,ROUNDDOWN((DATE(IP4,IP5,1)-(DATE(Premissas!$D$6,Premissas!$D$7,1)))/365,2)-1,ROUNDDOWN((DATE(IP4,IP5,1)-(DATE(Premissas!$D$6,Premissas!$D$7,1)))/365,2)),0) -> 20 | IQ3: =ROUNDDOWN(IF(ROUNDDOWN((DATE(IQ4,IQ5,1)-(DATE(Premissas!$D$6,Premissas!$D$7,1)))/365,2)<0,ROUNDDOWN((DATE(IQ4,IQ5,1)-(DATE(Premissas!$D$6,Premissas!$D$7,1)))/365,2)-1,ROUNDDOWN((DATE(IQ4,IQ5,1)-(DATE(Premissas!$D$6,Premissas!$D$7,1)))/365,2)),0) -> 20 | IR3: =ROUNDDOWN(IF(ROUNDDOWN((DATE(IR4,IR5,1)-(DATE(Premissas!$D$6,Premissas!$D$7,1)))/365,2)<0,ROUNDDOWN((DATE(IR4,IR5,1)-(DATE(Premissas!$D$6,Premissas!$D$7,1)))/365,2)-1,ROUNDDOWN((DATE(IR4,IR5,1)-(DATE(Premissas!$D$6,Premissas!$D$7,1)))/365,2)),0) -> 20 | IS3: =ROUNDDOWN(IF(ROUNDDOWN((DATE(IS4,IS5,1)-(DATE(Premissas!$D$6,Premissas!$D$7,1)))/365,2)<0,ROUNDDOWN((DATE(IS4,IS5,1)-(DATE(Premissas!$D$6,Premissas!$D$7,1)))/365,2)-1,ROUNDDOWN((DATE(IS4,IS5,1)-(DATE(Premissas!$D$6,Premissas!$D$7,1)))/365,2)),0) -> 20 | IT3: =ROUNDDOWN(IF(ROUNDDOWN((DATE(IT4,IT5,1)-(DATE(Premissas!$D$6,Premissas!$D$7,1)))/365,2)<0,ROUNDDOWN((DATE(IT4,IT5,1)-(DATE(Premissas!$D$6,Premissas!$D$7,1)))/365,2)-1,ROUNDDOWN((DATE(IT4,IT5,1)-(DATE(Premissas!$D$6,Premissas!$D$7,1)))/365,2)),0) -> 20 | IU3: =ROUNDDOWN(IF(ROUNDDOWN((DATE(IU4,IU5,1)-(DATE(Premissas!$D$6,Premissas!$D$7,1)))/365,2)<0,ROUNDDOWN((DATE(IU4,IU5,1)-(DATE(Premissas!$D$6,Premissas!$D$7,1)))/365,2)-1,ROUNDDOWN((DATE(IU4,IU5,1)-(DATE(Premissas!$D$6,Premissas!$D$7,1)))/365,2)),0) -> 20 | IV3: =ROUNDDOWN(IF(ROUNDDOWN((DATE(IV4,IV5,1)-(DATE(Premissas!$D$6,Premissas!$D$7,1)))/365,2)<0,ROUNDDOWN((DATE(IV4,IV5,1)-(DATE(Premissas!$D$6,Premissas!$D$7,1)))/365,2)-1,ROUNDDOWN((DATE(IV4,IV5,1)-(DATE(Premissas!$D$6,Premissas!$D$7,1)))/365,2)),0) -> 20 | IW3: =ROUNDDOWN(IF(ROUNDDOWN((DATE(IW4,IW5,1)-(DATE(Premissas!$D$6,Premissas!$D$7,1)))/365,2)<0,ROUNDDOWN((DATE(IW4,IW5,1)-(DATE(Premissas!$D$6,Premissas!$D$7,1)))/365,2)-1,ROUNDDOWN((DATE(IW4,IW5,1)-(DATE(Premissas!$D$6,Premissas!$D$7,1)))/365,2)),0) -> 20 | IX3: =ROUNDDOWN(IF(ROUNDDOWN((DATE(IX4,IX5,1)-(DATE(Premissas!$D$6,Premissas!$D$7,1)))/365,2)<0,ROUNDDOWN((DATE(IX4,IX5,1)-(DATE(Premissas!$D$6,Premissas!$D$7,1)))/365,2)-1,ROUNDDOWN((DATE(IX4,IX5,1)-(DATE(Premissas!$D$6,Premissas!$D$7,1)))/365,2)),0) -> 20 | IY3: =ROUNDDOWN(IF(ROUNDDOWN((DATE(IY4,IY5,1)-(DATE(Premissas!$D$6,Premissas!$D$7,1)))/365,2)<0,ROUNDDOWN((DATE(IY4,IY5,1)-(DATE(Premissas!$D$6,Premissas!$D$7,1)))/365,2)-1,ROUNDDOWN((DATE(IY4,IY5,1)-(DATE(Premissas!$D$6,Premissas!$D$7,1)))/365,2)),0) -> 20 | IZ3: =ROUNDDOWN(IF(ROUNDDOWN((DATE(IZ4,IZ5,1)-(DATE(Premissas!$D$6,Premissas!$D$7,1)))/365,2)<0,ROUNDDOWN((DATE(IZ4,IZ5,1)-(DATE(Premissas!$D$6,Premissas!$D$7,1)))/365,2)-1,ROUNDDOWN((DATE(IZ4,IZ5,1)-(DATE(Premissas!$D$6,Premissas!$D$7,1)))/365,2)),0) -> 21 | JA3: =ROUNDDOWN(IF(ROUNDDOWN((DATE(JA4,JA5,1)-(DATE(Premissas!$D$6,Premissas!$D$7,1)))/365,2)<0,ROUNDDOWN((DATE(JA4,JA5,1)-(DATE(Premissas!$D$6,Premissas!$D$7,1)))/365,2)-1,ROUNDDOWN((DATE(JA4,JA5,1)-(DATE(Premissas!$D$6,Premissas!$D$7,1)))/365,2)),0) -> 21 | JB3: =ROUNDDOWN(IF(ROUNDDOWN((DATE(JB4,JB5,1)-(DATE(Premissas!$D$6,Premissas!$D$7,1)))/365,2)<0,ROUNDDOWN((DATE(JB4,JB5,1)-(DATE(Premissas!$D$6,Premissas!$D$7,1)))/365,2)-1,ROUNDDOWN((DATE(JB4,JB5,1)-(DATE(Premissas!$D$6,Premissas!$D$7,1)))/365,2)),0) -> 21 | JC3: =ROUNDDOWN(IF(ROUNDDOWN((DATE(JC4,JC5,1)-(DATE(Premissas!$D$6,Premissas!$D$7,1)))/365,2)<0,ROUNDDOWN((DATE(JC4,JC5,1)-(DATE(Premissas!$D$6,Premissas!$D$7,1)))/365,2)-1,ROUNDDOWN((DATE(JC4,JC5,1)-(DATE(Premissas!$D$6,Premissas!$D$7,1)))/365,2)),0) -> 21 | JD3: =ROUNDDOWN(IF(ROUNDDOWN((DATE(JD4,JD5,1)-(DATE(Premissas!$D$6,Premissas!$D$7,1)))/365,2)<0,ROUNDDOWN((DATE(JD4,JD5,1)-(DATE(Premissas!$D$6,Premissas!$D$7,1)))/365,2)-1,ROUNDDOWN((DATE(JD4,JD5,1)-(DATE(Premissas!$D$6,Premissas!$D$7,1)))/365,2)),0) -> 21 | JE3: =ROUNDDOWN(IF(ROUNDDOWN((DATE(JE4,JE5,1)-(DATE(Premissas!$D$6,Premissas!$D$7,1)))/365,2)<0,ROUNDDOWN((DATE(JE4,JE5,1)-(DATE(Premissas!$D$6,Premissas!$D$7,1)))/365,2)-1,ROUNDDOWN((DATE(JE4,JE5,1)-(DATE(Premissas!$D$6,Premissas!$D$7,1)))/365,2)),0) -> 21 | JF3: =ROUNDDOWN(IF(ROUNDDOWN((DATE(JF4,JF5,1)-(DATE(Premissas!$D$6,Premissas!$D$7,1)))/365,2)<0,ROUNDDOWN((DATE(JF4,JF5,1)-(DATE(Premissas!$D$6,Premissas!$D$7,1)))/365,2)-1,ROUNDDOWN((DATE(JF4,JF5,1)-(DATE(Premissas!$D$6,Premissas!$D$7,1)))/365,2)),0) -> 21 | JG3: =ROUNDDOWN(IF(ROUNDDOWN((DATE(JG4,JG5,1)-(DATE(Premissas!$D$6,Premissas!$D$7,1)))/365,2)<0,ROUNDDOWN((DATE(JG4,JG5,1)-(DATE(Premissas!$D$6,Premissas!$D$7,1)))/365,2)-1,ROUNDDOWN((DATE(JG4,JG5,1)-(DATE(Premissas!$D$6,Premissas!$D$7,1)))/365,2)),0) -> 21 | JH3: =ROUNDDOWN(IF(ROUNDDOWN((DATE(JH4,JH5,1)-(DATE(Premissas!$D$6,Premissas!$D$7,1)))/365,2)<0,ROUNDDOWN((DATE(JH4,JH5,1)-(DATE(Premissas!$D$6,Premissas!$D$7,1)))/365,2)-1,ROUNDDOWN((DATE(JH4,JH5,1)-(DATE(Premissas!$D$6,Premissas!$D$7,1)))/365,2)),0) -> 21 | JI3: =ROUNDDOWN(IF(ROUNDDOWN((DATE(JI4,JI5,1)-(DATE(Premissas!$D$6,Premissas!$D$7,1)))/365,2)<0,ROUNDDOWN((DATE(JI4,JI5,1)-(DATE(Premissas!$D$6,Premissas!$D$7,1)))/365,2)-1,ROUNDDOWN((DATE(JI4,JI5,1)-(DATE(Premissas!$D$6,Premissas!$D$7,1)))/365,2)),0) -> 21 | JJ3: =ROUNDDOWN(IF(ROUNDDOWN((DATE(JJ4,JJ5,1)-(DATE(Premissas!$D$6,Premissas!$D$7,1)))/365,2)<0,ROUNDDOWN((DATE(JJ4,JJ5,1)-(DATE(Premissas!$D$6,Premissas!$D$7,1)))/365,2)-1,ROUNDDOWN((DATE(JJ4,JJ5,1)-(DATE(Premissas!$D$6,Premissas!$D$7,1)))/365,2)),0) -> 21 | JK3: =ROUNDDOWN(IF(ROUNDDOWN((DATE(JK4,JK5,1)-(DATE(Premissas!$D$6,Premissas!$D$7,1)))/365,2)<0,ROUNDDOWN((DATE(JK4,JK5,1)-(DATE(Premissas!$D$6,Premissas!$D$7,1)))/365,2)-1,ROUNDDOWN((DATE(JK4,JK5,1)-(DATE(Premissas!$D$6,Premissas!$D$7,1)))/365,2)),0) -> 21 | JL3: =ROUNDDOWN(IF(ROUNDDOWN((DATE(JL4,JL5,1)-(DATE(Premissas!$D$6,Premissas!$D$7,1)))/365,2)<0,ROUNDDOWN((DATE(JL4,JL5,1)-(DATE(Premissas!$D$6,Premissas!$D$7,1)))/365,2)-1,ROUNDDOWN((DATE(JL4,JL5,1)-(DATE(Premissas!$D$6,Premissas!$D$7,1)))/365,2)),0) -> 22 | JM3: =ROUNDDOWN(IF(ROUNDDOWN((DATE(JM4,JM5,1)-(DATE(Premissas!$D$6,Premissas!$D$7,1)))/365,2)<0,ROUNDDOWN((DATE(JM4,JM5,1)-(DATE(Premissas!$D$6,Premissas!$D$7,1)))/365,2)-1,ROUNDDOWN((DATE(JM4,JM5,1)-(DATE(Premissas!$D$6,Premissas!$D$7,1)))/365,2)),0) -> 22 | JN3: =ROUNDDOWN(IF(ROUNDDOWN((DATE(JN4,JN5,1)-(DATE(Premissas!$D$6,Premissas!$D$7,1)))/365,2)<0,ROUNDDOWN((DATE(JN4,JN5,1)-(DATE(Premissas!$D$6,Premissas!$D$7,1)))/365,2)-1,ROUNDDOWN((DATE(JN4,JN5,1)-(DATE(Premissas!$D$6,Premissas!$D$7,1)))/365,2)),0) -> 22 | JO3: =ROUNDDOWN(IF(ROUNDDOWN((DATE(JO4,JO5,1)-(DATE(Premissas!$D$6,Premissas!$D$7,1)))/365,2)<0,ROUNDDOWN((DATE(JO4,JO5,1)-(DATE(Premissas!$D$6,Premissas!$D$7,1)))/365,2)-1,ROUNDDOWN((DATE(JO4,JO5,1)-(DATE(Premissas!$D$6,Premissas!$D$7,1)))/365,2)),0) -> 22 | JP3: =ROUNDDOWN(IF(ROUNDDOWN((DATE(JP4,JP5,1)-(DATE(Premissas!$D$6,Premissas!$D$7,1)))/365,2)<0,ROUNDDOWN((DATE(JP4,JP5,1)-(DATE(Premissas!$D$6,Premissas!$D$7,1)))/365,2)-1,ROUNDDOWN((DATE(JP4,JP5,1)-(DATE(Premissas!$D$6,Premissas!$D$7,1)))/365,2)),0) -> 22 | JQ3: =ROUNDDOWN(IF(ROUNDDOWN((DATE(JQ4,JQ5,1)-(DATE(Premissas!$D$6,Premissas!$D$7,1)))/365,2)<0,ROUNDDOWN((DATE(JQ4,JQ5,1)-(DATE(Premissas!$D$6,Premissas!$D$7,1)))/365,2)-1,ROUNDDOWN((DATE(JQ4,JQ5,1)-(DATE(Premissas!$D$6,Premissas!$D$7,1)))/365,2)),0) -> 22 | JR3: =ROUNDDOWN(IF(ROUNDDOWN((DATE(JR4,JR5,1)-(DATE(Premissas!$D$6,Premissas!$D$7,1)))/365,2)<0,ROUNDDOWN((DATE(JR4,JR5,1)-(DATE(Premissas!$D$6,Premissas!$D$7,1)))/365,2)-1,ROUNDDOWN((DATE(JR4,JR5,1)-(DATE(Premissas!$D$6,Premissas!$D$7,1)))/365,2)),0) -> 22 | JS3: =ROUNDDOWN(IF(ROUNDDOWN((DATE(JS4,JS5,1)-(DATE(Premissas!$D$6,Premissas!$D$7,1)))/365,2)<0,ROUNDDOWN((DATE(JS4,JS5,1)-(DATE(Premissas!$D$6,Premissas!$D$7,1)))/365,2)-1,ROUNDDOWN((DATE(JS4,JS5,1)-(DATE(Premissas!$D$6,Premissas!$D$7,1)))/365,2)),0) -> 22 | JT3: =ROUNDDOWN(IF(ROUNDDOWN((DATE(JT4,JT5,1)-(DATE(Premissas!$D$6,Premissas!$D$7,1)))/365,2)<0,ROUNDDOWN((DATE(JT4,JT5,1)-(DATE(Premissas!$D$6,Premissas!$D$7,1)))/365,2)-1,ROUNDDOWN((DATE(JT4,JT5,1)-(DATE(Premissas!$D$6,Premissas!$D$7,1)))/365,2)),0) -> 22 | JU3: =ROUNDDOWN(IF(ROUNDDOWN((DATE(JU4,JU5,1)-(DATE(Premissas!$D$6,Premissas!$D$7,1)))/365,2)<0,ROUNDDOWN((DATE(JU4,JU5,1)-(DATE(Premissas!$D$6,Premissas!$D$7,1)))/365,2)-1,ROUNDDOWN((DATE(JU4,JU5,1)-(DATE(Premissas!$D$6,Premissas!$D$7,1)))/365,2)),0) -> 22 | JV3: =ROUNDDOWN(IF(ROUNDDOWN((DATE(JV4,JV5,1)-(DATE(Premissas!$D$6,Premissas!$D$7,1)))/365,2)<0,ROUNDDOWN((DATE(JV4,JV5,1)-(DATE(Premissas!$D$6,Premissas!$D$7,1)))/365,2)-1,ROUNDDOWN((DATE(JV4,JV5,1)-(DATE(Premissas!$D$6,Premissas!$D$7,1)))/365,2)),0) -> 22 | JW3: =ROUNDDOWN(IF(ROUNDDOWN((DATE(JW4,JW5,1)-(DATE(Premissas!$D$6,Premissas!$D$7,1)))/365,2)<0,ROUNDDOWN((DATE(JW4,JW5,1)-(DATE(Premissas!$D$6,Premissas!$D$7,1)))/365,2)-1,ROUNDDOWN((DATE(JW4,JW5,1)-(DATE(Premissas!$D$6,Premissas!$D$7,1)))/365,2)),0) -> 22 | JX3: =ROUNDDOWN(IF(ROUNDDOWN((DATE(JX4,JX5,1)-(DATE(Premissas!$D$6,Premissas!$D$7,1)))/365,2)<0,ROUNDDOWN((DATE(JX4,JX5,1)-(DATE(Premissas!$D$6,Premissas!$D$7,1)))/365,2)-1,ROUNDDOWN((DATE(JX4,JX5,1)-(DATE(Premissas!$D$6,Premissas!$D$7,1)))/365,2)),0) -> 23 | JY3: =ROUNDDOWN(IF(ROUNDDOWN((DATE(JY4,JY5,1)-(DATE(Premissas!$D$6,Premissas!$D$7,1)))/365,2)<0,ROUNDDOWN((DATE(JY4,JY5,1)-(DATE(Premissas!$D$6,Premissas!$D$7,1)))/365,2)-1,ROUNDDOWN((DATE(JY4,JY5,1)-(DATE(Premissas!$D$6,Premissas!$D$7,1)))/365,2)),0) -> 23 | JZ3: =ROUNDDOWN(IF(ROUNDDOWN((DATE(JZ4,JZ5,1)-(DATE(Premissas!$D$6,Premissas!$D$7,1)))/365,2)<0,ROUNDDOWN((DATE(JZ4,JZ5,1)-(DATE(Premissas!$D$6,Premissas!$D$7,1)))/365,2)-1,ROUNDDOWN((DATE(JZ4,JZ5,1)-(DATE(Premissas!$D$6,Premissas!$D$7,1)))/365,2)),0) -> 23 | KA3: =ROUNDDOWN(IF(ROUNDDOWN((DATE(KA4,KA5,1)-(DATE(Premissas!$D$6,Premissas!$D$7,1)))/365,2)<0,ROUNDDOWN((DATE(KA4,KA5,1)-(DATE(Premissas!$D$6,Premissas!$D$7,1)))/365,2)-1,ROUNDDOWN((DATE(KA4,KA5,1)-(DATE(Premissas!$D$6,Premissas!$D$7,1)))/365,2)),0) -> 23 | KB3: =ROUNDDOWN(IF(ROUNDDOWN((DATE(KB4,KB5,1)-(DATE(Premissas!$D$6,Premissas!$D$7,1)))/365,2)<0,ROUNDDOWN((DATE(KB4,KB5,1)-(DATE(Premissas!$D$6,Premissas!$D$7,1)))/365,2)-1,ROUNDDOWN((DATE(KB4,KB5,1)-(DATE(Premissas!$D$6,Premissas!$D$7,1)))/365,2)),0) -> 23 | KC3: =ROUNDDOWN(IF(ROUNDDOWN((DATE(KC4,KC5,1)-(DATE(Premissas!$D$6,Premissas!$D$7,1)))/365,2)<0,ROUNDDOWN((DATE(KC4,KC5,1)-(DATE(Premissas!$D$6,Premissas!$D$7,1)))/365,2)-1,ROUNDDOWN((DATE(KC4,KC5,1)-(DATE(Premissas!$D$6,Premissas!$D$7,1)))/365,2)),0) -> 23 | KD3: =ROUNDDOWN(IF(ROUNDDOWN((DATE(KD4,KD5,1)-(DATE(Premissas!$D$6,Premissas!$D$7,1)))/365,2)<0,ROUNDDOWN((DATE(KD4,KD5,1)-(DATE(Premissas!$D$6,Premissas!$D$7,1)))/365,2)-1,ROUNDDOWN((DATE(KD4,KD5,1)-(DATE(Premissas!$D$6,Premissas!$D$7,1)))/365,2)),0) -> 23 | KE3: =ROUNDDOWN(IF(ROUNDDOWN((DATE(KE4,KE5,1)-(DATE(Premissas!$D$6,Premissas!$D$7,1)))/365,2)<0,ROUNDDOWN((DATE(KE4,KE5,1)-(DATE(Premissas!$D$6,Premissas!$D$7,1)))/365,2)-1,ROUNDDOWN((DATE(KE4,KE5,1)-(DATE(Premissas!$D$6,Premissas!$D$7,1)))/365,2)),0) -> 23 | KF3: =ROUNDDOWN(IF(ROUNDDOWN((DATE(KF4,KF5,1)-(DATE(Premissas!$D$6,Premissas!$D$7,1)))/365,2)<0,ROUNDDOWN((DATE(KF4,KF5,1)-(DATE(Premissas!$D$6,Premissas!$D$7,1)))/365,2)-1,ROUNDDOWN((DATE(KF4,KF5,1)-(DATE(Premissas!$D$6,Premissas!$D$7,1)))/365,2)),0) -> 23 | KG3: =ROUNDDOWN(IF(ROUNDDOWN((DATE(KG4,KG5,1)-(DATE(Premissas!$D$6,Premissas!$D$7,1)))/365,2)<0,ROUNDDOWN((DATE(KG4,KG5,1)-(DATE(Premissas!$D$6,Premissas!$D$7,1)))/365,2)-1,ROUNDDOWN((DATE(KG4,KG5,1)-(DATE(Premissas!$D$6,Premissas!$D$7,1)))/365,2)),0) -> 23 | KH3: =ROUNDDOWN(IF(ROUNDDOWN((DATE(KH4,KH5,1)-(DATE(Premissas!$D$6,Premissas!$D$7,1)))/365,2)<0,ROUNDDOWN((DATE(KH4,KH5,1)-(DATE(Premissas!$D$6,Premissas!$D$7,1)))/365,2)-1,ROUNDDOWN((DATE(KH4,KH5,1)-(DATE(Premissas!$D$6,Premissas!$D$7,1)))/365,2)),0) -> 23 | KI3: =ROUNDDOWN(IF(ROUNDDOWN((DATE(KI4,KI5,1)-(DATE(Premissas!$D$6,Premissas!$D$7,1)))/365,2)<0,ROUNDDOWN((DATE(KI4,KI5,1)-(DATE(Premissas!$D$6,Premissas!$D$7,1)))/365,2)-1,ROUNDDOWN((DATE(KI4,KI5,1)-(DATE(Premissas!$D$6,Premissas!$D$7,1)))/365,2)),0) -> 23 | KJ3: =ROUNDDOWN(IF(ROUNDDOWN((DATE(KJ4,KJ5,1)-(DATE(Premissas!$D$6,Premissas!$D$7,1)))/365,2)<0,ROUNDDOWN((DATE(KJ4,KJ5,1)-(DATE(Premissas!$D$6,Premissas!$D$7,1)))/365,2)-1,ROUNDDOWN((DATE(KJ4,KJ5,1)-(DATE(Premissas!$D$6,Premissas!$D$7,1)))/365,2)),0) -> 24 | KK3: =ROUNDDOWN(IF(ROUNDDOWN((DATE(KK4,KK5,1)-(DATE(Premissas!$D$6,Premissas!$D$7,1)))/365,2)<0,ROUNDDOWN((DATE(KK4,KK5,1)-(DATE(Premissas!$D$6,Premissas!$D$7,1)))/365,2)-1,ROUNDDOWN((DATE(KK4,KK5,1)-(DATE(Premissas!$D$6,Premissas!$D$7,1)))/365,2)),0) -> 24 | KL3: =ROUNDDOWN(IF(ROUNDDOWN((DATE(KL4,KL5,1)-(DATE(Premissas!$D$6,Premissas!$D$7,1)))/365,2)<0,ROUNDDOWN((DATE(KL4,KL5,1)-(DATE(Premissas!$D$6,Premissas!$D$7,1)))/365,2)-1,ROUNDDOWN((DATE(KL4,KL5,1)-(DATE(Premissas!$D$6,Premissas!$D$7,1)))/365,2)),0) -> 24 | KM3: =ROUNDDOWN(IF(ROUNDDOWN((DATE(KM4,KM5,1)-(DATE(Premissas!$D$6,Premissas!$D$7,1)))/365,2)<0,ROUNDDOWN((DATE(KM4,KM5,1)-(DATE(Premissas!$D$6,Premissas!$D$7,1)))/365,2)-1,ROUNDDOWN((DATE(KM4,KM5,1)-(DATE(Premissas!$D$6,Premissas!$D$7,1)))/365,2)),0) -> 24 | KN3: =ROUNDDOWN(IF(ROUNDDOWN((DATE(KN4,KN5,1)-(DATE(Premissas!$D$6,Premissas!$D$7,1)))/365,2)<0,ROUNDDOWN((DATE(KN4,KN5,1)-(DATE(Premissas!$D$6,Premissas!$D$7,1)))/365,2)-1,ROUNDDOWN((DATE(KN4,KN5,1)-(DATE(Premissas!$D$6,Premissas!$D$7,1)))/365,2)),0) -> 24 | KO3: =ROUNDDOWN(IF(ROUNDDOWN((DATE(KO4,KO5,1)-(DATE(Premissas!$D$6,Premissas!$D$7,1)))/365,2)<0,ROUNDDOWN((DATE(KO4,KO5,1)-(DATE(Premissas!$D$6,Premissas!$D$7,1)))/365,2)-1,ROUNDDOWN((DATE(KO4,KO5,1)-(DATE(Premissas!$D$6,Premissas!$D$7,1)))/365,2)),0) -> 24 | KP3: =ROUNDDOWN(IF(ROUNDDOWN((DATE(KP4,KP5,1)-(DATE(Premissas!$D$6,Premissas!$D$7,1)))/365,2)<0,ROUNDDOWN((DATE(KP4,KP5,1)-(DATE(Premissas!$D$6,Premissas!$D$7,1)))/365,2)-1,ROUNDDOWN((DATE(KP4,KP5,1)-(DATE(Premissas!$D$6,Premissas!$D$7,1)))/365,2)),0) -> 24 | KQ3: =ROUNDDOWN(IF(ROUNDDOWN((DATE(KQ4,KQ5,1)-(DATE(Premissas!$D$6,Premissas!$D$7,1)))/365,2)<0,ROUNDDOWN((DATE(KQ4,KQ5,1)-(DATE(Premissas!$D$6,Premissas!$D$7,1)))/365,2)-1,ROUNDDOWN((DATE(KQ4,KQ5,1)-(DATE(Premissas!$D$6,Premissas!$D$7,1)))/365,2)),0) -> 24 | KR3: =ROUNDDOWN(IF(ROUNDDOWN((DATE(KR4,KR5,1)-(DATE(Premissas!$D$6,Premissas!$D$7,1)))/365,2)<0,ROUNDDOWN((DATE(KR4,KR5,1)-(DATE(Premissas!$D$6,Premissas!$D$7,1)))/365,2)-1,ROUNDDOWN((DATE(KR4,KR5,1)-(DATE(Premissas!$D$6,Premissas!$D$7,1)))/365,2)),0) -> 24 | KS3: =ROUNDDOWN(IF(ROUNDDOWN((DATE(KS4,KS5,1)-(DATE(Premissas!$D$6,Premissas!$D$7,1)))/365,2)<0,ROUNDDOWN((DATE(KS4,KS5,1)-(DATE(Premissas!$D$6,Premissas!$D$7,1)))/365,2)-1,ROUNDDOWN((DATE(KS4,KS5,1)-(DATE(Premissas!$D$6,Premissas!$D$7,1)))/365,2)),0) -> 24 | KT3: =ROUNDDOWN(IF(ROUNDDOWN((DATE(KT4,KT5,1)-(DATE(Premissas!$D$6,Premissas!$D$7,1)))/365,2)<0,ROUNDDOWN((DATE(KT4,KT5,1)-(DATE(Premissas!$D$6,Premissas!$D$7,1)))/365,2)-1,ROUNDDOWN((DATE(KT4,KT5,1)-(DATE(Premissas!$D$6,Premissas!$D$7,1)))/365,2)),0) -> 24 | KU3: =ROUNDDOWN(IF(ROUNDDOWN((DATE(KU4,KU5,1)-(DATE(Premissas!$D$6,Premissas!$D$7,1)))/365,2)<0,ROUNDDOWN((DATE(KU4,KU5,1)-(DATE(Premissas!$D$6,Premissas!$D$7,1)))/365,2)-1,ROUNDDOWN((DATE(KU4,KU5,1)-(DATE(Premissas!$D$6,Premissas!$D$7,1)))/365,2)),0) -> 24 | KV3: =ROUNDDOWN(IF(ROUNDDOWN((DATE(KV4,KV5,1)-(DATE(Premissas!$D$6,Premissas!$D$7,1)))/365,2)<0,ROUNDDOWN((DATE(KV4,KV5,1)-(DATE(Premissas!$D$6,Premissas!$D$7,1)))/365,2)-1,ROUNDDOWN((DATE(KV4,KV5,1)-(DATE(Premissas!$D$6,Premissas!$D$7,1)))/365,2)),0) -> 25 | KW3: =ROUNDDOWN(IF(ROUNDDOWN((DATE(KW4,KW5,1)-(DATE(Premissas!$D$6,Premissas!$D$7,1)))/365,2)<0,ROUNDDOWN((DATE(KW4,KW5,1)-(DATE(Premissas!$D$6,Premissas!$D$7,1)))/365,2)-1,ROUNDDOWN((DATE(KW4,KW5,1)-(DATE(Premissas!$D$6,Premissas!$D$7,1)))/365,2)),0) -> 25 | KX3: =ROUNDDOWN(IF(ROUNDDOWN((DATE(KX4,KX5,1)-(DATE(Premissas!$D$6,Premissas!$D$7,1)))/365,2)<0,ROUNDDOWN((DATE(KX4,KX5,1)-(DATE(Premissas!$D$6,Premissas!$D$7,1)))/365,2)-1,ROUNDDOWN((DATE(KX4,KX5,1)-(DATE(Premissas!$D$6,Premissas!$D$7,1)))/365,2)),0) -> 25 | KY3: =ROUNDDOWN(IF(ROUNDDOWN((DATE(KY4,KY5,1)-(DATE(Premissas!$D$6,Premissas!$D$7,1)))/365,2)<0,ROUNDDOWN((DATE(KY4,KY5,1)-(DATE(Premissas!$D$6,Premissas!$D$7,1)))/365,2)-1,ROUNDDOWN((DATE(KY4,KY5,1)-(DATE(Premissas!$D$6,Premissas!$D$7,1)))/365,2)),0) -> 25 | KZ3: =ROUNDDOWN(IF(ROUNDDOWN((DATE(KZ4,KZ5,1)-(DATE(Premissas!$D$6,Premissas!$D$7,1)))/365,2)<0,ROUNDDOWN((DATE(KZ4,KZ5,1)-(DATE(Premissas!$D$6,Premissas!$D$7,1)))/365,2)-1,ROUNDDOWN((DATE(KZ4,KZ5,1)-(DATE(Premissas!$D$6,Premissas!$D$7,1)))/365,2)),0) -> 25 | LA3: =ROUNDDOWN(IF(ROUNDDOWN((DATE(LA4,LA5,1)-(DATE(Premissas!$D$6,Premissas!$D$7,1)))/365,2)<0,ROUNDDOWN((DATE(LA4,LA5,1)-(DATE(Premissas!$D$6,Premissas!$D$7,1)))/365,2)-1,ROUNDDOWN((DATE(LA4,LA5,1)-(DATE(Premissas!$D$6,Premissas!$D$7,1)))/365,2)),0) -> 25 | LB3: =ROUNDDOWN(IF(ROUNDDOWN((DATE(LB4,LB5,1)-(DATE(Premissas!$D$6,Premissas!$D$7,1)))/365,2)<0,ROUNDDOWN((DATE(LB4,LB5,1)-(DATE(Premissas!$D$6,Premissas!$D$7,1)))/365,2)-1,ROUNDDOWN((DATE(LB4,LB5,1)-(DATE(Premissas!$D$6,Premissas!$D$7,1)))/365,2)),0) -> 25 | LC3: =ROUNDDOWN(IF(ROUNDDOWN((DATE(LC4,LC5,1)-(DATE(Premissas!$D$6,Premissas!$D$7,1)))/365,2)<0,ROUNDDOWN((DATE(LC4,LC5,1)-(DATE(Premissas!$D$6,Premissas!$D$7,1)))/365,2)-1,ROUNDDOWN((DATE(LC4,LC5,1)-(DATE(Premissas!$D$6,Premissas!$D$7,1)))/365,2)),0) -> 25 | LD3: =ROUNDDOWN(IF(ROUNDDOWN((DATE(LD4,LD5,1)-(DATE(Premissas!$D$6,Premissas!$D$7,1)))/365,2)<0,ROUNDDOWN((DATE(LD4,LD5,1)-(DATE(Premissas!$D$6,Premissas!$D$7,1)))/365,2)-1,ROUNDDOWN((DATE(LD4,LD5,1)-(DATE(Premissas!$D$6,Premissas!$D$7,1)))/365,2)),0) -> 25 | LE3: =ROUNDDOWN(IF(ROUNDDOWN((DATE(LE4,LE5,1)-(DATE(Premissas!$D$6,Premissas!$D$7,1)))/365,2)<0,ROUNDDOWN((DATE(LE4,LE5,1)-(DATE(Premissas!$D$6,Premissas!$D$7,1)))/365,2)-1,ROUNDDOWN((DATE(LE4,LE5,1)-(DATE(Premissas!$D$6,Premissas!$D$7,1)))/365,2)),0) -> 25 | LF3: =ROUNDDOWN(IF(ROUNDDOWN((DATE(LF4,LF5,1)-(DATE(Premissas!$D$6,Premissas!$D$7,1)))/365,2)<0,ROUNDDOWN((DATE(LF4,LF5,1)-(DATE(Premissas!$D$6,Premissas!$D$7,1)))/365,2)-1,ROUNDDOWN((DATE(LF4,LF5,1)-(DATE(Premissas!$D$6,Premissas!$D$7,1)))/365,2)),0) -> 25 | LG3: =ROUNDDOWN(IF(ROUNDDOWN((DATE(LG4,LG5,1)-(DATE(Premissas!$D$6,Premissas!$D$7,1)))/365,2)<0,ROUNDDOWN((DATE(LG4,LG5,1)-(DATE(Premissas!$D$6,Premissas!$D$7,1)))/365,2)-1,ROUNDDOWN((DATE(LG4,LG5,1)-(DATE(Premissas!$D$6,Premissas!$D$7,1)))/365,2)),0) -> 25 | LH3: =ROUNDDOWN(IF(ROUNDDOWN((DATE(LH4,LH5,1)-(DATE(Premissas!$D$6,Premissas!$D$7,1)))/365,2)<0,ROUNDDOWN((DATE(LH4,LH5,1)-(DATE(Premissas!$D$6,Premissas!$D$7,1)))/365,2)-1,ROUNDDOWN((DATE(LH4,LH5,1)-(DATE(Premissas!$D$6,Premissas!$D$7,1)))/365,2)),0) -> 26 | LI3: =ROUNDDOWN(IF(ROUNDDOWN((DATE(LI4,LI5,1)-(DATE(Premissas!$D$6,Premissas!$D$7,1)))/365,2)<0,ROUNDDOWN((DATE(LI4,LI5,1)-(DATE(Premissas!$D$6,Premissas!$D$7,1)))/365,2)-1,ROUNDDOWN((DATE(LI4,LI5,1)-(DATE(Premissas!$D$6,Premissas!$D$7,1)))/365,2)),0) -> 26 | LJ3: =ROUNDDOWN(IF(ROUNDDOWN((DATE(LJ4,LJ5,1)-(DATE(Premissas!$D$6,Premissas!$D$7,1)))/365,2)<0,ROUNDDOWN((DATE(LJ4,LJ5,1)-(DATE(Premissas!$D$6,Premissas!$D$7,1)))/365,2)-1,ROUNDDOWN((DATE(LJ4,LJ5,1)-(DATE(Premissas!$D$6,Premissas!$D$7,1)))/365,2)),0) -> 26 | LK3: =ROUNDDOWN(IF(ROUNDDOWN((DATE(LK4,LK5,1)-(DATE(Premissas!$D$6,Premissas!$D$7,1)))/365,2)<0,ROUNDDOWN((DATE(LK4,LK5,1)-(DATE(Premissas!$D$6,Premissas!$D$7,1)))/365,2)-1,ROUNDDOWN((DATE(LK4,LK5,1)-(DATE(Premissas!$D$6,Premissas!$D$7,1)))/365,2)),0) -> 26 | LL3: =ROUNDDOWN(IF(ROUNDDOWN((DATE(LL4,LL5,1)-(DATE(Premissas!$D$6,Premissas!$D$7,1)))/365,2)<0,ROUNDDOWN((DATE(LL4,LL5,1)-(DATE(Premissas!$D$6,Premissas!$D$7,1)))/365,2)-1,ROUNDDOWN((DATE(LL4,LL5,1)-(DATE(Premissas!$D$6,Premissas!$D$7,1)))/365,2)),0) -> 26 | LM3: =ROUNDDOWN(IF(ROUNDDOWN((DATE(LM4,LM5,1)-(DATE(Premissas!$D$6,Premissas!$D$7,1)))/365,2)<0,ROUNDDOWN((DATE(LM4,LM5,1)-(DATE(Premissas!$D$6,Premissas!$D$7,1)))/365,2)-1,ROUNDDOWN((DATE(LM4,LM5,1)-(DATE(Premissas!$D$6,Premissas!$D$7,1)))/365,2)),0) -> 26 | LN3: =ROUNDDOWN(IF(ROUNDDOWN((DATE(LN4,LN5,1)-(DATE(Premissas!$D$6,Premissas!$D$7,1)))/365,2)<0,ROUNDDOWN((DATE(LN4,LN5,1)-(DATE(Premissas!$D$6,Premissas!$D$7,1)))/365,2)-1,ROUNDDOWN((DATE(LN4,LN5,1)-(DATE(Premissas!$D$6,Premissas!$D$7,1)))/365,2)),0) -> 26 | LO3: =ROUNDDOWN(IF(ROUNDDOWN((DATE(LO4,LO5,1)-(DATE(Premissas!$D$6,Premissas!$D$7,1)))/365,2)<0,ROUNDDOWN((DATE(LO4,LO5,1)-(DATE(Premissas!$D$6,Premissas!$D$7,1)))/365,2)-1,ROUNDDOWN((DATE(LO4,LO5,1)-(DATE(Premissas!$D$6,Premissas!$D$7,1)))/365,2)),0) -> 26 | LP3: =ROUNDDOWN(IF(ROUNDDOWN((DATE(LP4,LP5,1)-(DATE(Premissas!$D$6,Premissas!$D$7,1)))/365,2)<0,ROUNDDOWN((DATE(LP4,LP5,1)-(DATE(Premissas!$D$6,Premissas!$D$7,1)))/365,2)-1,ROUNDDOWN((DATE(LP4,LP5,1)-(DATE(Premissas!$D$6,Premissas!$D$7,1)))/365,2)),0) -> 26 | LQ3: =ROUNDDOWN(IF(ROUNDDOWN((DATE(LQ4,LQ5,1)-(DATE(Premissas!$D$6,Premissas!$D$7,1)))/365,2)<0,ROUNDDOWN((DATE(LQ4,LQ5,1)-(DATE(Premissas!$D$6,Premissas!$D$7,1)))/365,2)-1,ROUNDDOWN((DATE(LQ4,LQ5,1)-(DATE(Premissas!$D$6,Premissas!$D$7,1)))/365,2)),0) -> 26 | LR3: =ROUNDDOWN(IF(ROUNDDOWN((DATE(LR4,LR5,1)-(DATE(Premissas!$D$6,Premissas!$D$7,1)))/365,2)<0,ROUNDDOWN((DATE(LR4,LR5,1)-(DATE(Premissas!$D$6,Premissas!$D$7,1)))/365,2)-1,ROUNDDOWN((DATE(LR4,LR5,1)-(DATE(Premissas!$D$6,Premissas!$D$7,1)))/365,2)),0) -> 26 | LS3: =ROUNDDOWN(IF(ROUNDDOWN((DATE(LS4,LS5,1)-(DATE(Premissas!$D$6,Premissas!$D$7,1)))/365,2)<0,ROUNDDOWN((DATE(LS4,LS5,1)-(DATE(Premissas!$D$6,Premissas!$D$7,1)))/365,2)-1,ROUNDDOWN((DATE(LS4,LS5,1)-(DATE(Premissas!$D$6,Premissas!$D$7,1)))/365,2)),0) -> 26 | LT3: =ROUNDDOWN(IF(ROUNDDOWN((DATE(LT4,LT5,1)-(DATE(Premissas!$D$6,Premissas!$D$7,1)))/365,2)<0,ROUNDDOWN((DATE(LT4,LT5,1)-(DATE(Premissas!$D$6,Premissas!$D$7,1)))/365,2)-1,ROUNDDOWN((DATE(LT4,LT5,1)-(DATE(Premissas!$D$6,Premissas!$D$7,1)))/365,2)),0) -> 27 | LU3: =ROUNDDOWN(IF(ROUNDDOWN((DATE(LU4,LU5,1)-(DATE(Premissas!$D$6,Premissas!$D$7,1)))/365,2)<0,ROUNDDOWN((DATE(LU4,LU5,1)-(DATE(Premissas!$D$6,Premissas!$D$7,1)))/365,2)-1,ROUNDDOWN((DATE(LU4,LU5,1)-(DATE(Premissas!$D$6,Premissas!$D$7,1)))/365,2)),0) -> 27 | LV3: =ROUNDDOWN(IF(ROUNDDOWN((DATE(LV4,LV5,1)-(DATE(Premissas!$D$6,Premissas!$D$7,1)))/365,2)<0,ROUNDDOWN((DATE(LV4,LV5,1)-(DATE(Premissas!$D$6,Premissas!$D$7,1)))/365,2)-1,ROUNDDOWN((DATE(LV4,LV5,1)-(DATE(Premissas!$D$6,Premissas!$D$7,1)))/365,2)),0) -> 27 | LW3: =ROUNDDOWN(IF(ROUNDDOWN((DATE(LW4,LW5,1)-(DATE(Premissas!$D$6,Premissas!$D$7,1)))/365,2)<0,ROUNDDOWN((DATE(LW4,LW5,1)-(DATE(Premissas!$D$6,Premissas!$D$7,1)))/365,2)-1,ROUNDDOWN((DATE(LW4,LW5,1)-(DATE(Premissas!$D$6,Premissas!$D$7,1)))/365,2)),0) -> 27 | LX3: =ROUNDDOWN(IF(ROUNDDOWN((DATE(LX4,LX5,1)-(DATE(Premissas!$D$6,Premissas!$D$7,1)))/365,2)<0,ROUNDDOWN((DATE(LX4,LX5,1)-(DATE(Premissas!$D$6,Premissas!$D$7,1)))/365,2)-1,ROUNDDOWN((DATE(LX4,LX5,1)-(DATE(Premissas!$D$6,Premissas!$D$7,1)))/365,2)),0) -> 27 | LY3: =ROUNDDOWN(IF(ROUNDDOWN((DATE(LY4,LY5,1)-(DATE(Premissas!$D$6,Premissas!$D$7,1)))/365,2)<0,ROUNDDOWN((DATE(LY4,LY5,1)-(DATE(Premissas!$D$6,Premissas!$D$7,1)))/365,2)-1,ROUNDDOWN((DATE(LY4,LY5,1)-(DATE(Premissas!$D$6,Premissas!$D$7,1)))/365,2)),0) -> 27 | LZ3: =ROUNDDOWN(IF(ROUNDDOWN((DATE(LZ4,LZ5,1)-(DATE(Premissas!$D$6,Premissas!$D$7,1)))/365,2)<0,ROUNDDOWN((DATE(LZ4,LZ5,1)-(DATE(Premissas!$D$6,Premissas!$D$7,1)))/365,2)-1,ROUNDDOWN((DATE(LZ4,LZ5,1)-(DATE(Premissas!$D$6,Premissas!$D$7,1)))/365,2)),0) -> 27 | MA3: =ROUNDDOWN(IF(ROUNDDOWN((DATE(MA4,MA5,1)-(DATE(Premissas!$D$6,Premissas!$D$7,1)))/365,2)<0,ROUNDDOWN((DATE(MA4,MA5,1)-(DATE(Premissas!$D$6,Premissas!$D$7,1)))/365,2)-1,ROUNDDOWN((DATE(MA4,MA5,1)-(DATE(Premissas!$D$6,Premissas!$D$7,1)))/365,2)),0) -> 27 | MB3: =ROUNDDOWN(IF(ROUNDDOWN((DATE(MB4,MB5,1)-(DATE(Premissas!$D$6,Premissas!$D$7,1)))/365,2)<0,ROUNDDOWN((DATE(MB4,MB5,1)-(DATE(Premissas!$D$6,Premissas!$D$7,1)))/365,2)-1,ROUNDDOWN((DATE(MB4,MB5,1)-(DATE(Premissas!$D$6,Premissas!$D$7,1)))/365,2)),0) -> 27 | MC3: =ROUNDDOWN(IF(ROUNDDOWN((DATE(MC4,MC5,1)-(DATE(Premissas!$D$6,Premissas!$D$7,1)))/365,2)<0,ROUNDDOWN((DATE(MC4,MC5,1)-(DATE(Premissas!$D$6,Premissas!$D$7,1)))/365,2)-1,ROUNDDOWN((DATE(MC4,MC5,1)-(DATE(Premissas!$D$6,Premissas!$D$7,1)))/365,2)),0) -> 27 | MD3: =ROUNDDOWN(IF(ROUNDDOWN((DATE(MD4,MD5,1)-(DATE(Premissas!$D$6,Premissas!$D$7,1)))/365,2)<0,ROUNDDOWN((DATE(MD4,MD5,1)-(DATE(Premissas!$D$6,Premissas!$D$7,1)))/365,2)-1,ROUNDDOWN((DATE(MD4,MD5,1)-(DATE(Premissas!$D$6,Premissas!$D$7,1)))/365,2)),0) -> 27 | ME3: =ROUNDDOWN(IF(ROUNDDOWN((DATE(ME4,ME5,1)-(DATE(Premissas!$D$6,Premissas!$D$7,1)))/365,2)<0,ROUNDDOWN((DATE(ME4,ME5,1)-(DATE(Premissas!$D$6,Premissas!$D$7,1)))/365,2)-1,ROUNDDOWN((DATE(ME4,ME5,1)-(DATE(Premissas!$D$6,Premissas!$D$7,1)))/365,2)),0) -> 27 | MF3: =ROUNDDOWN(IF(ROUNDDOWN((DATE(MF4,MF5,1)-(DATE(Premissas!$D$6,Premissas!$D$7,1)))/365,2)<0,ROUNDDOWN((DATE(MF4,MF5,1)-(DATE(Premissas!$D$6,Premissas!$D$7,1)))/365,2)-1,ROUNDDOWN((DATE(MF4,MF5,1)-(DATE(Premissas!$D$6,Premissas!$D$7,1)))/365,2)),0) -> 28 | MG3: =ROUNDDOWN(IF(ROUNDDOWN((DATE(MG4,MG5,1)-(DATE(Premissas!$D$6,Premissas!$D$7,1)))/365,2)<0,ROUNDDOWN((DATE(MG4,MG5,1)-(DATE(Premissas!$D$6,Premissas!$D$7,1)))/365,2)-1,ROUNDDOWN((DATE(MG4,MG5,1)-(DATE(Premissas!$D$6,Premissas!$D$7,1)))/365,2)),0) -> 28 | MH3: =ROUNDDOWN(IF(ROUNDDOWN((DATE(MH4,MH5,1)-(DATE(Premissas!$D$6,Premissas!$D$7,1)))/365,2)<0,ROUNDDOWN((DATE(MH4,MH5,1)-(DATE(Premissas!$D$6,Premissas!$D$7,1)))/365,2)-1,ROUNDDOWN((DATE(MH4,MH5,1)-(DATE(Premissas!$D$6,Premissas!$D$7,1)))/365,2)),0) -> 28 | MI3: =ROUNDDOWN(IF(ROUNDDOWN((DATE(MI4,MI5,1)-(DATE(Premissas!$D$6,Premissas!$D$7,1)))/365,2)<0,ROUNDDOWN((DATE(MI4,MI5,1)-(DATE(Premissas!$D$6,Premissas!$D$7,1)))/365,2)-1,ROUNDDOWN((DATE(MI4,MI5,1)-(DATE(Premissas!$D$6,Premissas!$D$7,1)))/365,2)),0) -> 28 | MJ3: =ROUNDDOWN(IF(ROUNDDOWN((DATE(MJ4,MJ5,1)-(DATE(Premissas!$D$6,Premissas!$D$7,1)))/365,2)<0,ROUNDDOWN((DATE(MJ4,MJ5,1)-(DATE(Premissas!$D$6,Premissas!$D$7,1)))/365,2)-1,ROUNDDOWN((DATE(MJ4,MJ5,1)-(DATE(Premissas!$D$6,Premissas!$D$7,1)))/365,2)),0) -> 28 | MK3: =ROUNDDOWN(IF(ROUNDDOWN((DATE(MK4,MK5,1)-(DATE(Premissas!$D$6,Premissas!$D$7,1)))/365,2)<0,ROUNDDOWN((DATE(MK4,MK5,1)-(DATE(Premissas!$D$6,Premissas!$D$7,1)))/365,2)-1,ROUNDDOWN((DATE(MK4,MK5,1)-(DATE(Premissas!$D$6,Premissas!$D$7,1)))/365,2)),0) -> 28 | ML3: =ROUNDDOWN(IF(ROUNDDOWN((DATE(ML4,ML5,1)-(DATE(Premissas!$D$6,Premissas!$D$7,1)))/365,2)<0,ROUNDDOWN((DATE(ML4,ML5,1)-(DATE(Premissas!$D$6,Premissas!$D$7,1)))/365,2)-1,ROUNDDOWN((DATE(ML4,ML5,1)-(DATE(Premissas!$D$6,Premissas!$D$7,1)))/365,2)),0) -> 28 | MM3: =ROUNDDOWN(IF(ROUNDDOWN((DATE(MM4,MM5,1)-(DATE(Premissas!$D$6,Premissas!$D$7,1)))/365,2)<0,ROUNDDOWN((DATE(MM4,MM5,1)-(DATE(Premissas!$D$6,Premissas!$D$7,1)))/365,2)-1,ROUNDDOWN((DATE(MM4,MM5,1)-(DATE(Premissas!$D$6,Premissas!$D$7,1)))/365,2)),0) -> 28 | MN3: =ROUNDDOWN(IF(ROUNDDOWN((DATE(MN4,MN5,1)-(DATE(Premissas!$D$6,Premissas!$D$7,1)))/365,2)<0,ROUNDDOWN((DATE(MN4,MN5,1)-(DATE(Premissas!$D$6,Premissas!$D$7,1)))/365,2)-1,ROUNDDOWN((DATE(MN4,MN5,1)-(DATE(Premissas!$D$6,Premissas!$D$7,1)))/365,2)),0) -> 28 | MO3: =ROUNDDOWN(IF(ROUNDDOWN((DATE(MO4,MO5,1)-(DATE(Premissas!$D$6,Premissas!$D$7,1)))/365,2)<0,ROUNDDOWN((DATE(MO4,MO5,1)-(DATE(Premissas!$D$6,Premissas!$D$7,1)))/365,2)-1,ROUNDDOWN((DATE(MO4,MO5,1)-(DATE(Premissas!$D$6,Premissas!$D$7,1)))/365,2)),0) -> 28 | MP3: =ROUNDDOWN(IF(ROUNDDOWN((DATE(MP4,MP5,1)-(DATE(Premissas!$D$6,Premissas!$D$7,1)))/365,2)<0,ROUNDDOWN((DATE(MP4,MP5,1)-(DATE(Premissas!$D$6,Premissas!$D$7,1)))/365,2)-1,ROUNDDOWN((DATE(MP4,MP5,1)-(DATE(Premissas!$D$6,Premissas!$D$7,1)))/365,2)),0) -> 28 | MQ3: =ROUNDDOWN(IF(ROUNDDOWN((DATE(MQ4,MQ5,1)-(DATE(Premissas!$D$6,Premissas!$D$7,1)))/365,2)<0,ROUNDDOWN((DATE(MQ4,MQ5,1)-(DATE(Premissas!$D$6,Premissas!$D$7,1)))/365,2)-1,ROUNDDOWN((DATE(MQ4,MQ5,1)-(DATE(Premissas!$D$6,Premissas!$D$7,1)))/365,2)),0) -> 28 | MR3: =ROUNDDOWN(IF(ROUNDDOWN((DATE(MR4,MR5,1)-(DATE(Premissas!$D$6,Premissas!$D$7,1)))/365,2)<0,ROUNDDOWN((DATE(MR4,MR5,1)-(DATE(Premissas!$D$6,Premissas!$D$7,1)))/365,2)-1,ROUNDDOWN((DATE(MR4,MR5,1)-(DATE(Premissas!$D$6,Premissas!$D$7,1)))/365,2)),0) -> 29 | MS3: =ROUNDDOWN(IF(ROUNDDOWN((DATE(MS4,MS5,1)-(DATE(Premissas!$D$6,Premissas!$D$7,1)))/365,2)<0,ROUNDDOWN((DATE(MS4,MS5,1)-(DATE(Premissas!$D$6,Premissas!$D$7,1)))/365,2)-1,ROUNDDOWN((DATE(MS4,MS5,1)-(DATE(Premissas!$D$6,Premissas!$D$7,1)))/365,2)),0) -> 29 | MT3: =ROUNDDOWN(IF(ROUNDDOWN((DATE(MT4,MT5,1)-(DATE(Premissas!$D$6,Premissas!$D$7,1)))/365,2)<0,ROUNDDOWN((DATE(MT4,MT5,1)-(DATE(Premissas!$D$6,Premissas!$D$7,1)))/365,2)-1,ROUNDDOWN((DATE(MT4,MT5,1)-(DATE(Premissas!$D$6,Premissas!$D$7,1)))/365,2)),0) -> 29 | MU3: =ROUNDDOWN(IF(ROUNDDOWN((DATE(MU4,MU5,1)-(DATE(Premissas!$D$6,Premissas!$D$7,1)))/365,2)<0,ROUNDDOWN((DATE(MU4,MU5,1)-(DATE(Premissas!$D$6,Premissas!$D$7,1)))/365,2)-1,ROUNDDOWN((DATE(MU4,MU5,1)-(DATE(Premissas!$D$6,Premissas!$D$7,1)))/365,2)),0) -> 29 | MV3: =ROUNDDOWN(IF(ROUNDDOWN((DATE(MV4,MV5,1)-(DATE(Premissas!$D$6,Premissas!$D$7,1)))/365,2)<0,ROUNDDOWN((DATE(MV4,MV5,1)-(DATE(Premissas!$D$6,Premissas!$D$7,1)))/365,2)-1,ROUNDDOWN((DATE(MV4,MV5,1)-(DATE(Premissas!$D$6,Premissas!$D$7,1)))/365,2)),0) -> 29 | MW3: =ROUNDDOWN(IF(ROUNDDOWN((DATE(MW4,MW5,1)-(DATE(Premissas!$D$6,Premissas!$D$7,1)))/365,2)<0,ROUNDDOWN((DATE(MW4,MW5,1)-(DATE(Premissas!$D$6,Premissas!$D$7,1)))/365,2)-1,ROUNDDOWN((DATE(MW4,MW5,1)-(DATE(Premissas!$D$6,Premissas!$D$7,1)))/365,2)),0) -> 29 | MX3: =ROUNDDOWN(IF(ROUNDDOWN((DATE(MX4,MX5,1)-(DATE(Premissas!$D$6,Premissas!$D$7,1)))/365,2)<0,ROUNDDOWN((DATE(MX4,MX5,1)-(DATE(Premissas!$D$6,Premissas!$D$7,1)))/365,2)-1,ROUNDDOWN((DATE(MX4,MX5,1)-(DATE(Premissas!$D$6,Premissas!$D$7,1)))/365,2)),0) -> 29 | MY3: =ROUNDDOWN(IF(ROUNDDOWN((DATE(MY4,MY5,1)-(DATE(Premissas!$D$6,Premissas!$D$7,1)))/365,2)<0,ROUNDDOWN((DATE(MY4,MY5,1)-(DATE(Premissas!$D$6,Premissas!$D$7,1)))/365,2)-1,ROUNDDOWN((DATE(MY4,MY5,1)-(DATE(Premissas!$D$6,Premissas!$D$7,1)))/365,2)),0) -> 29 | MZ3: =ROUNDDOWN(IF(ROUNDDOWN((DATE(MZ4,MZ5,1)-(DATE(Premissas!$D$6,Premissas!$D$7,1)))/365,2)<0,ROUNDDOWN((DATE(MZ4,MZ5,1)-(DATE(Premissas!$D$6,Premissas!$D$7,1)))/365,2)-1,ROUNDDOWN((DATE(MZ4,MZ5,1)-(DATE(Premissas!$D$6,Premissas!$D$7,1)))/365,2)),0) -> 29 | NA3: =ROUNDDOWN(IF(ROUNDDOWN((DATE(NA4,NA5,1)-(DATE(Premissas!$D$6,Premissas!$D$7,1)))/365,2)<0,ROUNDDOWN((DATE(NA4,NA5,1)-(DATE(Premissas!$D$6,Premissas!$D$7,1)))/365,2)-1,ROUNDDOWN((DATE(NA4,NA5,1)-(DATE(Premissas!$D$6,Premissas!$D$7,1)))/365,2)),0) -> 29 | NB3: =ROUNDDOWN(IF(ROUNDDOWN((DATE(NB4,NB5,1)-(DATE(Premissas!$D$6,Premissas!$D$7,1)))/365,2)<0,ROUNDDOWN((DATE(NB4,NB5,1)-(DATE(Premissas!$D$6,Premissas!$D$7,1)))/365,2)-1,ROUNDDOWN((DATE(NB4,NB5,1)-(DATE(Premissas!$D$6,Premissas!$D$7,1)))/365,2)),0) -> 29 | NC3: =ROUNDDOWN(IF(ROUNDDOWN((DATE(NC4,NC5,1)-(DATE(Premissas!$D$6,Premissas!$D$7,1)))/365,2)<0,ROUNDDOWN((DATE(NC4,NC5,1)-(DATE(Premissas!$D$6,Premissas!$D$7,1)))/365,2)-1,ROUNDDOWN((DATE(NC4,NC5,1)-(DATE(Premissas!$D$6,Premissas!$D$7,1)))/365,2)),0) -> 29 | ND3: =ROUNDDOWN(IF(ROUNDDOWN((DATE(ND4,ND5,1)-(DATE(Premissas!$D$6,Premissas!$D$7,1)))/365,2)<0,ROUNDDOWN((DATE(ND4,ND5,1)-(DATE(Premissas!$D$6,Premissas!$D$7,1)))/365,2)-1,ROUNDDOWN((DATE(ND4,ND5,1)-(DATE(Premissas!$D$6,Premissas!$D$7,1)))/365,2)),0) -> 30 | NE3: =ROUNDDOWN(IF(ROUNDDOWN((DATE(NE4,NE5,1)-(DATE(Premissas!$D$6,Premissas!$D$7,1)))/365,2)<0,ROUNDDOWN((DATE(NE4,NE5,1)-(DATE(Premissas!$D$6,Premissas!$D$7,1)))/365,2)-1,ROUNDDOWN((DATE(NE4,NE5,1)-(DATE(Premissas!$D$6,Premissas!$D$7,1)))/365,2)),0) -> 30 | NF3: =ROUNDDOWN(IF(ROUNDDOWN((DATE(NF4,NF5,1)-(DATE(Premissas!$D$6,Premissas!$D$7,1)))/365,2)<0,ROUNDDOWN((DATE(NF4,NF5,1)-(DATE(Premissas!$D$6,Premissas!$D$7,1)))/365,2)-1,ROUNDDOWN((DATE(NF4,NF5,1)-(DATE(Premissas!$D$6,Premissas!$D$7,1)))/365,2)),0) -> 30 | NG3: =ROUNDDOWN(IF(ROUNDDOWN((DATE(NG4,NG5,1)-(DATE(Premissas!$D$6,Premissas!$D$7,1)))/365,2)<0,ROUNDDOWN((DATE(NG4,NG5,1)-(DATE(Premissas!$D$6,Premissas!$D$7,1)))/365,2)-1,ROUNDDOWN((DATE(NG4,NG5,1)-(DATE(Premissas!$D$6,Premissas!$D$7,1)))/365,2)),0) -> 30 | NH3: =ROUNDDOWN(IF(ROUNDDOWN((DATE(NH4,NH5,1)-(DATE(Premissas!$D$6,Premissas!$D$7,1)))/365,2)<0,ROUNDDOWN((DATE(NH4,NH5,1)-(DATE(Premissas!$D$6,Premissas!$D$7,1)))/365,2)-1,ROUNDDOWN((DATE(NH4,NH5,1)-(DATE(Premissas!$D$6,Premissas!$D$7,1)))/365,2)),0) -> 30 | NI3: =ROUNDDOWN(IF(ROUNDDOWN((DATE(NI4,NI5,1)-(DATE(Premissas!$D$6,Premissas!$D$7,1)))/365,2)<0,ROUNDDOWN((DATE(NI4,NI5,1)-(DATE(Premissas!$D$6,Premissas!$D$7,1)))/365,2)-1,ROUNDDOWN((DATE(NI4,NI5,1)-(DATE(Premissas!$D$6,Premissas!$D$7,1)))/365,2)),0) -> 30 | NJ3: =ROUNDDOWN(IF(ROUNDDOWN((DATE(NJ4,NJ5,1)-(DATE(Premissas!$D$6,Premissas!$D$7,1)))/365,2)<0,ROUNDDOWN((DATE(NJ4,NJ5,1)-(DATE(Premissas!$D$6,Premissas!$D$7,1)))/365,2)-1,ROUNDDOWN((DATE(NJ4,NJ5,1)-(DATE(Premissas!$D$6,Premissas!$D$7,1)))/365,2)),0) -> 30 | NK3: =ROUNDDOWN(IF(ROUNDDOWN((DATE(NK4,NK5,1)-(DATE(Premissas!$D$6,Premissas!$D$7,1)))/365,2)<0,ROUNDDOWN((DATE(NK4,NK5,1)-(DATE(Premissas!$D$6,Premissas!$D$7,1)))/365,2)-1,ROUNDDOWN((DATE(NK4,NK5,1)-(DATE(Premissas!$D$6,Premissas!$D$7,1)))/365,2)),0) -> 30 | NL3: =ROUNDDOWN(IF(ROUNDDOWN((DATE(NL4,NL5,1)-(DATE(Premissas!$D$6,Premissas!$D$7,1)))/365,2)<0,ROUNDDOWN((DATE(NL4,NL5,1)-(DATE(Premissas!$D$6,Premissas!$D$7,1)))/365,2)-1,ROUNDDOWN((DATE(NL4,NL5,1)-(DATE(Premissas!$D$6,Premissas!$D$7,1)))/365,2)),0) -> 30 | NM3: =ROUNDDOWN(IF(ROUNDDOWN((DATE(NM4,NM5,1)-(DATE(Premissas!$D$6,Premissas!$D$7,1)))/365,2)<0,ROUNDDOWN((DATE(NM4,NM5,1)-(DATE(Premissas!$D$6,Premissas!$D$7,1)))/365,2)-1,ROUNDDOWN((DATE(NM4,NM5,1)-(DATE(Premissas!$D$6,Premissas!$D$7,1)))/365,2)),0) -> 30 | NN3: =ROUNDDOWN(IF(ROUNDDOWN((DATE(NN4,NN5,1)-(DATE(Premissas!$D$6,Premissas!$D$7,1)))/365,2)<0,ROUNDDOWN((DATE(NN4,NN5,1)-(DATE(Premissas!$D$6,Premissas!$D$7,1)))/365,2)-1,ROUNDDOWN((DATE(NN4,NN5,1)-(DATE(Premissas!$D$6,Premissas!$D$7,1)))/365,2)),0) -> 30 | NO3: =ROUNDDOWN(IF(ROUNDDOWN((DATE(NO4,NO5,1)-(DATE(Premissas!$D$6,Premissas!$D$7,1)))/365,2)<0,ROUNDDOWN((DATE(NO4,NO5,1)-(DATE(Premissas!$D$6,Premissas!$D$7,1)))/365,2)-1,ROUNDDOWN((DATE(NO4,NO5,1)-(DATE(Premissas!$D$6,Premissas!$D$7,1)))/365,2)),0) -> 30 | NP3: =ROUNDDOWN(IF(ROUNDDOWN((DATE(NP4,NP5,1)-(DATE(Premissas!$D$6,Premissas!$D$7,1)))/365,2)<0,ROUNDDOWN((DATE(NP4,NP5,1)-(DATE(Premissas!$D$6,Premissas!$D$7,1)))/365,2)-1,ROUNDDOWN((DATE(NP4,NP5,1)-(DATE(Premissas!$D$6,Premissas!$D$7,1)))/365,2)),0) -> 31 | NQ3: =ROUNDDOWN(IF(ROUNDDOWN((DATE(NQ4,NQ5,1)-(DATE(Premissas!$D$6,Premissas!$D$7,1)))/365,2)<0,ROUNDDOWN((DATE(NQ4,NQ5,1)-(DATE(Premissas!$D$6,Premissas!$D$7,1)))/365,2)-1,ROUNDDOWN((DATE(NQ4,NQ5,1)-(DATE(Premissas!$D$6,Premissas!$D$7,1)))/365,2)),0) -> 31 | NR3: =ROUNDDOWN(IF(ROUNDDOWN((DATE(NR4,NR5,1)-(DATE(Premissas!$D$6,Premissas!$D$7,1)))/365,2)<0,ROUNDDOWN((DATE(NR4,NR5,1)-(DATE(Premissas!$D$6,Premissas!$D$7,1)))/365,2)-1,ROUNDDOWN((DATE(NR4,NR5,1)-(DATE(Premissas!$D$6,Premissas!$D$7,1)))/365,2)),0) -> 31 | NS3: =ROUNDDOWN(IF(ROUNDDOWN((DATE(NS4,NS5,1)-(DATE(Premissas!$D$6,Premissas!$D$7,1)))/365,2)<0,ROUNDDOWN((DATE(NS4,NS5,1)-(DATE(Premissas!$D$6,Premissas!$D$7,1)))/365,2)-1,ROUNDDOWN((DATE(NS4,NS5,1)-(DATE(Premissas!$D$6,Premissas!$D$7,1)))/365,2)),0) -> 31 | NT3: =ROUNDDOWN(IF(ROUNDDOWN((DATE(NT4,NT5,1)-(DATE(Premissas!$D$6,Premissas!$D$7,1)))/365,2)<0,ROUNDDOWN((DATE(NT4,NT5,1)-(DATE(Premissas!$D$6,Premissas!$D$7,1)))/365,2)-1,ROUNDDOWN((DATE(NT4,NT5,1)-(DATE(Premissas!$D$6,Premissas!$D$7,1)))/365,2)),0) -> 31 | NU3: =ROUNDDOWN(IF(ROUNDDOWN((DATE(NU4,NU5,1)-(DATE(Premissas!$D$6,Premissas!$D$7,1)))/365,2)<0,ROUNDDOWN((DATE(NU4,NU5,1)-(DATE(Premissas!$D$6,Premissas!$D$7,1)))/365,2)-1,ROUNDDOWN((DATE(NU4,NU5,1)-(DATE(Premissas!$D$6,Premissas!$D$7,1)))/365,2)),0) -> 31 | NV3: =ROUNDDOWN(IF(ROUNDDOWN((DATE(NV4,NV5,1)-(DATE(Premissas!$D$6,Premissas!$D$7,1)))/365,2)<0,ROUNDDOWN((DATE(NV4,NV5,1)-(DATE(Premissas!$D$6,Premissas!$D$7,1)))/365,2)-1,ROUNDDOWN((DATE(NV4,NV5,1)-(DATE(Premissas!$D$6,Premissas!$D$7,1)))/365,2)),0) -> 31 | NW3: =ROUNDDOWN(IF(ROUNDDOWN((DATE(NW4,NW5,1)-(DATE(Premissas!$D$6,Premissas!$D$7,1)))/365,2)<0,ROUNDDOWN((DATE(NW4,NW5,1)-(DATE(Premissas!$D$6,Premissas!$D$7,1)))/365,2)-1,ROUNDDOWN((DATE(NW4,NW5,1)-(DATE(Premissas!$D$6,Premissas!$D$7,1)))/365,2)),0) -> 31 | NX3: =ROUNDDOWN(IF(ROUNDDOWN((DATE(NX4,NX5,1)-(DATE(Premissas!$D$6,Premissas!$D$7,1)))/365,2)<0,ROUNDDOWN((DATE(NX4,NX5,1)-(DATE(Premissas!$D$6,Premissas!$D$7,1)))/365,2)-1,ROUNDDOWN((DATE(NX4,NX5,1)-(DATE(Premissas!$D$6,Premissas!$D$7,1)))/365,2)),0) -> 31 | NY3: =ROUNDDOWN(IF(ROUNDDOWN((DATE(NY4,NY5,1)-(DATE(Premissas!$D$6,Premissas!$D$7,1)))/365,2)<0,ROUNDDOWN((DATE(NY4,NY5,1)-(DATE(Premissas!$D$6,Premissas!$D$7,1)))/365,2)-1,ROUNDDOWN((DATE(NY4,NY5,1)-(DATE(Premissas!$D$6,Premissas!$D$7,1)))/365,2)),0) -> 31 | NZ3: =ROUNDDOWN(IF(ROUNDDOWN((DATE(NZ4,NZ5,1)-(DATE(Premissas!$D$6,Premissas!$D$7,1)))/365,2)<0,ROUNDDOWN((DATE(NZ4,NZ5,1)-(DATE(Premissas!$D$6,Premissas!$D$7,1)))/365,2)-1,ROUNDDOWN((DATE(NZ4,NZ5,1)-(DATE(Premissas!$D$6,Premissas!$D$7,1)))/365,2)),0) -> 31 | OA3: =ROUNDDOWN(IF(ROUNDDOWN((DATE(OA4,OA5,1)-(DATE(Premissas!$D$6,Premissas!$D$7,1)))/365,2)<0,ROUNDDOWN((DATE(OA4,OA5,1)-(DATE(Premissas!$D$6,Premissas!$D$7,1)))/365,2)-1,ROUNDDOWN((DATE(OA4,OA5,1)-(DATE(Premissas!$D$6,Premissas!$D$7,1)))/365,2)),0) -> 31 | OB3: =ROUNDDOWN(IF(ROUNDDOWN((DATE(OB4,OB5,1)-(DATE(Premissas!$D$6,Premissas!$D$7,1)))/365,2)<0,ROUNDDOWN((DATE(OB4,OB5,1)-(DATE(Premissas!$D$6,Premissas!$D$7,1)))/365,2)-1,ROUNDDOWN((DATE(OB4,OB5,1)-(DATE(Premissas!$D$6,Premissas!$D$7,1)))/365,2)),0) -> 32 | OC3: =ROUNDDOWN(IF(ROUNDDOWN((DATE(OC4,OC5,1)-(DATE(Premissas!$D$6,Premissas!$D$7,1)))/365,2)<0,ROUNDDOWN((DATE(OC4,OC5,1)-(DATE(Premissas!$D$6,Premissas!$D$7,1)))/365,2)-1,ROUNDDOWN((DATE(OC4,OC5,1)-(DATE(Premissas!$D$6,Premissas!$D$7,1)))/365,2)),0) -> 32 | OD3: =ROUNDDOWN(IF(ROUNDDOWN((DATE(OD4,OD5,1)-(DATE(Premissas!$D$6,Premissas!$D$7,1)))/365,2)<0,ROUNDDOWN((DATE(OD4,OD5,1)-(DATE(Premissas!$D$6,Premissas!$D$7,1)))/365,2)-1,ROUNDDOWN((DATE(OD4,OD5,1)-(DATE(Premissas!$D$6,Premissas!$D$7,1)))/365,2)),0) -> 32 | OE3: =ROUNDDOWN(IF(ROUNDDOWN((DATE(OE4,OE5,1)-(DATE(Premissas!$D$6,Premissas!$D$7,1)))/365,2)<0,ROUNDDOWN((DATE(OE4,OE5,1)-(DATE(Premissas!$D$6,Premissas!$D$7,1)))/365,2)-1,ROUNDDOWN((DATE(OE4,OE5,1)-(DATE(Premissas!$D$6,Premissas!$D$7,1)))/365,2)),0) -> 32 | OF3: =ROUNDDOWN(IF(ROUNDDOWN((DATE(OF4,OF5,1)-(DATE(Premissas!$D$6,Premissas!$D$7,1)))/365,2)<0,ROUNDDOWN((DATE(OF4,OF5,1)-(DATE(Premissas!$D$6,Premissas!$D$7,1)))/365,2)-1,ROUNDDOWN((DATE(OF4,OF5,1)-(DATE(Premissas!$D$6,Premissas!$D$7,1)))/365,2)),0) -> 32 | OG3: =ROUNDDOWN(IF(ROUNDDOWN((DATE(OG4,OG5,1)-(DATE(Premissas!$D$6,Premissas!$D$7,1)))/365,2)<0,ROUNDDOWN((DATE(OG4,OG5,1)-(DATE(Premissas!$D$6,Premissas!$D$7,1)))/365,2)-1,ROUNDDOWN((DATE(OG4,OG5,1)-(DATE(Premissas!$D$6,Premissas!$D$7,1)))/365,2)),0) -> 32 | OH3: =ROUNDDOWN(IF(ROUNDDOWN((DATE(OH4,OH5,1)-(DATE(Premissas!$D$6,Premissas!$D$7,1)))/365,2)<0,ROUNDDOWN((DATE(OH4,OH5,1)-(DATE(Premissas!$D$6,Premissas!$D$7,1)))/365,2)-1,ROUNDDOWN((DATE(OH4,OH5,1)-(DATE(Premissas!$D$6,Premissas!$D$7,1)))/365,2)),0) -> 32 | OI3: =ROUNDDOWN(IF(ROUNDDOWN((DATE(OI4,OI5,1)-(DATE(Premissas!$D$6,Premissas!$D$7,1)))/365,2)<0,ROUNDDOWN((DATE(OI4,OI5,1)-(DATE(Premissas!$D$6,Premissas!$D$7,1)))/365,2)-1,ROUNDDOWN((DATE(OI4,OI5,1)-(DATE(Premissas!$D$6,Premissas!$D$7,1)))/365,2)),0) -> 32 | OJ3: =ROUNDDOWN(IF(ROUNDDOWN((DATE(OJ4,OJ5,1)-(DATE(Premissas!$D$6,Premissas!$D$7,1)))/365,2)<0,ROUNDDOWN((DATE(OJ4,OJ5,1)-(DATE(Premissas!$D$6,Premissas!$D$7,1)))/365,2)-1,ROUNDDOWN((DATE(OJ4,OJ5,1)-(DATE(Premissas!$D$6,Premissas!$D$7,1)))/365,2)),0) -> 32 | OK3: =ROUNDDOWN(IF(ROUNDDOWN((DATE(OK4,OK5,1)-(DATE(Premissas!$D$6,Premissas!$D$7,1)))/365,2)<0,ROUNDDOWN((DATE(OK4,OK5,1)-(DATE(Premissas!$D$6,Premissas!$D$7,1)))/365,2)-1,ROUNDDOWN((DATE(OK4,OK5,1)-(DATE(Premissas!$D$6,Premissas!$D$7,1)))/365,2)),0) -> 32 | OL3: =ROUNDDOWN(IF(ROUNDDOWN((DATE(OL4,OL5,1)-(DATE(Premissas!$D$6,Premissas!$D$7,1)))/365,2)<0,ROUNDDOWN((DATE(OL4,OL5,1)-(DATE(Premissas!$D$6,Premissas!$D$7,1)))/365,2)-1,ROUNDDOWN((DATE(OL4,OL5,1)-(DATE(Premissas!$D$6,Premissas!$D$7,1)))/365,2)),0) -> 32 | OM3: =ROUNDDOWN(IF(ROUNDDOWN((DATE(OM4,OM5,1)-(DATE(Premissas!$D$6,Premissas!$D$7,1)))/365,2)<0,ROUNDDOWN((DATE(OM4,OM5,1)-(DATE(Premissas!$D$6,Premissas!$D$7,1)))/365,2)-1,ROUNDDOWN((DATE(OM4,OM5,1)-(DATE(Premissas!$D$6,Premissas!$D$7,1)))/365,2)),0) -> 32 | ON3: =ROUNDDOWN(IF(ROUNDDOWN((DATE(ON4,ON5,1)-(DATE(Premissas!$D$6,Premissas!$D$7,1)))/365,2)<0,ROUNDDOWN((DATE(ON4,ON5,1)-(DATE(Premissas!$D$6,Premissas!$D$7,1)))/365,2)-1,ROUNDDOWN((DATE(ON4,ON5,1)-(DATE(Premissas!$D$6,Premissas!$D$7,1)))/365,2)),0) -> 33 | OO3: =ROUNDDOWN(IF(ROUNDDOWN((DATE(OO4,OO5,1)-(DATE(Premissas!$D$6,Premissas!$D$7,1)))/365,2)<0,ROUNDDOWN((DATE(OO4,OO5,1)-(DATE(Premissas!$D$6,Premissas!$D$7,1)))/365,2)-1,ROUNDDOWN((DATE(OO4,OO5,1)-(DATE(Premissas!$D$6,Premissas!$D$7,1)))/365,2)),0) -> 33 | OP3: =ROUNDDOWN(IF(ROUNDDOWN((DATE(OP4,OP5,1)-(DATE(Premissas!$D$6,Premissas!$D$7,1)))/365,2)<0,ROUNDDOWN((DATE(OP4,OP5,1)-(DATE(Premissas!$D$6,Premissas!$D$7,1)))/365,2)-1,ROUNDDOWN((DATE(OP4,OP5,1)-(DATE(Premissas!$D$6,Premissas!$D$7,1)))/365,2)),0) -> 33 | OQ3: =ROUNDDOWN(IF(ROUNDDOWN((DATE(OQ4,OQ5,1)-(DATE(Premissas!$D$6,Premissas!$D$7,1)))/365,2)<0,ROUNDDOWN((DATE(OQ4,OQ5,1)-(DATE(Premissas!$D$6,Premissas!$D$7,1)))/365,2)-1,ROUNDDOWN((DATE(OQ4,OQ5,1)-(DATE(Premissas!$D$6,Premissas!$D$7,1)))/365,2)),0) -> 33 | OR3: =ROUNDDOWN(IF(ROUNDDOWN((DATE(OR4,OR5,1)-(DATE(Premissas!$D$6,Premissas!$D$7,1)))/365,2)<0,ROUNDDOWN((DATE(OR4,OR5,1)-(DATE(Premissas!$D$6,Premissas!$D$7,1)))/365,2)-1,ROUNDDOWN((DATE(OR4,OR5,1)-(DATE(Premissas!$D$6,Premissas!$D$7,1)))/365,2)),0) -> 33 | OS3: =ROUNDDOWN(IF(ROUNDDOWN((DATE(OS4,OS5,1)-(DATE(Premissas!$D$6,Premissas!$D$7,1)))/365,2)<0,ROUNDDOWN((DATE(OS4,OS5,1)-(DATE(Premissas!$D$6,Premissas!$D$7,1)))/365,2)-1,ROUNDDOWN((DATE(OS4,OS5,1)-(DATE(Premissas!$D$6,Premissas!$D$7,1)))/365,2)),0) -> 33 | OT3: =ROUNDDOWN(IF(ROUNDDOWN((DATE(OT4,OT5,1)-(DATE(Premissas!$D$6,Premissas!$D$7,1)))/365,2)<0,ROUNDDOWN((DATE(OT4,OT5,1)-(DATE(Premissas!$D$6,Premissas!$D$7,1)))/365,2)-1,ROUNDDOWN((DATE(OT4,OT5,1)-(DATE(Premissas!$D$6,Premissas!$D$7,1)))/365,2)),0) -> 33 | OU3: =ROUNDDOWN(IF(ROUNDDOWN((DATE(OU4,OU5,1)-(DATE(Premissas!$D$6,Premissas!$D$7,1)))/365,2)<0,ROUNDDOWN((DATE(OU4,OU5,1)-(DATE(Premissas!$D$6,Premissas!$D$7,1)))/365,2)-1,ROUNDDOWN((DATE(OU4,OU5,1)-(DATE(Premissas!$D$6,Premissas!$D$7,1)))/365,2)),0) -> 33 | OV3: =ROUNDDOWN(IF(ROUNDDOWN((DATE(OV4,OV5,1)-(DATE(Premissas!$D$6,Premissas!$D$7,1)))/365,2)<0,ROUNDDOWN((DATE(OV4,OV5,1)-(DATE(Premissas!$D$6,Premissas!$D$7,1)))/365,2)-1,ROUNDDOWN((DATE(OV4,OV5,1)-(DATE(Premissas!$D$6,Premissas!$D$7,1)))/365,2)),0) -> 33 | OW3: =ROUNDDOWN(IF(ROUNDDOWN((DATE(OW4,OW5,1)-(DATE(Premissas!$D$6,Premissas!$D$7,1)))/365,2)<0,ROUNDDOWN((DATE(OW4,OW5,1)-(DATE(Premissas!$D$6,Premissas!$D$7,1)))/365,2)-1,ROUNDDOWN((DATE(OW4,OW5,1)-(DATE(Premissas!$D$6,Premissas!$D$7,1)))/365,2)),0) -> 33 | OX3: =ROUNDDOWN(IF(ROUNDDOWN((DATE(OX4,OX5,1)-(DATE(Premissas!$D$6,Premissas!$D$7,1)))/365,2)<0,ROUNDDOWN((DATE(OX4,OX5,1)-(DATE(Premissas!$D$6,Premissas!$D$7,1)))/365,2)-1,ROUNDDOWN((DATE(OX4,OX5,1)-(DATE(Premissas!$D$6,Premissas!$D$7,1)))/365,2)),0) -> 33 | OY3: =ROUNDDOWN(IF(ROUNDDOWN((DATE(OY4,OY5,1)-(DATE(Premissas!$D$6,Premissas!$D$7,1)))/365,2)<0,ROUNDDOWN((DATE(OY4,OY5,1)-(DATE(Premissas!$D$6,Premissas!$D$7,1)))/365,2)-1,ROUNDDOWN((DATE(OY4,OY5,1)-(DATE(Premissas!$D$6,Premissas!$D$7,1)))/365,2)),0) -> 33 | OZ3: =ROUNDDOWN(IF(ROUNDDOWN((DATE(OZ4,OZ5,1)-(DATE(Premissas!$D$6,Premissas!$D$7,1)))/365,2)<0,ROUNDDOWN((DATE(OZ4,OZ5,1)-(DATE(Premissas!$D$6,Premissas!$D$7,1)))/365,2)-1,ROUNDDOWN((DATE(OZ4,OZ5,1)-(DATE(Premissas!$D$6,Premissas!$D$7,1)))/365,2)),0) -> 34 | PA3: =ROUNDDOWN(IF(ROUNDDOWN((DATE(PA4,PA5,1)-(DATE(Premissas!$D$6,Premissas!$D$7,1)))/365,2)<0,ROUNDDOWN((DATE(PA4,PA5,1)-(DATE(Premissas!$D$6,Premissas!$D$7,1)))/365,2)-1,ROUNDDOWN((DATE(PA4,PA5,1)-(DATE(Premissas!$D$6,Premissas!$D$7,1)))/365,2)),0) -> 34 | PB3: =ROUNDDOWN(IF(ROUNDDOWN((DATE(PB4,PB5,1)-(DATE(Premissas!$D$6,Premissas!$D$7,1)))/365,2)<0,ROUNDDOWN((DATE(PB4,PB5,1)-(DATE(Premissas!$D$6,Premissas!$D$7,1)))/365,2)-1,ROUNDDOWN((DATE(PB4,PB5,1)-(DATE(Premissas!$D$6,Premissas!$D$7,1)))/365,2)),0) -> 34 | PC3: =ROUNDDOWN(IF(ROUNDDOWN((DATE(PC4,PC5,1)-(DATE(Premissas!$D$6,Premissas!$D$7,1)))/365,2)<0,ROUNDDOWN((DATE(PC4,PC5,1)-(DATE(Premissas!$D$6,Premissas!$D$7,1)))/365,2)-1,ROUNDDOWN((DATE(PC4,PC5,1)-(DATE(Premissas!$D$6,Premissas!$D$7,1)))/365,2)),0) -> 34 | PD3: =ROUNDDOWN(IF(ROUNDDOWN((DATE(PD4,PD5,1)-(DATE(Premissas!$D$6,Premissas!$D$7,1)))/365,2)<0,ROUNDDOWN((DATE(PD4,PD5,1)-(DATE(Premissas!$D$6,Premissas!$D$7,1)))/365,2)-1,ROUNDDOWN((DATE(PD4,PD5,1)-(DATE(Premissas!$D$6,Premissas!$D$7,1)))/365,2)),0) -> 34 | PE3: =ROUNDDOWN(IF(ROUNDDOWN((DATE(PE4,PE5,1)-(DATE(Premissas!$D$6,Premissas!$D$7,1)))/365,2)<0,ROUNDDOWN((DATE(PE4,PE5,1)-(DATE(Premissas!$D$6,Premissas!$D$7,1)))/365,2)-1,ROUNDDOWN((DATE(PE4,PE5,1)-(DATE(Premissas!$D$6,Premissas!$D$7,1)))/365,2)),0) -> 34 | PF3: =ROUNDDOWN(IF(ROUNDDOWN((DATE(PF4,PF5,1)-(DATE(Premissas!$D$6,Premissas!$D$7,1)))/365,2)<0,ROUNDDOWN((DATE(PF4,PF5,1)-(DATE(Premissas!$D$6,Premissas!$D$7,1)))/365,2)-1,ROUNDDOWN((DATE(PF4,PF5,1)-(DATE(Premissas!$D$6,Premissas!$D$7,1)))/365,2)),0) -> 34 | PG3: =ROUNDDOWN(IF(ROUNDDOWN((DATE(PG4,PG5,1)-(DATE(Premissas!$D$6,Premissas!$D$7,1)))/365,2)<0,ROUNDDOWN((DATE(PG4,PG5,1)-(DATE(Premissas!$D$6,Premissas!$D$7,1)))/365,2)-1,ROUNDDOWN((DATE(PG4,PG5,1)-(DATE(Premissas!$D$6,Premissas!$D$7,1)))/365,2)),0) -> 34 | PH3: =ROUNDDOWN(IF(ROUNDDOWN((DATE(PH4,PH5,1)-(DATE(Premissas!$D$6,Premissas!$D$7,1)))/365,2)<0,ROUNDDOWN((DATE(PH4,PH5,1)-(DATE(Premissas!$D$6,Premissas!$D$7,1)))/365,2)-1,ROUNDDOWN((DATE(PH4,PH5,1)-(DATE(Premissas!$D$6,Premissas!$D$7,1)))/365,2)),0) -> 34 | PI3: =ROUNDDOWN(IF(ROUNDDOWN((DATE(PI4,PI5,1)-(DATE(Premissas!$D$6,Premissas!$D$7,1)))/365,2)<0,ROUNDDOWN((DATE(PI4,PI5,1)-(DATE(Premissas!$D$6,Premissas!$D$7,1)))/365,2)-1,ROUNDDOWN((DATE(PI4,PI5,1)-(DATE(Premissas!$D$6,Premissas!$D$7,1)))/365,2)),0) -> 34 | PJ3: =ROUNDDOWN(IF(ROUNDDOWN((DATE(PJ4,PJ5,1)-(DATE(Premissas!$D$6,Premissas!$D$7,1)))/365,2)<0,ROUNDDOWN((DATE(PJ4,PJ5,1)-(DATE(Premissas!$D$6,Premissas!$D$7,1)))/365,2)-1,ROUNDDOWN((DATE(PJ4,PJ5,1)-(DATE(Premissas!$D$6,Premissas!$D$7,1)))/365,2)),0) -> 34 | PK3: =ROUNDDOWN(IF(ROUNDDOWN((DATE(PK4,PK5,1)-(DATE(Premissas!$D$6,Premissas!$D$7,1)))/365,2)<0,ROUNDDOWN((DATE(PK4,PK5,1)-(DATE(Premissas!$D$6,Premissas!$D$7,1)))/365,2)-1,ROUNDDOWN((DATE(PK4,PK5,1)-(DATE(Premissas!$D$6,Premissas!$D$7,1)))/365,2)),0) -> 34
F4: Ano | G4: 2021 | H4: =Premissas!$D$6 -> 2023 | I4: =IF(H5=12,H4+1,H4) -> 2023 | J4: 2023 | K4: 2023 | L4: 2023 | M4: 2023 | N4: 2023 | O4: =IF(N5=12,N4+1,N4) -> 2023 | P4: 2023 | Q4: 2023 | R4: 2023 | S4: 2023 | T4: 2024 | U4: 2024 | V4: 2024 | W4: 2024 | X4: 2024 | Y4: 2024 | Z4: 2024 | AA4: 2024 | AB4: 2024 | AC4: 2024 | AD4: 2024 | AE4: 2024 | AF4: 2025 | AG4: 2025 | AH4: 2025 | AI4: 2025 | AJ4: 2025 | AK4: 2025 | AL4: 2025 | AM4: 2025 | AN4: 2025 | AO4: 2025 | AP4: 2025 | AQ4: 2025 | AR4: 2026 | AS4: 2026 | AT4: 2026 | AU4: 2026 | AV4: 2026 | AW4: 2026 | AX4: 2026 | AY4: 2026 | AZ4: 2026 | BA4: 2026 | BB4: 2026 | BC4: 2026 | BD4: 2027 | BE4: 2027 | BF4: 2027 | BG4: 2027 | BH4: 2027 | BI4: 2027 | BJ4: 2027 | BK4: 2027 | BL4: 2027 | BM4: 2027 | BN4: 2027 | BO4: 2027 | BP4: 2028 | BQ4: 2028 | BR4: 2028 | BS4: 2028 | BT4: 2028 | BU4: 2028 | BV4: 2028 | BW4: 2028 | BX4: 2028 | BY4: 2028 | BZ4: 2028 | CA4: =IF(BZ5=12,BZ4+1,BZ4) -> 2028 | CB4: 2029 | CC4: 2029 | CD4: 2029 | CE4: 2029 | CF4: 2029 | CG4: 2029 | CH4: 2029 | CI4: 2029 | CJ4: 2029 | CK4: 2029 | CL4: 2029 | CM4: 2029 | CN4: 2030 | CO4: 2030 | CP4: 2030 | CQ4: 2030 | CR4: 2030 | CS4: 2030 | CT4: 2030 | CU4: 2030 | CV4: 2030 | CW4: 2030 | CX4: 2030 | CY4: 2030 | CZ4: 2031 | DA4: 2031 | DB4: 2031 | DC4: 2031 | DD4: 2031 | DE4: 2031 | DF4: 2031 | DG4: 2031 | DH4: 2031 | DI4: 2031 | DJ4: 2031 | DK4: 2031 | DL4: 2032 | DM4: 2032 | DN4: 2032 | DO4: 2032 | DP4: 2032 | DQ4: 2032 | DR4: 2032 | DS4: 2032 | DT4: 2032 | DU4: 2032 | DV4: 2032 | DW4: 2032 | DX4: 2033 | DY4: 2033 | DZ4: 2033 | EA4: 2033 | EB4: 2033 | EC4: 2033 | ED4: 2033 | EE4: 2033 | EF4: 2033 | EG4: 2033 | EH4: 2033 | EI4: 2033 | EJ4: 2034 | EK4: 2034 | EL4: 2034 | EM4: =IF(EL5=12,EL4+1,EL4) -> 2034 | EN4: 2034 | EO4: 2034 | EP4: 2034 | EQ4: 2034 | ER4: 2034 | ES4: 2034 | ET4: 2034 | EU4: 2034 | EV4: 2035 | EW4: 2035 | EX4: 2035 | EY4: 2035 | EZ4: 2035 | FA4: 2035 | FB4: 2035 | FC4: 2035 | FD4: 2035 | FE4: 2035 | FF4: 2035 | FG4: 2035 | FH4: 2036 | FI4: 2036 | FJ4: 2036 | FK4: 2036 | FL4: 2036 | FM4: 2036 | FN4: 2036 | FO4: 2036 | FP4: 2036 | FQ4: 2036 | FR4: 2036 | FS4: 2036 | FT4: 2037 | FU4: 2037 | FV4: 2037 | FW4: 2037 | FX4: 2037 | FY4: 2037 | FZ4: 2037 | GA4: 2037 | GB4: 2037 | GC4: 2037 | GD4: 2037 | GE4: 2037 | GF4: 2038 | GG4: 2038 | GH4: 2038 | GI4: 2038 | GJ4: 2038 | GK4: 2038 | GL4: 2038 | GM4: 2038 | GN4: 2038 | GO4: 2038 | GP4: 2038 | GQ4: 2038 | GR4: 2039 | GS4: 2039 | GT4: 2039 | GU4: 2039 | GV4: 2039 | GW4: 2039 | GX4: 2039 | GY4: =IF(GX5=12,GX4+1,GX4) -> 2039 | GZ4: 2039 | HA4: 2039 | HB4: 2039 | HC4: 2039 | HD4: 2040 | HE4: 2040 | HF4: 2040 | HG4: 2040 | HH4: 2040 | HI4: 2040 | HJ4: 2040 | HK4: 2040 | HL4: 2040 | HM4: 2040 | HN4: 2040 | HO4: 2040 | HP4: 2041 | HQ4: 2041 | HR4: 2041 | HS4: 2041 | HT4: 2041 | HU4: 2041 | HV4: 2041 | HW4: 2041 | HX4: 2041 | HY4: 2041 | HZ4: 2041 | IA4: 2041 | IB4: 2042 | IC4: 2042 | ID4: 2042 | IE4: 2042 | IF4: 2042 | IG4: 2042 | IH4: 2042 | II4: 2042 | IJ4: 2042 | IK4: 2042 | IL4: 2042 | IM4: 2042 | IN4: 2043 | IO4: 2043 | IP4: 2043 | IQ4: 2043 | IR4: 2043 | IS4: 2043 | IT4: 2043 | IU4: 2043 | IV4: 2043 | IW4: 2043 | IX4: 2043 | IY4: 2043 | IZ4: 2044 | JA4: 2044 | JB4: 2044 | JC4: 2044 | JD4: 2044 | JE4: 2044 | JF4: 2044 | JG4: 2044 | JH4: 2044 | JI4: 2044 | JJ4: 2044 | JK4: =IF(JJ5=12,JJ4+1,JJ4) -> 2044 | JL4: 2045 | JM4: 2045 | JN4: 2045 | JO4: 2045 | JP4: 2045 | JQ4: 2045 | JR4: 2045 | JS4: 2045 | JT4: 2045 | JU4: 2045 | JV4: 2045 | JW4: 2045 | JX4: 2046 | JY4: 2046 | JZ4: 2046 | KA4: 2046 | KB4: 2046 | KC4: 2046 | KD4: 2046 | KE4: 2046 | KF4: 2046 | KG4: 2046 | KH4: 2046 | KI4: 2046 | KJ4: 2047 | KK4: 2047 | KL4: 2047 | KM4: 2047 | KN4: 2047 | KO4: 2047 | KP4: 2047 | KQ4: 2047 | KR4: 2047 | KS4: 2047 | KT4: 2047 | KU4: 2047 | KV4: 2048 | KW4: 2048 | KX4: 2048 | KY4: 2048 | KZ4: 2048 | LA4: 2048 | LB4: 2048 | LC4: 2048 | LD4: 2048 | LE4: 2048 | LF4: 2048 | LG4: 2048 | LH4: 2049 | LI4: 2049 | LJ4: 2049 | LK4: 2049 | LL4: 2049 | LM4: 2049 | LN4: 2049 | LO4: 2049 | LP4: 2049 | LQ4: 2049 | LR4: 2049 | LS4: 2049 | LT4: 2050 | LU4: 2050 | LV4: 2050 | LW4: =IF(LV5=12,LV4+1,LV4) -> 2050 | LX4: 2050 | LY4: 2050 | LZ4: 2050 | MA4: 2050 | MB4: 2050 | MC4: 2050 | MD4: 2050 | ME4: 2050 | MF4: 2051 | MG4: 2051 | MH4: 2051 | MI4: 2051 | MJ4: 2051 | MK4: 2051 | ML4: 2051 | MM4: 2051 | MN4: 2051 | MO4: 2051 | MP4: 2051 | MQ4: 2051 | MR4: 2052 | MS4: 2052 | MT4: 2052 | MU4: 2052 | MV4: 2052 | MW4: 2052 | MX4: 2052 | MY4: 2052 | MZ4: 2052 | NA4: 2052 | NB4: 2052 | NC4: 2052 | ND4: 2053 | NE4: 2053 | NF4: 2053 | NG4: 2053 | NH4: 2053 | NI4: 2053 | NJ4: 2053 | NK4: 2053 | NL4: 2053 | NM4: 2053 | NN4: 2053 | NO4: 2053 | NP4: 2054 | NQ4: 2054 | NR4: 2054 | NS4: 2054 | NT4: 2054 | NU4: 2054 | NV4: 2054 | NW4: 2054 | NX4: 2054 | NY4: 2054 | NZ4: 2054 | OA4: 2054 | OB4: 2055 | OC4: 2055 | OD4: 2055 | OE4: 2055 | OF4: 2055 | OG4: 2055 | OH4: 2055 | OI4: =IF(OH5=12,OH4+1,OH4) -> 2055 | OJ4: 2055 | OK4: 2055 | OL4: 2055 | OM4: 2055 | ON4: 2056 | OO4: 2056 | OP4: 2056 | OQ4: 2056 | OR4: 2056 | OS4: 2056 | OT4: 2056 | OU4: 2056 | OV4: 2056 | OW4: 2056 | OX4: 2056 | OY4: 2056 | OZ4: 2057 | PA4: 2057 | PB4: 2057 | PC4: 2057 | PD4: 2057 | PE4: 2057 | PF4: 2057 | PG4: 2057 | PH4: 2057 | PI4: 2057 | PJ4: 2057 | PK4: =IF(PJ5=12,PJ4+1,PJ4) -> 2057
F5: Mês | G5: 12 | H5: =Premissas!$D$7 -> 1 | I5: =IF(H5=12,1,H5+1) -> 2 | J5: =IF(I5=12,1,I5+1) -> 3 | K5: =IF(J5=12,1,J5+1) -> 4 | L5: =IF(K5=12,1,K5+1) -> 5 | M5: 6 | N5: 7 | O5: =IF(N5=12,1,N5+1) -> 8 | P5: 9 | Q5: 10 | R5: 11 | S5: 12 | T5: 1 | U5: 2 | V5: 3 | W5: 4 | X5: 5 | Y5: 6 | Z5: 7 | AA5: 8 | AB5: 9 | AC5: 10 | AD5: 11 | AE5: 12 | AF5: 1 | AG5: 2 | AH5: 3 | AI5: 4 | AJ5: 5 | AK5: 6 | AL5: 7 | AM5: 8 | AN5: 9 | AO5: 10 | AP5: 11 | AQ5: 12 | AR5: 1 | AS5: 2 | AT5: 3 | AU5: 4 | AV5: 5 | AW5: 6 | AX5: 7 | AY5: 8 | AZ5: 9 | BA5: 10 | BB5: 11 | BC5: 12 | BD5: 1 | BE5: 2 | BF5: 3 | BG5: 4 | BH5: 5 | BI5: 6 | BJ5: 7 | BK5: 8 | BL5: 9 | BM5: 10 | BN5: 11 | BO5: 12 | BP5: 1 | BQ5: 2 | BR5: 3 | BS5: 4 | BT5: 5 | BU5: 6 | BV5: 7 | BW5: 8 | BX5: 9 | BY5: 10 | BZ5: 11 | CA5: =IF(BZ5=12,1,BZ5+1) -> 12 | CB5: 1 | CC5: 2 | CD5: 3 | CE5: 4 | CF5: 5 | CG5: 6 | CH5: 7 | CI5: 8 | CJ5: 9 | CK5: 10 | CL5: 11 | CM5: 12 | CN5: 1 | CO5: 2 | CP5: 3 | CQ5: 4 | CR5: 5 | CS5: 6 | CT5: 7 | CU5: 8 | CV5: 9 | CW5: 10 | CX5: 11 | CY5: 12 | CZ5: 1 | DA5: 2 | DB5: 3 | DC5: 4 | DD5: 5 | DE5: 6 | DF5: 7 | DG5: 8 | DH5: 9 | DI5: 10 | DJ5: 11 | DK5: 12 | DL5: 1 | DM5: 2 | DN5: 3 | DO5: 4 | DP5: 5 | DQ5: 6 | DR5: 7 | DS5: 8 | DT5: 9 | DU5: 10 | DV5: 11 | DW5: 12 | DX5: 1 | DY5: 2 | DZ5: 3 | EA5: 4 | EB5: 5 | EC5: 6 | ED5: 7 | EE5: 8 | EF5: 9 | EG5: 10 | EH5: 11 | EI5: 12 | EJ5: 1 | EK5: 2 | EL5: 3 | EM5: =IF(EL5=12,1,EL5+1) -> 4 | EN5: 5 | EO5: 6 | EP5: 7 | EQ5: 8 | ER5: 9 | ES5: 10 | ET5: 11 | EU5: 12 | EV5: 1 | EW5: 2 | EX5: 3 | EY5: 4 | EZ5: 5 | FA5: 6 | FB5: 7 | FC5: 8 | FD5: 9 | FE5: 10 | FF5: 11 | FG5: 12 | FH5: 1 | FI5: 2 | FJ5: 3 | FK5: 4 | FL5: 5 | FM5: 6 | FN5: 7 | FO5: 8 | FP5: 9 | FQ5: 10 | FR5: 11 | FS5: 12 | FT5: 1 | FU5: 2 | FV5: 3 | FW5: 4 | FX5: 5 | FY5: 6 | FZ5: 7 | GA5: 8 | GB5: 9 | GC5: 10 | GD5: 11 | GE5: 12 | GF5: 1 | GG5: 2 | GH5: 3 | GI5: 4 | GJ5: 5 | GK5: 6 | GL5: 7 | GM5: 8 | GN5: 9 | GO5: 10 | GP5: 11 | GQ5: 12 | GR5: 1 | GS5: 2 | GT5: 3 | GU5: 4 | GV5: 5 | GW5: 6 | GX5: 7 | GY5: =IF(GX5=12,1,GX5+1) -> 8 | GZ5: 9 | HA5: 10 | HB5: 11 | HC5: 12 | HD5: 1 | HE5: 2 | HF5: 3 | HG5: 4 | HH5: 5 | HI5: 6 | HJ5: 7 | HK5: 8 | HL5: 9 | HM5: 10 | HN5: 11 | HO5: 12 | HP5: 1 | HQ5: 2 | HR5: 3 | HS5: 4 | HT5: 5 | HU5: 6 | HV5: 7 | HW5: 8 | HX5: 9 | HY5: 10 | HZ5: 11 | IA5: 12 | IB5: 1 | IC5: 2 | ID5: 3 | IE5: 4 | IF5: 5 | IG5: 6 | IH5: 7 | II5: 8 | IJ5: 9 | IK5: 10 | IL5: 11 | IM5: 12 | IN5: 1 | IO5: 2 | IP5: 3 | IQ5: 4 | IR5: 5 | IS5: 6 | IT5: 7 | IU5: 8 | IV5: 9 | IW5: 10 | IX5: 11 | IY5: 12 | IZ5: 1 | JA5: 2 | JB5: 3 | JC5: 4 | JD5: 5 | JE5: 6 | JF5: 7 | JG5: 8 | JH5: 9 | JI5: 10 | JJ5: 11 | JK5: =IF(JJ5=12,1,JJ5+1) -> 12 | JL5: 1 | JM5: 2 | JN5: 3 | JO5: 4 | JP5: 5 | JQ5: 6 | JR5: 7 | JS5: 8 | JT5: 9 | JU5: 10 | JV5: 11 | JW5: 12 | JX5: 1 | JY5: 2 | JZ5: 3 | KA5: 4 | KB5: 5 | KC5: 6 | KD5: 7 | KE5: 8 | KF5: 9 | KG5: 10 | KH5: 11 | KI5: 12 | KJ5: 1 | KK5: 2 | KL5: 3 | KM5: 4 | KN5: 5 | KO5: 6 | KP5: 7 | KQ5: 8 | KR5: 9 | KS5: 10 | KT5: 11 | KU5: 12 | KV5: 1 | KW5: 2 | KX5: 3 | KY5: 4 | KZ5: 5 | LA5: 6 | LB5: 7 | LC5: 8 | LD5: 9 | LE5: 10 | LF5: 11 | LG5: 12 | LH5: 1 | LI5: 2 | LJ5: 3 | LK5: 4 | LL5: 5 | LM5: 6 | LN5: 7 | LO5: 8 | LP5: 9 | LQ5: 10 | LR5: 11 | LS5: 12 | LT5: 1 | LU5: 2 | LV5: 3 | LW5: =IF(LV5=12,1,LV5+1) -> 4 | LX5: 5 | LY5: 6 | LZ5: 7 | MA5: 8 | MB5: 9 | MC5: 10 | MD5: 11 | ME5: 12 | MF5: 1 | MG5: 2 | MH5: 3 | MI5: 4 | MJ5: 5 | MK5: 6 | ML5: 7 | MM5: 8 | MN5: 9 | MO5: 10 | MP5: 11 | MQ5: 12 | MR5: 1 | MS5: 2 | MT5: 3 | MU5: 4 | MV5: 5 | MW5: 6 | MX5: 7 | MY5: 8 | MZ5: 9 | NA5: 10 | NB5: 11 | NC5: 12 | ND5: 1 | NE5: 2 | NF5: 3 | NG5: 4 | NH5: 5 | NI5: 6 | NJ5: 7 | NK5: 8 | NL5: 9 | NM5: 10 | NN5: 11 | NO5: 12 | NP5: 1 | NQ5: 2 | NR5: 3 | NS5: 4 | NT5: 5 | NU5: 6 | NV5: 7 | NW5: 8 | NX5: 9 | NY5: 10 | NZ5: 11 | OA5: 12 | OB5: 1 | OC5: 2 | OD5: 3 | OE5: 4 | OF5: 5 | OG5: 6 | OH5: 7 | OI5: =IF(OH5=12,1,OH5+1) -> 8 | OJ5: 9 | OK5: 10 | OL5: 11 | OM5: 12 | ON5: 1 | OO5: 2 | OP5: 3 | OQ5: 4 | OR5: 5 | OS5: 6 | OT5: 7 | OU5: 8 | OV5: 9 | OW5: 10 | OX5: 11 | OY5: 12 | OZ5: 1 | PA5: 2 | PB5: 3 | PC5: 4 | PD5: 5 | PE5: 6 | PF5: 7 | PG5: 8 | PH5: 9 | PI5: 10 | PJ5: 11 | PK5: =IF(PJ5=12,1,PJ5+1) -> 12
F6: Mês Aux | H6: 1 | I6: =H6+1 -> 2 | J6: =I6+1 -> 3 | K6: 4 | L6: 5 | M6: 6 | N6: 7 | O6: 8 | P6: 9 | Q6: 10 | R6: 11 | S6: 12 | T6: 13 | U6: 14 | V6: 15 | W6: 16 | X6: 17 | Y6: 18 | Z6: 19 | AA6: 20 | AB6: 21 | AC6: 22 | AD6: 23 | AE6: 24 | AF6: 25 | AG6: 26 | AH6: 27 | AI6: 28 | AJ6: 29 | AK6: 30 | AL6: 31 | AM6: 32 | AN6: 33 | AO6: 34 | AP6: 35 | AQ6: 36 | AR6: 37 | AS6: 38 | AT6: 39 | AU6: 40 | AV6: 41 | AW6: 42 | AX6: 43 | AY6: 44 | AZ6: 45 | BA6: 46 | BB6: 47 | BC6: 48 | BD6: 49 | BE6: 50 | BF6: 51 | BG6: 52 | BH6: 53 | BI6: 54 | BJ6: 55 | BK6: 56 | BL6: 57 | BM6: 58 | BN6: 59 | BO6: 60 | BP6: 61 | BQ6: 62 | BR6: 63 | BS6: 64 | BT6: 65 | BU6: 66 | BV6: =BU6+1 -> 67 | BW6: 68 | BX6: 69 | BY6: 70 | BZ6: 71 | CA6: 72 | CB6: 73 | CC6: 74 | CD6: 75 | CE6: 76 | CF6: 77 | CG6: 78 | CH6: 79 | CI6: 80 | CJ6: 81 | CK6: 82 | CL6: 83 | CM6: 84 | CN6: 85 | CO6: 86 | CP6: 87 | CQ6: 88 | CR6: 89 | CS6: 90 | CT6: 91 | CU6: 92 | CV6: 93 | CW6: 94 | CX6: 95 | CY6: 96 | CZ6: 97 | DA6: 98 | DB6: 99 | DC6: 100 | DD6: 101 | DE6: 102 | DF6: 103 | DG6: 104 | DH6: 105 | DI6: 106 | DJ6: 107 | DK6: 108 | DL6: 109 | DM6: 110 | DN6: 111 | DO6: 112 | DP6: 113 | DQ6: 114 | DR6: 115 | DS6: 116 | DT6: 117 | DU6: 118 | DV6: 119 | DW6: 120 | DX6: 121 | DY6: 122 | DZ6: 123 | EA6: 124 | EB6: 125 | EC6: 126 | ED6: 127 | EE6: 128 | EF6: 129 | EG6: 130 | EH6: =EG6+1 -> 131 | EI6: 132 | EJ6: 133 | EK6: 134 | EL6: 135 | EM6: 136 | EN6: 137 | EO6: 138 | EP6: 139 | EQ6: 140 | ER6: 141 | ES6: 142 | ET6: 143 | EU6: 144 | EV6: 145 | EW6: 146 | EX6: 147 | EY6: 148 | EZ6: 149 | FA6: 150 | FB6: 151 | FC6: 152 | FD6: 153 | FE6: 154 | FF6: 155 | FG6: 156 | FH6: 157 | FI6: 158 | FJ6: 159 | FK6: 160 | FL6: 161 | FM6: 162 | FN6: 163 | FO6: 164 | FP6: 165 | FQ6: 166 | FR6: 167 | FS6: 168 | FT6: 169 | FU6: 170 | FV6: 171 | FW6: 172 | FX6: 173 | FY6: 174 | FZ6: 175 | GA6: 176 | GB6: 177 | GC6: 178 | GD6: 179 | GE6: 180 | GF6: 181 | GG6: 182 | GH6: 183 | GI6: 184 | GJ6: 185 | GK6: 186 | GL6: 187 | GM6: 188 | GN6: 189 | GO6: 190 | GP6: 191 | GQ6: 192 | GR6: 193 | GS6: 194 | GT6: =GS6+1 -> 195 | GU6: 196 | GV6: 197 | GW6: 198 | GX6: 199 | GY6: 200 | GZ6: 201 | HA6: 202 | HB6: 203 | HC6: 204 | HD6: 205 | HE6: 206 | HF6: 207 | HG6: 208 | HH6: 209 | HI6: 210 | HJ6: 211 | HK6: 212 | HL6: 213 | HM6: 214 | HN6: 215 | HO6: 216 | HP6: 217 | HQ6: 218 | HR6: 219 | HS6: 220 | HT6: 221 | HU6: 222 | HV6: 223 | HW6: 224 | HX6: 225 | HY6: 226 | HZ6: 227 | IA6: 228 | IB6: 229 | IC6: 230 | ID6: 231 | IE6: 232 | IF6: 233 | IG6: 234 | IH6: 235 | II6: 236 | IJ6: 237 | IK6: 238 | IL6: 239 | IM6: 240 | IN6: 241 | IO6: 242 | IP6: 243 | IQ6: 244 | IR6: 245 | IS6: 246 | IT6: 247 | IU6: 248 | IV6: 249 | IW6: 250 | IX6: 251 | IY6: 252 | IZ6: 253 | JA6: 254 | JB6: 255 | JC6: 256 | JD6: 257 | JE6: 258 | JF6: =JE6+1 -> 259 | JG6: 260 | JH6: 261 | JI6: 262 | JJ6: 263 | JK6: 264 | JL6: 265 | JM6: 266 | JN6: 267 | JO6: 268 | JP6: 269 | JQ6: 270 | JR6: 271 | JS6: 272 | JT6: 273 | JU6: 274 | JV6: 275 | JW6: 276 | JX6: 277 | JY6: 278 | JZ6: 279 | KA6: 280 | KB6: 281 | KC6: 282 | KD6: 283 | KE6: 284 | KF6: 285 | KG6: 286 | KH6: 287 | KI6: 288 | KJ6: 289 | KK6: 290 | KL6: 291 | KM6: 292 | KN6: 293 | KO6: 294 | KP6: 295 | KQ6: 296 | KR6: 297 | KS6: 298 | KT6: 299 | KU6: 300 | KV6: 301 | KW6: 302 | KX6: 303 | KY6: 304 | KZ6: 305 | LA6: 306 | LB6: 307 | LC6: 308 | LD6: 309 | LE6: 310 | LF6: 311 | LG6: 312 | LH6: 313 | LI6: 314 | LJ6: 315 | LK6: 316 | LL6: 317 | LM6: 318 | LN6: 319 | LO6: 320 | LP6: 321 | LQ6: 322 | LR6: =LQ6+1 -> 323 | LS6: 324 | LT6: 325 | LU6: 326 | LV6: 327 | LW6: 328 | LX6: 329 | LY6: 330 | LZ6: 331 | MA6: 332 | MB6: 333 | MC6: 334 | MD6: 335 | ME6: 336 | MF6: 337 | MG6: 338 | MH6: 339 | MI6: 340 | MJ6: 341 | MK6: 342 | ML6: 343 | MM6: 344 | MN6: 345 | MO6: 346 | MP6: 347 | MQ6: 348 | MR6: 349 | MS6: 350 | MT6: 351 | MU6: 352 | MV6: 353 | MW6: 354 | MX6: 355 | MY6: 356 | MZ6: 357 | NA6: 358 | NB6: 359 | NC6: 360 | ND6: 361 | NE6: 362 | NF6: 363 | NG6: 364 | NH6: 365 | NI6: 366 | NJ6: 367 | NK6: 368 | NL6: 369 | NM6: 370 | NN6: 371 | NO6: 372 | NP6: 373 | NQ6: 374 | NR6: 375 | NS6: 376 | NT6: 377 | NU6: 378 | NV6: 379 | NW6: 380 | NX6: 381 | NY6: 382 | NZ6: 383 | OA6: 384 | OB6: 385 | OC6: 386 | OD6: =OC6+1 -> 387 | OE6: 388 | OF6: 389 | OG6: 390 | OH6: 391 | OI6: 392 | OJ6: 393 | OK6: 394 | OL6: 395 | OM6: 396 | ON6: 397 | OO6: 398 | OP6: 399 | OQ6: 400 | OR6: 401 | OS6: 402 | OT6: 403 | OU6: 404 | OV6: 405 | OW6: 406 | OX6: 407 | OY6: 408 | OZ6: 409 | PA6: 410 | PB6: 411 | PC6: 412 | PD6: 413 | PE6: 414 | PF6: 415 | PG6: 416 | PH6: 417 | PI6: 418 | PJ6: 419 | PK6: 420
A7: RECEITA BRUTA | F7: =SUM(H7:PK7) -> 6838018675 | H7: =H9+H13+H20+H26 -> 0 | I7: 0 | J7: 306632.3639 | K7: 306632.3639 | L7: 306632.3639 | M7: 306632.3639 | N7: 306632.3639 | O7: 306632.3639 | P7: 306632.3639 | Q7: 306632.3639 | R7: 306632.3639 | S7: 306632.3639 | T7: 306632.3639 | U7: 306632.3639 | V7: 306632.3639 | W7: 306632.3639 | X7: 2105005.035 | Y7: 3793827.758 | Z7: 3793827.758 | AA7: 6577025.468 | AB7: 5610538.34 | AC7: 5610538.34 | AD7: 8393736.049 | AE7: 5610538.34 | AF7: 5610538.34 | AG7: 8393736.049 | AH7: 5610538.34 | AI7: 5610538.34 | AJ7: 8393736.049 | AK7: 5610538.34 | AL7: 65273824.07 | AM7: 68057021.78 | AN7: 63150481.12 | AO7: 63150481.12 | AP7: 65933678.83 | AQ7: 63150481.12 | AR7: 63150481.12 | AS7: 65933678.83 | AT7: 63150481.12 | AU7: 63150481.12 | AV7: 65933678.83 | AW7: 61461658.4 | AX7: 61461658.4 | AY7: 61461658.4 | AZ7: 61461658.4 | BA7: 61461658.4 | BB7: 61461658.4 | BC7: 61461658.4 | BD7: 61461658.4 | BE7: 61461658.4 | BF7: 61461658.4 | BG7: 61461658.4 | BH7: 61461658.4 | BI7: 61461658.4 | BJ7: 61461658.4 | BK7: 61461658.4 | BL7: 61461658.4 | BM7: 61461658.4 | BN7: 61461658.4 | BO7: 61461658.4 | BP7: 61461658.4 | BQ7: 61461658.4 | BR7: 61461658.4 | BS7: 61461658.4 | BT7: =BT9+BT13+BT20+BT26 -> 65488285.73 | BU7: 59663285.73 | BV7: 11098003.34 | BW7: 13263614.26 | BX7: 13979614.47 | BY7: 13621614.36 | BZ7: 13979614.47 | CA7: 13621614.36 | CB7: 13979614.47 | CC7: 13979614.47 | CD7: 13621614.36 | CE7: 13979614.47 | CF7: 13621614.36 | CG7: 13979614.47 | CH7: 14267189.99 | CI7: 13165359.78 | CJ7: 14267189.99 | CK7: 13899913.25 | CL7: 14267189.99 | CM7: 13899913.25 | CN7: 14267189.99 | CO7: 14267189.99 | CP7: 13899913.25 | CQ7: 14267189.99 | CR7: 13899913.25 | CS7: 14267189.99 | CT7: 14562273.59 | CU7: 13431886.9 | CV7: 14562273.59 | CW7: 14185478.03 | CX7: 14562273.59 | CY7: 14185478.03 | CZ7: 14562273.59 | DA7: 14562273.59 | DB7: 14185478.03 | DC7: 14562273.59 | DD7: 14185478.03 | DE7: 14562273.59 | DF7: 14865062.71 | DG7: 10823762.72 | DH7: 11983451.58 | DI7: 11596888.63 | DJ7: 11983451.58 | DK7: 11596888.63 | DL7: 11983451.58 | DM7: 11983451.58 | DN7: 11596888.63 | DO7: 11983451.58 | DP7: 11596888.63 | DQ7: 11983451.58 | DR7: 12294148.89 | DS7: 11500977.99 | DT7: 12294148.89 | DU7: 11897563.44 | DV7: 12294148.89 | DW7: 11897563.44 | DX7: 12294148.89 | DY7: 12294148.89 | DZ7: 11897563.44 | EA7: 12294148.89 | EB7: 11897563.44 | EC7: 12294148.89 | ED7: 12612962.42 | EE7: 11392353.15 | EF7: =EF9+EF13+EF20+EF26 -> 12612962.42 | EG7: 12206092.66 | EH7: 12612962.42 | EI7: 12206092.66 | EJ7: 12612962.42 | EK7: 12612962.42 | EL7: 12206092.66 | EM7: 12612962.42 | EN7: 12206092.66 | EO7: 12612962.42 | EP7: 12940105.7 | EQ7: 11687837.41 | ER7: 12940105.7 | ES7: 12522682.94 | ET7: 12940105.7 | EU7: 12522682.94 | EV7: 12940105.7 | EW7: 12940105.7 | EX7: 12522682.94 | EY7: 12940105.7 | EZ7: 12522682.94 | FA7: 12940105.7 | FB7: 13275797.94 | FC7: 11991043.3 | FD7: 13275797.94 | FE7: 12847546.4 | FF7: 13275797.94 | FG7: 12847546.4 | FH7: 13275797.94 | FI7: 13275797.94 | FJ7: 12847546.4 | FK7: 13275797.94 | FL7: 12847546.4 | FM7: 13275797.94 | FN7: 13620264.15 | FO7: 12741537.43 | FP7: 13620264.15 | FQ7: 13180900.79 | FR7: 13620264.15 | FS7: 13180900.79 | FT7: 13620264.15 | FU7: 13620264.15 | FV7: 13180900.79 | FW7: 13620264.15 | FX7: 13180900.79 | FY7: 13620264.15 | FZ7: 13973735.29 | GA7: 12621438.33 | GB7: 13973735.29 | GC7: 13522969.63 | GD7: 13973735.29 | GE7: 13522969.63 | GF7: 13973735.29 | GG7: 13973735.29 | GH7: 13522969.63 | GI7: 13973735.29 | GJ7: 13522969.63 | GK7: 13973735.29 | GL7: 14336448.45 | GM7: 12949050.21 | GN7: 14336448.45 | GO7: 13873982.37 | GP7: 14336448.45 | GQ7: 13873982.37 | GR7: =GR9+GR13+GR20+GR26 -> 14336448.45 | GS7: 14336448.45 | GT7: 13873982.37 | GU7: 14336448.45 | GV7: 13873982.37 | GW7: 14336448.45 | GX7: 14708647 | GY7: 13285229.55 | GZ7: 14708647 | HA7: 14234174.52 | HB7: 14708647 | HC7: 14234174.52 | HD7: 14708647 | HE7: 14708647 | HF7: 14234174.52 | HG7: 14708647 | HH7: 14234174.52 | HI7: 14708647 | HJ7: 15090580.77 | HK7: 14116994.92 | HL7: 15090580.77 | HM7: 14603787.85 | HN7: 15090580.77 | HO7: 14603787.85 | HP7: 15090580.77 | HQ7: 15090580.77 | HR7: 14603787.85 | HS7: 15090580.77 | HT7: 14603787.85 | HU7: 15090580.77 | HV7: 15482506.21 | HW7: 13984199.16 | HX7: 15482506.21 | HY7: 14983070.53 | HZ7: 15482506.21 | IA7: 14983070.53 | IB7: 15482506.21 | IC7: 15482506.21 | ID7: 14983070.53 | IE7: 15482506.21 | IF7: 14983070.53 | IG7: 15482506.21 | IH7: 15884686.57 | II7: 14347458.83 | IJ7: 15884686.57 | IK7: 15372277.32 | IL7: 15884686.57 | IM7: 15372277.32 | IN7: 15884686.57 | IO7: 15884686.57 | IP7: 15372277.32 | IQ7: 15884686.57 | IR7: 15372277.32 | IS7: 15884686.57 | IT7: 16297392.07 | IU7: 14720225.1 | IV7: 16297392.07 | IW7: 15771669.75 | IX7: 16297392.07 | IY7: 15771669.75 | IZ7: 16297392.07 | JA7: 16297392.07 | JB7: 15771669.75 | JC7: 16297392.07 | JD7: =JD9+JD13+JD20+JD26 -> 15771669.75 | JE7: 16297392.07 | JF7: 16720900.12 | JG7: 15642132.37 | JH7: 16720900.12 | JI7: 16181516.25 | JJ7: 16720900.12 | JK7: 16181516.25 | JL7: 16720900.12 | JM7: 16720900.12 | JN7: 16181516.25 | JO7: 16720900.12 | JP7: 16181516.25 | JQ7: 16720900.12 | JR7: 17155495.48 | JS7: 15495286.24 | JT7: 17155495.48 | JU7: 16602092.4 | JV7: 17155495.48 | JW7: 16602092.4 | JX7: 17155495.48 | JY7: 17155495.48 | JZ7: 16602092.4 | KA7: 17155495.48 | KB7: 16602092.4 | KC7: 17155495.48 | KD7: 17601470.46 | KE7: 15898102.35 | KF7: 17601470.46 | KG7: 17033681.09 | KH7: 17601470.46 | KI7: 17033681.09 | KJ7: 17601470.46 | KK7: 17601470.46 | KL7: 17033681.09 | KM7: 17601470.46 | KN7: 17033681.09 | KO7: 17601470.46 | KP7: 18059125.14 | KQ7: 16311467.87 | KR7: 18059125.14 | KS7: 17476572.72 | KT7: 18059125.14 | KU7: 17476572.72 | KV7: 18059125.14 | KW7: 18059125.14 | KX7: 17476572.72 | KY7: 18059125.14 | KZ7: 17476572.72 | LA7: 18059125.14 | LB7: 18528767.56 | LC7: 17333363.2 | LD7: 18528767.56 | LE7: 17931065.38 | LF7: 18528767.56 | LG7: 17931065.38 | LH7: 18528767.56 | LI7: 18528767.56 | LJ7: 17931065.38 | LK7: 18528767.56 | LL7: 17931065.38 | LM7: 18528767.56 | LN7: 19010713.93 | LO7: 17170967.42 | LP7: =LP9+LP13+LP20+LP26 -> 19010713.93 | LQ7: 18397465.09 | LR7: 19010713.93 | LS7: 18397465.09 | LT7: 19010713.93 | LU7: 19010713.93 | LV7: 18397465.09 | LW7: 19010713.93 | LX7: 18397465.09 | LY7: 19010713.93 | LZ7: 19505288.87 | MA7: 17617680.27 | MB7: 19505288.87 | MC7: 18876086 | MD7: 19505288.87 | ME7: 18876086 | MF7: 19505288.87 | MG7: 19505288.87 | MH7: 18876086 | MI7: 19505288.87 | MJ7: 18876086 | MK7: 19505288.87 | ML7: 20012825.61 | MM7: 18076100.55 | MN7: 20012825.61 | MO7: 19367250.59 | MP7: 20012825.61 | MQ7: 19367250.59 | MR7: 20012825.61 | MS7: 20012825.61 | MT7: 19367250.59 | MU7: 20012825.61 | MV7: 19367250.59 | MW7: 20012825.61 | MX7: 20533666.24 | MY7: 19208913.58 | MZ7: 20533666.24 | NA7: 19871289.91 | NB7: 20533666.24 | NC7: 19871289.91 | ND7: 0 | NE7: 0 | NF7: 0 | NG7: 0 | NH7: 0 | NI7: 0 | NJ7: 0 | NK7: 0 | NL7: 0 | NM7: 0 | NN7: 0 | NO7: 0 | NP7: 0 | NQ7: 0 | NR7: 0 | NS7: 0 | NT7: 0 | NU7: 0 | NV7: 0 | NW7: 0 | NX7: 0 | NY7: 0 | NZ7: 0 | OA7: 0 | OB7: =OB9+OB13+OB20+OB26 -> 0 | OC7: 0 | OD7: 0 | OE7: 0 | OF7: 0 | OG7: 0 | OH7: 0 | OI7: 0 | OJ7: 0 | OK7: 0 | OL7: 0 | OM7: 0 | ON7: 0 | OO7: 0 | OP7: 0 | OQ7: 0 | OR7: 0 | OS7: 0 | OT7: 0 | OU7: 0 | OV7: 0 | OW7: 0 | OX7: 0 | OY7: 0 | OZ7: 0 | PA7: 0 | PB7: 0 | PC7: 0 | PD7: 0 | PE7: 0 | PF7: 0 | PG7: 0 | PH7: 0 | PI7: 0 | PJ7: 0 | PK7: 0
A9: (+) | B9: Receita Acessória | D9: =F9/F13 -> 0.03 | F9: =SUM(H9:PK9) -> 128168699.3 | H9: =SUM(H10:H11)*H2*(1+$C$99) -> 0 | I9: 0 | J9: 0 | K9: 0 | L9: 0 | M9: 0 | N9: 0 | O9: 0 | P9: 0 | Q9: 0 | R9: 0 | S9: 0 | T9: 0 | U9: 0 | V9: 0 | W9: 0 | X9: 0 | Y9: 0 | Z9: 0 | AA9: 0 | AB9: 0 | AC9: 0 | AD9: 0 | AE9: 0 | AF9: 0 | AG9: 0 | AH9: 0 | AI9: 0 | AJ9: 0 | AK9: 0 | AL9: 0 | AM9: 0 | AN9: 0 | AO9: 0 | AP9: 0 | AQ9: 0 | AR9: 0 | AS9: 0 | AT9: 0 | AU9: 0 | AV9: 0 | AW9: 0 | AX9: 0 | AY9: 0 | AZ9: 0 | BA9: 0 | BB9: 0 | BC9: 0 | BD9: 0 | BE9: 0 | BF9: 0 | BG9: 0 | BH9: 0 | BI9: 0 | BJ9: 0 | BK9: 0 | BL9: 0 | BM9: 0 | BN9: 0 | BO9: 0 | BP9: 0 | BQ9: 0 | BR9: 0 | BS9: 0 | BT9: =SUM(BT10:BT11)*BT2*(1+$C$99) -> 0 | BU9: 0 | BV9: 323242.8158 | BW9: 302388.4406 | BX9: 323242.8158 | BY9: 312815.6282 | BZ9: 323242.8158 | CA9: 312815.6282 | CB9: 323242.8158 | CC9: 323242.8158 | CD9: 312815.6282 | CE9: 323242.8158 | CF9: 312815.6282 | CG9: 323242.8158 | CH9: 331618.8018 | CI9: 299526.6597 | CJ9: 331618.8018 | CK9: 320921.4211 | CL9: 331618.8018 | CM9: 320921.4211 | CN9: 331618.8018 | CO9: 331618.8018 | CP9: 320921.4211 | CQ9: 331618.8018 | CR9: 320921.4211 | CS9: 331618.8018 | CT9: 340213.4698 | CU9: 307289.5856 | CV9: 340213.4698 | CW9: 329238.8418 | CX9: 340213.4698 | CY9: 329238.8418 | CZ9: 340213.4698 | DA9: 340213.4698 | DB9: 329238.8418 | DC9: 340213.4698 | DD9: 329238.8418 | DE9: 340213.4698 | DF9: 349032.5704 | DG9: 315255.2249 | DH9: 349032.5704 | DI9: 337773.4553 | DJ9: 349032.5704 | DK9: 337773.4553 | DL9: 349032.5704 | DM9: 349032.5704 | DN9: 337773.4553 | DO9: 349032.5704 | DP9: 337773.4553 | DQ9: 349032.5704 | DR9: 358082.0065 | DS9: 334979.9416 | DT9: 358082.0065 | DU9: 346530.9741 | DV9: 358082.0065 | DW9: 346530.9741 | DX9: 358082.0065 | DY9: 358082.0065 | DZ9: 346530.9741 | EA9: 358082.0065 | EB9: 346530.9741 | EC9: 358082.0065 | ED9: 367367.8374 | EE9: 331816.1112 | EF9: =SUM(EF10:EF11)*EF2*(1+$C$99) -> 367367.8374 | EG9: 355517.262 | EH9: 367367.8374 | EI9: 355517.262 | EJ9: 367367.8374 | EK9: 367367.8374 | EL9: 355517.262 | EM9: 367367.8374 | EN9: 355517.262 | EO9: 367367.8374 | EP9: 376896.2825 | EQ9: 340422.4487 | ER9: 376896.2825 | ES9: 364738.3379 | ET9: 376896.2825 | EU9: 364738.3379 | EV9: 376896.2825 | EW9: 376896.2825 | EX9: 364738.3379 | EY9: 376896.2825 | EZ9: 364738.3379 | FA9: 376896.2825 | FB9: 386673.7265 | FC9: 349253.6885 | FD9: 386673.7265 | FE9: 374200.3805 | FF9: 386673.7265 | FG9: 374200.3805 | FH9: 386673.7265 | FI9: 386673.7265 | FJ9: 374200.3805 | FK9: 386673.7265 | FL9: 374200.3805 | FM9: 386673.7265 | FN9: 396706.7228 | FO9: 371112.7407 | FP9: 396706.7228 | FQ9: 383909.7318 | FR9: 396706.7228 | FS9: 383909.7318 | FT9: 396706.7228 | FU9: 396706.7228 | FV9: 383909.7318 | FW9: 396706.7228 | FX9: 383909.7318 | FY9: 396706.7228 | FZ9: 407001.9987 | GA9: 367614.7085 | GB9: 407001.9987 | GC9: 393872.902 | GD9: 407001.9987 | GE9: 393872.902 | GF9: 407001.9987 | GG9: 407001.9987 | GH9: 393872.902 | GI9: 407001.9987 | GJ9: 393872.902 | GK9: 407001.9987 | GL9: 417566.4597 | GM9: 377156.8023 | GN9: 417566.4597 | GO9: 404096.5739 | GP9: 417566.4597 | GQ9: 404096.5739 | GR9: =SUM(GR10:GR11)*GR2*(1+$C$99) -> 417566.4597 | GS9: 417566.4597 | GT9: 404096.5739 | GU9: 417566.4597 | GV9: 404096.5739 | GW9: 417566.4597 | GX9: 428407.1942 | GY9: 386948.4335 | GZ9: 428407.1942 | HA9: 414587.6073 | HB9: 428407.1942 | HC9: 414587.6073 | HD9: 428407.1942 | HE9: 428407.1942 | HF9: 414587.6073 | HG9: 428407.1942 | HH9: 414587.6073 | HI9: 428407.1942 | HJ9: 439531.4788 | HK9: 411174.6092 | HL9: 439531.4788 | HM9: 425353.044 | HN9: 439531.4788 | HO9: 425353.044 | HP9: 439531.4788 | HQ9: 439531.4788 | HR9: 425353.044 | HS9: 439531.4788 | HT9: 425353.044 | HU9: 439531.4788 | HV9: 450946.7829 | HW9: 407306.7716 | HX9: 450946.7829 | HY9: 436400.1125 | HZ9: 450946.7829 | IA9: 436400.1125 | IB9: 450946.7829 | IC9: 450946.7829 | ID9: 436400.1125 | IE9: 450946.7829 | IF9: 436400.1125 | IG9: 450946.7829 | IH9: 462660.7738 | II9: 417887.1505 | IJ9: 462660.7738 | IK9: 447736.2327 | IL9: 462660.7738 | IM9: 447736.2327 | IN9: 462660.7738 | IO9: 462660.7738 | IP9: 447736.2327 | IQ9: 462660.7738 | IR9: 447736.2327 | IS9: 462660.7738 | IT9: 474681.3224 | IU9: 428744.4203 | IV9: 474681.3224 | IW9: 459369.0217 | IX9: 474681.3224 | IY9: 459369.0217 | IZ9: 474681.3224 | JA9: 474681.3224 | JB9: 459369.0217 | JC9: 474681.3224 | JD9: =SUM(JD10:JD11)*JD2*(1+$C$99) -> 459369.0217 | JE9: 474681.3224 | JF9: 487016.5084 | JG9: 455596.0885 | JH9: 487016.5084 | JI9: 471306.2984 | JJ9: 487016.5084 | JK9: 471306.2984 | JL9: 487016.5084 | JM9: 487016.5084 | JN9: 471306.2984 | JO9: 487016.5084 | JP9: 471306.2984 | JQ9: 487016.5084 | JR9: 499674.6256 | JS9: 451319.0167 | JT9: 499674.6256 | JU9: 483556.0893 | JV9: 499674.6256 | JW9: 483556.0893 | JX9: 499674.6256 | JY9: 499674.6256 | JZ9: 483556.0893 | KA9: 499674.6256 | KB9: 483556.0893 | KC9: 499674.6256 | KD9: 512664.1882 | KE9: 463051.5248 | KF9: 512664.1882 | KG9: 496126.6338 | KH9: 512664.1882 | KI9: 496126.6338 | KJ9: 512664.1882 | KK9: 512664.1882 | KL9: 496126.6338 | KM9: 512664.1882 | KN9: 496126.6338 | KO9: 512664.1882 | KP9: 525993.9362 | KQ9: 475091.2972 | KR9: 525993.9362 | KS9: 509026.3899 | KT9: 525993.9362 | KU9: 509026.3899 | KV9: 525993.9362 | KW9: 525993.9362 | KX9: 509026.3899 | KY9: 525993.9362 | KZ9: 509026.3899 | LA9: 525993.9362 | LB9: 539672.8415 | LC9: 504855.2389 | LD9: 539672.8415 | LE9: 522264.0402 | LF9: 539672.8415 | LG9: 522264.0402 | LH9: 539672.8415 | LI9: 539672.8415 | LJ9: 522264.0402 | LK9: 539672.8415 | LL9: 522264.0402 | LM9: 539672.8415 | LN9: 553710.1145 | LO9: 500125.2647 | LP9: =SUM(LP10:LP11)*LP2*(1+$C$99) -> 553710.1145 | LQ9: 535848.4979 | LR9: 553710.1145 | LS9: 535848.4979 | LT9: 553710.1145 | LU9: 553710.1145 | LV9: 535848.4979 | LW9: 553710.1145 | LX9: 535848.4979 | LY9: 553710.1145 | LZ9: 568115.2098 | MA9: 513136.3185 | MB9: 568115.2098 | MC9: 549788.9127 | MD9: 568115.2098 | ME9: 549788.9127 | MF9: 568115.2098 | MG9: 568115.2098 | MH9: 549788.9127 | MI9: 568115.2098 | MJ9: 549788.9127 | MK9: 568115.2098 | ML9: 582897.8333 | MM9: 526488.3655 | MN9: 582897.8333 | MO9: 564094.6774 | MP9: 582897.8333 | MQ9: 564094.6774 | MR9: 582897.8333 | MS9: 582897.8333 | MT9: 564094.6774 | MU9: 582897.8333 | MV9: 564094.6774 | MW9: 582897.8333 | MX9: 598067.9486 | MY9: 559482.9197 | MZ9: 598067.9486 | NA9: 578775.4341 | NB9: 598067.9486 | NC9: 578775.4341 | ND9: 0 | NE9: 0 | NF9: 0 | NG9: 0 | NH9: 0 | NI9: 0 | NJ9: 0 | NK9: 0 | NL9: 0 | NM9: 0 | NN9: 0 | NO9: 0 | NP9: 0 | NQ9: 0 | NR9: 0 | NS9: 0 | NT9: 0 | NU9: 0 | NV9: 0 | NW9: 0 | NX9: 0 | NY9: 0 | NZ9: 0 | OA9: 0 | OB9: =SUM(OB10:OB11)*OB2*(1+$C$99) -> 0 | OC9: 0 | OD9: 0 | OE9: 0 | OF9: 0 | OG9: 0 | OH9: 0 | OI9: 0 | OJ9: 0 | OK9: 0 | OL9: 0 | OM9: 0 | ON9: 0 | OO9: 0 | OP9: 0 | OQ9: 0 | OR9: 0 | OS9: 0 | OT9: 0 | OU9: 0 | OV9: 0 | OW9: 0 | OX9: 0 | OY9: 0 | OZ9: 0 | PA9: 0 | PB9: 0 | PC9: 0 | PD9: 0 | PE9: 0 | PF9: 0 | PG9: 0 | PH9: 0 | PI9: 0 | PJ9: 0 | PK9: 0
B10: FxDomínio | C10: 0.03 | D10: =IFERROR(F10/$F$9,0) -> 1 | F10: =SUM(H10:PK10) -> 128168699.3 | H10: 0 | I10: 0 | J10: 0 | K10: 0 | L10: 0 | M10: 0 | N10: 0 | O10: 0 | P10: 0 | Q10: 0 | R10: 0 | S10: 0 | T10: 0 | U10: 0 | V10: 0 | W10: 0 | X10: 0 | Y10: 0 | Z10: 0 | AA10: 0 | AB10: 0 | AC10: 0 | AD10: 0 | AE10: 0 | AF10: 0 | AG10: 0 | AH10: 0 | AI10: 0 | AJ10: 0 | AK10: 0 | AL10: 0 | AM10: 0 | AN10: 0 | AO10: 0 | AP10: 0 | AQ10: 0 | AR10: 0 | AS10: 0 | AT10: 0 | AU10: 0 | AV10: 0 | AW10: 0 | AX10: 0 | AY10: 0 | AZ10: 0 | BA10: 0 | BB10: 0 | BC10: 0 | BD10: 0 | BE10: 0 | BF10: 0 | BG10: 0 | BH10: 0 | BI10: 0 | BJ10: 0 | BK10: 0 | BL10: 0 | BM10: 0 | BN10: 0 | BO10: 0 | BP10: 0 | BQ10: 0 | BR10: 0 | BS10: 0 | BT10: 0 | BU10: 0 | BV10: 323242.8158 | BW10: 302388.4406 | BX10: 323242.8158 | BY10: 312815.6282 | BZ10: 323242.8158 | CA10: 312815.6282 | CB10: 323242.8158 | CC10: 323242.8158 | CD10: 312815.6282 | CE10: 323242.8158 | CF10: 312815.6282 | CG10: 323242.8158 | CH10: 331618.8018 | CI10: 299526.6597 | CJ10: 331618.8018 | CK10: 320921.4211 | CL10: 331618.8018 | CM10: 320921.4211 | CN10: 331618.8018 | CO10: 331618.8018 | CP10: 320921.4211 | CQ10: 331618.8018 | CR10: 320921.4211 | CS10: 331618.8018 | CT10: 340213.4698 | CU10: 307289.5856 | CV10: 340213.4698 | CW10: 329238.8418 | CX10: 340213.4698 | CY10: 329238.8418 | CZ10: 340213.4698 | DA10: 340213.4698 | DB10: 329238.8418 | DC10: 340213.4698 | DD10: 329238.8418 | DE10: 340213.4698 | DF10: 349032.5704 | DG10: 315255.2249 | DH10: 349032.5704 | DI10: 337773.4553 | DJ10: 349032.5704 | DK10: 337773.4553 | DL10: 349032.5704 | DM10: 349032.5704 | DN10: 337773.4553 | DO10: 349032.5704 | DP10: 337773.4553 | DQ10: 349032.5704 | DR10: 358082.0065 | DS10: 334979.9416 | DT10: 358082.0065 | DU10: 346530.9741 | DV10: 358082.0065 | DW10: 346530.9741 | DX10: 358082.0065 | DY10: 358082.0065 | DZ10: 346530.9741 | EA10: 358082.0065 | EB10: 346530.9741 | EC10: 358082.0065 | ED10: 367367.8374 | EE10: 331816.1112 | EF10: 367367.8374 | EG10: 355517.262 | EH10: 367367.8374 | EI10: 355517.262 | EJ10: 367367.8374 | EK10: 367367.8374 | EL10: 355517.262 | EM10: 367367.8374 | EN10: 355517.262 | EO10: 367367.8374 | EP10: 376896.2825 | EQ10: 340422.4487 | ER10: 376896.2825 | ES10: 364738.3379 | ET10: 376896.2825 | EU10: 364738.3379 | EV10: 376896.2825 | EW10: 376896.2825 | EX10: 364738.3379 | EY10: 376896.2825 | EZ10: 364738.3379 | FA10: 376896.2825 | FB10: 386673.7265 | FC10: 349253.6885 | FD10: 386673.7265 | FE10: 374200.3805 | FF10: 386673.7265 | FG10: 374200.3805 | FH10: 386673.7265 | FI10: 386673.7265 | FJ10: 374200.3805 | FK10: 386673.7265 | FL10: 374200.3805 | FM10: 386673.7265 | FN10: 396706.7228 | FO10: 371112.7407 | FP10: 396706.7228 | FQ10: 383909.7318 | FR10: 396706.7228 | FS10: 383909.7318 | FT10: 396706.7228 | FU10: 396706.7228 | FV10: 383909.7318 | FW10: 396706.7228 | FX10: 383909.7318 | FY10: 396706.7228 | FZ10: 407001.9987 | GA10: 367614.7085 | GB10: 407001.9987 | GC10: 393872.902 | GD10: 407001.9987 | GE10: 393872.902 | GF10: 407001.9987 | GG10: 407001.9987 | GH10: 393872.902 | GI10: 407001.9987 | GJ10: 393872.902 | GK10: 407001.9987 | GL10: 417566.4597 | GM10: 377156.8023 | GN10: 417566.4597 | GO10: 404096.5739 | GP10: 417566.4597 | GQ10: 404096.5739 | GR10: 417566.4597 | GS10: 417566.4597 | GT10: 404096.5739 | GU10: 417566.4597 | GV10: 404096.5739 | GW10: 417566.4597 | GX10: 428407.1942 | GY10: 386948.4335 | GZ10: 428407.1942 | HA10: 414587.6073 | HB10: 428407.1942 | HC10: 414587.6073 | HD10: 428407.1942 | HE10: 428407.1942 | HF10: 414587.6073 | HG10: 428407.1942 | HH10: 414587.6073 | HI10: 428407.1942 | HJ10: 439531.4788 | HK10: 411174.6092 | HL10: 439531.4788 | HM10: 425353.044 | HN10: 439531.4788 | HO10: 425353.044 | HP10: 439531.4788 | HQ10: 439531.4788 | HR10: 425353.044 | HS10: 439531.4788 | HT10: 425353.044 | HU10: 439531.4788 | HV10: 450946.7829 | HW10: 407306.7716 | HX10: 450946.7829 | HY10: 436400.1125 | HZ10: 450946.7829 | IA10: 436400.1125 | IB10: 450946.7829 | IC10: 450946.7829 | ID10: 436400.1125 | IE10: 450946.7829 | IF10: 436400.1125 | IG10: 450946.7829 | IH10: 462660.7738 | II10: 417887.1505 | IJ10: 462660.7738 | IK10: 447736.2327 | IL10: 462660.7738 | IM10: 447736.2327 | IN10: 462660.7738 | IO10: 462660.7738 | IP10: 447736.2327 | IQ10: 462660.7738 | IR10: 447736.2327 | IS10: 462660.7738 | IT10: 474681.3224 | IU10: 428744.4203 | IV10: 474681.3224 | IW10: 459369.0217 | IX10: 474681.3224 | IY10: 459369.0217 | IZ10: 474681.3224 | JA10: 474681.3224 | JB10: 459369.0217 | JC10: 474681.3224 | JD10: 459369.0217 | JE10: 474681.3224 | JF10: 487016.5084 | JG10: 455596.0885 | JH10: 487016.5084 | JI10: 471306.2984 | JJ10: 487016.5084 | JK10: 471306.2984 | JL10: 487016.5084 | JM10: 487016.5084 | JN10: 471306.2984 | JO10: 487016.5084 | JP10: 471306.2984 | JQ10: 487016.5084 | JR10: 499674.6256 | JS10: 451319.0167 | JT10: 499674.6256 | JU10: 483556.0893 | JV10: 499674.6256 | JW10: 483556.0893 | JX10: 499674.6256 | JY10: 499674.6256 | JZ10: 483556.0893 | KA10: 499674.6256 | KB10: 483556.0893 | KC10: 499674.6256 | KD10: 512664.1882 | KE10: 463051.5248 | KF10: 512664.1882 | KG10: 496126.6338 | KH10: 512664.1882 | KI10: 496126.6338 | KJ10: 512664.1882 | KK10: 512664.1882 | KL10: 496126.6338 | KM10: 512664.1882 | KN10: 496126.6338 | KO10: 512664.1882 | KP10: 525993.9362 | KQ10: 475091.2972 | KR10: 525993.9362 | KS10: 509026.3899 | KT10: 525993.9362 | KU10: 509026.3899 | KV10: 525993.9362 | KW10: 525993.9362 | KX10: 509026.3899 | KY10: 525993.9362 | KZ10: 509026.3899 | LA10: 525993.9362 | LB10: 539672.8415 | LC10: 504855.2389 | LD10: 539672.8415 | LE10: 522264.0402 | LF10: 539672.8415 | LG10: 522264.0402 | LH10: 539672.8415 | LI10: 539672.8415 | LJ10: 522264.0402 | LK10: 539672.8415 | LL10: 522264.0402 | LM10: 539672.8415 | LN10: 553710.1145 | LO10: 500125.2647 | LP10: 553710.1145 | LQ10: 535848.4979 | LR10: 553710.1145 | LS10: 535848.4979 | LT10: 553710.1145 | LU10: 553710.1145 | LV10: 535848.4979 | LW10: 553710.1145 | LX10: 535848.4979 | LY10: 553710.1145 | LZ10: 568115.2098 | MA10: 513136.3185 | MB10: 568115.2098 | MC10: 549788.9127 | MD10: 568115.2098 | ME10: 549788.9127 | MF10: 568115.2098 | MG10: 568115.2098 | MH10: 549788.9127 | MI10: 568115.2098 | MJ10: 549788.9127 | MK10: 568115.2098 | ML10: 582897.8333 | MM10: 526488.3655 | MN10: 582897.8333 | MO10: 564094.6774 | MP10: 582897.8333 | MQ10: 564094.6774 | MR10: 582897.8333 | MS10: 582897.8333 | MT10: 564094.6774 | MU10: 582897.8333 | MV10: 564094.6774 | MW10: 582897.8333 | MX10: 598067.9486 | MY10: 559482.9197 | MZ10: 598067.9486 | NA10: 578775.4341 | NB10: 598067.9486 | NC10: 578775.4341 | ND10: 0 | NE10: 0 | NF10: 0 | NG10: 0 | NH10: 0 | NI10: 0 | NJ10: 0 | NK10: 0 | NL10: 0 | NM10: 0 | NN10: 0 | NO10: 0 | NP10: 0 | NQ10: 0 | NR10: 0 | NS10: 0 | NT10: 0 | NU10: 0 | NV10: 0 | NW10: 0 | NX10: 0 | NY10: 0 | NZ10: 0 | OA10: 0 | OB10: 0 | OC10: 0 | OD10: 0 | OE10: 0 | OF10: 0 | OG10: 0 | OH10: 0 | OI10: 0 | OJ10: 0 | OK10: 0 | OL10: 0 | OM10: 0 | ON10: 0 | OO10: 0 | OP10: 0 | OQ10: 0 | OR10: 0 | OS10: 0 | OT10: 0 | OU10: 0 | OV10: 0 | OW10: 0 | OX10: 0 | OY10: 0 | OZ10: 0 | PA10: 0 | PB10: 0 | PC10: 0 | PD10: 0 | PE10: 0 | PF10: 0 | PG10: 0 | PH10: 0 | PI10: 0 | PJ10: 0 | PK10: 0
B11: - | C11: 0 | D11: =IFERROR(F11/$F$9,0) -> 0 | F11: =SUM(H11:PK11) -> 0 | H11: =$C$11*H13*H2 -> 0 | I11: 0 | J11: 0 | K11: 0 | L11: 0 | M11: 0 | N11: 0 | O11: 0 | P11: 0 | Q11: 0 | R11: 0 | S11: 0 | T11: 0 | U11: 0 | V11: 0 | W11: 0 | X11: 0 | Y11: 0 | Z11: 0 | AA11: 0 | AB11: 0 | AC11: 0 | AD11: 0 | AE11: 0 | AF11: 0 | AG11: 0 | AH11: 0 | AI11: 0 | AJ11: 0 | AK11: 0 | AL11: 0 | AM11: 0 | AN11: 0 | AO11: 0 | AP11: 0 | AQ11: 0 | AR11: 0 | AS11: 0 | AT11: 0 | AU11: 0 | AV11: 0 | AW11: 0 | AX11: 0 | AY11: 0 | AZ11: 0 | BA11: 0 | BB11: 0 | BC11: 0 | BD11: 0 | BE11: 0 | BF11: 0 | BG11: 0 | BH11: 0 | BI11: 0 | BJ11: 0 | BK11: 0 | BL11: 0 | BM11: 0 | BN11: 0 | BO11: 0 | BP11: 0 | BQ11: 0 | BR11: 0 | BS11: 0 | BT11: =$C$11*BT13*BT2 -> 0 | BU11: 0 | BV11: 0 | BW11: 0 | BX11: 0 | BY11: 0 | BZ11: 0 | CA11: 0 | CB11: 0 | CC11: 0 | CD11: 0 | CE11: 0 | CF11: 0 | CG11: 0 | CH11: 0 | CI11: 0 | CJ11: 0 | CK11: 0 | CL11: 0 | CM11: 0 | CN11: 0 | CO11: 0 | CP11: 0 | CQ11: 0 | CR11: 0 | CS11: 0 | CT11: 0 | CU11: 0 | CV11: 0 | CW11: 0 | CX11: 0 | CY11: 0 | CZ11: 0 | DA11: 0 | DB11: 0 | DC11: 0 | DD11: 0 | DE11: 0 | DF11: 0 | DG11: 0 | DH11: 0 | DI11: 0 | DJ11: 0 | DK11: 0 | DL11: 0 | DM11: 0 | DN11: 0 | DO11: 0 | DP11: 0 | DQ11: 0 | DR11: 0 | DS11: 0 | DT11: 0 | DU11: 0 | DV11: 0 | DW11: 0 | DX11: 0 | DY11: 0 | DZ11: 0 | EA11: 0 | EB11: 0 | EC11: 0 | ED11: 0 | EE11: 0 | EF11: =$C$11*EF13*EF2 -> 0 | EG11: 0 | EH11: 0 | EI11: 0 | EJ11: 0 | EK11: 0 | EL11: 0 | EM11: 0 | EN11: 0 | EO11: 0 | EP11: 0 | EQ11: 0 | ER11: 0 | ES11: 0 | ET11: 0 | EU11: 0 | EV11: 0 | EW11: 0 | EX11: 0 | EY11: 0 | EZ11: 0 | FA11: 0 | FB11: 0 | FC11: 0 | FD11: 0 | FE11: 0 | FF11: 0 | FG11: 0 | FH11: 0 | FI11: 0 | FJ11: 0 | FK11: 0 | FL11: 0 | FM11: 0 | FN11: 0 | FO11: 0 | FP11: 0 | FQ11: 0 | FR11: 0 | FS11: 0 | FT11: 0 | FU11: 0 | FV11: 0 | FW11: 0 | FX11: 0 | FY11: 0 | FZ11: 0 | GA11: 0 | GB11: 0 | GC11: 0 | GD11: 0 | GE11: 0 | GF11: 0 | GG11: 0 | GH11: 0 | GI11: 0 | GJ11: 0 | GK11: 0 | GL11: 0 | GM11: 0 | GN11: 0 | GO11: 0 | GP11: 0 | GQ11: 0 | GR11: =$C$11*GR13*GR2 -> 0 | GS11: 0 | GT11: 0 | GU11: 0 | GV11: 0 | GW11: 0 | GX11: 0 | GY11: 0 | GZ11: 0 | HA11: 0 | HB11: 0 | HC11: 0 | HD11: 0 | HE11: 0 | HF11: 0 | HG11: 0 | HH11: 0 | HI11: 0 | HJ11: 0 | HK11: 0 | HL11: 0 | HM11: 0 | HN11: 0 | HO11: 0 | HP11: 0 | HQ11: 0 | HR11: 0 | HS11: 0 | HT11: 0 | HU11: 0 | HV11: 0 | HW11: 0 | HX11: 0 | HY11: 0 | HZ11: 0 | IA11: 0 | IB11: 0 | IC11: 0 | ID11: 0 | IE11: 0 | IF11: 0 | IG11: 0 | IH11: 0 | II11: 0 | IJ11: 0 | IK11: 0 | IL11: 0 | IM11: 0 | IN11: 0 | IO11: 0 | IP11: 0 | IQ11: 0 | IR11: 0 | IS11: 0 | IT11: 0 | IU11: 0 | IV11: 0 | IW11: 0 | IX11: 0 | IY11: 0 | IZ11: 0 | JA11: 0 | JB11: 0 | JC11: 0 | JD11: =$C$11*JD13*JD2 -> 0 | JE11: 0 | JF11: 0 | JG11: 0 | JH11: 0 | JI11: 0 | JJ11: 0 | JK11: 0 | JL11: 0 | JM11: 0 | JN11: 0 | JO11: 0 | JP11: 0 | JQ11: 0 | JR11: 0 | JS11: 0 | JT11: 0 | JU11: 0 | JV11: 0 | JW11: 0 | JX11: 0 | JY11: 0 | JZ11: 0 | KA11: 0 | KB11: 0 | KC11: 0 | KD11: 0 | KE11: 0 | KF11: 0 | KG11: 0 | KH11: 0 | KI11: 0 | KJ11: 0 | KK11: 0 | KL11: 0 | KM11: 0 | KN11: 0 | KO11: 0 | KP11: 0 | KQ11: 0 | KR11: 0 | KS11: 0 | KT11: 0 | KU11: 0 | KV11: 0 | KW11: 0 | KX11: 0 | KY11: 0 | KZ11: 0 | LA11: 0 | LB11: 0 | LC11: 0 | LD11: 0 | LE11: 0 | LF11: 0 | LG11: 0 | LH11: 0 | LI11: 0 | LJ11: 0 | LK11: 0 | LL11: 0 | LM11: 0 | LN11: 0 | LO11: 0 | LP11: =$C$11*LP13*LP2 -> 0 | LQ11: 0 | LR11: 0 | LS11: 0 | LT11: 0 | LU11: 0 | LV11: 0 | LW11: 0 | LX11: 0 | LY11: 0 | LZ11: 0 | MA11: 0 | MB11: 0 | MC11: 0 | MD11: 0 | ME11: 0 | MF11: 0 | MG11: 0 | MH11: 0 | MI11: 0 | MJ11: 0 | MK11: 0 | ML11: 0 | MM11: 0 | MN11: 0 | MO11: 0 | MP11: 0 | MQ11: 0 | MR11: 0 | MS11: 0 | MT11: 0 | MU11: 0 | MV11: 0 | MW11: 0 | MX11: 0 | MY11: 0 | MZ11: 0 | NA11: 0 | NB11: 0 | NC11: 0 | ND11: 0 | NE11: 0 | NF11: 0 | NG11: 0 | NH11: 0 | NI11: 0 | NJ11: 0 | NK11: 0 | NL11: 0 | NM11: 0 | NN11: 0 | NO11: 0 | NP11: 0 | NQ11: 0 | NR11: 0 | NS11: 0 | NT11: 0 | NU11: 0 | NV11: 0 | NW11: 0 | NX11: 0 | NY11: 0 | NZ11: 0 | OA11: 0 | OB11: =$C$11*OB13*OB2 -> 0 | OC11: 0 | OD11: 0 | OE11: 0 | OF11: 0 | OG11: 0 | OH11: 0 | OI11: 0 | OJ11: 0 | OK11: 0 | OL11: 0 | OM11: 0 | ON11: 0 | OO11: 0 | OP11: 0 | OQ11: 0 | OR11: 0 | OS11: 0 | OT11: 0 | OU11: 0 | OV11: 0 | OW11: 0 | OX11: 0 | OY11: 0 | OZ11: 0 | PA11: 0 | PB11: 0 | PC11: 0 | PD11: 0 | PE11: 0 | PF11: 0 | PG11: 0 | PH11: 0 | PI11: 0 | PJ11: 0 | PK11: 0
A13: (+) | B13: Receita Tarifária | D13: 1 | F13: =SUM(H13:PK13) -> 4272289975 | H13: =SUM(H14:H18)*H2*(1+$C$98)*(1+$C$100)*$D$13 -> 0 | I13: 0 | J13: 0 | K13: 0 | L13: 0 | M13: 0 | N13: 0 | O13: 0 | P13: 0 | Q13: 0 | R13: 0 | S13: 0 | T13: 0 | U13: 0 | V13: 0 | W13: 0 | X13: 0 | Y13: 0 | Z13: 0 | AA13: 0 | AB13: 0 | AC13: 0 | AD13: 0 | AE13: 0 | AF13: 0 | AG13: 0 | AH13: 0 | AI13: 0 | AJ13: 0 | AK13: 0 | AL13: 0 | AM13: 0 | AN13: 0 | AO13: 0 | AP13: 0 | AQ13: 0 | AR13: 0 | AS13: 0 | AT13: 0 | AU13: 0 | AV13: 0 | AW13: 0 | AX13: 0 | AY13: 0 | AZ13: 0 | BA13: 0 | BB13: 0 | BC13: 0 | BD13: 0 | BE13: 0 | BF13: 0 | BG13: 0 | BH13: 0 | BI13: 0 | BJ13: 0 | BK13: 0 | BL13: 0 | BM13: 0 | BN13: 0 | BO13: 0 | BP13: 0 | BQ13: 0 | BR13: 0 | BS13: 0 | BT13: =SUM(BT14:BT18)*BT2*(1+$C$98)*(1+$C$100)*$D$13 -> 0 | BU13: 0 | BV13: 10774760.53 | BW13: 10079614.69 | BX13: 10774760.53 | BY13: 10427187.61 | BZ13: 10774760.53 | CA13: 10427187.61 | CB13: 10774760.53 | CC13: 10774760.53 | CD13: 10427187.61 | CE13: 10774760.53 | CF13: 10427187.61 | CG13: 10774760.53 | CH13: 11053960.06 | CI13: 9984221.99 | CJ13: 11053960.06 | CK13: 10697380.7 | CL13: 11053960.06 | CM13: 10697380.7 | CN13: 11053960.06 | CO13: 11053960.06 | CP13: 10697380.7 | CQ13: 11053960.06 | CR13: 10697380.7 | CS13: 11053960.06 | CT13: 11340448.99 | CU13: 10242986.19 | CV13: 11340448.99 | CW13: 10974628.06 | CX13: 11340448.99 | CY13: 10974628.06 | CZ13: 11340448.99 | DA13: 11340448.99 | DB13: 10974628.06 | DC13: 11340448.99 | DD13: 10974628.06 | DE13: 11340448.99 | DF13: 11634419.01 | DG13: 10508507.5 | DH13: 11634419.01 | DI13: 11259115.18 | DJ13: 11634419.01 | DK13: 11259115.18 | DL13: 11634419.01 | DM13: 11634419.01 | DN13: 11259115.18 | DO13: 11634419.01 | DP13: 11259115.18 | DQ13: 11634419.01 | DR13: 11936066.88 | DS13: 11165998.05 | DT13: 11936066.88 | DU13: 11551032.47 | DV13: 11936066.88 | DW13: 11551032.47 | DX13: 11936066.88 | DY13: 11936066.88 | DZ13: 11551032.47 | EA13: 11936066.88 | EB13: 11551032.47 | EC13: 11936066.88 | ED13: 12245594.58 | EE13: 11060537.04 | EF13: =SUM(EF14:EF18)*EF2*(1+$C$98)*(1+$C$100)*$D$13 -> 12245594.58 | EG13: 11850575.4 | EH13: 12245594.58 | EI13: 11850575.4 | EJ13: 12245594.58 | EK13: 12245594.58 | EL13: 11850575.4 | EM13: 12245594.58 | EN13: 11850575.4 | EO13: 12245594.58 | EP13: 12563209.42 | EQ13: 11347414.96 | ER13: 12563209.42 | ES13: 12157944.6 | ET13: 12563209.42 | EU13: 12157944.6 | EV13: 12563209.42 | EW13: 12563209.42 | EX13: 12157944.6 | EY13: 12563209.42 | EZ13: 12157944.6 | FA13: 12563209.42 | FB13: 12889124.22 | FC13: 11641789.62 | FD13: 12889124.22 | FE13: 12473346.02 | FF13: 12889124.22 | FG13: 12473346.02 | FH13: 12889124.22 | FI13: 12889124.22 | FJ13: 12473346.02 | FK13: 12889124.22 | FL13: 12473346.02 | FM13: 12889124.22 | FN13: 13223557.43 | FO13: 12370424.69 | FP13: 13223557.43 | FQ13: 12796991.06 | FR13: 13223557.43 | FS13: 12796991.06 | FT13: 13223557.43 | FU13: 13223557.43 | FV13: 12796991.06 | FW13: 13223557.43 | FX13: 12796991.06 | FY13: 13223557.43 | FZ13: 13566733.29 | GA13: 12253823.62 | GB13: 13566733.29 | GC13: 13129096.73 | GD13: 13566733.29 | GE13: 13129096.73 | GF13: 13566733.29 | GG13: 13566733.29 | GH13: 13129096.73 | GI13: 13566733.29 | GJ13: 13129096.73 | GK13: 13566733.29 | GL13: 13918881.99 | GM13: 12571893.41 | GN13: 13918881.99 | GO13: 13469885.8 | GP13: 13918881.99 | GQ13: 13469885.8 | GR13: =SUM(GR14:GR18)*GR2*(1+$C$98)*(1+$C$100)*$D$13 -> 13918881.99 | GS13: 13918881.99 | GT13: 13469885.8 | GU13: 13918881.99 | GV13: 13469885.8 | GW13: 13918881.99 | GX13: 14280239.81 | GY13: 12898281.12 | GZ13: 14280239.81 | HA13: 13819586.91 | HB13: 14280239.81 | HC13: 13819586.91 | HD13: 14280239.81 | HE13: 14280239.81 | HF13: 13819586.91 | HG13: 14280239.81 | HH13: 13819586.91 | HI13: 14280239.81 | HJ13: 14651049.29 | HK13: 13705820.31 | HL13: 14651049.29 | HM13: 14178434.8 | HN13: 14651049.29 | HO13: 14178434.8 | HP13: 14651049.29 | HQ13: 14651049.29 | HR13: 14178434.8 | HS13: 14651049.29 | HT13: 14178434.8 | HU13: 14651049.29 | HV13: 15031559.43 | HW13: 13576892.39 | HX13: 15031559.43 | HY13: 14546670.42 | HZ13: 15031559.43 | IA13: 14546670.42 | IB13: 15031559.43 | IC13: 15031559.43 | ID13: 14546670.42 | IE13: 15031559.43 | IF13: 14546670.42 | IG13: 15031559.43 | IH13: 15422025.79 | II13: 13929571.68 | IJ13: 15422025.79 | IK13: 14924541.09 | IL13: 15422025.79 | IM13: 14924541.09 | IN13: 15422025.79 | IO13: 15422025.79 | IP13: 14924541.09 | IQ13: 15422025.79 | IR13: 14924541.09 | IS13: 15422025.79 | IT13: 15822710.75 | IU13: 14291480.68 | IV13: 15822710.75 | IW13: 15312300.72 | IX13: 15822710.75 | IY13: 15312300.72 | IZ13: 15822710.75 | JA13: 15822710.75 | JB13: 15312300.72 | JC13: 15822710.75 | JD13: =SUM(JD14:JD18)*JD2*(1+$C$98)*(1+$C$100)*$D$13 -> 15312300.72 | JE13: 15822710.75 | JF13: 16233883.61 | JG13: 15186536.28 | JH13: 16233883.61 | JI13: 15710209.95 | JJ13: 16233883.61 | JK13: 15710209.95 | JL13: 16233883.61 | JM13: 16233883.61 | JN13: 15710209.95 | JO13: 16233883.61 | JP13: 15710209.95 | JQ13: 16233883.61 | JR13: 16655820.85 | JS13: 15043967.22 | JT13: 16655820.85 | JU13: 16118536.31 | JV13: 16655820.85 | JW13: 16118536.31 | JX13: 16655820.85 | JY13: 16655820.85 | JZ13: 16118536.31 | KA13: 16655820.85 | KB13: 16118536.31 | KC13: 16655820.85 | KD13: 17088806.27 | KE13: 15435050.83 | KF13: 17088806.27 | KG13: 16537554.46 | KH13: 17088806.27 | KI13: 16537554.46 | KJ13: 17088806.27 | KK13: 17088806.27 | KL13: 16537554.46 | KM13: 17088806.27 | KN13: 16537554.46 | KO13: 17088806.27 | KP13: 17533131.21 | KQ13: 15836376.57 | KR13: 17533131.21 | KS13: 16967546.33 | KT13: 17533131.21 | KU13: 16967546.33 | KV13: 17533131.21 | KW13: 17533131.21 | KX13: 16967546.33 | KY13: 17533131.21 | KZ13: 16967546.33 | LA13: 17533131.21 | LB13: 17989094.72 | LC13: 16828507.96 | LD13: 17989094.72 | LE13: 17408801.34 | LF13: 17989094.72 | LG13: 17408801.34 | LH13: 17989094.72 | LI13: 17989094.72 | LJ13: 17408801.34 | LK13: 17989094.72 | LL13: 17408801.34 | LM13: 17989094.72 | LN13: 18457003.82 | LO13: 16670842.16 | LP13: =SUM(LP14:LP18)*LP2*(1+$C$98)*(1+$C$100)*$D$13 -> 18457003.82 | LQ13: 17861616.6 | LR13: 18457003.82 | LS13: 17861616.6 | LT13: 18457003.82 | LU13: 18457003.82 | LV13: 17861616.6 | LW13: 18457003.82 | LX13: 17861616.6 | LY13: 18457003.82 | LZ13: 18937173.66 | MA13: 17104543.95 | MB13: 18937173.66 | MC13: 18326297.09 | MD13: 18937173.66 | ME13: 18326297.09 | MF13: 18937173.66 | MG13: 18937173.66 | MH13: 18326297.09 | MI13: 18937173.66 | MJ13: 18326297.09 | MK13: 18937173.66 | ML13: 19429927.78 | MM13: 17549612.18 | MN13: 19429927.78 | MO13: 18803155.91 | MP13: 19429927.78 | MQ13: 18803155.91 | MR13: 19429927.78 | MS13: 19429927.78 | MT13: 18803155.91 | MU13: 19429927.78 | MV13: 18803155.91 | MW13: 19429927.78 | MX13: 19935598.29 | MY13: 18649430.66 | MZ13: 19935598.29 | NA13: 19292514.47 | NB13: 19935598.29 | NC13: 19292514.47 | ND13: 0 | NE13: 0 | NF13: 0 | NG13: 0 | NH13: 0 | NI13: 0 | NJ13: 0 | NK13: 0 | NL13: 0 | NM13: 0 | NN13: 0 | NO13: 0 | NP13: 0 | NQ13: 0 | NR13: 0 | NS13: 0 | NT13: 0 | NU13: 0 | NV13: 0 | NW13: 0 | NX13: 0 | NY13: 0 | NZ13: 0 | OA13: 0 | OB13: =SUM(OB14:OB18)*OB2*(1+$C$98)*(1+$C$100)*$D$13 -> 0 | OC13: 0 | OD13: 0 | OE13: 0 | OF13: 0 | OG13: 0 | OH13: 0 | OI13: 0 | OJ13: 0 | OK13: 0 | OL13: 0 | OM13: 0 | ON13: 0 | OO13: 0 | OP13: 0 | OQ13: 0 | OR13: 0 | OS13: 0 | OT13: 0 | OU13: 0 | OV13: 0 | OW13: 0 | OX13: 0 | OY13: 0 | OZ13: 0 | PA13: 0 | PB13: 0 | PC13: 0 | PD13: 0 | PE13: 0 | PF13: 0 | PG13: 0 | PH13: 0 | PI13: 0 | PJ13: 0 | PK13: 0
A14: =IFERROR(AVERAGEIFS(H14:PK14,H14:PK14,">1"),0) -> 1476538.271 | B14: Alça Norte | C14: =SUM(D14:D17) -> 0.9987054756 | D14: =IFERROR(F14/$F$13,0) -> 0.1016087986 | F14: =SUM(H14:PK14) -> 434102251.6 | H14: 0 | I14: 0 | J14: 0 | K14: 0 | L14: 0 | M14: 0 | N14: 0 | O14: 0 | P14: 0 | Q14: 0 | R14: 0 | S14: 0 | T14: 0 | U14: 0 | V14: 0 | W14: 0 | X14: 0 | Y14: 0 | Z14: 0 | AA14: 0 | AB14: 0 | AC14: 0 | AD14: 0 | AE14: 0 | AF14: 0 | AG14: 0 | AH14: 0 | AI14: 0 | AJ14: 0 | AK14: 0 | AL14: 0 | AM14: 0 | AN14: 0 | AO14: 0 | AP14: 0 | AQ14: 0 | AR14: 0 | AS14: 0 | AT14: 0 | AU14: 0 | AV14: 0 | AW14: 0 | AX14: 0 | AY14: 0 | AZ14: 0 | BA14: 0 | BB14: 0 | BC14: 0 | BD14: 0 | BE14: 0 | BF14: 0 | BG14: 0 | BH14: 0 | BI14: 0 | BJ14: 0 | BK14: 0 | BL14: 0 | BM14: 0 | BN14: 0 | BO14: 0 | BP14: 0 | BQ14: 0 | BR14: 0 | BS14: 0 | BT14: 0 | BU14: 0 | BV14: 1109332.123 | BW14: 1037762.308 | BX14: 1109332.123 | BY14: 1073547.215 | BZ14: 1109332.123 | CA14: 1073547.215 | CB14: 1109332.123 | CC14: 1109332.123 | CD14: 1073547.215 | CE14: 1109332.123 | CF14: 1073547.215 | CG14: 1109332.123 | CH14: 1136928.437 | CI14: 1026903.104 | CJ14: 1136928.437 | CK14: 1100253.326 | CL14: 1136928.437 | CM14: 1100253.326 | CN14: 1136928.437 | CO14: 1136928.437 | CP14: 1100253.326 | CQ14: 1136928.437 | CR14: 1100253.326 | CS14: 1136928.437 | CT14: 1165216.351 | CU14: 1052453.478 | CV14: 1165216.351 | CW14: 1127628.727 | CX14: 1165216.351 | CY14: 1127628.727 | CZ14: 1165216.351 | DA14: 1165216.351 | DB14: 1127628.727 | DC14: 1165216.351 | DD14: 1127628.727 | DE14: 1165216.351 | DF14: 1194213.332 | DG14: 1078644.299 | DH14: 1194213.332 | DI14: 1155690.321 | DJ14: 1194213.332 | DK14: 1155690.321 | DL14: 1194213.332 | DM14: 1194213.332 | DN14: 1155690.321 | DO14: 1194213.332 | DP14: 1155690.321 | DQ14: 1194213.332 | DR14: 1223937.289 | DS14: 1144973.593 | DT14: 1223937.289 | DU14: 1184455.441 | DV14: 1223937.289 | DW14: 1184455.441 | DX14: 1223937.289 | DY14: 1223937.289 | DZ14: 1184455.441 | EA14: 1223937.289 | EB14: 1184455.441 | EC14: 1223937.289 | ED14: 1254406.59 | EE14: 1133012.404 | EF14: 1254406.59 | EG14: 1213941.862 | EH14: 1254406.59 | EI14: 1213941.862 | EJ14: 1254406.59 | EK14: 1254406.59 | EL14: 1213941.862 | EM14: 1254406.59 | EN14: 1213941.862 | EO14: 1254406.59 | EP14: 1285640.069 | EQ14: 1161223.288 | ER14: 1285640.069 | ES14: 1244167.809 | ET14: 1285640.069 | EU14: 1244167.809 | EV14: 1285640.069 | EW14: 1285640.069 | EX14: 1244167.809 | EY14: 1285640.069 | EZ14: 1244167.809 | FA14: 1285640.069 | FB14: 1317657.04 | FC14: 1190141.842 | FD14: 1317657.04 | FE14: 1275151.974 | FF14: 1317657.04 | FG14: 1275151.974 | FH14: 1317657.04 | FI14: 1317657.04 | FJ14: 1275151.974 | FK14: 1317657.04 | FL14: 1275151.974 | FM14: 1317657.04 | FN14: 1350477.308 | FO14: 1263349.739 | FP14: 1350477.308 | FQ14: 1306913.523 | FR14: 1350477.308 | FS14: 1306913.523 | FT14: 1350477.308 | FU14: 1350477.308 | FV14: 1306913.523 | FW14: 1350477.308 | FX14: 1306913.523 | FY14: 1350477.308 | FZ14: 1384121.183 | GA14: 1250173.972 | GB14: 1384121.183 | GC14: 1339472.113 | GD14: 1384121.183 | GE14: 1339472.113 | GF14: 1384121.183 | GG14: 1384121.183 | GH14: 1339472.113 | GI14: 1384121.183 | GJ14: 1339472.113 | GK14: 1384121.183 | GL14: 1418609.495 | GM14: 1281324.705 | GN14: 1418609.495 | GO14: 1372847.899 | GP14: 1418609.495 | GQ14: 1372847.899 | GR14: 1418609.495 | GS14: 1418609.495 | GT14: 1372847.899 | GU14: 1418609.495 | GV14: 1372847.899 | GW14: 1418609.495 | GX14: 1453963.602 | GY14: 1313257.447 | GZ14: 1453963.602 | HA14: 1407061.55 | HB14: 1453963.602 | HC14: 1407061.55 | HD14: 1453963.602 | HE14: 1453963.602 | HF14: 1407061.55 | HG14: 1453963.602 | HH14: 1407061.55 | HI14: 1453963.602 | HJ14: 1490205.407 | HK14: 1394063.123 | HL14: 1490205.407 | HM14: 1442134.265 | HN14: 1490205.407 | HO14: 1442134.265 | HP14: 1490205.407 | HQ14: 1490205.407 | HR14: 1442134.265 | HS14: 1490205.407 | HT14: 1442134.265 | HU14: 1490205.407 | HV14: 1527357.372 | HW14: 1379548.594 | HX14: 1527357.372 | HY14: 1478087.78 | HZ14: 1527357.372 | IA14: 1478087.78 | IB14: 1527357.372 | IC14: 1527357.372 | ID14: 1478087.78 | IE14: 1527357.372 | IF14: 1478087.78 | IG14: 1527357.372 | IH14: 1565442.533 | II14: 1413948.094 | IJ14: 1565442.533 | IK14: 1514944.387 | IL14: 1565442.533 | IM14: 1514944.387 | IN14: 1565442.533 | IO14: 1565442.533 | IP14: 1514944.387 | IQ14: 1565442.533 | IR14: 1514944.387 | IS14: 1565442.533 | IT14: 1604484.511 | IU14: 1449211.816 | IV14: 1604484.511 | IW14: 1552726.946 | IX14: 1604484.511 | IY14: 1552726.946 | IZ14: 1604484.511 | JA14: 1604484.511 | JB14: 1552726.946 | JC14: 1604484.511 | JD14: 1552726.946 | JE14: 1604484.511 | JF14: 1644507.531 | JG14: 1538410.271 | JH14: 1644507.531 | JI14: 1591458.901 | JJ14: 1644507.531 | JK14: 1591458.901 | JL14: 1644507.531 | JM14: 1644507.531 | JN14: 1591458.901 | JO14: 1644507.531 | JP14: 1591458.901 | JQ14: 1644507.531 | JR14: 1685536.438 | JS14: 1522420.008 | JT14: 1685536.438 | JU14: 1631164.295 | JV14: 1685536.438 | JW14: 1631164.295 | JX14: 1685536.438 | JY14: 1685536.438 | JZ14: 1631164.295 | KA14: 1685536.438 | KB14: 1631164.295 | KC14: 1685536.438 | KD14: 1727596.707 | KE14: 1560409.929 | KF14: 1727596.707 | KG14: 1671867.781 | KH14: 1727596.707 | KI14: 1671867.781 | KJ14: 1727596.707 | KK14: 1727596.707 | KL14: 1671867.781 | KM14: 1727596.707 | KN14: 1671867.781 | KO14: 1727596.707 | KP14: 1770714.468 | KQ14: 1599355.003 | KR14: 1770714.468 | KS14: 1713594.646 | KT14: 1770714.468 | KU14: 1713594.646 | KV14: 1770714.468 | KW14: 1770714.468 | KX14: 1713594.646 | KY14: 1770714.468 | KZ14: 1713594.646 | LA14: 1770714.468 | LB14: 1814916.514 | LC14: 1697825.126 | LD14: 1814916.514 | LE14: 1756370.82 | LF14: 1814916.514 | LG14: 1756370.82 | LH14: 1814916.514 | LI14: 1814916.514 | LJ14: 1756370.82 | LK14: 1814916.514 | LL14: 1756370.82 | LM14: 1814916.514 | LN14: 1860230.325 | LO14: 1680208.036 | LP14: 1860230.325 | LQ14: 1800222.895 | LR14: 1860230.325 | LS14: 1800222.895 | LT14: 1860230.325 | LU14: 1860230.325 | LV14: 1800222.895 | LW14: 1860230.325 | LX14: 1800222.895 | LY14: 1860230.325 | LZ14: 1906684.082 | MA14: 1722166.268 | MB14: 1906684.082 | MC14: 1845178.144 | MD14: 1906684.082 | ME14: 1845178.144 | MF14: 1906684.082 | MG14: 1906684.082 | MH14: 1845178.144 | MI14: 1906684.082 | MJ14: 1845178.144 | MK14: 1906684.082 | ML14: 1954306.687 | MM14: 1765180.233 | MN14: 1954306.687 | MO14: 1891264.535 | MP14: 1954306.687 | MQ14: 1891264.535 | MR14: 1954306.687 | MS14: 1954306.687 | MT14: 1891264.535 | MU14: 1954306.687 | MV14: 1891264.535 | MW14: 1954306.687 | MX14: 2003127.777 | MY14: 1873893.727 | MZ14: 2003127.777 | NA14: 1938510.752 | NB14: 2003127.777 | NC14: 1938510.752 | ND14: 0 | NE14: 0 | NF14: 0 | NG14: 0 | NH14: 0 | NI14: 0 | NJ14: 0 | NK14: 0 | NL14: 0 | NM14: 0 | NN14: 0 | NO14: 0 | NP14: 0 | NQ14: 0 | NR14: 0 | NS14: 0 | NT14: 0 | NU14: 0 | NV14: 0 | NW14: 0 | NX14: 0 | NY14: 0 | NZ14: 0 | OA14: 0 | OB14: 0 | OC14: 0 | OD14: 0 | OE14: 0 | OF14: 0 | OG14: 0 | OH14: 0 | OI14: 0 | OJ14: 0 | OK14: 0 | OL14: 0 | OM14: 0 | ON14: 0 | OO14: 0 | OP14: 0 | OQ14: 0 | OR14: 0 | OS14: 0 | OT14: 0 | OU14: 0 | OV14: 0 | OW14: 0 | OX14: 0 | OY14: 0 | OZ14: 0 | PA14: 0 | PB14: 0 | PC14: 0 | PD14: 0 | PE14: 0 | PF14: 0 | PG14: 0 | PH14: 0 | PI14: 0 | PJ14: 0 | PK14: 0
